Workbook

Sheet Instructions
A1: The user should read all instructions before proceeding. Additional instructions are in the worksheets.
A9: Acronyms:
A11: BLS = Bureau of Labor Statistics
A12: GPCD = Gallons per Capita per Day
A13: LWSP = Local Water Supply Plan
A14: MGD = Million Gallons per Day
A15: ICI = Industrial, Commercial, and Institutional
A16: UFW = Unaccounted-for Water
A17: CAGR = Compound Annual Growth Rate
A18: NC OSBM = North Carolina Office of State Budget and Management
A20: Projections Worksheet Notes:
A22: Begin Year is a year in the past that begins the historical analysis. The tool can look back five or ten years from the end year.
A23: End Year is the year that ends the historical analysis. This is normally the year preceding the LWSP reporting year (e.g. if the LWSP reporting year is 2023, then End Year would be 2022).
A24: Historical Window is the period of time between the begin year and end year.
A25: Proj. Year is a projected year in the future.
A26: ERROR is generated when there is no data or incorrect data has been entered.
A28: The equation: Fp = W x (1 + I)^N is used to calculate future projections.
A29: W = End Year water use or End Year population
A30: I = Annual growth rate (see options below)
A31: N = Number of years to project
A33: Annual growth rates:
A34: - Historical Rate is based on the average of the annual rates of change in water use from the Begin Year to the End Year. These rates are identified by the number 1.
A35: - Group Rate is the average historical rate (past 10 yrs) of all systems grouped by population as follows: >=500; 501-3,300; 3,301-10,000; 10,001-100,000; >100,000 . These rates are identified by the number 2. Note: If the group rate is negative, the tool defaults to zero.
A36: - Economic Rate is based on data from the BLS as shown in the Economic Rate Data worksheet. These rates are identified by the number 3. Note: If the BLS rate is negative, the tool defaults to zero.
A37: - Variable Rate allows the user to make projections using different rates for different time periods. These rates are identified by the number 4.
A39: Evaluation Worksheet Notes:
A41: Threshold Values are used to evaluate the delta between calculated values and LWSP values.
A42: The suggested threshold value is the difference between the average of the calculated values and the average of the LWSP values. The user can click the threshold button to insert the suggested values or use their own values.
A43: If delta is less than the threshold value, the cell is highlighted in green indicating a smaller difference for the referenced year.
A44: If delta is greater than the threshold value, the cell is highlighted in yellow indicating a larger difference for the referenced year.
A45: Delta is conservative if the calculated value is greater than the LWSP value.
A46: The non-residential demand GPCD deltas are calculated using the year-round population for the water system.
A47: If the percent difference between the calculated value and LWSP value is greater than 50%, it is flagged for further evaluation.
A48: Variance is defined as (Population Delta x GPCD), and represents the degree to which residential water demand can vary.
A50: Instructions:
A52: Step 1: | B52: After reading the instructions, begin with the Projections WKSHT.
B53: The Clear User Data button can be used to clear all previously entered data in the tool (except for the Non-Residential Demand Rate Selection Table).
B54: Type the Public Water Supply ID Number (PWSID) with hyphens (i.e. xx-xx-xxx). LWSP data is automatically loaded into the worksheet.
B55: The tool will return ERROR if the PWSID is blank or not entered correctly. Click the PWSID Lookup button to find the PWSID if necessary.
B56: In the Population Projection Table, the user can enter the begin year and/or the end year population and a growth rate in the blue shaded cells.
B57: - Doing so will override the LWSP begin year and end year populations, and the LWSP historical growth rate.
B58: The user can also use a variable rate to project population. Doing so will override the other rates.
B59: If there is a need to calculate population projections to match the previous LWSP, click the Match LWSP button. Note: Y must be entered in the Use Variable Rate cell first.
B61: Note: If a rate less than 1% needs to be entered in the Projections WKSHT, enter it with a leading zero. For example, 0.5% would be entered as 0.5.
A63: Step 2: | B63: In the Historical Water Demand Table, if the end year does not show the correct demand for a particular use type, the demand can be modified by entering a value in the blue shaded cells.
B64: Data entered in the blue shaded cells will override the LWSP end year demand.
B65: The tool will not projected demands if there is no end year demand.
B66: Historical ICI water use can be viewed by clicking the Historical ICI button.
B68: Residential demand projections are calculated using the end year consumption rate (GPCD) and population projections.
B69: If the end year consumption rate is undesirable, the median consumption rate can be selected (click Median button) or a different rate can be entered in the blue shaded cell.
B70: Determine which population projection method will be used to calculate projected residential demand (either B or C):
B71: - [B] If this method is selected, residential demand will be projected using the LWSP population projections.
B72: - [C] If this method is selected, residential demand will be projected using the population projections generated by either the historical growth rate or rates selected by the user.
A74: Step 3: | B74: Non-residential demand projections are calculated from end year water demand.
B75: In the Non-Residential Demand Rate Selection Table, select the appropriate growth rate to project non-residential demands.
B76: - Historical Rate is based on the average of the annual rates of change in water use from the Begin Year to the End Year. These rates are identified by the number 1.
B77: - Group Rate is the average historical rate (past 10 yrs) of all systems grouped by population as follows: >=500; 501-3,300; 3,301-10,000; 10,001-100,000; >100,000 . These rates are identified by the number 2. Note: If the group rate is negative, the tool defaults to zero.
B78: - Economic Rate is based on data from the BLS as shown in the Economic Rate Data worksheet. These rates are identified by the number 3. Note: If the BLS rate is negative, the tool defaults to zero.
B79: - Variable Rate allows the user to make projections using different rates for different time periods. These rates are identified by the number 4.
B80: For variable rate projections, growth rates can be entered in the blue shaded cells for the appropriate time period.
B81: If there is a need to calculate non-residential demand projections to match the previous LWSP, click the Match LWSP button. Note: 4 must be entered in the Non-Residential Demand Rate Selection Table first.
B83: An additional option is available to calculate Unaccounted-for Water Demand projections (UFW).
B84: Click the Project button to automatically project UFW demand. Note: The rate selection must be blank in the Non-Residential Demand Rate Selection Table.
B85: The Project function calculates UFW demand at the same percentage of total demand as the end year.
B86: If there is a need to calculate UFW demand projections to match the previous LWSP, click the Match LWSP button. Note: 2 must be entered in the Non-Residential Demand Rate Selection Table first.
B87: DO NOT use the project button and the Match LWSP button simultaneously.
B88: In order for the Project button to correctly calculate UFW demand, all other demand must be projected first (i.e. residential, commercial, industrial, institutional, system process).
B90: Projected water sales can be entered for the appropriate time period if necessary in the blue shaded cells. Doing so will override LWSP projected sales.
B91: Future water supply can be entered for the appropriate time period if necessary in the blue shaded cells. Doing so will override LWSP future supply.
B92: Enter the total amount of projected water sales and/or future water supply. The tool will not add sales or supply from preceding time periods.
A94: Step 4: | B94: Use the Evaluation worksheet to analyze differences between calculated projections and LWSP projections.
B95: Available supply can be entered for the appropriate time period, if necessary, in the blue shaded cells at the bottom of the Evaluation worksheet. Doing so will override LWSP available supply values.
B96: Do not include unplanned future water supply in the available supply entries.
A98: Step 5: | B98: Use the Justification worksheet for note taking (e.g. discuss why selected rates were chosen or other system expectations).
B99: - This worksheet should be used to document anticipated system situations that would affect growth and water demands.
A101: Step 6: | B101: The Summary Table Worksheet can be used to view the comprehensive projection results in tabular and chart formats.

Sheet Projections WKSHT
A1: System Name: | B1: =IFERROR(VLOOKUP(B2,Systems!A8:B558,2,FALSE),"No Data") -> No Data
A2: PWSID:
A3: Water Withdrawn/Purchased: | B3: =IFERROR(VLOOKUP($B$1,'Master Data Set 2022'!$A$3:$BG$554,2,FALSE),"ERROR") -> ERROR
A4: Available Supply (MGD): | B4: =IFERROR(VLOOKUP($B$1,'Master Data Set 2022'!$A$3:$BG$554,3,FALSE),"ERROR") -> ERROR
A5: Water Sold (MGD): | B5: =IFERROR(VLOOKUP($B$1,'Master Data Set 2022'!$A$3:$BG$554,4,FALSE),"ERROR") -> ERROR
A6: Enter data in blue shaded cells.
A8: Population Projections
N9: NC OSBM Projections (updated: 12/15/22)
B10: User's Population | D10: User's Population
B11: (Begin Year) | D11: (End Year) | M11: Data Year: | N11: ='OSBM Data'!BD1 -> 2030 | O11: ='OSBM Data'!BF1 -> 2035 | P11: ='OSBM Data'!BH1 -> 2040 | Q11: ='OSBM Data'!BJ1 -> 2045 | R11: ='OSBM Data'!BL1 -> 2050
M12: Population: | N12: =IFERROR(VLOOKUP(J14&N11,'OSBM Data'!$BD$3:$BM$102,2,FALSE),"ERROR") -> ERROR | O12: =IFERROR(VLOOKUP(J14&O11,'OSBM Data'!$BF$3:$BM$102,2,FALSE),"ERROR") -> ERROR | P12: =IFERROR(VLOOKUP(J14&P11,'OSBM Data'!$BH$3:$BM$102,2,FALSE),"ERROR") -> ERROR | Q12: =IFERROR(VLOOKUP(J14&Q11,'OSBM Data'!$BJ$3:$BM$102,2,FALSE),"ERROR") -> ERROR | R12: =IFERROR(VLOOKUP(J14&R11,'OSBM Data'!$BL$3:$BM$102,2,FALSE),"ERROR") -> ERROR
A13: Begin Year | B13: Population | C13: End Year | D13: Population | F13: Historical Window | G13: LWSP Historical Rate | H13: User's Rate | I13: Projected County Rate | K13: Use Variable Rate (Y/N)? | M13: CAGR: | O13: =IFERROR(IF(N12=0,"ERROR",(O12/N12)^(1/(O11-N11))-1),"ERROR") -> ERROR | P13: =IFERROR(IF(O12=0,"ERROR",(P12/O12)^(1/(P11-O11))-1),"ERROR") -> ERROR | Q13: =IFERROR(IF(P12=0,"ERROR",(Q12/P12)^(1/(Q11-P11))-1),"ERROR") -> ERROR | R13: =IFERROR(IF(Q12=0,"ERROR",(R12/Q12)^(1/(R11-Q11))-1),"ERROR") -> ERROR
A14: ='Master Data Set 2017'!D1 -> 2017 | B14: =IF(B12=0,IFERROR(VLOOKUP($B$1,'Master Data Set 2017'!$A$3:$BG$575,6,FALSE),"ERROR"),B12) -> ERROR | C14: ='Master Data Set 2022'!D1 -> 2022 | D14: =IF(D12=0,IFERROR(VLOOKUP($B$1,'Master Data Set 2022'!$A$3:$BG$554,6,FALSE),"ERROR"),D12) -> ERROR | F14: =C14-A14 -> 5 | G14: =IFERROR(IF(F14=0,"ERROR",(D14/B14)^(1/F14)-1),"ERROR") -> ERROR | I14: =IF(N14<>0,N14,"NOT AVAL") -> ERROR | J14: =IFERROR(VLOOKUP($B$1,'Master Data Set 2020'!$A$3:$BG$554,19,FALSE),"ERROR") -> ERROR | M14: Average: | N14: =IFERROR(IF(N12=0,"ERROR",AVERAGE(O13:R13)),"ERROR") -> ERROR
B16: Proj. Year | C16: Population | D16: Proj. Year | E16: Population | F16: Proj. Year | G16: Population | H16: Proj. Year | I16: Population | J16: Proj. Year | K16: Population
A18: =C14&" "&"LWSP Projections" -> 2022 LWSP Projections | B18: ='Master Data Set 2021'!B1 -> 2030 | C18: =IFERROR(VLOOKUP($B$1,'Master Data Set 2022'!$A$3:$BG$554,14,FALSE),"ERROR") -> ERROR | D18: =IF(B18<>0,B18+10,0) -> 2040 | E18: =IFERROR(VLOOKUP($B$1,'Master Data Set 2022'!$A$3:$BG$554,15,FALSE),"ERROR") -> ERROR | F18: =IF(B18<>0,D18+10,0) -> 2050 | G18: =IFERROR(VLOOKUP($B$1,'Master Data Set 2022'!$A$3:$BG$554,16,FALSE),"ERROR") -> ERROR | H18: =IF(B18<>0,F18+10,0) -> 2060 | I18: =IFERROR(VLOOKUP($B$1,'Master Data Set 2022'!$A$3:$BG$554,17,FALSE),"ERROR") -> ERROR | J18: =IF(B18<>0,H18+10,0) -> 2070 | K18: =IFERROR(VLOOKUP($B$1,'Master Data Set 2022'!$A$3:$BG$554,18,FALSE),"ERROR") -> ERROR
A19: Calculated Projections | C19: =IF(G14<>"ERROR",IF(K14="y",(D14*(1+C17)^(B18-C14)),IF(H14="",(D14*(1+G14)^(B18-C14)),(D14*(1+H14)^(B18-C14)))),"ERROR") -> ERROR | E19: =IF(G14<>"ERROR",IF(K14="y",(C19*(1+E17)^(D18-B18)),IF(H14="",(C19*(1+G14)^(D18-B18)),(C19*(1+H14)^(D18-B18)))),"ERROR") -> ERROR | G19: =IF(G14<>"ERROR",IF(K14="y",(E19*(1+G17)^(F18-D18)),IF(H14="",(E19*(1+G14)^(F18-D18)),(E19*(1+H14)^(F18-D18)))),"ERROR") -> ERROR | I19: =IF(G14<>"ERROR",IF(K14="y",(G19*(1+I17)^(H18-F18)),IF(H14="",(G19*(1+G14)^(H18-F18)),(G19*(1+H14)^(H18-F18)))),"ERROR") -> ERROR | K19: =IF(G14<>"ERROR",IF(K14="y",(I19*(1+K17)^(J18-H18)),IF(H14="",(I19*(1+G14)^(J18-H18)),(I19*(1+H14)^(J18-H18)))),"ERROR") -> ERROR
A20: Percent Difference | C20: =IFERROR(IF(C19<>"ERROR",ABS(C18-C19)/((C18+C19)/2),"ERROR"),"ERROR") -> ERROR | E20: =IFERROR(IF(C19<>"ERROR",ABS(E18-E19)/((E18+E19)/2),"ERROR"),"ERROR") -> ERROR | G20: =IFERROR(IF(C19<>"ERROR",ABS(G18-G19)/((G18+G19)/2),"ERROR"),"ERROR") -> ERROR | I20: =IFERROR(IF(C19<>"ERROR",ABS(I18-I19)/((I18+I19)/2),"ERROR"),"ERROR") -> ERROR | K20: =IFERROR(IF(C19<>"ERROR",ABS(K18-K19)/((K18+K19)/2),"ERROR"),"ERROR") -> ERROR
A21: Is LWSP Projection Low ? | C21: =IF(AND(C19<>"ERROR",C20>0.01),IF(C18>C19,"No","Yes"),"N/A") -> N/A | E21: =IF(AND(E19<>"ERROR",E20>0.01),IF(E18>E19,"No","Yes"),"N/A") -> N/A | G21: =IF(AND(G19<>"ERROR",G20>0.01),IF(G18>G19,"No","Yes"),"N/A") -> N/A | I21: =IF(AND(I19<>"ERROR",I20>0.01),IF(I18>I19,"No","Yes"),"N/A") -> N/A | K21: =IF(AND(K19<>"ERROR",K20>0.01),IF(K18>K19,"No","Yes"),"N/A") -> N/A
T22: Non-Residential Demand Rate Selection Table
A24: Historical Water Demand (from LWSP) | P24: Projection Annual Growth Rates | T24: Commercial | U24: Industrial | V24: Institutional | W24: System Process | X24: UAFW
T25: 1, 2, 3, or 4 | U25: 1, 2, 3, or 4 | V25: 1, 2, 3, or 4 | W25: 1 or 4 | X25: 1 ,4, or blank
P26: 1 | Q26: 2 | R26: 3 | S26: 4 | T26: 4 | U26: 4 | V26: 4 | W26: 4
A27: Type of Service | B27: Begin Year | C27: Usage (MGD) | D27: Year | E27: Usage (MGD) | F27: Year | G27: Usage (MGD) | H27: Year | I27: Usage (MGD) | J27: Year | K27: Usage (MGD) | L27: End Year | M27: Usage (MGD) | N27: User's Demand | O27: Historical Window | P27: LWSP Historical Rate | Q27: System Group Rate | R27: Economic Rate | S27: Variable Rate
A28: Residential | B28: =A14 -> 2017 | C28: =IFERROR(VLOOKUP($B$1,'Master Data Set 2017'!$A$3:$BG$575,7,FALSE),"ERROR") -> ERROR | D28: =IF(B28<>0,B28+1,0) -> 2018 | E28: =IFERROR(VLOOKUP($B$1,'Master Data Set 2018'!$A$3:$BG$575,7,FALSE),"ERROR") -> ERROR | F28: =IF(B28<>0,D28+1,0) -> 2019 | G28: =IFERROR(VLOOKUP($B$1,'Master Data Set 2019'!$A$3:$BG$575,7,FALSE),"ERROR") -> ERROR | H28: =IF(B28<>0,F28+1,0) -> 2020 | I28: =IFERROR(VLOOKUP($B$1,'Master Data Set 2020'!$A$3:$BG$575,7,FALSE),"ERROR") -> ERROR | J28: =IF(B28<>0,H28+1,0) -> 2021 | K28: =IFERROR(VLOOKUP($B$1,'Master Data Set 2021'!$A$3:$BG$553,7,FALSE),"ERROR") -> ERROR | L28: =IF(B28<>0,J28+1,0) -> 2022 | M28: =IFERROR(VLOOKUP($B$1,'Master Data Set 2022'!$A$3:$BG$554,7,FALSE),"ERROR") -> ERROR | O28: =L28-B28 -> 5 | P28: =IFERROR(IF(C28=0,"ERROR",IF(E28=0,"ERROR",IF(G28=0,"ERROR",IF(I28=0,"ERROR",IF(K28=0,"ERROR",IF(O28=0,"ERROR",IF(N28<>0,(((E28-C28)/C28)+((G28-E28)/E28)+((I28-G28)/G28)+((K28-I28)/I28)+((N28-K28)/K28))/O28,(((E28-C28)/C28)+((G28-E28)/E28)+((I28-G28)/G28)+((K28-I28)/I28)+((M28-K28))/K28)/O28))))))),"ERROR") -> ERROR
A29: Commercial | B29: =B28 -> 2017 | C29: =IFERROR(VLOOKUP($B$1,'Master Data Set 2017'!$A$3:$BG$575,8,FALSE),"ERROR") -> ERROR | D29: =D28 -> 2018 | E29: =IFERROR(VLOOKUP($B$1,'Master Data Set 2018'!$A$3:$BG$575,8,FALSE),"ERROR") -> ERROR | F29: =F28 -> 2019 | G29: =IFERROR(VLOOKUP($B$1,'Master Data Set 2019'!$A$3:$BG$575,8,FALSE),"ERROR") -> ERROR | H29: =H28 -> 2020 | I29: =IFERROR(VLOOKUP($B$1,'Master Data Set 2020'!$A$3:$BG$575,8,FALSE),"ERROR") -> ERROR | J29: =J28 -> 2021 | K29: =IFERROR(VLOOKUP($B$1,'Master Data Set 2021'!$A$3:$BG$553,8,FALSE),"ERROR") -> ERROR | L29: =L28 -> 2022 | M29: =IFERROR(VLOOKUP($B$1,'Master Data Set 2022'!$A$3:$BG$554,8,FALSE),"ERROR") -> ERROR | O29: 5 | P29: =IFERROR(IF(C29=0,"ERROR",IF(E29=0,"ERROR",IF(G29=0,"ERROR",IF(I29=0,"ERROR",IF(K29=0,"ERROR",IF(O29=0,"ERROR",IF(N29<>0,(((E29-C29)/C29)+((G29-E29)/E29)+((I29-G29)/G29)+((K29-I29)/I29)+((N29-K29)/K29))/O29,(((E29-C29)/C29)+((G29-E29)/E29)+((I29-G29)/G29)+((K29-I29)/I29)+((M29-K29))/K29)/O29))))))),"ERROR") -> ERROR | Q29: =IF($D$14<=500,'Very Small Systems'!B7,IF(AND($D$14>500,$D$14<3301),'Small Systems'!B7,IF(AND($D$14>=3301,$D$14<10001),'Medium Systems'!B7,IF(AND($D$14>=10001,$D$14<100001),'Large Systems'!B7,IF($D$14>100000,'Very Large Systems'!B7,0))))) -> 0.03183060184 | R29: =IF('Economic Rate Data'!A47>0,'Economic Rate Data'!A47/100,0) -> 0.01 | S29: See Below
A30: Industrial | B30: 2017 | C30: =IFERROR(VLOOKUP($B$1,'Master Data Set 2017'!$A$3:$BG$575,9,FALSE),"ERROR") -> ERROR | D30: 2018 | E30: =IFERROR(VLOOKUP($B$1,'Master Data Set 2018'!$A$3:$BG$575,9,FALSE),"ERROR") -> ERROR | F30: 2019 | G30: =IFERROR(VLOOKUP($B$1,'Master Data Set 2019'!$A$3:$BG$575,9,FALSE),"ERROR") -> ERROR | H30: 2020 | I30: =IFERROR(VLOOKUP($B$1,'Master Data Set 2020'!$A$3:$BG$575,9,FALSE),"ERROR") -> ERROR | J30: 2021 | K30: =IFERROR(VLOOKUP($B$1,'Master Data Set 2021'!$A$3:$BG$553,9,FALSE),"ERROR") -> ERROR | L30: 2022 | M30: =IFERROR(VLOOKUP($B$1,'Master Data Set 2022'!$A$3:$BG$554,9,FALSE),"ERROR") -> ERROR | O30: 5 | P30: =IFERROR(IF(C30=0,"ERROR",IF(E30=0,"ERROR",IF(G30=0,"ERROR",IF(I30=0,"ERROR",IF(K30=0,"ERROR",IF(O30=0,"ERROR",IF(N30<>0,(((E30-C30)/C30)+((G30-E30)/E30)+((I30-G30)/G30)+((K30-I30)/I30)+((N30-K30)/K30))/O30,(((E30-C30)/C30)+((G30-E30)/E30)+((I30-G30)/G30)+((K30-I30)/I30)+((M30-K30))/K30)/O30))))))),"ERROR") -> ERROR | Q30: =IF($D$14<=500,'Very Small Systems'!B8,IF(AND($D$14>500,$D$14<3301),'Small Systems'!B8,IF(AND($D$14>=3301,$D$14<10001),'Medium Systems'!B8,IF(AND($D$14>=10001,$D$14<100001),'Large Systems'!B8,IF($D$14>100000,'Very Large Systems'!B8,"ERROR"))))) -> 0.01974416375 | R30: =IF('Economic Rate Data'!A56>0,'Economic Rate Data'!A56/100,0) -> 0 | S30: See Below
A31: Institutional | B31: 2017 | C31: =IFERROR(VLOOKUP($B$1,'Master Data Set 2017'!$A$3:$BG$575,10,FALSE),"ERROR") -> ERROR | D31: 2018 | E31: =IFERROR(VLOOKUP($B$1,'Master Data Set 2018'!$A$3:$BG$575,10,FALSE),"ERROR") -> ERROR | F31: 2019 | G31: =IFERROR(VLOOKUP($B$1,'Master Data Set 2019'!$A$3:$BG$575,10,FALSE),"ERROR") -> ERROR | H31: 2020 | I31: =IFERROR(VLOOKUP($B$1,'Master Data Set 2020'!$A$3:$BG$575,10,FALSE),"ERROR") -> ERROR | J31: 2021 | K31: =IFERROR(VLOOKUP($B$1,'Master Data Set 2021'!$A$3:$BG$553,10,FALSE),"ERROR") -> ERROR | L31: 2022 | M31: =IFERROR(VLOOKUP($B$1,'Master Data Set 2022'!$A$3:$BG$554,10,FALSE),"ERROR") -> ERROR | O31: 5 | P31: =IFERROR(IF(C31=0,"ERROR",IF(E31=0,"ERROR",IF(G31=0,"ERROR",IF(I31=0,"ERROR",IF(K31=0,"ERROR",IF(O31=0,"ERROR",IF(N31<>0,(((E31-C31)/C31)+((G31-E31)/E31)+((I31-G31)/G31)+((K31-I31)/I31)+((N31-K31)/K31))/O31,(((E31-C31)/C31)+((G31-E31)/E31)+((I31-G31)/G31)+((K31-I31)/I31)+((M31-K31)/K31))/O31))))))),"ERROR") -> ERROR | Q31: =IF($D$14<=500,'Very Small Systems'!B9,IF(AND($D$14>500,$D$14<3301),'Small Systems'!B9,IF(AND($D$14>=3301,$D$14<10001),'Medium Systems'!B9,IF(AND($D$14>=10001,$D$14<100001),'Large Systems'!B9,IF($D$14>100000,'Very Large Systems'!B9,"ERROR"))))) -> 0.04725183571 | R31: =IF('Economic Rate Data'!A65>0,'Economic Rate Data'!A65/100,0) -> 0.014 | S31: See Below
A32: System Process | B32: =B31 -> 2017 | C32: =IFERROR(VLOOKUP($B$1,'Master Data Set 2017'!$A$3:$BG$575,11,FALSE),"ERROR") -> ERROR | D32: =D31 -> 2018 | E32: =IFERROR(VLOOKUP($B$1,'Master Data Set 2018'!$A$3:$BG$575,11,FALSE),"ERROR") -> ERROR | F32: =F31 -> 2019 | G32: =IFERROR(VLOOKUP($B$1,'Master Data Set 2019'!$A$3:$BG$575,11,FALSE),"ERROR") -> ERROR | H32: =H31 -> 2020 | I32: =IFERROR(VLOOKUP($B$1,'Master Data Set 2020'!$A$3:$BG$575,11,FALSE),"ERROR") -> ERROR | J32: 2021 | K32: =IFERROR(VLOOKUP($B$1,'Master Data Set 2021'!$A$3:$BG$553,11,FALSE),"ERROR") -> ERROR | L32: 2022 | M32: =IFERROR(VLOOKUP($B$1,'Master Data Set 2022'!$A$3:$BG$554,11,FALSE),"ERROR") -> ERROR | O32: 5 | P32: =IFERROR(IF(C32=0,"ERROR",IF(E32=0,"ERROR",IF(G32=0,"ERROR",IF(I32=0,"ERROR",IF(K32=0,"ERROR",IF(O32=0,"ERROR",IF(N32<>0,(((E32-C32)/C32)+((G32-E32)/E32)+((I32-G32)/G32)+((K32-I32)/I32)+((N32-K32)/K32))/O32,(((E32-C32)/C32)+((G32-E32)/E32)+((I32-G32)/G32)+((K32-I32)/I32)+((M32-K32))/K32)/O32))))))),"ERROR") -> ERROR | Q32: N/A | R32: N/A | S32: See Below
A33: Water Sales | B33: =B32 -> 2017 | C33: =IFERROR(VLOOKUP($B$1,'Master Data Set 2017'!$A$3:$BG$575,4,FALSE),"ERROR") -> ERROR | D33: =D32 -> 2018 | E33: =IFERROR(VLOOKUP($B$1,'Master Data Set 2018'!$A$3:$BG$575,4,FALSE),"ERROR") -> ERROR | F33: =F32 -> 2019 | G33: =IFERROR(VLOOKUP($B$1,'Master Data Set 2019'!$A$3:$BG$575,4,FALSE),"ERROR") -> ERROR | H33: =H32 -> 2020 | I33: =IFERROR(VLOOKUP($B$1,'Master Data Set 2020'!$A$3:$BG$575,4,FALSE),"ERROR") -> ERROR | J33: 2021 | K33: =IFERROR(VLOOKUP($B$1,'Master Data Set 2021'!$A$3:$BG$553,4,FALSE),"ERROR") -> ERROR | L33: 2022 | M33: =IFERROR(VLOOKUP($B$1,'Master Data Set 2022'!$A$3:$BG$554,4,FALSE),"ERROR") -> ERROR | O33: =L33-B33 -> 5 | P33: =IFERROR(IF(C33=0,"ERROR",IF(E33=0,"ERROR",IF(G33=0,"ERROR",IF(I33=0,"ERROR",IF(K33=0,"ERROR",IF(O33=0,"ERROR",IF(N33<>0,(((E33-C33)/C33)+((G33-E33)/E33)+((I33-G33)/G33)+((K33-I33)/I33)+((N33-K33)/K33))/O33,(((E33-C33)/C33)+((G33-E33)/E33)+((I33-G33)/G33)+((K33-I33)/I33)+((M33-K33))/K33)/O33))))))),"ERROR") -> ERROR | Q33: N/A | R33: N/A | S33: N/A
A34: UAFW | B34: =B33 -> 2017 | C34: =IFERROR(VLOOKUP($B$1,'Master Data Set 2017'!$A$3:$BG$575,12,FALSE),"ERROR") -> ERROR | D34: =D33 -> 2018 | E34: =IFERROR(VLOOKUP($B$1,'Master Data Set 2018'!$A$3:$BG$575,12,FALSE),"ERROR") -> ERROR | F34: =F33 -> 2019 | G34: =IFERROR(VLOOKUP($B$1,'Master Data Set 2019'!$A$3:$BG$575,12,FALSE),"ERROR") -> ERROR | H34: =H33 -> 2020 | I34: =IFERROR(VLOOKUP($B$1,'Master Data Set 2020'!$A$3:$BG$575,12,FALSE),"ERROR") -> ERROR | J34: 2021 | K34: =IFERROR(VLOOKUP($B$1,'Master Data Set 2021'!$A$3:$BG$553,12,FALSE),"ERROR") -> ERROR | L34: 2022 | M34: =IFERROR(VLOOKUP($B$1,'Master Data Set 2022'!$A$3:$BG$554,12,FALSE),"ERROR") -> ERROR | O34: 5 | P34: =IFERROR(IF(C34=0,"ERROR",IF(E34=0,"ERROR",IF(G34=0,"ERROR",IF(I34=0,"ERROR",IF(K34=0,"ERROR",IF(O34=0,"ERROR",IF(N34<>0,(((E34-C34)/C34)+((G34-E34)/E34)+((I34-G34)/G34)+((K34-I34)/I34)+((N34-K34)/K34))/O34,(((E34-C34)/C34)+((G34-E34)/E34)+((I34-G34)/G34)+((K34-I34)/I34)+((M34-K34))/K34)/O34))))))),"ERROR") -> ERROR | S34: See Below
A35: UAFW (% of demand) | B35: =B34 -> 2017 | C35: =IFERROR(IF(C34<>0,C34/SUM(C28:C34),0),"ERROR") -> ERROR | D35: =D34 -> 2018 | E35: =IFERROR(IF(E34<>0,E34/SUM(E28:E34),0),"ERROR") -> ERROR | F35: =F34 -> 2019 | G35: =IFERROR(IF(G34<>0,G34/SUM(G28:G34),0),"ERROR") -> ERROR | H35: =H34 -> 2020 | I35: =IFERROR(IF(I34<>0,I34/SUM(I28:I34),0),"ERROR") -> ERROR | J35: =J34 -> 2021 | K35: =IFERROR(IF(K34<>0,K34/SUM(K28:K34),0),"ERROR") -> ERROR | L35: 2022 | M35: =IFERROR(IF(M34<>0,M34/SUM(M28:M34),0),"ERROR") -> ERROR | O35: =IF(SUM(C35,E35,G35,I35,K35,M35)<>0,MEDIAN(C35,E35,G35,I35,K35,M35),"No Data") -> No Data
A36: GPCD (Residential) | B36: =B35 -> 2017 | C36: =IFERROR(VLOOKUP($B$1,'Master Data Set 2017'!$A$3:$BG$575,13,FALSE),"ERROR") -> ERROR | D36: =D35 -> 2018 | E36: =IFERROR(VLOOKUP($B$1,'Master Data Set 2018'!$A$3:$BG$575,13,FALSE),"ERROR") -> ERROR | F36: =F35 -> 2019 | G36: =IFERROR(VLOOKUP($B$1,'Master Data Set 2019'!$A$3:$BG$575,13,FALSE),"ERROR") -> ERROR | H36: =H35 -> 2020 | I36: =IFERROR(VLOOKUP($B$1,'Master Data Set 2020'!$A$3:$BG$575,13,FALSE),"ERROR") -> ERROR | J36: =J35 -> 2021 | K36: =IFERROR(VLOOKUP($B$1,'Master Data Set 2021'!$A$3:$BG$553,13,FALSE),"ERROR") -> ERROR | L36: =L35 -> 2022 | M36: =IFERROR(VLOOKUP($B$1,'Master Data Set 2022'!$A$3:$BG$554,13,FALSE),"ERROR") -> ERROR | O36: =IF(SUM(C36,E36,G36,I36,K36,M36)<>0,MEDIAN(C36,E36,G36,I36,K36,M36),"No Data") -> No Data
A37: Residential Demand Projections | O37: Median
A38: Gallons per Capita per Day: | B38: =IFERROR(IF(D14<>0,M28*1000000/D14,0),"ERROR") -> ERROR
B40: =B16 -> Proj. Year | C40: Usage (MGD) | D40: =D16 -> Proj. Year | E40: Usage (MGD) | F40: =F16 -> Proj. Year | G40: Usage (MGD) | H40: =H16 -> Proj. Year | I40: Usage (MGD) | J40: =J16 -> Proj. Year | K40: Usage (MGD)
A41: =C14&" "&"LWSP Projections (A)" -> 2022 LWSP Projections (A) | B41: =B18 -> 2030 | C41: =IFERROR(VLOOKUP($B$1,'Master Data Set 2022'!$A$3:$BG$554,20,FALSE),"ERROR") -> ERROR | D41: =D18 -> 2040 | E41: =IFERROR(VLOOKUP($B$1,'Master Data Set 2022'!$A$3:$BG$554,21,FALSE),"ERROR") -> ERROR | F41: =F18 -> 2050 | G41: =IFERROR(VLOOKUP($B$1,'Master Data Set 2022'!$A$3:$BG$554,22,FALSE),"ERROR") -> ERROR | H41: =H18 -> 2060 | I41: =IFERROR(VLOOKUP($B$1,'Master Data Set 2022'!$A$3:$BG$554,23,FALSE),"ERROR") -> ERROR | J41: =J18 -> 2070 | K41: =IFERROR(VLOOKUP($B$1,'Master Data Set 2022'!$A$3:$BG$554,24,FALSE),"ERROR") -> ERROR | L41: Rate | M41: Use [B] or [C]
A42: Projections based on GPCD and LWSP population projections [B] | C42: =IFERROR(IF(C38=0,B38*C18/1000000,C38*C18/1000000),"ERROR") -> ERROR | E42: =IFERROR(IF(C38=0,B38*E18/1000000,C38*E18/1000000),"ERROR") -> ERROR | G42: =IFERROR(IF(C38=0,B38*G18/1000000,C38*G18/1000000),"ERROR") -> ERROR | I42: =IFERROR(IF(C38=0,B38*I18/1000000,C38*I18/1000000),"ERROR") -> ERROR | K42: =IFERROR(IF(C38=0,B38*K18/1000000,C38*K18/1000000),"ERROR") -> ERROR | L42: =IFERROR(IF(C42=0,"ERROR",IF(E42=0,"ERROR",IF(G42=0,"ERROR",IF(I42=0,"ERROR",((((E42-C42)/C42)/(D41-B41)+((G42-E42)/E42)/(F41-D41)+((I42-G42)/G42)/(H41-F41)+((K42-I42)/I42)/(J41-H41))/4))))),"ERROR") -> ERROR | M42: C
A43: Projections based on GPCD and historical population rate or user's rates [C] | C43: =IF(C19<>"ERROR",IF(C38=0,B38*C19/1000000,C38*C19/1000000),"ERROR") -> ERROR | E43: =IF(E19<>"ERROR",IF(C38=0,B38*E19/1000000,C38*E19/1000000),"ERROR") -> ERROR | G43: =IF(G19<>"ERROR",IF(C38=0,B38*G19/1000000,C38*G19/1000000),"ERROR") -> ERROR | I43: =IF(I19<>"ERROR",IF(C38=0,B38*I19/1000000,C38*I19/1000000),"ERROR") -> ERROR | K43: =IF(K19<>"ERROR",IF(C38=0,B38*K19/1000000,C38*K19/1000000),"ERROR") -> ERROR | L43: =IF(C43=0,"ERROR",IF(E43=0,"ERROR",IF(G43=0,"ERROR",IF(I43=0,"ERROR",IF(G14="ERROR","ERROR",((((E43-C43)/C43)/(D41-B41)+((G43-E43)/E43)/(F41-D41)+((I43-G43)/G43)/(H41-F41)+((K43-I43)/I43)/(J41-H41))/4)))))) -> ERROR
A44: Percent Difference | C44: =IFERROR(IF(C43<>"ERROR",IF(M42="C",ABS(C41-C43)/((C41+C43)/2),ABS(C41-C42)/((C41+C42)/2)),"ERROR"),"ERROR") -> ERROR | E44: =IFERROR(IF(E43<>"ERROR",IF(M42="C",ABS(E41-E43)/((E41+E43)/2),ABS(E41-E42)/((E41+E42)/2)),"ERROR"),"ERROR") -> ERROR | G44: =IFERROR(IF(G43<>"ERROR",IF(M42="C",ABS(G41-G43)/((G41+G43)/2),ABS(G41-G42)/((G41+G42)/2)),"ERROR"),"ERROR") -> ERROR | I44: =IFERROR(IF(I43<>"ERROR",IF(M42="C",ABS(I41-I43)/((I41+I43)/2),ABS(I41-I42)/((I41+I42)/2)),"ERROR"),"ERROR") -> ERROR | K44: =IFERROR(IF(K43<>"ERROR",IF(M42="C",ABS(K41-K43)/((K41+K43)/2),ABS(K41-K42)/((K41+K42)/2)),"ERROR"),"ERROR") -> ERROR
A45: Is LWSP Projection Low ? | C45: =IF(C43<>"ERROR",IF(AND(M42="b",C41>C42),"No",IF(AND(M42="c",C41>C43),"No","Yes")),"N/A") -> N/A | E45: =IF(E43<>"ERROR",IF(AND(M42="b",E41>E42),"No",IF(AND(M42="c",E41>E43),"No","Yes")),"N/A") -> N/A | G45: =IF(G43<>"ERROR",IF(AND(M42="b",G41>G42),"No",IF(AND(M42="c",G41>G43),"No","Yes")),"N/A") -> N/A | I45: =IF(I43<>"ERROR",IF(AND(M42="b",I41>I42),"No",IF(AND(M42="c",I41>I43),"No","Yes")),"N/A") -> N/A | K45: =IF(K43<>"ERROR",IF(AND(M42="b",K41>K42),"No",IF(AND(M42="c",K41>K43),"No","Yes")),"N/A") -> N/A
A46: Commercial Demand Projections
B49: =B40 -> Proj. Year | C49: Usage (MGD) | D49: =D40 -> Proj. Year | E49: Usage (MGD) | F49: =F40 -> Proj. Year | G49: Usage (MGD) | H49: =H40 -> Proj. Year | I49: Usage (MGD) | J49: =J40 -> Proj. Year | K49: Usage (MGD)
A50: =C14&" "&"LWSP Projections" -> 2022 LWSP Projections | B50: =B41 -> 2030 | C50: =IFERROR(VLOOKUP($B$1,'Master Data Set 2022'!$A$3:$BG$554,25,FALSE),"ERROR") -> ERROR | D50: =D41 -> 2040 | E50: =IFERROR(VLOOKUP($B$1,'Master Data Set 2022'!$A$3:$BG$554,26,FALSE),"ERROR") -> ERROR | F50: =F41 -> 2050 | G50: =IFERROR(VLOOKUP($B$1,'Master Data Set 2022'!$A$3:$BG$554,27,FALSE),"ERROR") -> ERROR | H50: =H41 -> 2060 | I50: =IFERROR(VLOOKUP($B$1,'Master Data Set 2022'!$A$3:$BG$554,28,FALSE),"ERROR") -> ERROR | J50: =J41 -> 2070 | K50: =IFERROR(VLOOKUP($B$1,'Master Data Set 2022'!$A$3:$BG$554,29,FALSE),"ERROR") -> ERROR
A51: Calculated Projections | C51: =IFERROR(IF(T26=1,IF(N29=0,M29*(1+P29)^(B50-L29),N29*(1+P29)^(B50-L29)),IF(T26=2,IF(N29=0,M29*(1+Q29)^(B50-L29),N29*(1+Q29)^(B50-L29)),IF(T26=3,IF(N29=0,M29*(1+R29)^(B50-L29),N29*(1+R29)^(B50-L29)),IF(T26=4,IF(N29=0,M29*(1+C48)^(B50-L29),N29*(1+C48)^(B50-L29)))))),"ERROR") -> ERROR | E51: =IFERROR(IF(T26=1,IF(N29=0,M29*(1+P29)^(D50-L29),N29*(1+P29)^(D50-L29)),IF(T26=2,IF(N29=0,M29*(1+Q29)^(D50-L29),N29*(1+Q29)^(D50-L29)),IF(T26=3,IF(N29=0,M29*(1+R29)^(D50-L29),N29*(1+R29)^(D50-L29)),IF(T26=4,C51*(1+E48)^(D50-B50))))),"ERROR") -> ERROR | G51: =IFERROR(IF(T26=1,IF(N29=0,M29*(1+P29)^(F50-L29),N29*(1+P29)^(F50-L29)),IF(T26=2,IF(N29=0,M29*(1+Q29)^(F50-L29),N29*(1+Q29)^(F50-L29)),IF(T26=3,IF(N29=0,M29*(1+R29)^(F50-L29),N29*(1+R29)^(F50-L29)),IF(T26=4,E51*(1+G48)^(F50-D50))))),"ERROR") -> ERROR | I51: =IFERROR(IF(T26=1,IF(N29=0,M29*(1+P29)^(H50-L29),N29*(1+P29)^(H50-L29)),IF(T26=2,IF(N29=0,M29*(1+Q29)^(H50-L29),N29*(1+Q29)^(H50-L29)),IF(T26=3,IF(N29=0,M29*(1+R29)^(H50-L29),N29*(1+R29)^(H50-L29)),IF(T26=4,G51*(1+I48)^(H50-F50))))),"ERROR") -> ERROR | K51: =IFERROR(IF(T26=1,IF(N29=0,M29*(1+P29)^(J50-L29),N29*(1+P29)^(J50-L29)),IF(T26=2,IF(N29=0,M29*(1+Q29)^(J50-L29),N29*(1+Q29)^(J50-L29)),IF(T26=3,IF(N29=0,M29*(1+R29)^(J50-L29),N29*(1+R29)^(J50-L29)),IF(T26=4,I51*(1+K48)^(J50-H50))))),"ERROR") -> ERROR | L51: =IF(T26=1,"Historical Rate",IF(T26=2,"Group Rate",IF(T26=3,"Economic Rate",IF(T26=4,"Variable Rate","Rate Not Selected")))) -> Variable Rate
A52: Percent Difference | C52: =IFERROR((ABS(C50-C51)/((C50+C51)/2)),"ERROR") -> ERROR | E52: =IFERROR((ABS(E50-E51)/((E50+E51)/2)),"ERROR") -> ERROR | G52: =IFERROR((ABS(G50-G51)/((G50+G51)/2)),"ERROR") -> ERROR | I52: =IFERROR((ABS(I50-I51)/((I50+I51)/2)),"ERROR") -> ERROR | K52: =IFERROR((ABS(K50-K51)/((K50+K51)/2)),"ERROR") -> ERROR
A53: Is LWSP Projection Low ? | C53: =IF(OR(C50=C51,C52<0.01),"N/A",IF(C50>C51,"No","Yes")) -> N/A | E53: =IF(OR(E50=E51,E52<0.01),"N/A",IF(E50>E51,"No","Yes")) -> N/A | G53: =IF(OR(G50=G51,G52<0.01),"N/A",IF(G50>G51,"No","Yes")) -> N/A | I53: =IF(OR(I50=I51,I52<0.01),"N/A",IF(I50>I51,"No","Yes")) -> N/A | K53: =IF(OR(K50=K51,K52<0.01),"N/A",IF(K50>K51,"No","Yes")) -> N/A
A54: Industrial Demand Projections
B57: =B49 -> Proj. Year | C57: Usage (MGD) | D57: =D49 -> Proj. Year | E57: Usage (MGD) | F57: =F49 -> Proj. Year | G57: Usage (MGD) | H57: =H49 -> Proj. Year | I57: Usage (MGD) | J57: =J49 -> Proj. Year | K57: Usage (MGD)
A58: =C14&" "&"LWSP Projections" -> 2022 LWSP Projections | B58: =B50 -> 2030 | C58: =IFERROR(VLOOKUP($B$1,'Master Data Set 2022'!$A$3:$BG$554,30,FALSE),"ERROR") -> ERROR | D58: =D50 -> 2040 | E58: =IFERROR(VLOOKUP($B$1,'Master Data Set 2022'!$A$3:$BG$554,31,FALSE),"ERROR") -> ERROR | F58: =F50 -> 2050 | G58: =IFERROR(VLOOKUP($B$1,'Master Data Set 2022'!$A$3:$BG$554,32,FALSE),"ERROR") -> ERROR | H58: =H50 -> 2060 | I58: =IFERROR(VLOOKUP($B$1,'Master Data Set 2022'!$A$3:$BG$554,33,FALSE),"ERROR") -> ERROR | J58: =J50 -> 2070 | K58: =IFERROR(VLOOKUP($B$1,'Master Data Set 2022'!$A$3:$BG$554,34,FALSE),"ERROR") -> ERROR
A59: Calculated Projections | C59: =IFERROR(IF(U26=1,IF(N30=0,M30*(1+P30)^(B58-L30),N30*(1+P30)^(B58-L30)),IF(U26=2,IF(N30=0,M30*(1+Q30)^(B58-L30),N30*(1+Q30)^(B58-L30)),IF(U26=3,IF(N30=0,M30*(1+R30)^(B58-L30),N30*(1+R30)^(B58-L30)),IF(U26=4,IF(N30=0,M30*(1+C56)^(B58-L30),N30*(1+C56)^(B58-L30)))))),"ERROR") -> ERROR | E59: =IFERROR(IF(U26=1,IF(N30=0,M30*(1+P30)^(D58-L30),N30*(1+P30)^(D58-L30)),IF(U26=2,IF(N30=0,M30*(1+Q30)^(D58-L30),N30*(1+Q30)^(D58-L30)),IF(U26=3,IF(N30=0,M30*(1+R30)^(D58-L30),N30*(1+R30)^(D58-L30)),IF(U26=4,C59*(1+E56)^(D58-B58))))),"ERROR") -> ERROR | G59: =IFERROR(IF(U26=1,IF(N30=0,M30*(1+P30)^(F58-L30),N30*(1+P30)^(F58-L30)),IF(U26=2,IF(N30=0,M30*(1+Q30)^(F58-L30),N30*(1+Q30)^(F58-L30)),IF(U26=3,IF(N30=0,M30*(1+R30)^(F58-L30),N30*(1+R30)^(F58-L30)),IF(U26=4,E59*(1+G56)^(F58-D58))))),"ERROR") -> ERROR | I59: =IFERROR(IF(U26=1,IF(N30=0,M30*(1+P30)^(H58-L30),N30*(1+P30)^(H58-L30)),IF(U26=2,IF(N30=0,M30*(1+Q30)^(H58-L30),N30*(1+Q30)^(H58-L30)),IF(U26=3,IF(N30=0,M30*(1+R30)^(H58-L30),N30*(1+R30)^(H58-L30)),IF(U26=4,G59*(1+I56)^(H58-F58))))),"ERROR") -> ERROR | K59: =IFERROR(IF(U26=1,IF(N30=0,M30*(1+P30)^(J58-L30),N30*(1+P30)^(J58-L30)),IF(U26=2,IF(N30=0,M30*(1+Q30)^(J58-L30),N30*(1+Q30)^(J58-L30)),IF(U26=3,IF(N30=0,M30*(1+R30)^(J58-L30),N30*(1+R30)^(J58-L30)),IF(U26=4,I59*(1+K56)^(J58-H58))))),"ERROR") -> ERROR | L59: =IF(U26=1,"Historical Rate",IF(U26=2,"Group Rate",IF(U26=3,"Economic Rate",IF(U26=4,"Variable Rate","Rate Not Selected")))) -> Variable Rate
A60: Percent Difference | C60: =IFERROR((ABS(C58-C59)/((C58+C59)/2)),"ERROR") -> ERROR | E60: =IFERROR((ABS(E58-E59)/((E58+E59)/2)),"ERROR") -> ERROR | G60: =IFERROR((ABS(G58-G59)/((G58+G59)/2)),"ERROR") -> ERROR | I60: =IFERROR((ABS(I58-I59)/((I58+I59)/2)),"ERROR") -> ERROR | K60: =IFERROR((ABS(K58-K59)/((K58+K59)/2)),"ERROR") -> ERROR
A61: Is LWSP Projection Low ? | C61: =IF(OR(C58=C59,C60<0.01),"N/A",IF(C58>C59,"No","Yes")) -> N/A | E61: =IF(OR(E58=E59,E60<0.01),"N/A",IF(E58>E59,"No","Yes")) -> N/A | G61: =IF(OR(G58=G59,G60<0.01),"N/A",IF(G58>G59,"No","Yes")) -> N/A | I61: =IF(OR(I58=I59,I60<0.01),"N/A",IF(I58>I59,"No","Yes")) -> N/A | K61: =IF(OR(K58=K59,K60<0.01),"N/A",IF(K58>K59,"No","Yes")) -> N/A
A62: Institutional Demand Projections
B65: =B57 -> Proj. Year | C65: Usage (MGD) | D65: =D57 -> Proj. Year | E65: Usage (MGD) | F65: =F57 -> Proj. Year | G65: Usage (MGD) | H65: =H57 -> Proj. Year | I65: Usage (MGD) | J65: =J57 -> Proj. Year | K65: Usage (MGD)
A66: =C14&" "&"LWSP Projections" -> 2022 LWSP Projections | B66: =B58 -> 2030 | C66: =IFERROR(VLOOKUP($B$1,'Master Data Set 2022'!$A$3:$BG$554,35,FALSE),"ERROR") -> ERROR | D66: =D58 -> 2040 | E66: =IFERROR(VLOOKUP($B$1,'Master Data Set 2022'!$A$3:$BG$554,36,FALSE),"ERROR") -> ERROR | F66: =F58 -> 2050 | G66: =IFERROR(VLOOKUP($B$1,'Master Data Set 2022'!$A$3:$BG$554,37,FALSE),"ERROR") -> ERROR | H66: =H58 -> 2060 | I66: =IFERROR(VLOOKUP($B$1,'Master Data Set 2022'!$A$3:$BG$554,38,FALSE),"ERROR") -> ERROR | J66: =J58 -> 2070 | K66: =IFERROR(VLOOKUP($B$1,'Master Data Set 2022'!$A$3:$BG$554,39,FALSE),"ERROR") -> ERROR
A67: Calculated Projections | C67: =IFERROR(IF(V26=1,IF(N31=0,M31*(1+P31)^(B66-L31),N31*(1+P31)^(B66-L31)),IF(V26=2,IF(N31=0,M31*(1+Q31)^(B66-L31),N31*(1+Q31)^(B66-L31)),IF(V26=3,IF(N31=0,M31*(1+R31)^(B66-L31),N31*(1+R31)^(B66-L31)),IF(V26=4,IF(N31=0,M31*(1+C64)^(B66-L31),N31*(1+C64)^(B66-L31)))))),"ERROR") -> ERROR | E67: =IFERROR(IF(V26=1,IF(N31=0,M31*(1+P31)^(D66-L31),N31*(1+P31)^(D66-L31)),IF(V26=2,IF(N31=0,M31*(1+Q31)^(D66-L31),N31*(1+Q31)^(D66-L31)),IF(V26=3,IF(N31=0,M31*(1+R31)^(D66-L31),N31*(1+R31)^(D66-L31)),IF(V26=4,C67*(1+E64)^(D66-B66))))),"ERROR") -> ERROR | G67: =IFERROR(IF(V26=1,IF(N31=0,M31*(1+P31)^(F66-L31),N31*(1+P31)^(F66-L31)),IF(V26=2,IF(N31=0,M31*(1+Q31)^(F66-L31),N31*(1+Q31)^(F66-L31)),IF(V26=3,IF(N31=0,M31*(1+R31)^(F66-L31),N31*(1+R31)^(F66-L31)),IF(V26=4,E67*(1+G64)^(F66-D66))))),"ERROR") -> ERROR | I67: =IFERROR(IF(V26=1,IF(N31=0,M31*(1+P31)^(H66-L31),M31*(1+P31)^(H66-L31)),IF(V26=2,IF(N31=0,M31*(1+Q31)^(H66-L31),N31*(1+Q31)^(H66-L31)),IF(V26=3,IF(N31=0,M31*(1+R31)^(H66-L31),N31*(1+R31)^(H66-L31)),IF(V26=4,G67*(1+I64)^(H66-F66))))),"ERROR") -> ERROR | K67: =IFERROR(IF(V26=1,IF(N31=0,M31*(1+P31)^(J66-L31),N31*(1+P31)^(J66-L31)),IF(V26=2,IF(N31=0,M31*(1+Q31)^(J66-L31),N31*(1+Q31)^(J66-L31)),IF(V26=3,IF(N31=0,M31*(1+R31)^(J66-L31),N31*(1+R31)^(J66-L31)),IF(V26=4,I67*(1+K64)^(J66-H66))))),"ERROR") -> ERROR | L67: =IF(V26=1,"Historical Rate",IF(V26=2,"Group Rate",IF(V26=3,"Economic Rate",IF(V26=4,"Variable Rate","Rate Not Selected")))) -> Variable Rate
A68: Percent Difference | C68: =IFERROR((ABS(C66-C67)/((C66+C67)/2)),"ERROR") -> ERROR | E68: =IFERROR((ABS(E66-E67)/((E66+E67)/2)),"ERROR") -> ERROR | G68: =IFERROR((ABS(G66-G67)/((G66+G67)/2)),"ERROR") -> ERROR | I68: =IFERROR((ABS(I66-I67)/((I66+I67)/2)),"ERROR") -> ERROR | K68: =IFERROR((ABS(K66-K67)/((K66+K67)/2)),"ERROR") -> ERROR
A69: Is LWSP Projection Low ? | C69: =IF(OR(C66=C67,C68<0.01),"N/A",IF(C66>C67,"No","Yes")) -> N/A | E69: =IF(OR(E66=E67,E68<0.01),"N/A",IF(E66>E67,"No","Yes")) -> N/A | G69: =IF(OR(G66=G67,G68<0.01),"N/A",IF(G66>G67,"No","Yes")) -> N/A | I69: =IF(OR(I66=I67,I68<0.01),"N/A",IF(I66>I67,"No","Yes")) -> N/A | K69: =IF(OR(K66=K67,K68<0.01),"N/A",IF(K66>K67,"No","Yes")) -> N/A
A70: Process Demand Projections
B73: =B65 -> Proj. Year | C73: Usage (MGD) | D73: =D65 -> Proj. Year | E73: Usage (MGD) | F73: =F65 -> Proj. Year | G73: Usage (MGD) | H73: =H65 -> Proj. Year | I73: Usage (MGD) | J73: =J65 -> Proj. Year | K73: Usage (MGD)
A74: =C14&" "&"LWSP Projections" -> 2022 LWSP Projections | B74: =B66 -> 2030 | C74: =IFERROR(VLOOKUP($B$1,'Master Data Set 2022'!$A$3:$BG$554,40,FALSE),"ERROR") -> ERROR | D74: =D66 -> 2040 | E74: =IFERROR(VLOOKUP($B$1,'Master Data Set 2022'!$A$3:$BG$554,41,FALSE),"ERROR") -> ERROR | F74: =F66 -> 2050 | G74: =IFERROR(VLOOKUP($B$1,'Master Data Set 2022'!$A$3:$BG$554,42,FALSE),"ERROR") -> ERROR | H74: =H66 -> 2060 | I74: =IFERROR(VLOOKUP($B$1,'Master Data Set 2022'!$A$3:$BG$554,43,FALSE),"ERROR") -> ERROR | J74: =J66 -> 2070 | K74: =IFERROR(VLOOKUP($B$1,'Master Data Set 2022'!$A$3:$BG$554,44,FALSE),"ERROR") -> ERROR
A75: Calculated Projections | C75: =IFERROR(IF(W26=1,IF(N32=0,M32*(1+P32)^(B74-L32),N32*(1+P32)^(B74-L32)),IF(W26=2,IF(N32=0,M32*(1+Q32)^(B74-L32),N32*(1+Q32)^(B74-L32)),IF(W26=4,IF(N32=0,M32*(1+C72)^(B74-L32),N32*(1+C72)^(B74-L32))))),"ERROR") -> ERROR | E75: =IFERROR(IF(W26=1,IF(N32=0,M32*(1+P32)^(D74-L32),N32*(1+P32)^(D74-L32)),IF(W26=2,IF(N32=0,M32*(1+Q32)^(D74-L32),N32*(1+Q32)^(D74-L32)),IF(W26=4,C75*(1+E72)^(D74-B74)))),"ERROR") -> ERROR | G75: =IFERROR(IF(W26=1,IF(N32=0,M32*(1+P32)^(F74-L32),N32*(1+P32)^(F74-L32)),IF(W26=2,IF(N32=0,M32*(1+Q32)^(F74-L32),N32*(1+Q32)^(F74-L32)),IF(W26=4,E75*(1+G72)^(F74-D74)))),"ERROR") -> ERROR | I75: =IFERROR(IF(W26=1,IF(N32=0,M32*(1+P32)^(H74-L32),N32*(1+P32)^(H74-L32)),IF(W26=2,IF(N32=0,M32*(1+Q32)^(H74-L32),N32*(1+Q32)^(H74-L32)),IF(W26=4,G75*(1+I72)^(H74-F74)))),"ERROR") -> ERROR | K75: =IFERROR(IF(W26=1,IF(N32=0,M32*(1+P32)^(J74-L32),N32*(1+P32)^(J74-L32)),IF(W26=2,IF(N32=0,M32*(1+Q32)^(J74-L32),N32*(1+Q32)^(J74-L32)),IF(W26=4,I75*(1+K72)^(J74-H74)))),"ERROR") -> ERROR | L75: =IF(W26=1,"Historical Rate",IF(W26=4,"Variable Rate","Rate Not Selected")) -> Variable Rate
A76: Percent Difference | C76: =IFERROR((ABS(C74-C75)/((C74+C75)/2)),"ERROR") -> ERROR | E76: =IFERROR((ABS(E74-E75)/((E74+E75)/2)),"ERROR") -> ERROR | G76: =IFERROR((ABS(G74-G75)/((G74+G75)/2)),"ERROR") -> ERROR | I76: =IFERROR((ABS(I74-I75)/((I74+I75)/2)),"ERROR") -> ERROR | K76: =IFERROR((ABS(K74-K75)/((K74+K75)/2)),"ERROR") -> ERROR
A77: Is LWSP Projection Low ? | C77: =IF(OR(C74=C75,C76<0.01),"N/A",IF(C74>C75,"No","Yes")) -> N/A | E77: =IF(OR(E74=E75,E76<0.01),"N/A",IF(E74>E75,"No","Yes")) -> N/A | G77: =IF(OR(G74=G75,G76<0.01),"N/A",IF(G74>G75,"No","Yes")) -> N/A | I77: =IF(OR(I74=I75,I76<0.01),"N/A",IF(I74>I75,"No","Yes")) -> N/A | K77: =IF(OR(K74=K75,K76<0.01),"N/A",IF(K74>K75,"No","Yes")) -> N/A
A78: UAFW Demand Projections
B81: =B73 -> Proj. Year | C81: Usage (MGD) | D81: =D73 -> Proj. Year | E81: Usage (MGD) | F81: =F73 -> Proj. Year | G81: Usage (MGD) | H81: =H73 -> Proj. Year | I81: Usage (MGD) | J81: =J73 -> Proj. Year | K81: Usage (MGD)
A82: =C14&" "&"LWSP Projections" -> 2022 LWSP Projections | B82: =B74 -> 2030 | C82: =IFERROR(VLOOKUP($B$1,'Master Data Set 2022'!$A$3:$BG$554,45,FALSE),"ERROR") -> ERROR | D82: =D74 -> 2040 | E82: =IFERROR(VLOOKUP($B$1,'Master Data Set 2022'!$A$3:$BG$554,46,FALSE),"ERROR") -> ERROR | F82: =F74 -> 2050 | G82: =IFERROR(VLOOKUP($B$1,'Master Data Set 2022'!$A$3:$BG$554,47,FALSE),"ERROR") -> ERROR | H82: =H74 -> 2060 | I82: =IFERROR(VLOOKUP($B$1,'Master Data Set 2022'!$A$3:$BG$554,48,FALSE),"ERROR") -> ERROR | J82: =J74 -> 2070 | K82: =IFERROR(VLOOKUP($B$1,'Master Data Set 2022'!$A$3:$BG$554,49,FALSE),"ERROR") -> ERROR
A83: Calculated Projections | C83: =IFERROR(IF(X26=1,IF(N34=0,M34*(1+P34)^(B82-L34),N34*(1+P34)^(B82-L34)),IF(X26=4,IF(N34=0,M34*(1+C80)^(B82-L34),N34*(1+C80)^(B82-L34)),UAFW!C13)),"ERROR") -> 0 | E83: =IFERROR(IF(X26=1,IF(N34=0,M34*(1+P34)^(D82-L34),N34*(1+P34)^(D82-L34)),IF(X26=4,C83*(1+E80)^(D82-B82),UAFW!D13)),"ERROR") -> 0 | G83: =IFERROR(IF(X26=1,IF(N34=0,M34*(1+P34)^(F82-L34),N34*(1+P34)^(F82-L34)),IF(X26=4,E83*(1+G80)^(F82-D82),UAFW!E13)),"ERROR") -> 0 | I83: =IFERROR(IF(X26=1,IF(N34=0,M34*(1+P34)^(H82-L34),N34*(1+P34)^(H82-L34)),IF(X26=4,G83*(1+I80)^(H82-F82),UAFW!F13)),"ERROR") -> 0 | K83: =IFERROR(IF(X26=1,IF(N34=0,M34*(1+P34)^(J82-L34),N34*(1+P34)^(J82-L34)),IF(X26=4,I83*(1+K80)^(J82-H82),UAFW!G13)),"ERROR") -> 0 | L83: =IF(X26=1,"Historical Rate",IF(X26=4,"Variable Rate",IF(X26="","End Year Rate"))) -> End Year Rate
A84: Percent Difference | C84: =IFERROR((ABS(C82-C83)/((C82+C83)/2)),"ERROR") -> ERROR | E84: =IFERROR((ABS(E82-E83)/((E82+E83)/2)),"ERROR") -> ERROR | G84: =IFERROR((ABS(G82-G83)/((G82+G83)/2)),"ERROR") -> ERROR | I84: =IFERROR((ABS(I82-I83)/((I82+I83)/2)),"ERROR") -> ERROR | K84: =IFERROR((ABS(K82-K83)/((K82+K83)/2)),"ERROR") -> ERROR
A85: % of Demand | C85: =IFERROR(IF(AND(C83<>0,M42="b"),C83/(C42+C51+C59+C67+C75+C83+C90),C83/(C43+C51+C59+C67+C75+C83+C90)),"ERROR") -> ERROR | E85: =IFERROR(IF(AND(E83<>0,M42="b"),E83/(E42+E51+E59+E67+E75+E83+E90),E83/(E43+E51+E59+E67+E75+E83+E90)),"ERROR") -> ERROR | G85: =IFERROR(IF(AND(G83<>0,M42="b"),G83/(G42+G51+G59+G67+G75+G83+G90),G83/(G43+G51+G59+G67+G75+G83+G90)),"ERROR") -> ERROR | I85: =IFERROR(IF(AND(I83<>0,M42="b"),I83/(I42+I51+I59+I67+I75+I83+I90),I83/(I43+I51+I59+I67+I75+I83+I90)),"ERROR") -> ERROR | K85: =IFERROR(IF(AND(K83<>0,M42="b"),K83/(K42+K51+K59+K67+K75+K83+K90),K83/(K43+K51+K59+K67+K75+K83+K90)),"ERROR") -> ERROR
A86: Is LWSP Projection Low ? | C86: =IF(OR(C82=C83,C84<0.01,C82="error"),"N/A",IF(C82>C83,"No","Yes")) -> N/A | E86: =IF(OR(E82=E83,E84<0.01,E82="error"),"N/A",IF(E82>E83,"No","Yes")) -> N/A | G86: =IF(OR(G82=G83,G84<0.01,G82="error"),"N/A",IF(G82>G83,"No","Yes")) -> N/A | I86: =IF(OR(I82=I83,I84<0.01,I82="error"),"N/A",IF(I82>I83,"No","Yes")) -> N/A | K86: =IF(OR(K82=K83,K84<0.01,K82="error"),"N/A",IF(K82>K83,"No","Yes")) -> N/A
A87: Projected Water Sales
B89: =B81 -> Proj. Year | C89: Usage (MGD) | D89: =D81 -> Proj. Year | E89: Usage (MGD) | F89: =F81 -> Proj. Year | G89: Usage (MGD) | H89: =H81 -> Proj. Year | I89: Usage (MGD) | J89: =J81 -> Proj. Year | K89: Usage (MGD)
A90: Contract Sales + Future Sales | B90: =B82 -> 2030 | C90: =IF(C88=0,IFERROR(VLOOKUP($B$1,'Master Data Set 2022'!$A$3:$BG$554,55,FALSE)+VLOOKUP($B$1,'Master Data Set 2022'!$A$3:$BQ$554,65,FALSE),"ERROR"),C88) -> ERROR | D90: =D82 -> 2040 | E90: =IF(E88=0,IFERROR(VLOOKUP($B$1,'Master Data Set 2022'!$A$3:$BG$554,56,FALSE)+VLOOKUP($B$1,'Master Data Set 2022'!$A$3:$BQ$554,66,FALSE),"ERROR"),E88) -> ERROR | F90: =F82 -> 2050 | G90: =IF(G88=0,IFERROR(VLOOKUP($B$1,'Master Data Set 2022'!$A$3:$BG$554,57,FALSE)+VLOOKUP($B$1,'Master Data Set 2022'!$A$3:$BQ$554,67,FALSE),"ERROR"),G88) -> ERROR | H90: =H82 -> 2060 | I90: =IF(I88=0,IFERROR(VLOOKUP($B$1,'Master Data Set 2022'!$A$3:$BG$554,58,FALSE)+VLOOKUP($B$1,'Master Data Set 2022'!$A$3:$BQ$554,68,FALSE),"ERROR"),I88) -> ERROR | J90: =J82 -> 2070 | K90: =IF(K88=0,IFERROR(VLOOKUP($B$1,'Master Data Set 2022'!$A$3:$BG$554,59,FALSE)+VLOOKUP($B$1,'Master Data Set 2022'!$A$3:$BQ$554,69,FALSE),"ERROR"),K88) -> ERROR
A91: Future Water Supply
B93: =B89 -> Proj. Year | C93: Usage (MGD) | D93: =D89 -> Proj. Year | E93: Usage (MGD) | F93: =F89 -> Proj. Year | G93: Usage (MGD) | H93: =H89 -> Proj. Year | I93: Usage (MGD) | J93: =J89 -> Proj. Year | K93: Usage (MGD)
A94: Future Supplies Only | B94: =B90 -> 2030 | C94: =IF(C92=0,IFERROR(VLOOKUP($B$1,'Master Data Set 2022'!$A$3:$BG$554,50,FALSE)+(VLOOKUP($B$1,'Master Data Set 2022'!$A$3:$BQ$554,60,FALSE)*0),"ERROR"),C92) -> ERROR | D94: =D90 -> 2040 | E94: =IF(E92=0,IFERROR(VLOOKUP($B$1,'Master Data Set 2022'!$A$3:$BG$554,51,FALSE)+(VLOOKUP($B$1,'Master Data Set 2022'!$A$3:$BQ$554,61,FALSE)*0),"ERROR"),E92) -> ERROR | F94: =F90 -> 2050 | G94: =IF(G92=0,IFERROR(VLOOKUP($B$1,'Master Data Set 2022'!$A$3:$BG$554,52,FALSE)+(VLOOKUP($B$1,'Master Data Set 2022'!$A$3:$BQ$554,62,FALSE)*0),"ERROR"),G92) -> ERROR | H94: =H90 -> 2060 | I94: =IF(I92=0,IFERROR(VLOOKUP($B$1,'Master Data Set 2022'!$A$3:$BG$554,53,FALSE)+(VLOOKUP($B$1,'Master Data Set 2022'!$A$3:$BQ$554,63,FALSE)*0),"ERROR"),I92) -> ERROR | J94: =J90 -> 2070 | K94: =IF(K92=0,IFERROR(VLOOKUP($B$1,'Master Data Set 2022'!$A$3:$BG$554,54,FALSE)+(VLOOKUP($B$1,'Master Data Set 2022'!$A$3:$BQ$554,64,FALSE)*0),"ERROR"),K92) -> ERROR

Sheet Economic Rate Data (hidden)
A43: Total Factor Productivity and Related Measures
A44: Food Services and Drinking Places (NAICS 722)
A45: Materials Input
A46: Average % Change (2017-2022)
A47: 1
A48: Source: Bureau of Labor Statistics
A49: Release Date: November 21, 2023
A52: Total Factor Productivity and Related Measures
A53: Chemical Products (NAICS 325)
A54: Materials Input
A55: Average % Change (2017-2022)
A56: -3.7
A57: Source: Bureau of Labor Statistics
A58: Release Date: November 21, 2023
A61: Total Factor Productivity and Related Measures
A62: Hospitals and Nursing and Residential Care Facilities (NAICS 622,623)
A63: Materials Input
A64: Average % Change (2017-2022)
A65: 1.4
A66: Source: Bureau of Labor Statistics
A67: Release Date: November 21, 2023

Sheet UAFW (hidden)
A1: Data in this worksheet is not meant to be manually adjusted. Adjustments can be made in the Projections WKSHT.
A2: Unaccounted-for Water Projection
A4: Water Use By Type | B4: =IF('Projections WKSHT'!C14<>"",'Projections WKSHT'!C14,0) -> 2022 | C4: =IF(B4<>0,'Projections WKSHT'!B18,0) -> 2030 | D4: =IF(B4<>0,'Projections WKSHT'!D18,0) -> 2040 | E4: =IF(B4<>0,'Projections WKSHT'!F18,0) -> 2050 | F4: =IF(B4<>0,'Projections WKSHT'!H18,0) -> 2060 | G4: =IF(B4<>0,'Projections WKSHT'!J18,0) -> 2070 | H4: =IF(G4<>0,G4+10,0) -> 2080
A5: Residential | B5: =IF('Projections WKSHT'!M28<>0,'Projections WKSHT'!M28,IF('Projections WKSHT'!N28<>0,'Projections WKSHT'!N28,0)) -> ERROR | C5: =IF('Projections WKSHT'!M42="b",'Projections WKSHT'!C42,'Projections WKSHT'!C43) -> ERROR | D5: =IF('Projections WKSHT'!M42="b",'Projections WKSHT'!E42,'Projections WKSHT'!E43) -> ERROR | E5: =IF('Projections WKSHT'!M42="b",'Projections WKSHT'!G42,'Projections WKSHT'!G43) -> ERROR | F5: =IF('Projections WKSHT'!M42="b",'Projections WKSHT'!I42,'Projections WKSHT'!I43) -> ERROR | G5: =IF('Projections WKSHT'!M42="b",'Projections WKSHT'!K42,'Projections WKSHT'!K43) -> ERROR | H5: =Projections!G14 -> ----
A6: Commercial | B6: =IF('Projections WKSHT'!M29<>0,'Projections WKSHT'!M29,IF('Projections WKSHT'!N29<>0,'Projections WKSHT'!N29,0)) -> ERROR | C6: ='Projections WKSHT'!C51 -> ERROR | D6: ='Projections WKSHT'!E51 -> ERROR | E6: ='Projections WKSHT'!G51 -> ERROR | F6: ='Projections WKSHT'!I51 -> ERROR | G6: ='Projections WKSHT'!K51 -> ERROR | H6: =Projections!G22 -> ----
A7: Industrial | B7: =IF('Projections WKSHT'!M30<>0,'Projections WKSHT'!M30,IF('Projections WKSHT'!N30<>0,'Projections WKSHT'!N30,0)) -> ERROR | C7: ='Projections WKSHT'!C59 -> ERROR | D7: ='Projections WKSHT'!E59 -> ERROR | E7: ='Projections WKSHT'!G59 -> ERROR | F7: ='Projections WKSHT'!I59 -> ERROR | G7: ='Projections WKSHT'!K59 -> ERROR | H7: =Projections!G30 -> ----
A8: Institutional | B8: =IF('Projections WKSHT'!M31<>0,'Projections WKSHT'!M31,IF('Projections WKSHT'!N31<>0,'Projections WKSHT'!N31,0)) -> ERROR | C8: ='Projections WKSHT'!C67 -> ERROR | D8: ='Projections WKSHT'!E67 -> ERROR | E8: ='Projections WKSHT'!G67 -> ERROR | F8: ='Projections WKSHT'!I67 -> ERROR | G8: ='Projections WKSHT'!K67 -> ERROR | H8: =Projections!G38 -> ----
A9: System Process | B9: =IF('Projections WKSHT'!M32<>0,'Projections WKSHT'!M32,IF('Projections WKSHT'!N32<>0,'Projections WKSHT'!N32,0)) -> ERROR | C9: ='Projections WKSHT'!C75 -> ERROR | D9: ='Projections WKSHT'!E75 -> ERROR | E9: ='Projections WKSHT'!G75 -> ERROR | F9: ='Projections WKSHT'!I75 -> ERROR | G9: ='Projections WKSHT'!K75 -> ERROR | H9: =Projections!G46 -> ----
A10: Water Sales | B10: =IF('Projections WKSHT'!B5<>0,'Projections WKSHT'!B5,0) -> ERROR | C10: ='Projections WKSHT'!C90 -> ERROR | D10: ='Projections WKSHT'!E90 -> ERROR | E10: ='Projections WKSHT'!G90 -> ERROR | F10: ='Projections WKSHT'!I90 -> ERROR | G10: ='Projections WKSHT'!K90 -> ERROR | H10: =G10 -> ERROR | I10: (cell H10 assumes cell G10)
A11: Unaccounted-for Water | B11: =IF('Projections WKSHT'!B3<>0,'Projections WKSHT'!B3-SUM(B5:B10),0) -> 
A12: Pt | B12: =IFERROR(IF(B11<>0,B11/SUM(B5:B11),0),0) -> 0
A13: Calculated UAFW | C13: =C17 -> 0 | D13: =D17 -> 0 | E13: 0 | F13: 0 | G13: 0 | H13: =H17 -> 0
A14: - % of Demand | C14: =IF(C17<>"",C13/(SUM(C5:C10)+C13),"No Data") -> 
A15: Pt | C15: =B12 -> 0 | D15: =B12 -> 0 | E15: =B12 -> 0 | F15: =B12 -> 0 | G15: =B12 -> 0 | H15: =B12 -> 0
A16: D | C16: =SUM(C5:C10) -> 0 | D16: 0 | E16: 0 | F16: 0 | G16: 0 | H16: 0
A17: X | C17: 0 | D17: 0 | E17: 0 | F17: 0 | G17: 0 | H17: 0
A19: This Line Must = 0 | C19: =(C15*(C16+C17))-C17 -> 0 | D19: =(D15*(D16+D17))-D17 -> 0 | E19: 0 | F19: 0 | G19: 0 | H19: =(H15*(H16+H17))-H17 -> 0
A22: Notes | C22: Equations:
A23: Pt = % of demand (End Year)
A24: D = Demand
A25: X = Unaccounted-for Water | D25: X = Pt * ( D + X )
D27: 0 = ( Pt * ( D + X )) - X

Sheet Evaluation
A1: Enter data in blue shaded cells.
A4: Projected Population
A5: Threshold value (Pop). Delta highlights red if larger.
A6: Year | B6: Calculated | C6: ='Projections WKSHT'!A18 -> 2022 LWSP Projections | D6: Delta > Threshold ? | E6: Population Delta | F6: Variance (MGD) | G6: Conservative | H6: Percent Difference | I6: Flag
A7: =A17 -> 2030 | B7: ='Projections WKSHT'!C19 -> ERROR | C7: ='Projections WKSHT'!C18 -> ERROR | D7: =IF(B7<>"ERROR",IF(ABS(B7-C7)>D5,"Yes", "No"),"ERROR") -> ERROR | E7: =IF(D7<>"ERROR",ABS(B7-C7),0) -> 0 | F7: =IFERROR(IF('Projections WKSHT'!C38="",E7*'Projections WKSHT'!B38/1000000,E7*'Projections WKSHT'!C38/1000000),"ERROR") -> ERROR | G7: =IF(E7<>0,IF(B7>C7,"Yes","No"),"N/A") -> N/A | H7: =IF(E7>0,(ABS(B7-C7)/((B7+C7)/2)),"N/A") -> N/A | I7: =IF(E7>0,IF(H7>0.5,"Yes","No"),"N/A") -> N/A
A8: =A18 -> 2040 | B8: ='Projections WKSHT'!E19 -> ERROR | C8: ='Projections WKSHT'!E18 -> ERROR | D8: =IF(B8<>"ERROR",IF(ABS(B8-C8)>D5,"Yes", "No"),"ERROR") -> ERROR | E8: =IF(D8<>"ERROR",ABS(B8-C8),0) -> 0 | F8: =IFERROR(IF('Projections WKSHT'!C38="",E8*'Projections WKSHT'!B38/1000000,E8*'Projections WKSHT'!C38/1000000),"ERROR") -> ERROR | G8: =IF(E8<>0,IF(B8>C8,"Yes","No"),"N/A") -> N/A | H8: =IF(E8>0,(ABS(B8-C8)/((B8+C8)/2)),"N/A") -> N/A | I8: =IF(E8>0,IF(H8>0.5,"Yes","No"),"N/A") -> N/A
A9: =A19 -> 2050 | B9: ='Projections WKSHT'!G19 -> ERROR | C9: ='Projections WKSHT'!G18 -> ERROR | D9: =IF(B9<>"ERROR",IF(ABS(B9-C9)>D5,"Yes", "No"),"ERROR") -> ERROR | E9: 0 | F9: =IFERROR(IF('Projections WKSHT'!C38="",E9*'Projections WKSHT'!B38/1000000,E9*'Projections WKSHT'!C38/1000000),"ERROR") -> ERROR | G9: =IF(E9<>0,IF(B9>C9,"Yes","No"),"N/A") -> N/A | H9: =IF(E9>0,(ABS(B9-C9)/((B9+C9)/2)),"N/A") -> N/A | I9: =IF(E9>0,IF(H9>0.5,"Yes","No"),"N/A") -> N/A
A10: =A20 -> 2060 | B10: ='Projections WKSHT'!I19 -> ERROR | C10: ='Projections WKSHT'!I18 -> ERROR | D10: =IF(B10<>"ERROR",IF(ABS(B10-C10)>D5,"Yes", "No"),"ERROR") -> ERROR | E10: 0 | F10: =IFERROR(IF('Projections WKSHT'!C38="",E10*'Projections WKSHT'!B38/1000000,E10*'Projections WKSHT'!C38/1000000),"ERROR") -> ERROR | G10: =IF(E10<>0,IF(B10>C10,"Yes","No"),"N/A") -> N/A | H10: =IF(E10>0,(ABS(B10-C10)/((B10+C10)/2)),"N/A") -> N/A | I10: =IF(E10>0,IF(H10>0.5,"Yes","No"),"N/A") -> N/A
A11: =A21 -> 2070 | B11: ='Projections WKSHT'!K19 -> ERROR | C11: ='Projections WKSHT'!K18 -> ERROR | D11: =IF(B11<>"ERROR",IF(ABS(B11-C11)>D5,"Yes", "No"),"ERROR") -> ERROR | E11: 0 | F11: =IFERROR(IF('Projections WKSHT'!C38="",E11*'Projections WKSHT'!B38/1000000,E11*'Projections WKSHT'!C38/1000000),"ERROR") -> ERROR | G11: =IF(E11<>0,IF(B11>C11,"Yes","No"),"N/A") -> N/A | H11: =IF(E11>0,(ABS(B11-C11)/((B11+C11)/2)),"N/A") -> N/A | I11: =IF(E11>0,IF(H11>0.5,"Yes","No"),"N/A") -> N/A
A12: Average | B12: =IF(B7<>"ERROR",AVERAGE(B7:B11),"ERROR") -> ERROR | C12: =IFERROR(AVERAGE(C7:C11),"ERROR") -> ERROR | D12: =IF(B12<>"ERROR",ABS(B12-C12),"ERROR") -> ERROR | E12: Suggested Threshold Value
A14: Projected Residential Demand
A15: Threshold value (MGD). Delta highlights red if larger.
A16: Year | B16: Calculated [B] or [C] | C16: ='Projections WKSHT'!A18 -> 2022 LWSP Projections | D16: Delta > Threshold ? | E16: GPCD Delta | F16: Demand Delta (MGD) | G16: Conservative | H16: Percent Difference | I16: Flag
A17: ='Projections WKSHT'!B41 -> 2030 | B17: =IF('Projections WKSHT'!M42="B",'Projections WKSHT'!C42,'Projections WKSHT'!C43) -> ERROR | C17: ='Projections WKSHT'!C41 -> ERROR | D17: =IF(B17<>"ERROR",IF(ABS(B17-C17)>D15,"Yes", "No"),"ERROR") -> ERROR | E17: =IF(D17<>"ERROR",ABS(B17-C17)*1000000/'Projections WKSHT'!C19,0) -> 0 | F17: =IFERROR(IF(C17>0,ABS(B17-C17),0),"ERROR") -> ERROR | G17: =IF(E17<>0,IF(B17>C17,"Yes","No"),"N/A") -> N/A | H17: =IF(E17<>0,(ABS(B17-C17)/((B17+C17)/2)),"N/A") -> N/A | I17: =IF(E17<>0,IF(H17>0.5,"Yes","No"),"N/A") -> N/A
A18: ='Projections WKSHT'!D41 -> 2040 | B18: =IF('Projections WKSHT'!M42="B",'Projections WKSHT'!E42,'Projections WKSHT'!E43) -> ERROR | C18: ='Projections WKSHT'!E41 -> ERROR | D18: =IF(B18<>"ERROR",IF(ABS(B18-C18)>D15,"Yes", "No"),"ERROR") -> ERROR | E18: =IF(B18<>"ERROR",ABS(B18-C18)*1000000/'Projections WKSHT'!E19,0) -> 0 | F18: =IFERROR(IF(C18>0,ABS(B18-C18),0),"ERROR") -> ERROR | G18: =IF(E18<>0,IF(B18>C18,"Yes","No"),"N/A") -> N/A | H18: =IF(E18<>0,(ABS(B18-C18)/((B18+C18)/2)),"N/A") -> N/A | I18: =IF(E18<>0,IF(H18>0.5,"Yes","No"),"N/A") -> N/A
A19: ='Projections WKSHT'!F41 -> 2050 | B19: =IF('Projections WKSHT'!M42="B",'Projections WKSHT'!G42,'Projections WKSHT'!G43) -> ERROR | C19: ='Projections WKSHT'!G41 -> ERROR | D19: =IF(B19<>"ERROR",IF(ABS(B19-C19)>D15,"Yes", "No"),"ERROR") -> ERROR | E19: =IF(B19<>"ERROR",ABS(B19-C19)*1000000/'Projections WKSHT'!G19,0) -> 0 | F19: =IFERROR(IF(C19>0,ABS(B19-C19),0),"ERROR") -> ERROR | G19: =IF(E19<>0,IF(B19>C19,"Yes","No"),"N/A") -> N/A | H19: =IF(E19<>0,(ABS(B19-C19)/((B19+C19)/2)),"N/A") -> N/A | I19: =IF(E19<>0,IF(H19>0.5,"Yes","No"),"N/A") -> N/A
A20: ='Projections WKSHT'!H41 -> 2060 | B20: =IF('Projections WKSHT'!M42="B",'Projections WKSHT'!I42,'Projections WKSHT'!I43) -> ERROR | C20: ='Projections WKSHT'!I41 -> ERROR | D20: =IF(B20<>"ERROR",IF(ABS(B20-C20)>D15,"Yes", "No"),"ERROR") -> ERROR | E20: =IF(B20<>"ERROR",ABS(B20-C20)*1000000/'Projections WKSHT'!I19,0) -> 0 | F20: =IFERROR(IF(C20>0,ABS(B20-C20),0),"ERROR") -> ERROR | G20: =IF(E20<>0,IF(B20>C20,"Yes","No"),"N/A") -> N/A | H20: =IF(E20<>0,(ABS(B20-C20)/((B20+C20)/2)),"N/A") -> N/A | I20: =IF(E20<>0,IF(H20>0.5,"Yes","No"),"N/A") -> N/A
A21: ='Projections WKSHT'!J41 -> 2070 | B21: =IF('Projections WKSHT'!M42="B",'Projections WKSHT'!K42,'Projections WKSHT'!K43) -> ERROR | C21: ='Projections WKSHT'!K41 -> ERROR | D21: =IF(B21<>"ERROR",IF(ABS(B21-C21)>D15,"Yes", "No"),"ERROR") -> ERROR | E21: =IF(B21<>"ERROR",ABS(B21-C21)*1000000/'Projections WKSHT'!K19,0) -> 0 | F21: =IFERROR(IF(C21>0,ABS(B21-C21),0),"ERROR") -> ERROR | G21: =IF(E21<>0,IF(B21>C21,"Yes","No"),"N/A") -> N/A | H21: =IF(E21<>0,(ABS(B21-C21)/((B21+C21)/2)),"N/A") -> N/A | I21: =IF(E21<>0,IF(H21>0.5,"Yes","No"),"N/A") -> N/A
A22: Average | B22: =IF(B17<>"ERROR",AVERAGE(B17:B21),"ERROR") -> ERROR | C22: =IFERROR(AVERAGE(C17:C21),"ERROR") -> ERROR | D22: =IF(B22<>"ERROR",ABS(B22-C22),"ERROR") -> ERROR | E22: Suggested Threshold Value
A24: Projected Commercial Demand
A25: Threshold value (MGD). Delta highlights red if larger.
A26: Year | B26: Calculated | C26: ='Projections WKSHT'!A18 -> 2022 LWSP Projections | D26: Delta > Threshold ? | E26: GPCD Delta | F26: Demand Delta (MGD) | G26: Conservative | H26: Percent Difference | I26: Flag
A27: =A17 -> 2030 | B27: ='Projections WKSHT'!C51 -> ERROR | C27: ='Projections WKSHT'!C50 -> ERROR | D27: =IF(B27<>"ERROR",IF(ABS(B27-C27)>D25,"Yes", "No"),"ERROR") -> ERROR | E27: =IF(D27<>"ERROR",ABS(B27-C27)*1000000/'Projections WKSHT'!C19,0) -> 0 | F27: =IFERROR(IF(C27>0,ABS(B27-C27),0),"ERROR") -> ERROR | G27: =IF(E27<>0,IF(B27>C27,"Yes","No"),"N/A") -> N/A | H27: =IF(E27<>0,(ABS(B27-C27)/((B27+C27)/2)),"N/A") -> N/A | I27: =IF(E27<>0,IF(H27>0.5,"Yes","No"),"N/A") -> N/A
A28: =A18 -> 2040 | B28: ='Projections WKSHT'!E51 -> ERROR | C28: ='Projections WKSHT'!E50 -> ERROR | D28: =IF(B28<>"ERROR",IF(ABS(B28-C28)>D25,"Yes", "No"),"ERROR") -> ERROR | E28: =IF(D28<>"ERROR",ABS(B28-C28)*1000000/'Projections WKSHT'!E19,0) -> 0 | F28: =IFERROR(IF(C28>0,ABS(B28-C28),0),"ERROR") -> ERROR | G28: =IF(E28<>0,IF(B28>C28,"Yes","No"),"N/A") -> N/A | H28: =IF(E28<>0,(ABS(B28-C28)/((B28+C28)/2)),"N/A") -> N/A | I28: =IF(E28<>0,IF(H28>0.5,"Yes","No"),"N/A") -> N/A
A29: 2050 | B29: ='Projections WKSHT'!G51 -> ERROR | C29: ='Projections WKSHT'!G50 -> ERROR | D29: =IF(B29<>"ERROR",IF(ABS(B29-C29)>D25,"Yes", "No"),"ERROR") -> ERROR | E29: =IF(D29<>"ERROR",ABS(B29-C29)*1000000/'Projections WKSHT'!G19,0) -> 0 | F29: =IFERROR(IF(C29>0,ABS(B29-C29),0),"ERROR") -> ERROR | G29: =IF(E29<>0,IF(B29>C29,"Yes","No"),"N/A") -> N/A | H29: =IF(E29<>0,(ABS(B29-C29)/((B29+C29)/2)),"N/A") -> N/A | I29: =IF(E29<>0,IF(H29>0.5,"Yes","No"),"N/A") -> N/A
A30: 2060 | B30: ='Projections WKSHT'!I51 -> ERROR | C30: ='Projections WKSHT'!I50 -> ERROR | D30: =IF(B30<>"ERROR",IF(ABS(B30-C30)>D25,"Yes", "No"),"ERROR") -> ERROR | E30: =IF(D30<>"ERROR",ABS(B30-C30)*1000000/'Projections WKSHT'!I19,0) -> 0 | F30: =IFERROR(IF(C30>0,ABS(B30-C30),0),"ERROR") -> ERROR | G30: =IF(E30<>0,IF(B30>C30,"Yes","No"),"N/A") -> N/A | H30: =IF(E30<>0,(ABS(B30-C30)/((B30+C30)/2)),"N/A") -> N/A | I30: =IF(E30<>0,IF(H30>0.5,"Yes","No"),"N/A") -> N/A
A31: 2070 | B31: ='Projections WKSHT'!K51 -> ERROR | C31: ='Projections WKSHT'!K50 -> ERROR | D31: =IF(B31<>"ERROR",IF(ABS(B31-C31)>D25,"Yes", "No"),"ERROR") -> ERROR | E31: =IF(D31<>"ERROR",ABS(B31-C31)*1000000/'Projections WKSHT'!K19,0) -> 0 | F31: =IFERROR(IF(C31>0,ABS(B31-C31),0),"ERROR") -> ERROR | G31: =IF(E31<>0,IF(B31>C31,"Yes","No"),"N/A") -> N/A | H31: =IF(E31<>0,(ABS(B31-C31)/((B31+C31)/2)),"N/A") -> N/A | I31: =IF(E31<>0,IF(H31>0.5,"Yes","No"),"N/A") -> N/A
A32: Average | B32: =IF(B27<>"ERROR",AVERAGE(B27:B31),"ERROR") -> ERROR | C32: =IFERROR(AVERAGE(C27:C31),"ERROR") -> ERROR | D32: =IF(B32<>"ERROR",ABS(B32-C32),"ERROR") -> ERROR | E32: Suggested Threshold Value
A34: Projected Industrial Demand
A35: Threshold value (MGD). Delta highlights red if larger.
A36: Year | B36: Calculated | C36: ='Projections WKSHT'!A18 -> 2022 LWSP Projections | D36: Delta > Threshold ? | E36: GPCD Delta | F36: Demand Delta (MGD) | G36: Conservative | H36: Percent Difference | I36: Flag
A37: =A17 -> 2030 | B37: ='Projections WKSHT'!C59 -> ERROR | C37: ='Projections WKSHT'!C58 -> ERROR | D37: =IF(B37<>"ERROR",IF(ABS(B37-C37)>D35,"Yes", "No"),"ERROR") -> ERROR | E37: =IF(D37<>"ERROR",ABS(B37-C37)*1000000/'Projections WKSHT'!C19,0) -> 0 | F37: =IFERROR(IF(C37>0,ABS(B37-C37),0),"ERROR") -> ERROR | G37: =IF(E37<>0,IF(B37>C37,"Yes","No"),"N/A") -> N/A | H37: =IF(E37<>0,(ABS(B37-C37)/((B37+C37)/2)),"N/A") -> N/A | I37: =IF(E37<>0,IF(H37>0.5,"Yes","No"),"N/A") -> N/A
A38: =A18 -> 2040 | B38: ='Projections WKSHT'!E59 -> ERROR | C38: ='Projections WKSHT'!E58 -> ERROR | D38: =IF(B38<>"ERROR",IF(ABS(B38-C38)>D35,"Yes", "No"),"ERROR") -> ERROR | E38: =IF(D38<>"ERROR",ABS(B38-C38)*1000000/'Projections WKSHT'!E19,0) -> 0 | F38: =IFERROR(IF(C38>0,ABS(B38-C38),0),"ERROR") -> ERROR | G38: =IF(E38<>0,IF(B38>C38,"Yes","No"),"N/A") -> N/A | H38: =IF(E38<>0,(ABS(B38-C38)/((B38+C38)/2)),"N/A") -> N/A | I38: =IF(E38<>0,IF(H38>0.5,"Yes","No"),"N/A") -> N/A
A39: 2050 | B39: ='Projections WKSHT'!G59 -> ERROR | C39: ='Projections WKSHT'!G58 -> ERROR | D39: =IF(B39<>"ERROR",IF(ABS(B39-C39)>D35,"Yes", "No"),"ERROR") -> ERROR | E39: =IF(D39<>"ERROR",ABS(B39-C39)*1000000/'Projections WKSHT'!G19,0) -> 0 | F39: =IFERROR(IF(C39>0,ABS(B39-C39),0),"ERROR") -> ERROR | G39: =IF(E39<>0,IF(B39>C39,"Yes","No"),"N/A") -> N/A | H39: =IF(E39<>0,(ABS(B39-C39)/((B39+C39)/2)),"N/A") -> N/A | I39: =IF(E39<>0,IF(H39>0.5,"Yes","No"),"N/A") -> N/A
A40: 2060 | B40: ='Projections WKSHT'!I59 -> ERROR | C40: ='Projections WKSHT'!I58 -> ERROR | D40: =IF(B40<>"ERROR",IF(ABS(B40-C40)>D35,"Yes", "No"),"ERROR") -> ERROR | E40: =IF(D40<>"ERROR",ABS(B40-C40)*1000000/'Projections WKSHT'!I19,0) -> 0 | F40: =IFERROR(IF(C40>0,ABS(B40-C40),0),"ERROR") -> ERROR | G40: =IF(E40<>0,IF(B40>C40,"Yes","No"),"N/A") -> N/A | H40: =IF(E40<>0,(ABS(B40-C40)/((B40+C40)/2)),"N/A") -> N/A | I40: =IF(E40<>0,IF(H40>0.5,"Yes","No"),"N/A") -> N/A
A41: 2070 | B41: ='Projections WKSHT'!K59 -> ERROR | C41: ='Projections WKSHT'!K58 -> ERROR | D41: =IF(B41<>"ERROR",IF(ABS(B41-C41)>D35,"Yes", "No"),"ERROR") -> ERROR | E41: =IF(D41<>"ERROR",ABS(B41-C41)*1000000/'Projections WKSHT'!K19,0) -> 0 | F41: =IFERROR(IF(C41>0,ABS(B41-C41),0),"ERROR") -> ERROR | G41: =IF(E41<>0,IF(B41>C41,"Yes","No"),"N/A") -> N/A | H41: =IF(E41<>0,(ABS(B41-C41)/((B41+C41)/2)),"N/A") -> N/A | I41: =IF(E41<>0,IF(H41>0.5,"Yes","No"),"N/A") -> N/A
A42: Average | B42: =IF(B37<>"ERROR",AVERAGE(B37:B41),"ERROR") -> ERROR | C42: =IFERROR(AVERAGE(C37:C41),"ERROR") -> ERROR | D42: =IF(B42<>"ERROR",ABS(B42-C42),"ERROR") -> ERROR | E42: Suggested Threshold Value
A44: Projected Institutional Demand
A45: Threshold value (MGD). Delta highlights red if larger.
A46: Year | B46: Calculated | C46: ='Projections WKSHT'!A18 -> 2022 LWSP Projections | D46: Delta > Threshold ? | E46: GPCD Delta | F46: Demand Delta (MGD) | G46: Conservative | H46: Percent Difference | I46: Flag
A47: =A17 -> 2030 | B47: ='Projections WKSHT'!C67 -> ERROR | C47: ='Projections WKSHT'!C66 -> ERROR | D47: =IF(B47<>"ERROR",IF(ABS(B47-C47)>D45,"Yes", "No"),"ERROR") -> ERROR | E47: =IF(D47<>"ERROR",ABS(B47-C47)*1000000/'Projections WKSHT'!C19,0) -> 0 | F47: =IFERROR(IF(C47>0,ABS(B47-C47),0),"ERROR") -> ERROR | G47: =IF(E47<>0,IF(B47>C47,"Yes","No"),"N/A") -> N/A | H47: =IF(E47<>0,(ABS(B47-C47)/((B47+C47)/2)),"N/A") -> N/A | I47: =IF(E47<>0,IF(H47>0.5,"Yes","No"),"N/A") -> N/A
A48: =A18 -> 2040 | B48: ='Projections WKSHT'!E67 -> ERROR | C48: ='Projections WKSHT'!E66 -> ERROR | D48: =IF(B48<>"ERROR",IF(ABS(B48-C48)>D45,"Yes", "No"),"ERROR") -> ERROR | E48: =IF(D48<>"ERROR",ABS(B48-C48)*1000000/'Projections WKSHT'!E19,0) -> 0 | F48: =IFERROR(IF(C48>0,ABS(B48-C48),0),"ERROR") -> ERROR | G48: =IF(E48<>0,IF(B48>C48,"Yes","No"),"N/A") -> N/A | H48: =IF(E48<>0,(ABS(B48-C48)/((B48+C48)/2)),"N/A") -> N/A | I48: =IF(E48<>0,IF(H48>0.5,"Yes","No"),"N/A") -> N/A
A49: 2050 | B49: ='Projections WKSHT'!G67 -> ERROR | C49: ='Projections WKSHT'!G66 -> ERROR | D49: =IF(B49<>"ERROR",IF(ABS(B49-C49)>D45,"Yes", "No"),"ERROR") -> ERROR | E49: =IF(D49<>"ERROR",ABS(B49-C49)*1000000/'Projections WKSHT'!G19,0) -> 0 | F49: =IFERROR(IF(C49>0,ABS(B49-C49),0),"ERROR") -> ERROR | G49: =IF(E49<>0,IF(B49>C49,"Yes","No"),"N/A") -> N/A | H49: =IF(E49<>0,(ABS(B49-C49)/((B49+C49)/2)),"N/A") -> N/A | I49: =IF(E49<>0,IF(H49>0.5,"Yes","No"),"N/A") -> N/A
A50: 2060 | B50: ='Projections WKSHT'!I67 -> ERROR | C50: ='Projections WKSHT'!I66 -> ERROR | D50: =IF(B50<>"ERROR",IF(ABS(B50-C50)>D45,"Yes", "No"),"ERROR") -> ERROR | E50: =IF(D50<>"ERROR",ABS(B50-C50)*1000000/'Projections WKSHT'!I19,0) -> 0 | F50: =IFERROR(IF(C50>0,ABS(B50-C50),0),"ERROR") -> ERROR | G50: =IF(E50<>0,IF(B50>C50,"Yes","No"),"N/A") -> N/A | H50: =IF(E50<>0,(ABS(B50-C50)/((B50+C50)/2)),"N/A") -> N/A | I50: =IF(E50<>0,IF(H50>0.5,"Yes","No"),"N/A") -> N/A
A51: 2070 | B51: ='Projections WKSHT'!K67 -> ERROR | C51: ='Projections WKSHT'!K66 -> ERROR | D51: =IF(B51<>"ERROR",IF(ABS(B51-C51)>D45,"Yes", "No"),"ERROR") -> ERROR | E51: =IF(D51<>"ERROR",ABS(B51-C51)*1000000/'Projections WKSHT'!K19,0) -> 0 | F51: =IFERROR(IF(C51>0,ABS(B51-C51),0),"ERROR") -> ERROR | G51: =IF(E51<>0,IF(B51>C51,"Yes","No"),"N/A") -> N/A | H51: =IF(E51<>0,(ABS(B51-C51)/((B51+C51)/2)),"N/A") -> N/A | I51: =IF(E51<>0,IF(H51>0.5,"Yes","No"),"N/A") -> N/A
A52: Average | B52: =IF(B47<>"ERROR",AVERAGE(B47:B51),"ERROR") -> ERROR | C52: =IFERROR(AVERAGE(C47:C51),"ERROR") -> ERROR | D52: =IF(B52<>"ERROR",ABS(B52-C52),"ERROR") -> ERROR | E52: Suggested Threshold Value
A54: Projected System Process Demand
A55: Threshold value (MGD). Delta highlights red if larger.
A56: Year | B56: Calculated | C56: ='Projections WKSHT'!A18 -> 2022 LWSP Projections | D56: Delta > Threshold ? | E56: GPCD Delta | F56: Demand Delta (MGD) | G56: Conservative | H56: Percent Difference | I56: Flag
A57: =A17 -> 2030 | B57: ='Projections WKSHT'!C75 -> ERROR | C57: ='Projections WKSHT'!C74 -> ERROR | D57: =IF(B57<>"ERROR",IF(ABS(B57-C57)>D55,"Yes", "No"),"ERROR") -> ERROR | E57: =IF(D57<>"ERROR",ABS(B57-C57)*1000000/'Projections WKSHT'!C19,0) -> 0 | F57: =IFERROR(IF(C57>0,ABS(B57-C57),0),"ERROR") -> ERROR | G57: =IF(E57<>0,IF(B57>C57,"Yes","No"),"N/A") -> N/A | H57: =IF(E57<>0,(ABS(B57-C57)/((B57+C57)/2)),"N/A") -> N/A | I57: =IF(E57<>0,IF(H57>0.5,"Yes","No"),"N/A") -> N/A
A58: =A18 -> 2040 | B58: ='Projections WKSHT'!E75 -> ERROR | C58: ='Projections WKSHT'!E74 -> ERROR | D58: =IF(B58<>"ERROR",IF(ABS(B58-C58)>D55,"Yes", "No"),"ERROR") -> ERROR | E58: =IF(D58<>"ERROR",ABS(B58-C58)*1000000/'Projections WKSHT'!E19,0) -> 0 | F58: =IFERROR(IF(C58>0,ABS(B58-C58),0),"ERROR") -> ERROR | G58: =IF(E58<>0,IF(B58>C58,"Yes","No"),"N/A") -> N/A | H58: =IF(E58<>0,(ABS(B58-C58)/((B58+C58)/2)),"N/A") -> N/A | I58: =IF(E58<>0,IF(H58>0.5,"Yes","No"),"N/A") -> N/A
A59: 2050 | B59: ='Projections WKSHT'!G75 -> ERROR | C59: ='Projections WKSHT'!G74 -> ERROR | D59: =IF(B59<>"ERROR",IF(ABS(B59-C59)>D55,"Yes", "No"),"ERROR") -> ERROR | E59: =IF(D59<>"ERROR",ABS(B59-C59)*1000000/'Projections WKSHT'!G19,0) -> 0 | F59: =IFERROR(IF(C59>0,ABS(B59-C59),0),"ERROR") -> ERROR | G59: =IF(E59<>0,IF(B59>C59,"Yes","No"),"N/A") -> N/A | H59: =IF(E59<>0,(ABS(B59-C59)/((B59+C59)/2)),"N/A") -> N/A | I59: =IF(E59<>0,IF(H59>0.5,"Yes","No"),"N/A") -> N/A
A60: 2060 | B60: ='Projections WKSHT'!I75 -> ERROR | C60: ='Projections WKSHT'!I74 -> ERROR | D60: =IF(B60<>"ERROR",IF(ABS(B60-C60)>D55,"Yes", "No"),"ERROR") -> ERROR | E60: =IF(D60<>"ERROR",ABS(B60-C60)*1000000/'Projections WKSHT'!I19,0) -> 0 | F60: =IFERROR(IF(C60>0,ABS(B60-C60),0),"ERROR") -> ERROR | G60: =IF(E60<>0,IF(B60>C60,"Yes","No"),"N/A") -> N/A | H60: =IF(E60<>0,(ABS(B60-C60)/((B60+C60)/2)),"N/A") -> N/A | I60: =IF(E60<>0,IF(H60>0.5,"Yes","No"),"N/A") -> N/A
A61: 2070 | B61: ='Projections WKSHT'!K75 -> ERROR | C61: ='Projections WKSHT'!K74 -> ERROR | D61: =IF(B61<>"ERROR",IF(ABS(B61-C61)>D55,"Yes", "No"),"ERROR") -> ERROR | E61: =IF(D61<>"ERROR",ABS(B61-C61)*1000000/'Projections WKSHT'!K19,0) -> 0 | F61: =IFERROR(IF(C61>0,ABS(B61-C61),0),"ERROR") -> ERROR | G61: =IF(E61<>0,IF(B61>C61,"Yes","No"),"N/A") -> N/A | H61: =IF(E61<>0,(ABS(B61-C61)/((B61+C61)/2)),"N/A") -> N/A | I61: =IF(E61<>0,IF(H61>0.5,"Yes","No"),"N/A") -> N/A
A62: Average | B62: =IF(B57<>"ERROR",AVERAGE(B57:B61),"ERROR") -> ERROR | C62: =IFERROR(AVERAGE(C57:C61),"ERROR") -> ERROR | D62: =IF(B62<>"ERROR",ABS(B62-C62),"ERROR") -> ERROR | E62: Suggested Threshold Value
A64: Unaccounted-for Water Demand
A65: Threshold value (MGD). Delta highlights red if larger.
A66: Year | B66: Calculated | C66: ='Projections WKSHT'!A18 -> 2022 LWSP Projections | D66: Delta > Threshold ? | E66: GPCD Delta | F66: Demand Delta (MGD) | G66: Conservative | H66: Percent Difference | I66: Flag
A67: =A17 -> 2030 | B67: ='Projections WKSHT'!C83 -> 0 | C67: ='Projections WKSHT'!C82 -> ERROR | D67: =IFERROR(IF(B67<>"ERROR",IF(ABS(B67-C67)>D65,"Yes", "No"),"ERROR"),"ERROR") -> ERROR | E67: =IF(D67<>"ERROR",ABS(B67-C67)*1000000/'Projections WKSHT'!C19,0) -> 0 | F67: =IFERROR(IF(C67>0,ABS(B67-C67),0),"ERROR") -> ERROR | G67: =IF(E67<>0,IF(B67>C67,"Yes","No"),"N/A") -> N/A | H67: =IF(E67<>0,(ABS(B67-C67)/((B67+C67)/2)),"N/A") -> N/A | I67: =IF(E67<>0,IF(H67>0.5,"Yes","No"),"N/A") -> N/A
A68: =A18 -> 2040 | B68: ='Projections WKSHT'!E83 -> 0 | C68: ='Projections WKSHT'!E82 -> ERROR | D68: =IFERROR(IF(B68<>"ERROR",IF(ABS(B68-C68)>D66,"Yes", "No"),"ERROR"),"ERROR") -> ERROR | E68: =IF(D68<>"ERROR",ABS(B68-C68)*1000000/'Projections WKSHT'!E19,0) -> 0 | F68: =IFERROR(IF(C68>0,ABS(B68-C68),0),"ERROR") -> ERROR | G68: =IF(E68<>0,IF(B68>C68,"Yes","No"),"N/A") -> N/A | H68: =IF(E68<>0,(ABS(B68-C68)/((B68+C68)/2)),"N/A") -> N/A | I68: =IF(E68<>0,IF(H68>0.5,"Yes","No"),"N/A") -> N/A
A69: 2050 | B69: ='Projections WKSHT'!G83 -> 0 | C69: ='Projections WKSHT'!G82 -> ERROR | D69: =IFERROR(IF(B69<>"ERROR",IF(ABS(B69-C69)>D67,"Yes", "No"),"ERROR"),"ERROR") -> ERROR | E69: =IF(D69<>"ERROR",ABS(B69-C69)*1000000/'Projections WKSHT'!G19,0) -> 0 | F69: =IFERROR(IF(C69>0,ABS(B69-C69),0),"ERROR") -> ERROR | G69: =IF(E69<>0,IF(B69>C69,"Yes","No"),"N/A") -> N/A | H69: =IF(E69<>0,(ABS(B69-C69)/((B69+C69)/2)),"N/A") -> N/A | I69: =IF(E69<>0,IF(H69>0.5,"Yes","No"),"N/A") -> N/A
A70: 2060 | B70: ='Projections WKSHT'!I83 -> 0 | C70: ='Projections WKSHT'!I82 -> ERROR | D70: =IFERROR(IF(B70<>"ERROR",IF(ABS(B70-C70)>D68,"Yes", "No"),"ERROR"),"ERROR") -> ERROR | E70: =IF(D70<>"ERROR",ABS(B70-C70)*1000000/'Projections WKSHT'!I19,0) -> 0 | F70: =IFERROR(IF(C70>0,ABS(B70-C70),0),"ERROR") -> ERROR | G70: =IF(E70<>0,IF(B70>C70,"Yes","No"),"N/A") -> N/A | H70: =IF(E70<>0,(ABS(B70-C70)/((B70+C70)/2)),"N/A") -> N/A | I70: =IF(E70<>0,IF(H70>0.5,"Yes","No"),"N/A") -> N/A
A71: 2070 | B71: ='Projections WKSHT'!K83 -> 0 | C71: ='Projections WKSHT'!K82 -> ERROR | D71: =IFERROR(IF(B71<>"ERROR",IF(ABS(B71-C71)>D69,"Yes", "No"),"ERROR"),"ERROR") -> ERROR | E71: =IF(D71<>"ERROR",ABS(B71-C71)*1000000/'Projections WKSHT'!K19,0) -> 0 | F71: =IFERROR(IF(C71>0,ABS(B71-C71),0),"ERROR") -> ERROR | G71: =IF(E71<>0,IF(B71>C71,"Yes","No"),"N/A") -> N/A | H71: =IF(E71<>0,(ABS(B71-C71)/((B71+C71)/2)),"N/A") -> N/A | I71: =IF(E71<>0,IF(H71>0.5,"Yes","No"),"N/A") -> N/A
A72: Average | B72: =IF(B67<>"ERROR",AVERAGE(B67:B71),"ERROR") -> 0 | C72: =IFERROR(AVERAGE(C67:C71),"ERROR") -> ERROR | D72: =IFERROR(IF(B72<>"ERROR",ABS(B72-C72),"ERROR"),"ERROR") -> ERROR | E72: Suggested Threshold Value
A74: Total Water Demand
A75: Year | B75: Calculated Demand | C75: ='Projections WKSHT'!A18 -> 2022 LWSP Projections
A76: =A17 -> 2030 | B76: =IFERROR(B17+B27+B37+B47+B57+B67+'Projections WKSHT'!C90,"ERROR") -> ERROR | C76: =IFERROR(C17+C27+C37+C47+C57+C67+'Projections WKSHT'!C90,"ERROR") -> ERROR
A77: =A18 -> 2040 | B77: =IFERROR(B18+B28+B38+B48+B58+B68+'Projections WKSHT'!E90,"ERROR") -> ERROR | C77: =IFERROR(C18+C28+C38+C48+C58+C68+'Projections WKSHT'!E90,"ERROR") -> ERROR
A78: 2050 | B78: =IFERROR(B19+B29+B39+B49+B59+B69+'Projections WKSHT'!G90,"ERROR") -> ERROR | C78: =IFERROR(C19+C29+C39+C49+C59+C69+'Projections WKSHT'!G90,"ERROR") -> ERROR
A79: 2060 | B79: =IFERROR(B20+B30+B40+B50+B60+B70+'Projections WKSHT'!I90,"ERROR") -> ERROR | C79: =IFERROR(C20+C30+C40+C50+C60+C70+'Projections WKSHT'!I90,"ERROR") -> ERROR
A80: 2070 | B80: =IFERROR(B21+B31+B41+B51+B61+B71+'Projections WKSHT'!K90,"ERROR") -> ERROR | C80: =IFERROR(C21+C31+C41+C51+C61+C71+'Projections WKSHT'!K90,"ERROR") -> ERROR
A82: Available Water Supply
A83: Year | B83: Supply | C83: 80% Supply | D83: *User's Supply
A84: =A17 -> 2030 | B84: =IF(D84=0,IFERROR(VLOOKUP('Projections WKSHT'!B2&Evaluation!A84,'Master Data Set 2022'!CG3:CH553,2,FALSE)+'Projections WKSHT'!C94,"ERROR"),D84+'Projections WKSHT'!C94) -> ERROR | C84: =IFERROR(B84*0.8,"ERROR") -> ERROR
A85: =A18 -> 2040 | B85: =IF(D85=0,IFERROR(VLOOKUP('Projections WKSHT'!B2&Evaluation!A85,'Master Data Set 2022'!CI3:CJ553,2,FALSE)+'Projections WKSHT'!E94,"ERROR"),D85+'Projections WKSHT'!E94) -> ERROR | C85: =IFERROR(B85*0.8,"ERROR") -> ERROR
A86: 2050 | B86: =IF(D86=0,IFERROR(VLOOKUP('Projections WKSHT'!B2&Evaluation!A86,'Master Data Set 2022'!CK3:CL553,2,FALSE)+'Projections WKSHT'!G94,"ERROR"),D86+'Projections WKSHT'!G94) -> ERROR | C86: =IFERROR(B86*0.8,"ERROR") -> ERROR
A87: 2060 | B87: =IF(D87=0,IFERROR(VLOOKUP('Projections WKSHT'!B2&Evaluation!A87,'Master Data Set 2022'!CM3:CN553,2,FALSE)+'Projections WKSHT'!I94,"ERROR"),D87+'Projections WKSHT'!I94) -> ERROR | C87: =IFERROR(B87*0.8,"ERROR") -> ERROR
A88: 2070 | B88: =IF(D88=0,IFERROR(VLOOKUP('Projections WKSHT'!B2&Evaluation!A88,'Master Data Set 2022'!CO3:CP553,2,FALSE)+'Projections WKSHT'!K94,"ERROR"),D88+'Projections WKSHT'!K94) -> ERROR | C88: =IFERROR(B88*0.8,"ERROR") -> ERROR
A90: * Do not include unplanned supply in this number (i.e. future supply you don't currently anticipate)

Sheet Justification
A1: Type in blue shaded cells. Rates can be adjusted from the Projections WKSHT.
A3: PROJECTIONS | B3: RATE USED
A4: Population | B4: =IF('Projections WKSHT'!K14="Y","Variable Rate",IF('Projections WKSHT'!H14=0,"Historical Rate","User's Rate")) -> Historical Rate
A16: Residential Demand | B16: =IF('Projections WKSHT'!M42="b"," (B) See Projections WKSHT","(C) See Projections WKSHT") -> (C) See Projections WKSHT
A28: Commercial Demand | B28: =IF('Projections WKSHT'!T26=1,"Historical Rate",IF('Projections WKSHT'!T26=2,"User's Rate",IF('Projections WKSHT'!T26=3,"Economic Rate",IF('Projections WKSHT'!T26=4,"Variable Rate","No Data")))) -> Variable Rate
A40: Industrial Demand | B40: =IF('Projections WKSHT'!U26=1,"Historical Rate",IF('Projections WKSHT'!U26=2,"User's Rate",IF('Projections WKSHT'!U26=3,"Economic Rate",IF('Projections WKSHT'!U26=4,"Variable Rate","No Data")))) -> Variable Rate
A52: Institutional Demand | B52: =IF('Projections WKSHT'!V26=1,"Historical Rate",IF('Projections WKSHT'!V26=2,"User's Rate",IF('Projections WKSHT'!V26=3,"Economic Rate",IF('Projections WKSHT'!V26=4,"Variable Rate","No Data")))) -> Variable Rate
A64: System Process Demand | B64: =IF('Projections WKSHT'!W26=1,"Historical Rate",IF('Projections WKSHT'!W26=2,"User's Rate",IF('Projections WKSHT'!W26=4,"Variable Rate","No Data"))) -> Variable Rate
A76: Unaccounted-for Water Demand | B76: =IF('Projections WKSHT'!X26=1,"Historical Rate",IF('Projections WKSHT'!X26=4,"Variable Rate",IF('Projections WKSHT'!X26="","Current UAFW %","No Data"))) -> Current UAFW %
A89: Projected Water Sales
A102: Future Water Supply
A116: General Discussion

Sheet Summary Table
A1: =IF('Projections WKSHT'!B1="ERROR","No Data",'Projections WKSHT'!B1) -> No Data | B1: ='Projections WKSHT'!B18 -> 2030 | C1: ='Projections WKSHT'!D18 -> 2040 | D1: ='Projections WKSHT'!F18 -> 2050 | E1: ='Projections WKSHT'!H18 -> 2060 | F1: ='Projections WKSHT'!J18 -> 2070 | I1: =IF('Projections WKSHT'!B1<>"Error",'Projections WKSHT'!B1&" Supply and Demand Projections","No Data") -> No Data Supply and Demand Projections
A2: Population | B2: ='Projections WKSHT'!C19 -> ERROR | C2: ='Projections WKSHT'!E19 -> ERROR | D2: ='Projections WKSHT'!G19 -> ERROR | E2: ='Projections WKSHT'!I19 -> ERROR | F2: ='Projections WKSHT'!K19 -> ERROR
A3: Residential Demand | B3: =IF('Projections WKSHT'!M42="b",'Projections WKSHT'!C42,'Projections WKSHT'!C43) -> ERROR | C3: =IF('Projections WKSHT'!M42="b",'Projections WKSHT'!E42,'Projections WKSHT'!E43) -> ERROR | D3: =IF('Projections WKSHT'!M42="b",'Projections WKSHT'!G42,'Projections WKSHT'!G43) -> ERROR | E3: =IF('Projections WKSHT'!M42="b",'Projections WKSHT'!I42,'Projections WKSHT'!I43) -> ERROR | F3: =IF('Projections WKSHT'!M42="b",'Projections WKSHT'!K42,'Projections WKSHT'!K43) -> ERROR
A4: Commercial Demand | B4: ='Projections WKSHT'!C51 -> ERROR | C4: ='Projections WKSHT'!E51 -> ERROR | D4: ='Projections WKSHT'!G51 -> ERROR | E4: ='Projections WKSHT'!I51 -> ERROR | F4: ='Projections WKSHT'!K51 -> ERROR
A5: Industrial Demand | B5: ='Projections WKSHT'!C59 -> ERROR | C5: ='Projections WKSHT'!E59 -> ERROR | D5: ='Projections WKSHT'!G59 -> ERROR | E5: ='Projections WKSHT'!I59 -> ERROR | F5: ='Projections WKSHT'!K59 -> ERROR
A6: Institutional Demand | B6: ='Projections WKSHT'!C67 -> ERROR | C6: ='Projections WKSHT'!E67 -> ERROR | D6: ='Projections WKSHT'!G67 -> ERROR | E6: ='Projections WKSHT'!I67 -> ERROR | F6: ='Projections WKSHT'!K67 -> ERROR
A7: System Process Demand | B7: ='Projections WKSHT'!C75 -> ERROR | C7: ='Projections WKSHT'!E75 -> ERROR | D7: ='Projections WKSHT'!G75 -> ERROR | E7: ='Projections WKSHT'!I75 -> ERROR | F7: ='Projections WKSHT'!K75 -> ERROR
A8: Unaccounted-for Water Demand | B8: ='Projections WKSHT'!C83 -> 0 | C8: ='Projections WKSHT'!E83 -> 0 | D8: ='Projections WKSHT'!G83 -> 0 | E8: ='Projections WKSHT'!I83 -> 0 | F8: ='Projections WKSHT'!K83 -> 0
A9: Contract and Future Water Sales | B9: ='Projections WKSHT'!C90 -> ERROR | C9: ='Projections WKSHT'!E90 -> ERROR | D9: ='Projections WKSHT'!G90 -> ERROR | E9: ='Projections WKSHT'!I90 -> ERROR | F9: ='Projections WKSHT'!K90 -> ERROR
A10: Future Water Supply | B10: ='Projections WKSHT'!C94 -> ERROR | C10: ='Projections WKSHT'!E94 -> ERROR | D10: ='Projections WKSHT'!G94 -> ERROR | E10: ='Projections WKSHT'!I94 -> ERROR | F10: ='Projections WKSHT'!K94 -> ERROR
A11: The numbers in this table are projections to consider using in the LWSP. Water demand and supply are in units of MGD. The numbers are estimates generated by the Projections Evaluation Tool, and may not be an accurate representation of future population or water demand. The North Carolina Division of Water Resources makes no warranties or guarantees regarding the use of this data and disclaims all liability from the use thereof. Assumptions made where needed.

Sheet Tool Update Checklist (hidden)
A1: Item# | B1: Item | C1: Status
A2: 1 | B2: Upload end year data | C2: done
A3: 2 | B3: Update example | C3: done | D3: example removed
A4: 3 | B4: Review/update instructions | C4: done
A5: 4 | B5: Very hide sheets | C5: done
A6: 5 | B6: Update intro msg box | C6: done
A7: 6 | B7: Update BLS data | C7: done
A8: 7 | B8: Complete hand written notes | C8: done
A9: 8 | B9: Run tests | C9: done
A10: 9 | B10: Check historical data sets | C10: done
A11: 10 | B11: Update references in Projections WKSHT | C11: done
B13: Test Systems | C13: Type | D13: Status
A14: 1 | B14: Fuquay-varina | C14: purchase only | D14: pass
A15: 2 | B15: Raleigh | C15: surface | D15: pass
A16: 3 | B16: *ONWASA | C16: ground | D16: not done | E16: 2022 plan provisional
A17: 4 | B17: CFPUA | C17: surface and ground | D17: pass
A18: 5 | B18: New Bern | C18: CCPCUA | D18: pass
A19: 6 | B19: PTRWA | C19: sales only | D19: pass
A22: *Ricky will fix LWSP code to check #days to determine E or R for purchase supplies; projections data set OK, but LWSP didn't project future purchase due to E status (but was used 41 days); passed

Sheet Master Data Set 2019 (hidden)
A1: Projection Period Begin Yr (e.g. 2020, 2030, etc) = | B1: 2020 | C1: Historical End Year (i.e. reporting year) = | D1: 2019 | E1: Historical Begin Year = | F1: =D1-5 -> 2014 | L1: flag neg. in red
A2: Name | B2: Water Withdrawn/Purchased | C2: Available Supply | D2: Water Sold | E2: Pop - Begin Year | F2: Pop - End Year | G2: Demand-Res | H2: Demand-Comm | I2: Demand-Ind | J2: Demand-Inst | K2: Demand-Sys Proc | L2: Demand-UAFW | M2: GPCD-Res | N2: Population2020 | O2: Population2030 | P2: Population2040 | Q2: Population2050 | R2: Population2060 | S2: County | T2: Residential2020 | U2: Residential2030 | V2: Residential2040 | W2: Residential2050 | X2: Residential2060 | Y2: Commercial2020 | Z2: Commercial2030 | AA2: Commercial2040 | AB2: Commercial2050 | AC2: Commercial2060 | AD2: Industrial2020 | AE2: Industrial2030 | AF2: Industrial2040 | AG2: Industrial2050 | AH2: Industrial2060 | AI2: Institutional2020 | AJ2: Institutional2030 | AK2: Institutional2040 | AL2: Institutional2050 | AM2: Institutional2060 | AN2: System Process2020 | AO2: System Process2030 | AP2: System Process2040 | AQ2: System Process2050 | AR2: System Process2060 | AS2: UAFW2020 | AT2: UAFW2030 | AU2: UAFW2040 | AV2: UAFW2050 | AW2: UAFW2060 | AX2: 2020Future Supplies | AY2: 2030Future Supplies | AZ2: 2040Future Supplies | BA2: 2050Future Supplies | BB2: 2060Future Supplies | BC2: 2020Projected Sales | BD2: 2030Projected Sales | BE2: 2040Projected Sales | BF2: 2050Projected Sales | BG2: 2060Projected Sales | BH2: 2020Contract Purchase | BI2: 2030Contract Purchase | BJ2: 2040Contract Purchase | BK2: 2050Contract Purchase | BL2: 2060Contract Purchase | BM2: 2020Contract Sales | BN2: 2030Contract Sales | BO2: 2040Contract Sales | BP2: 2050Contract Sales | BQ2: 2060Contract Sales
A3: Burnsville | B3: 0.7279416667 | C3: 1.48 | D3: 0 | F3: 3825 | G3: 0.139 | H3: 0.057 | I3: 0.059 | J3: 0.038 | K3: 0.035 | L3: 0.3999416667 | M3: 36.33986928 | N3: 3840 | O3: 3860 | P3: 3880 | Q3: 3900 | R3: 3920 | S3: Yancey | T3: 0.142 | U3: 0.175 | V3: 0.177 | W3: 0.179 | X3: 0.181 | Y3: 0.06 | Z3: 0.112 | AA3: 0.116 | AB3: 0.12 | AC3: 0.122 | AD3: 0.062 | AE3: 0.092 | AF3: 0.094 | AG3: 0.096 | AH3: 0.098 | AI3: 0.035 | AJ3: 0.037 | AK3: 0.038 | AL3: 0.039 | AM3: 0.04 | AN3: 0.035 | AO3: 0.035 | AP3: 0.035 | AQ3: 0.035 | AR3: 0.035 | AS3: 0.07 | AT3: 0.09 | AU3: 0.095 | AV3: 0.095 | AW3: 0.095 | AX3: 0 | AY3: 0 | AZ3: 0 | BA3: 0 | BB3: 0 | BC3: 0 | BD3: 0 | BE3: 0 | BF3: 0 | BG3: 0 | BH3: 0 | BI3: 0 | BJ3: 0 | BK3: 0 | BL3: 0 | BM3: 0 | BN3: 0 | BO3: 0 | BP3: 0 | BQ3: 0
A4: Taylorsville | B4: 0.2860833333 | C4: 0.5 | D4: 0 | F4: 2500 | G4: 0.224 | H4: 0.03 | I4: 0.01 | J4: 0.006 | K4: 0.001 | L4: 0.01508333333 | M4: 89.6 | N4: 2500 | O4: 2525 | P4: 2550 | Q4: 2575 | R4: 2600 | S4: Alexander | T4: 0.2049 | U4: 0.2069 | V4: 0.209 | W4: 0.2111 | X4: 0.2132 | Y4: 0.035 | Z4: 0.0355 | AA4: 0.036 | AB4: 0.0365 | AC4: 0.037 | AD4: 0.01 | AE4: 0.011 | AF4: 0.0121 | AG4: 0.0133 | AH4: 0.0146 | AI4: 0.0065 | AJ4: 0.0066 | AK4: 0.0067 | AL4: 0.0068 | AM4: 0.0069 | AN4: 0.001 | AO4: 0.001 | AP4: 0.001 | AQ4: 0.001 | AR4: 0.001 | AS4: 0.04 | AT4: 0.041 | AU4: 0.042 | AV4: 0.043 | AW4: 0.044 | AX4: 0 | AY4: 0 | AZ4: 0 | BA4: 0 | BB4: 0 | BC4: 0 | BD4: 0 | BE4: 0 | BF4: 0 | BG4: 0 | BH4: 0.528 | BI4: 0.528 | BJ4: 0.528 | BK4: 0.528 | BL4: 0.528 | BM4: 0 | BN4: 0 | BO4: 0 | BP4: 0 | BQ4: 0
A5: Energy United Water | B5: 1.960666667 | C5: 2.5 | D5: 1.0058 | F5: 12642 | G5: 0.6247 | H5: 0.052 | I5: 0.122 | J5: 0.074 | K5: 0.005 | L5: 0.07716666667 | M5: 49.41464958 | N5: 12800 | O5: 13500 | P5: 14100 | Q5: 14600 | R5: 15000 | S5: Alexander | T5: 0.635 | U5: 0.65 | V5: 0.665 | W5: 0.68 | X5: 0.695 | Y5: 0.054 | Z5: 0.056 | AA5: 0.059 | AB5: 0.061 | AC5: 0.063 | AD5: 0.121 | AE5: 0.123 | AF5: 0.125 | AG5: 0.13 | AH5: 0.135 | AI5: 0.05 | AJ5: 0.055 | AK5: 0.06 | AL5: 0.065 | AM5: 0.07 | AN5: 0.001 | AO5: 0.001 | AP5: 0.001 | AQ5: 0.001 | AR5: 0.001 | AS5: 0.04 | AT5: 0.04 | AU5: 0.04 | AV5: 0.04 | AW5: 0.04 | AX5: 0 | AY5: 0 | AZ5: 0 | BA5: 0 | BB5: 0 | BC5: 0 | BD5: 0 | BE5: 0 | BF5: 0 | BG5: 0 | BH5: 2.5 | BI5: 2.5 | BJ5: 2.5 | BK5: 2.5 | BL5: 2.5 | BM5: 1.2249 | BN5: 0.5176 | BO5: 0.5 | BP5: 0.5 | BQ5: 0.5
A6: Alexander County WD | B6: 0.8240833333 | C6: 2 | D6: 0.001 | F6: 11697 | G6: 0.631 | H6: 0.245 | I6: 0 | J6: 0 | K6: 0.0089 | L6: -0.06181666667 | M6: 53.9454561 | N6: 11957 | O6: 12315 | P6: 12684 | Q6: 13064 | R6: 13455 | S6: Alexander | T6: 0.633 | U6: 0.653 | V6: 0.672 | W6: 0.692 | X6: 0.713 | Y6: 0.286 | Z6: 0.315 | AA6: 0.346 | AB6: 0.381 | AC6: 0.419 | AD6: 0 | AE6: 0 | AF6: 0 | AG6: 0 | AH6: 0 | AI6: 0 | AJ6: 0 | AK6: 0 | AL6: 0 | AM6: 0 | AN6: 0.07 | AO6: 0.0721 | AP6: 0.0743 | AQ6: 0.0765 | AR6: 0.0788 | AS6: 0.074 | AT6: 0.0784 | AU6: 0.0831 | AV6: 0.0881 | AW6: 0.0934 | AX6: 0 | AY6: 0 | AZ6: 0 | BA6: 0 | BB6: 0 | BC6: 0 | BD6: 0 | BE6: 0 | BF6: 0 | BG6: 0 | BH6: 2 | BI6: 2 | BJ6: 2 | BK6: 2 | BL6: 2 | BM6: 0.001 | BN6: 0.001 | BO6: 0.001 | BP6: 0.001 | BQ6: 0.001
A7: Sparta | B7: 0.352725 | C7: 0.726 | D7: 0 | F7: 1767 | G7: 0.1216 | H7: 0.0374 | I7: 0.0805 | J7: 0.0199 | K7: 0.005 | L7: 0.088325 | M7: 68.8172043 | N7: 1890 | O7: 1928 | P7: 1960 | Q7: 2000 | R7: 2060 | S7: Alleghany | T7: 0.11 | U7: 0.113 | V7: 0.115 | W7: 0.117 | X7: 0.119 | Y7: 0.04 | Z7: 0.041 | AA7: 0.042 | AB7: 0.043 | AC7: 0.044 | AD7: 0.09 | AE7: 0.09 | AF7: 0.095 | AG7: 0.095 | AH7: 0.1 | AI7: 0.024 | AJ7: 0.026 | AK7: 0.028 | AL7: 0.03 | AM7: 0.032 | AN7: 0.016 | AO7: 0.016 | AP7: 0.017 | AQ7: 0.018 | AR7: 0.018 | AS7: 0.12 | AT7: 0.121 | AU7: 0.122 | AV7: 0.123 | AW7: 0.124 | AX7: 0 | AY7: 0 | AZ7: 0 | BA7: 0 | BB7: 0 | BC7: 0 | BD7: 0 | BE7: 0 | BF7: 0 | BG7: 0 | BH7: 0.563 | BI7: 0.563 | BJ7: 0.563 | BK7: 0.563 | BL7: 0.563 | BM7: 0 | BN7: 0 | BO7: 0 | BP7: 0 | BQ7: 0
A8: West Jefferson | B8: 0.2190166667 | C8: 0.7064 | D8: 0 | F8: 1305 | G8: 0.0564 | H8: 0.0692 | I8: 0.0347 | J8: 0 | K8: 0.015 | L8: 0.04371666667 | M8: 43.2183908 | N8: 1318 | O8: 1385 | P8: 1449 | Q8: 1516 | R8: 1585 | S8: Ashe | T8: 0.0583 | U8: 0.0612 | V8: 0.064 | W8: 0.0669 | X8: 0.0699 | Y8: 0.0732 | Z8: 0.0768 | AA8: 0.0803 | AB8: 0.084 | AC8: 0.0878 | AD8: 0.0298 | AE8: 0.0298 | AF8: 0.0298 | AG8: 0.0298 | AH8: 0.0298 | AI8: 0 | AJ8: 0 | AK8: 0 | AL8: 0 | AM8: 0 | AN8: 0.015 | AO8: 0.015 | AP8: 0.015 | AQ8: 0.015 | AR8: 0.015 | AS8: 0.0615 | AT8: 0.0638 | AU8: 0.066 | AV8: 0.0683 | AW8: 0.0707 | AX8: 0 | AY8: 0 | AZ8: 0 | BA8: 0 | BB8: 0 | BC8: 0 | BD8: 0 | BE8: 0 | BF8: 0 | BG8: 0 | BH8: 0 | BI8: 0 | BJ8: 0 | BK8: 0 | BL8: 0 | BM8: 0 | BN8: 0 | BO8: 0 | BP8: 0 | BQ8: 0
A9: Jefferson | B9: 0.17825 | C9: 14.187 | D9: 0 | F9: 1450 | G9: 0.094 | H9: 0.025 | I9: 0.005 | J9: 0.038 | K9: 0.008 | L9: 0.00825 | M9: 64.82758621 | N9: 1750 | O9: 1900 | P9: 2100 | Q9: 2600 | R9: 2800 | S9: Ashe | T9: 0.1 | U9: 0.11 | V9: 0.12 | W9: 0.14 | X9: 0.15 | Y9: 0.03 | Z9: 0.04 | AA9: 0.045 | AB9: 0.05 | AC9: 0.055 | AD9: 0.01 | AE9: 0.015 | AF9: 0.018 | AG9: 0.02 | AH9: 0.025 | AI9: 0.052 | AJ9: 0.057 | AK9: 0.063 | AL9: 0.068 | AM9: 0.073 | AN9: 0.005 | AO9: 0.006 | AP9: 0.007 | AQ9: 0.008 | AR9: 0.009 | AS9: 0.015 | AT9: 0.018 | AU9: 0.019 | AV9: 0.022 | AW9: 0.024 | AX9: 0 | AY9: 0 | AZ9: 0 | BA9: 0 | BB9: 0 | BC9: 0 | BD9: 0 | BE9: 0 | BF9: 0 | BG9: 0 | BH9: 0 | BI9: 0 | BJ9: 0 | BK9: 0 | BL9: 0 | BM9: 0 | BN9: 0 | BO9: 0 | BP9: 0 | BQ9: 0
A10: Lansing | B10: 0.01016666667 | C10: 0.043 | D10: 0 | F10: 150 | G10: 0.007 | H10: 0.002 | I10: 0 | J10: 0 | K10: 0 | L10: 0.001166666667 | M10: 46.66666667 | N10: 217 | O10: 300 | P10: 310 | Q10: 330 | R10: 340 | S10: Ashe | T10: 0.01 | U10: 0.011 | V10: 0.012 | W10: 0.013 | X10: 0.015 | Y10: 0.003 | Z10: 0.006 | AA10: 0.007 | AB10: 0.01 | AC10: 0.012 | AD10: 0 | AE10: 0 | AF10: 0 | AG10: 0 | AH10: 0 | AI10: 0.001 | AJ10: 0.001 | AK10: 0.002 | AL10: 0.002 | AM10: 0.002 | AN10: 0 | AO10: 0 | AP10: 0 | AQ10: 0 | AR10: 0 | AS10: 0.001 | AT10: 0.002 | AU10: 0.002 | AV10: 0.003 | AW10: 0.003 | AX10: 0 | AY10: 0 | AZ10: 0 | BA10: 0 | BB10: 0 | BC10: 0 | BD10: 0 | BE10: 0 | BF10: 0 | BG10: 0 | BH10: 0 | BI10: 0 | BJ10: 0 | BK10: 0 | BL10: 0 | BM10: 0 | BN10: 0 | BO10: 0 | BP10: 0 | BQ10: 0
A11: Crossnore | B11: 0.03075 | C11: 0.061 | D11: 0 | F11: 195 | G11: 0.0102 | H11: 0.0136 | I11: 0 | J11: 0 | K11: 0.0001 | L11: 0.00685 | M11: 52.30769231 | N11: 201 | O11: 205 | P11: 209 | Q11: 213 | R11: 217 | S11: Avery | T11: 0.0105 | U11: 0.0107 | V11: 0.0109 | W11: 0.0111 | X11: 0.0113 | Y11: 0.0159 | Z11: 0.0162 | AA11: 0.0164 | AB11: 0.0167 | AC11: 0.017 | AD11: 0 | AE11: 0 | AF11: 0 | AG11: 0 | AH11: 0 | AI11: 0 | AJ11: 0 | AK11: 0 | AL11: 0 | AM11: 0 | AN11: 0.0001 | AO11: 0.0001 | AP11: 0.0001 | AQ11: 0.0001 | AR11: 0.0001 | AS11: 0.0074 | AT11: 0.0076 | AU11: 0.0077 | AV11: 0.0078 | AW11: 0.008 | AX11: 0 | AY11: 0.03 | AZ11: 0.03 | BA11: 0.03 | BB11: 0.03 | BC11: 0 | BD11: 0 | BE11: 0 | BF11: 0 | BG11: 0 | BH11: 0 | BI11: 0 | BJ11: 0 | BK11: 0 | BL11: 0 | BM11: 0 | BN11: 0 | BO11: 0 | BP11: 0 | BQ11: 0
A12: Banner Elk | B12: 0.2072583333 | C12: 0.366 | D12: 0 | F12: 1097 | G12: 0.0413 | H12: 0.03 | I12: 0 | J12: 0.039 | K12: 0.001 | L12: 0.09595833333 | M12: 37.64813127 | N12: 1099 | O12: 1109 | P12: 1119 | Q12: 1129 | R12: 1139 | S12: Avery | T12: 0.0413 | U12: 0.0413 | V12: 0.0413 | W12: 0.0413 | X12: 0.0413 | Y12: 0.03 | Z12: 0.06 | AA12: 0.06 | AB12: 0.06 | AC12: 0.06 | AD12: 0 | AE12: 0 | AF12: 0 | AG12: 0 | AH12: 0 | AI12: 0.039 | AJ12: 0.039 | AK12: 0.039 | AL12: 0.039 | AM12: 0.039 | AN12: 0.001 | AO12: 0.001 | AP12: 0.001 | AQ12: 0.001 | AR12: 0.001 | AS12: 0.1048 | AT12: 0.133 | AU12: 0.133 | AV12: 0.133 | AW12: 0.133 | AX12: 0 | AY12: 0 | AZ12: 0 | BA12: 0 | BB12: 0 | BC12: 0 | BD12: 0 | BE12: 0 | BF12: 0 | BG12: 0 | BH12: 0 | BI12: 0 | BJ12: 0 | BK12: 0 | BL12: 0 | BM12: 0 | BN12: 0 | BO12: 0 | BP12: 0 | BQ12: 0
A13: Newland | B13: 0.133175 | C13: 0.396 | D13: 0 | F13: 999 | G13: 0.0432 | H13: 0.0365 | I13: 0 | J13: 0 | K13: 0.001 | L13: 0.052475 | M13: 43.24324324 | N13: 1008 | O13: 1057 | P13: 1102 | Q13: 1150 | R13: 1199 | S13: Avery | T13: 0.0436 | U13: 0.046 | V13: 0.0475 | W13: 0.0495 | X13: 0.0516 | Y13: 0.0368 | Z13: 0.0385 | AA13: 0.0401 | AB13: 0.0418 | AC13: 0.0436 | AD13: 0 | AE13: 0 | AF13: 0 | AG13: 0 | AH13: 0 | AI13: 0 | AJ13: 0 | AK13: 0 | AL13: 0 | AM13: 0 | AN13: 0.01 | AO13: 0.01 | AP13: 0.01 | AQ13: 0.01 | AR13: 0.01 | AS13: 0.0587 | AT13: 0.0614 | AU13: 0.0634 | AV13: 0.0658 | AW13: 0.0683 | AX13: 0 | AY13: 0 | AZ13: 0 | BA13: 0 | BB13: 0 | BC13: 0 | BD13: 0 | BE13: 0 | BF13: 0 | BG13: 0 | BH13: 0 | BI13: 0 | BJ13: 0 | BK13: 0 | BL13: 0 | BM13: 0 | BN13: 0 | BO13: 0 | BP13: 0 | BQ13: 0
A14: Elk Park | B14: 0.09534166667 | C14: 0.237 | D14: 0 | F14: 495 | G14: 0.0422 | H14: 0.006 | I14: 0 | J14: 0.004 | K14: 0.001 | L14: 0.04214166667 | M14: 85.25252525 | N14: 500 | O14: 524 | P14: 546 | Q14: 570 | R14: 594 | S14: Avery | T14: 0.0425 | U14: 0.0445 | V14: 0.0464 | W14: 0.0484 | X14: 0.0504 | Y14: 0.006 | Z14: 0.0063 | AA14: 0.0066 | AB14: 0.0068 | AC14: 0.0071 | AD14: 0 | AE14: 0 | AF14: 0 | AG14: 0 | AH14: 0 | AI14: 0.004 | AJ14: 0.0042 | AK14: 0.0044 | AL14: 0.0045 | AM14: 0.0047 | AN14: 0.001 | AO14: 0.001 | AP14: 0.001 | AQ14: 0.001 | AR14: 0.001 | AS14: 0.0423 | AT14: 0.0443 | AU14: 0.0462 | AV14: 0.048 | AW14: 0.05 | AX14: 0 | AY14: 0 | AZ14: 0 | BA14: 0 | BB14: 0 | BC14: 0 | BD14: 0 | BE14: 0 | BF14: 0 | BG14: 0 | BH14: 0 | BI14: 0 | BJ14: 0 | BK14: 0 | BL14: 0 | BM14: 0 | BN14: 0 | BO14: 0 | BP14: 0 | BQ14: 0
A15: Linville Land Harbor | B15: 0.2525 | C15: 0.411 | D15: 0 | F15: 520 | G15: 0.222 | H15: 0 | I15: 0 | J15: 0 | K15: 0.005 | L15: 0.0255 | M15: 426.9230769 | N15: 520 | O15: 520 | P15: 520 | Q15: 520 | R15: 520 | S15: Avery | T15: 0.208 | U15: 0.208 | V15: 0.208 | W15: 0.208 | X15: 0.208 | Y15: 0 | Z15: 0 | AA15: 0 | AB15: 0 | AC15: 0 | AD15: 0 | AE15: 0 | AF15: 0 | AG15: 0 | AH15: 0 | AI15: 0 | AJ15: 0 | AK15: 0 | AL15: 0 | AM15: 0 | AN15: 0.02 | AO15: 0.02 | AP15: 0.02 | AQ15: 0.02 | AR15: 0.02 | AS15: 0.0244 | AT15: 0.0244 | AU15: 0.0244 | AV15: 0.0244 | AW15: 0.0244 | AX15: 0 | AY15: 0 | AZ15: 0 | BA15: 0 | BB15: 0 | BC15: 0 | BD15: 0 | BE15: 0 | BF15: 0 | BG15: 0 | BH15: 0 | BI15: 0 | BJ15: 0 | BK15: 0 | BL15: 0 | BM15: 0 | BN15: 0 | BO15: 0 | BP15: 0 | BQ15: 0
A16: Sugar Mountain | B16: 0.2432833333 | C16: 0.946 | D16: 0 | F16: 2928 | G16: 0.0771 | H16: 0.0354 | I16: 0 | J16: 0 | K16: 0.0416 | L16: 0.08918333333 | M16: 26.33196721 | N16: 2941 | O16: 3001 | P16: 3062 | Q16: 3122 | R16: 3182 | S16: Avery | T16: 0.0773 | U16: 0.0794 | V16: 0.0816 | W16: 0.0837 | X16: 0.0859 | Y16: 0.0354 | Z16: 0.0356 | AA16: 0.0357 | AB16: 0.0359 | AC16: 0.036 | AD16: 0 | AE16: 0 | AF16: 0 | AG16: 0 | AH16: 0 | AI16: 0 | AJ16: 0 | AK16: 0 | AL16: 0 | AM16: 0 | AN16: 0.021 | AO16: 0.03 | AP16: 0.03 | AQ16: 0.03 | AR16: 0.04 | AS16: 0.1098 | AT16: 0.1191 | AU16: 0.121 | AV16: 0.1229 | AW16: 0.133 | AX16: 0.077 | AY16: 0.077 | AZ16: 0.077 | BA16: 0.077 | BB16: 0.077 | BC16: 0 | BD16: 0 | BE16: 0 | BF16: 0 | BG16: 0 | BH16: 0 | BI16: 0 | BJ16: 0 | BK16: 0 | BL16: 0 | BM16: 0 | BN16: 0 | BO16: 0 | BP16: 0 | BQ16: 0
A17: Asheville | B17: 22.58166667 | C17: 43.5 | D17: 0.511 | F17: 125000 | G17: 8.3651 | H17: 4.2077 | I17: 0.6728 | J17: 1.5339 | K17: 0.31 | L17: 6.981166667 | M17: 66.9208 | N17: 135357 | O17: 149518 | P17: 165161 | Q17: 182441 | R17: 201528 | S17: Buncombe | T17: 9.053 | U17: 10 | V17: 11.046 | W17: 12.202 | X17: 13.478 | Y17: 4.373 | Z17: 4.831 | AA17: 5.336 | AB17: 5.895 | AC17: 6.511 | AD17: 0.743 | AE17: 0.782 | AF17: 0.821 | AG17: 0.863 | AH17: 0.908 | AI17: 1.786 | AJ17: 1.973 | AK17: 2.18 | AL17: 2.408 | AM17: 2.66 | AN17: 0.3 | AO17: 0.331 | AP17: 0.366 | AQ17: 0.404 | AR17: 0.446 | AS17: 5.48 | AT17: 5.76 | AU17: 6.054 | AV17: 6.364 | AW17: 6.69 | AX17: 0 | AY17: 0 | AZ17: 0 | BA17: 0 | BB17: 0 | BC17: 0 | BD17: 0 | BE17: 0 | BF17: 0 | BG17: 0 | BH17: 0 | BI17: 0 | BJ17: 0 | BK17: 0 | BL17: 0 | BM17: 2.9 | BN17: 2.9 | BO17: 2.9 | BP17: 2.9 | BQ17: 2.9
A18: Woodfin Sanitary Water and Sewer District | B18: 1.061916667 | C18: 1.66 | D18: 0 | F18: 9100 | G18: 0.725 | H18: 0.12 | I18: 0.025 | J18: 0.04 | K18: 0.03 | L18: 0.1219166667 | M18: 79.67032967 | N18: 9250 | O18: 10000 | P18: 12000 | Q18: 13000 | R18: 14000 | S18: Buncombe | T18: 0.74 | U18: 0.77 | V18: 0.82 | W18: 0.87 | X18: 0.92 | Y18: 0.12 | Z18: 0.125 | AA18: 0.125 | AB18: 0.125 | AC18: 0.13 | AD18: 0.03 | AE18: 0.03 | AF18: 0.03 | AG18: 0.03 | AH18: 0.03 | AI18: 0.04 | AJ18: 0.04 | AK18: 0.04 | AL18: 0.04 | AM18: 0.04 | AN18: 0.039 | AO18: 0.042 | AP18: 0.045 | AQ18: 0.045 | AR18: 0.045 | AS18: 0.067 | AT18: 0.071 | AU18: 0.075 | AV18: 0.078 | AW18: 0.082 | AX18: 0 | AY18: 0 | AZ18: 0 | BA18: 0 | BB18: 0 | BC18: 0 | BD18: 0 | BE18: 0 | BF18: 0 | BG18: 0 | BH18: 1 | BI18: 1 | BJ18: 1 | BK18: 1 | BL18: 1 | BM18: 0 | BN18: 0 | BO18: 0 | BP18: 0 | BQ18: 0
A19: Black Mountain | B19: 0.6313 | C19: 2.088 | D19: 0.000802739726 | F19: 9525 | G19: 0.2962 | H19: 0.1293 | I19: 0 | J19: 0.0092 | K19: 0.001 | L19: 0.1947972603 | M19: 31.09711286 | N19: 9690 | O19: 10556 | P19: 11402 | Q19: 12315 | R19: 13302 | S19: Buncombe | T19: 0.2999 | U19: 0.3267 | V19: 0.3528 | W19: 0.381 | X19: 0.4115 | Y19: 0.1596 | Z19: 0.1739 | AA19: 0.1878 | AB19: 0.2028 | AC19: 0.219 | AD19: 0 | AE19: 0 | AF19: 0 | AG19: 0 | AH19: 0 | AI19: 0.0092 | AJ19: 0.0096 | AK19: 0.01 | AL19: 0.0104 | AM19: 0.0108 | AN19: 0.0014 | AO19: 0.0015 | AP19: 0.0016 | AQ19: 0.0017 | AR19: 0.0018 | AS19: 0.2101 | AT19: 0.2287 | AU19: 0.2468 | AV19: 0.2663 | AW19: 0.2874 | AX19: 0 | AY19: 0 | AZ19: 0 | BA19: 0 | BB19: 0 | BC19: 0 | BD19: 0 | BE19: 0 | BF19: 0 | BG19: 0 | BH19: 1.55 | BI19: 1.55 | BJ19: 1.55 | BK19: 1.55 | BL19: 1.55 | BM19: 0 | BN19: 0 | BO19: 0 | BP19: 0 | BQ19: 0
A20: Weaverville | B20: 0.6596666667 | C20: 1.5 | D20: 0 | F20: 6850 | G20: 0.32 | H20: 0.078 | I20: 0.038 | J20: 0.025 | K20: 0.03 | L20: 0.1686666667 | M20: 46.71532847 | N20: 7785 | O20: 8011 | P20: 9445 | Q20: 10545 | R20: 12000 | S20: Buncombe | T20: 0.363 | U20: 0.46 | V20: 0.56 | W20: 0.66 | X20: 0.77 | Y20: 0.0853 | Z20: 0.0953 | AA20: 0.1053 | AB20: 0.1153 | AC20: 0.1253 | AD20: 0.045 | AE20: 0.055 | AF20: 0.065 | AG20: 0.075 | AH20: 0.085 | AI20: 0.032 | AJ20: 0.042 | AK20: 0.052 | AL20: 0.062 | AM20: 0.072 | AN20: 0.025 | AO20: 0.032 | AP20: 0.038 | AQ20: 0.042 | AR20: 0.048 | AS20: 0.0887 | AT20: 0.1103 | AU20: 0.1322 | AV20: 0.1538 | AW20: 0.1773 | AX20: 0 | AY20: 0 | AZ20: 0 | BA20: 0 | BB20: 0 | BC20: 0 | BD20: 0 | BE20: 0 | BF20: 0 | BG20: 0 | BH20: 0 | BI20: 0 | BJ20: 0 | BK20: 0 | BL20: 0 | BM20: 0 | BN20: 0 | BO20: 0 | BP20: 0 | BQ20: 0
A21: Biltmore Forest | B21: 0.1552 | C21: 0.35 | D21: 0 | F21: 1526 | G21: 0.1555 | H21: 0.0113 | I21: 0 | J21: 0.0038 | K21: 0 | L21: -0.0154 | M21: 101.9003932 | N21: 1526 | O21: 1571 | P21: 1603 | Q21: 1635 | R21: 1668 | S21: Buncombe | T21: 0.1552 | U21: 0.1148 | V21: 0.1171 | W21: 0.1219 | X21: 0.1243 | Y21: 0.0113 | Z21: 0.0118 | AA21: 0.0122 | AB21: 0.0126 | AC21: 0.013 | AD21: 0 | AE21: 0 | AF21: 0 | AG21: 0 | AH21: 0 | AI21: 0.0038 | AJ21: 0.0041 | AK21: 0.0042 | AL21: 0.0044 | AM21: 0.0045 | AN21: 0 | AO21: 0 | AP21: 0 | AQ21: 0 | AR21: 0 | AS21: 0.02 | AT21: 0.021 | AU21: 0.0221 | AV21: 0.0232 | AW21: 0.0244 | AX21: 0 | AY21: 0 | AZ21: 0 | BA21: 0 | BB21: 0 | BC21: 0 | BD21: 0 | BE21: 0 | BF21: 0 | BG21: 0 | BH21: 0.35 | BI21: 0.35 | BJ21: 0.35 | BK21: 0.35 | BL21: 0.35 | BM21: 0 | BN21: 0 | BO21: 0 | BP21: 0 | BQ21: 0
A22: Montreat | B22: 0.1157083333 | C22: 0.322 | D22: 0 | F22: 798 | G22: 0.054 | H22: 0 | I22: 0 | J22: 0.021 | K22: 0.001 | L22: 0.03970833333 | M22: 67.66917293 | N22: 800 | O22: 888 | P22: 961 | Q22: 1041 | R22: 1127 | S22: Buncombe | T22: 0.0541 | U22: 0.06 | V22: 0.0649 | W22: 0.0703 | X22: 0.0761 | Y22: 0 | Z22: 0 | AA22: 0 | AB22: 0 | AC22: 0 | AD22: 0 | AE22: 0 | AF22: 0 | AG22: 0 | AH22: 0 | AI22: 0.0213 | AJ22: 0.0232 | AK22: 0.0252 | AL22: 0.0272 | AM22: 0.0295 | AN22: 0.001 | AO22: 0.001 | AP22: 0.001 | AQ22: 0.001 | AR22: 0.001 | AS22: 0.0398 | AT22: 0.0439 | AU22: 0.0475 | AV22: 0.0513 | AW22: 0.0555 | AX22: 0 | AY22: 0 | AZ22: 0 | BA22: 0 | BB22: 0 | BC22: 0 | BD22: 0 | BE22: 0 | BF22: 0 | BG22: 0 | BH22: 0 | BI22: 0 | BJ22: 0 | BK22: 0 | BL22: 0 | BM22: 0 | BN22: 0 | BO22: 0 | BP22: 0 | BQ22: 0
A23: Valdese | B23: 2.766666667 | C23: 12 | D23: 0.576 | F23: 12528 | G23: 0.6 | H23: 0.2 | I23: 1 | J23: 0 | K23: 0.105 | L23: 0.2856666667 | M23: 47.89272031 | N23: 12700 | O23: 12900 | P23: 13100 | Q23: 13300 | R23: 13500 | S23: Burke | T23: 0.6731 | U23: 0.6837 | V23: 0.6974 | W23: 0.7049 | X23: 0.7155 | Y23: 0.2 | Z23: 0.2004 | AA23: 0.2008 | AB23: 0.2012 | AC23: 0.2016 | AD23: 1 | AE23: 1.02 | AF23: 1.04 | AG23: 1.06 | AH23: 1.08 | AI23: 0 | AJ23: 0 | AK23: 0 | AL23: 0 | AM23: 0 | AN23: 0.105 | AO23: 0.11 | AP23: 0.115 | AQ23: 0.121 | AR23: 0.127 | AS23: 0.36 | AT23: 0.36 | AU23: 0.36 | AV23: 0.36 | AW23: 0.36 | AX23: 0 | AY23: 0 | AZ23: 0 | BA23: 0 | BB23: 0 | BC23: 0 | BD23: 0 | BE23: 0 | BF23: 0 | BG23: 0 | BH23: 0 | BI23: 0 | BJ23: 0 | BK23: 0 | BL23: 0 | BM23: 1.206 | BN23: 1.206 | BO23: 1.206 | BP23: 1.206 | BQ23: 1.206
A24: Morganton | B24: 7.575 | C24: 18 | D24: 1.146 | F24: 25333 | G24: 1.37 | H24: 1.49 | I24: 2.78 | J24: 0.32 | K24: 0.12 | L24: 0.349 | M24: 54.07965894 | N24: 25333 | O24: 26853 | P24: 28464 | Q24: 30172 | R24: 31982 | S24: Burke | T24: 1.343 | U24: 1.4232 | V24: 1.5086 | W24: 1.5991 | X24: 1.695 | Y24: 1.6 | Z24: 1.9 | AA24: 2 | AB24: 2.1 | AC24: 2.2 | AD24: 3 | AE24: 3.8 | AF24: 3.9 | AG24: 4 | AH24: 4.1 | AI24: 0.4 | AJ24: 0.46 | AK24: 0.529 | AL24: 0.6084 | AM24: 0.6996 | AN24: 0.15 | AO24: 0.165 | AP24: 0.1815 | AQ24: 0.1997 | AR24: 0.2196 | AS24: 0.4541 | AT24: 0.4995 | AU24: 0.5259 | AV24: 0.5521 | AW24: 0.5782 | AX24: 0 | AY24: 0 | AZ24: 0 | BA24: 0 | BB24: 0 | BC24: 0 | BD24: 0 | BE24: 0 | BF24: 0 | BG24: 0 | BH24: 0 | BI24: 0 | BJ24: 0 | BK24: 0 | BL24: 0 | BM24: 2.51 | BN24: 2.51 | BO24: 2.51 | BP24: 2.51 | BQ24: 2.51
A25: Drexel | B25: 0.22825 | C25: 0.86 | D25: 0 | F25: 3200 | G25: 0.1823 | H25: 0.013 | I25: 0 | J25: 0 | K25: 0.002 | L25: 0.03095 | M25: 56.96875 | N25: 3264 | O25: 3590 | P25: 3949 | Q25: 4344 | R25: 4779 | S25: Burke | T25: 0.1795 | U25: 0.1975 | V25: 0.2172 | W25: 0.2389 | X25: 0.2628 | Y25: 0.016 | Z25: 0.0176 | AA25: 0.0194 | AB25: 0.0213 | AC25: 0.0234 | AD25: 0 | AE25: 0 | AF25: 0 | AG25: 0 | AH25: 0 | AI25: 0 | AJ25: 0 | AK25: 0 | AL25: 0 | AM25: 0 | AN25: 0.002 | AO25: 0.0021 | AP25: 0.0022 | AQ25: 0.0023 | AR25: 0.0024 | AS25: 0.013 | AT25: 0.013 | AU25: 0.014 | AV25: 0.015 | AW25: 0.016 | AX25: 0 | AY25: 0 | AZ25: 0 | BA25: 0 | BB25: 0 | BC25: 0 | BD25: 0 | BE25: 0 | BF25: 0 | BG25: 0 | BH25: 0.86 | BI25: 0.86 | BJ25: 0.86 | BK25: 0.86 | BL25: 0.86 | BM25: 0 | BN25: 0 | BO25: 0 | BP25: 0 | BQ25: 0
A26: Rutherford College | B26: 0.144125 | C26: 0.233 | D26: 0 | F26: 2083 | G26: 0.075 | H26: 0.013 | I26: 0 | J26: 0.0223 | K26: 0.01 | L26: 0.023825 | M26: 36.00576092 | N26: 2106 | O26: 2225 | P26: 2350 | Q26: 2482 | R26: 2622 | S26: Burke | T26: 0.0758 | U26: 0.08 | V26: 0.0844 | W26: 0.0891 | X26: 0.0941 | Y26: 0.013 | Z26: 0.014 | AA26: 0.015 | AB26: 0.016 | AC26: 0.017 | AD26: 0 | AE26: 0 | AF26: 0 | AG26: 0 | AH26: 0 | AI26: 0.0223 | AJ26: 0.0225 | AK26: 0.0227 | AL26: 0.0229 | AM26: 0.0231 | AN26: 0.01 | AO26: 0.01 | AP26: 0.01 | AQ26: 0.01 | AR26: 0.01 | AS26: 0.0241 | AT26: 0.0251 | AU26: 0.0262 | AV26: 0.0274 | AW26: 0.0286 | AX26: 0 | AY26: 0 | AZ26: 0 | BA26: 0 | BB26: 0 | BC26: 0 | BD26: 0 | BE26: 0 | BF26: 0 | BG26: 0 | BH26: 0.233 | BI26: 0.233 | BJ26: 0.233 | BK26: 0.233 | BL26: 0.233 | BM26: 0 | BN26: 0 | BO26: 0 | BP26: 0 | BQ26: 0
A27: Icard Township WC | B27: 0.8380416667 | C27: 2.333 | D27: 0.1851 | F27: 7821 | G27: 0.339 | H27: 0.0185 | I27: 0.2147 | J27: 0.0172 | K27: 0.0188 | L27: 0.04474166667 | M27: 43.34484081 | N27: 7899 | O27: 7909 | P27: 7929 | Q27: 7969 | R27: 8049 | S27: Burke | T27: 0.4198 | U27: 0.427 | V27: 0.4358 | W27: 0.4438 | X27: 0.4518 | Y27: 0.0231 | Z27: 0.0242 | AA27: 0.0254 | AB27: 0.0267 | AC27: 0.028 | AD27: 0.0485 | AE27: 0.0509 | AF27: 0.0534 | AG27: 0.0561 | AH27: 0.0589 | AI27: 0.0297 | AJ27: 0.0312 | AK27: 0.0327 | AL27: 0.0343 | AM27: 0.0361 | AN27: 0.0199 | AO27: 0.0209 | AP27: 0.0219 | AQ27: 0.023 | AR27: 0.0242 | AS27: 0.0468 | AT27: 0.0479 | AU27: 0.0492 | AV27: 0.0505 | AW27: 0.0518 | AX27: 0 | AY27: 0 | AZ27: 0 | BA27: 0 | BB27: 0 | BC27: 0 | BD27: 0 | BE27: 0 | BF27: 0 | BG27: 0 | BH27: 2.367 | BI27: 2.367 | BJ27: 2.367 | BK27: 2.367 | BL27: 2.367 | BM27: 0.2567 | BN27: 0.2567 | BO27: 0.2567 | BP27: 0.2567 | BQ27: 0.2567
A28: Burke County | B28: 0.3946833333 | C28: 1.1 | D28: 0 | F28: 4057 | G28: 0.2125 | H28: 0.0071 | I28: 0.0482 | J28: 0.0055 | K28: 0.011 | L28: 0.1103833333 | M28: 52.37860488 | N28: 4190 | O28: 4590 | P28: 4990 | Q28: 5390 | R28: 5790 | S28: Burke | T28: 0.26 | U28: 0.28 | V28: 0.3 | W28: 0.32 | X28: 0.34 | Y28: 0.009 | Z28: 0.011 | AA28: 0.019 | AB28: 0.028 | AC28: 0.036 | AD28: 0.05 | AE28: 0.055 | AF28: 0.06 | AG28: 0.065 | AH28: 0.07 | AI28: 0.0065 | AJ28: 0.0075 | AK28: 0.008 | AL28: 0.0085 | AM28: 0.009 | AN28: 0.012 | AO28: 0.013 | AP28: 0.014 | AQ28: 0.015 | AR28: 0.016 | AS28: 0.0261 | AT28: 0.0325 | AU28: 0.0389 | AV28: 0.0453 | AW28: 0.0517 | AX28: 0 | AY28: 0 | AZ28: 0 | BA28: 0 | BB28: 0 | BC28: 0 | BD28: 0 | BE28: 0 | BF28: 0 | BG28: 0 | BH28: 1.185 | BI28: 1.185 | BJ28: 1.185 | BK28: 1.185 | BL28: 1.185 | BM28: 0 | BN28: 0 | BO28: 0 | BP28: 0 | BQ28: 0
A29: Brentwood-Highway 64 | B29: 0.3734166667 | C29: 0.65 | D29: 0 | F29: 5500 | G29: 0.295 | H29: 0.01 | I29: 0 | J29: 0.003 | K29: 0.025 | L29: 0.04041666667 | M29: 53.63636364 | N29: 5410 | O29: 5520 | P29: 5540 | Q29: 5580 | R29: 5620 | S29: Burke | T29: 0.2921 | U29: 0.2981 | V29: 0.2992 | W29: 0.3013 | X29: 0.3035 | Y29: 0.01 | Z29: 0.01 | AA29: 0.01 | AB29: 0.01 | AC29: 0.01 | AD29: 0 | AE29: 0 | AF29: 0 | AG29: 0 | AH29: 0 | AI29: 0.003 | AJ29: 0.003 | AK29: 0.003 | AL29: 0.003 | AM29: 0.003 | AN29: 0.027 | AO29: 0.027 | AP29: 0.027 | AQ29: 0.027 | AR29: 0.027 | AS29: 0.0589 | AT29: 0.0613 | AU29: 0.0618 | AV29: 0.0623 | AW29: 0.0628 | AX29: 0 | AY29: 0 | AZ29: 0 | BA29: 0 | BB29: 0 | BC29: 0 | BD29: 0 | BE29: 0 | BF29: 0 | BG29: 0 | BH29: 0.65 | BI29: 0.65 | BJ29: 0.65 | BK29: 0.65 | BL29: 0.65 | BM29: 0 | BN29: 0 | BO29: 0 | BP29: 0 | BQ29: 0
A30: Brentwood-Jamestown Road | B30: 0.3734166667 | C30: 0.65 | D30: 0 | F30: 5500 | G30: 0.286 | H30: 0.01 | I30: 0.009 | J30: 0.003 | K30: 0.025 | L30: 0.04041666667 | M30: 52 | N30: 5510 | O30: 5520 | P30: 5540 | Q30: 5580 | R30: 5620 | S30: Burke | T30: 0.2904 | U30: 0.2933 | V30: 0.2963 | W30: 0.2992 | X30: 0.3022 | Y30: 0.01 | Z30: 0.01 | AA30: 0.01 | AB30: 0.01 | AC30: 0.01 | AD30: 0.009 | AE30: 0.009 | AF30: 0.009 | AG30: 0.009 | AH30: 0.009 | AI30: 0.003 | AJ30: 0.003 | AK30: 0.003 | AL30: 0.003 | AM30: 0.003 | AN30: 0.027 | AO30: 0.027 | AP30: 0.027 | AQ30: 0.027 | AR30: 0.027 | AS30: 0.0589 | AT30: 0.0613 | AU30: 0.0618 | AV30: 0.0623 | AW30: 0.0628 | AX30: 0 | AY30: 0 | AZ30: 0 | BA30: 0 | BB30: 0 | BC30: 0 | BD30: 0 | BE30: 0 | BF30: 0 | BG30: 0 | BH30: 0.65 | BI30: 0.65 | BJ30: 0.65 | BK30: 0.65 | BL30: 0.65 | BM30: 0 | BN30: 0 | BO30: 0 | BP30: 0 | BQ30: 0
A31: Concord | B31: 15.11744167 | C31: 28.75 | D31: 2.890539726 | F31: 92240 | G31: 5.75 | H31: 1.99 | I31: 0.93 | J31: 0.27 | K31: 2.24 | L31: 1.046901941 | M31: 62.33738075 | N31: 96497 | O31: 114153 | P31: 130096 | Q31: 141256 | R31: 147952 | S31: Cabarrus | T31: 6.069 | U31: 7.395 | V31: 8.681 | W31: 9.709 | X31: 10.474 | Y31: 2.101 | Z31: 2.559 | AA31: 3.004 | AB31: 3.36 | AC31: 3.625 | AD31: 0.982 | AE31: 1.196 | AF31: 1.404 | AG31: 1.57 | AH31: 1.694 | AI31: 0.285 | AJ31: 0.347 | AK31: 0.408 | AL31: 0.456 | AM31: 0.492 | AN31: 2.364 | AO31: 2.881 | AP31: 3.382 | AQ31: 3.782 | AR31: 4.08 | AS31: 1.4434 | AT31: 1.7585 | AU31: 2.0644 | AV31: 2.3088 | AW31: 2.4908 | AX31: 0 | AY31: 3 | AZ31: 6 | BA31: 9 | BB31: 9 | BC31: 0 | BD31: 0 | BE31: 0 | BF31: 0 | BG31: 0 | BH31: 11.5 | BI31: 11.5 | BJ31: 11.5 | BK31: 11.5 | BL31: 11.5 | BM31: 7.7 | BN31: 7.7 | BO31: 7.7 | BP31: 7.7 | BQ31: 7.7
A32: Mt. Pleasant | B32: 0.22525 | C32: 1.7845 | D32: 0 | F32: 1911 | G32: 0.122 | H32: 0.016 | I32: 0.0076 | J32: 0.0158 | K32: 0.016 | L32: 0.04785 | M32: 63.84092098 | N32: 1911 | O32: 3302 | P32: 4473 | Q32: 5432 | R32: 6603 | S32: Cabarrus | T32: 0.22 | U32: 0.31 | V32: 0.42 | W32: 0.51 | X32: 0.62 | Y32: 0.01 | Z32: 0.012 | AA32: 0.015 | AB32: 0.02 | AC32: 0.03 | AD32: 0.003 | AE32: 0.003 | AF32: 0.003 | AG32: 0.003 | AH32: 0.003 | AI32: 0.002 | AJ32: 0.002 | AK32: 0.002 | AL32: 0.002 | AM32: 0.002 | AN32: 0.025 | AO32: 0.025 | AP32: 0.025 | AQ32: 0.025 | AR32: 0.025 | AS32: 0.0972 | AT32: 0.1316 | AU32: 0.1738 | AV32: 0.2093 | AW32: 0.2541 | AX32: 0 | AY32: 0 | AZ32: 0 | BA32: 0 | BB32: 0 | BC32: 0 | BD32: 0 | BE32: 0 | BF32: 0 | BG32: 0 | BH32: 0.2 | BI32: 0.2 | BJ32: 0.2 | BK32: 0.2 | BL32: 0.2 | BM32: 0 | BN32: 0 | BO32: 0 | BP32: 0 | BQ32: 0
A33: Harrisburg | B33: 1.725916667 | C33: 3.475 | D33: 0.0002 | F33: 17666 | G33: 0.94 | H33: 0.24 | I33: 0.052 | J33: 0.0035 | K33: 0.36 | L33: 0.1302166667 | M33: 53.20955508 | N33: 17929 | O33: 21514 | P33: 25817 | Q33: 30981 | R33: 37177 | S33: Cabarrus | T33: 0.968 | U33: 1.162 | V33: 1.394 | W33: 1.673 | X33: 2.008 | Y33: 0.03 | Z33: 0.038 | AA33: 0.042 | AB33: 0.044 | AC33: 0.048 | AD33: 0.006 | AE33: 0.009 | AF33: 0.01 | AG33: 0.012 | AH33: 0.014 | AI33: 0.002 | AJ33: 0.004 | AK33: 0.006 | AL33: 0.008 | AM33: 0.009 | AN33: 0.001 | AO33: 0.002 | AP33: 0.002 | AQ33: 0.002 | AR33: 0.003 | AS33: 0.0797 | AT33: 0.0962 | AU33: 0.1151 | AV33: 0.1377 | AW33: 0.1648 | AX33: 0 | AY33: 0 | AZ33: 0 | BA33: 0 | BB33: 0 | BC33: 0 | BD33: 0 | BE33: 0 | BF33: 0 | BG33: 0 | BH33: 3 | BI33: 3 | BJ33: 3 | BK33: 3 | BL33: 3 | BM33: 0.0002 | BN33: 0.0002 | BO33: 0.0002 | BP33: 0.0002 | BQ33: 0.0002
A34: Water and Sewer Authority of Cabarrus | B34: ERROR | C34: 0 | D34: 0 | G34: 0 | H34: 0 | I34: 0 | J34: 0 | K34: 0 | M34: ERROR | N34: 0 | O34: 0 | P34: 0 | Q34: 0 | R34: 0 | S34: Cabarrus | T34: 0 | U34: 0 | V34: 0 | W34: 0 | X34: 0 | Y34: 0 | Z34: 0 | AA34: 0 | AB34: 0 | AC34: 0 | AD34: 0 | AE34: 0 | AF34: 0 | AG34: 0 | AH34: 0 | AI34: 0 | AJ34: 0 | AK34: 0 | AL34: 0 | AM34: 0 | AN34: 0 | AO34: 0 | AP34: 0 | AQ34: 0 | AR34: 0 | AS34: 0 | AT34: 0 | AU34: 0 | AV34: 0 | AW34: 0 | AX34: 0 | AY34: 0 | AZ34: 0 | BA34: 0 | BB34: 0 | BC34: 0 | BD34: 0 | BE34: 0 | BF34: 0 | BG34: 0 | BH34: 0 | BI34: 0 | BJ34: 0 | BK34: 0 | BL34: 0 | BM34: 0 | BN34: 0 | BO34: 0 | BP34: 0 | BQ34: 0
A35: Lenoir | B35: 6.667933333 | C35: 12 | D35: 2.233 | F35: 21482 | G35: 1.2977 | H35: 0.3128 | I35: 1.1473 | J35: 0.3371 | K35: 0.299 | L35: 1.041033333 | M35: 60.40871427 | N35: 22180 | O35: 22900 | P35: 23644 | Q35: 24412 | R35: 25194 | S35: Caldwell | T35: 1.3308 | U35: 1.374 | V35: 1.4186 | W35: 1.4647 | X35: 1.5116 | Y35: 0.349 | Z35: 0.395 | AA35: 0.3956 | AB35: 0.3962 | AC35: 0.3969 | AD35: 1.29 | AE35: 1.317 | AF35: 1.99 | AG35: 2.229 | AH35: 2.235 | AI35: 0.333 | AJ35: 0.337 | AK35: 0.34 | AL35: 0.344 | AM35: 0.348 | AN35: 0.2926 | AO35: 0.294 | AP35: 0.2956 | AQ35: 0.297 | AR35: 0.2986 | AS35: 1.14 | AT35: 1.13 | AU35: 1.084 | AV35: 1.04 | AW35: 1.076 | AX35: 0 | AY35: 0 | AZ35: 0 | BA35: 0 | BB35: 0 | BC35: 0 | BD35: 0 | BE35: 0 | BF35: 0 | BG35: 0 | BH35: 0 | BI35: 0 | BJ35: 0 | BK35: 0 | BL35: 0 | BM35: 2.725 | BN35: 2.725 | BO35: 1.8 | BP35: 1.8 | BQ35: 1.8
A36: Baton Water Corporation | B36: 0.546725 | C36: 0.75 | D36: 0.0094 | F36: 8191 | G36: 0.3583 | H36: 0.0192 | I36: 0.0018 | J36: 0.0154 | K36: 0.002 | L36: 0.140625 | M36: 43.74313271 | N36: 8199 | O36: 8281 | P36: 8363 | Q36: 8446 | R36: 8530 | S36: Caldwell | T36: 0.3583 | U36: 0.3614 | V36: 0.3649 | W36: 0.3685 | X36: 0.3721 | Y36: 0.0192 | Z36: 0.02 | AA36: 0.025 | AB36: 0.03 | AC36: 0.035 | AD36: 0.0018 | AE36: 0.0018 | AF36: 0.0018 | AG36: 0.0018 | AH36: 0.0018 | AI36: 0.0154 | AJ36: 0.016 | AK36: 0.017 | AL36: 0.018 | AM36: 0.019 | AN36: 0.002 | AO36: 0.002 | AP36: 0.002 | AQ36: 0.002 | AR36: 0.002 | AS36: 0.1394 | AT36: 0.141 | AU36: 0.1443 | AV36: 0.1477 | AW36: 0.1511 | AX36: 0 | AY36: 0 | AZ36: 0 | BA36: 0 | BB36: 0 | BC36: 0 | BD36: 0 | BE36: 0 | BF36: 0 | BG36: 0 | BH36: 0.75 | BI36: 0.75 | BJ36: 0.75 | BK36: 0.75 | BL36: 0.75 | BM36: 0.025 | BN36: 0.025 | BO36: 0.025 | BP36: 0.025 | BQ36: 0.025
A37: Granite Falls | B37: 1.325558333 | C37: 2.5 | D37: 0.4182 | F37: 5988 | G37: 0.268 | H37: 0.102 | I37: 0.015 | J37: 0.0214 | K37: 0.1043 | L37: 0.3966583333 | M37: 44.75617902 | N37: 5979 | O37: 5949 | P37: 5919 | Q37: 5890 | R37: 5860 | S37: Caldwell | T37: 0.269 | U37: 0.267 | V37: 0.266 | W37: 0.265 | X37: 0.263 | Y37: 0.076 | Z37: 0.076 | AA37: 0.075 | AB37: 0.075 | AC37: 0.074 | AD37: 0.014 | AE37: 0.014 | AF37: 0.014 | AG37: 0.014 | AH37: 0.014 | AI37: 0.027 | AJ37: 0.027 | AK37: 0.027 | AL37: 0.027 | AM37: 0.026 | AN37: 0.096 | AO37: 0.095 | AP37: 0.095 | AQ37: 0.094 | AR37: 0.094 | AS37: 0.259 | AT37: 0.258 | AU37: 0.257 | AV37: 0.256 | AW37: 0.254 | AX37: 0 | AY37: 0 | AZ37: 0 | BA37: 0 | BB37: 0 | BC37: 0 | BD37: 0 | BE37: 0 | BF37: 0 | BG37: 0 | BH37: 0 | BI37: 0 | BJ37: 0 | BK37: 0 | BL37: 0 | BM37: 0.662 | BN37: 0.662 | BO37: 0.662 | BP37: 0.662 | BQ37: 0.662
A38: Rhodhiss | B38: 0.03605833333 | C38: 0.15 | D38: 0 | F38: 1079 | G38: 0.0321 | H38: 0.0021 | I38: 0 | J38: 0 | K38: 0.001 | L38: 0.0008583333333 | M38: 29.7497683 | N38: 1162 | O38: 1227 | P38: 1289 | Q38: 1355 | R38: 1423 | S38: Caldwell | T38: 0.0349 | U38: 0.0368 | V38: 0.0387 | W38: 0.0407 | X38: 0.0427 | Y38: 0.0021 | Z38: 0.0022 | AA38: 0.0023 | AB38: 0.0024 | AC38: 0.0025 | AD38: 0 | AE38: 0 | AF38: 0 | AG38: 0 | AH38: 0 | AI38: 0 | AJ38: 0 | AK38: 0 | AL38: 0 | AM38: 0 | AN38: 0.001 | AO38: 0.001 | AP38: 0.001 | AQ38: 0.001 | AR38: 0.001 | AS38: 0.0001 | AT38: 0.0001 | AU38: 0.0001 | AV38: 0.0001 | AW38: 0.0001 | AX38: 0 | AY38: 0 | AZ38: 0 | BA38: 0 | BB38: 0 | BC38: 0 | BD38: 0 | BE38: 0 | BF38: 0 | BG38: 0 | BH38: 0.153 | BI38: 0.153 | BJ38: 0.153 | BK38: 0.153 | BL38: 0.153 | BM38: 0 | BN38: 0 | BO38: 0 | BP38: 0 | BQ38: 0
A39: Sawmills | B39: 0.2525833333 | C39: 0.35 | D39: 0 | F39: 5215 | G39: 0.22 | H39: 0.008 | I39: 0.002 | J39: 0.002 | K39: 0.006 | L39: 0.01458333333 | M39: 42.18600192 | N39: 5265 | O39: 5393 | P39: 5511 | Q39: 5631 | R39: 5754 | S39: Caldwell | T39: 0.224 | U39: 0.2294 | V39: 0.2344 | W39: 0.2395 | X39: 0.2447 | Y39: 0.009 | Z39: 0.0092 | AA39: 0.0094 | AB39: 0.0096 | AC39: 0.0098 | AD39: 0.002 | AE39: 0.002 | AF39: 0.002 | AG39: 0.002 | AH39: 0.002 | AI39: 0.002 | AJ39: 0.002 | AK39: 0.0021 | AL39: 0.0021 | AM39: 0.0022 | AN39: 0.006 | AO39: 0.006 | AP39: 0.006 | AQ39: 0.006 | AR39: 0.006 | AS39: 0.0143 | AT39: 0.0146 | AU39: 0.0149 | AV39: 0.0152 | AW39: 0.0156 | AX39: 0 | AY39: 0 | AZ39: 0 | BA39: 0 | BB39: 0 | BC39: 0 | BD39: 0 | BE39: 0 | BF39: 0 | BG39: 0 | BH39: 0.35 | BI39: 0.35 | BJ39: 0.35 | BK39: 0.35 | BL39: 0.35 | BM39: 0 | BN39: 0 | BO39: 0 | BP39: 0 | BQ39: 0
A40: Caldwell Co (West) | B40: 0.6140833333 | C40: 0.767 | D40: 0 | F40: 8343 | G40: 0.4154 | H40: 0.05 | I40: 0.0412 | J40: 0.0579 | K40: 0.0025 | L40: 0.04708333333 | M40: 49.79024332 | N40: 8350 | O40: 8357 | P40: 8364 | Q40: 8371 | R40: 8377 | S40: Caldwell | T40: 0.4091 | U40: 0.4095 | V40: 0.4098 | W40: 0.4102 | X40: 0.4105 | Y40: 0.05 | Z40: 0.05 | AA40: 0.05 | AB40: 0.05 | AC40: 0.05 | AD40: 0.0412 | AE40: 0.0412 | AF40: 0.0412 | AG40: 0.0412 | AH40: 0.0412 | AI40: 0.0579 | AJ40: 0.0579 | AK40: 0.0579 | AL40: 0.0579 | AM40: 0.0579 | AN40: 0.002 | AO40: 0.002 | AP40: 0.002 | AQ40: 0.002 | AR40: 0.002 | AS40: 0.048 | AT40: 0.048 | AU40: 0.048 | AV40: 0.048 | AW40: 0.048 | AX40: 0 | AY40: 0 | AZ40: 0 | BA40: 0 | BB40: 0 | BC40: 0 | BD40: 0 | BE40: 0 | BF40: 0 | BG40: 0 | BH40: 0.767 | BI40: 0.767 | BJ40: 0.767 | BK40: 0.767 | BL40: 0.767 | BM40: 0 | BN40: 0 | BO40: 0 | BP40: 0 | BQ40: 0
A41: Caldwell Co (Southeast) | B41: 1.010333333 | C41: 1.231 | D41: 0.0633 | F41: 14553 | G41: 0.7136 | H41: 0.0347 | I41: 0.0747 | J41: 0.0148 | K41: 0.003 | L41: 0.1062333333 | M41: 49.03456332 | N41: 14553 | O41: 14560 | P41: 14570 | Q41: 14580 | R41: 14590 | S41: Caldwell | T41: 0.7131 | U41: 0.7134 | V41: 0.7139 | W41: 0.7144 | X41: 0.7149 | Y41: 0.0347 | Z41: 0.0347 | AA41: 0.0347 | AB41: 0.0347 | AC41: 0.0347 | AD41: 0.0747 | AE41: 0.0747 | AF41: 0.0747 | AG41: 0.0747 | AH41: 0.0747 | AI41: 0.0145 | AJ41: 0.0145 | AK41: 0.014 | AL41: 0.0135 | AM41: 0.0135 | AN41: 0.0025 | AO41: 0.0025 | AP41: 0.0025 | AQ41: 0.0025 | AR41: 0.0025 | AS41: 0.075 | AT41: 0.075 | AU41: 0.075 | AV41: 0.075 | AW41: 0.075 | AX41: 0 | AY41: 0 | AZ41: 0 | BA41: 0 | BB41: 0 | BC41: 0 | BD41: 0 | BE41: 0 | BF41: 0 | BG41: 0 | BH41: 1.231 | BI41: 1.231 | BJ41: 1.231 | BK41: 1.231 | BL41: 1.231 | BM41: 0.0633 | BN41: 0.0633 | BO41: 0.0633 | BP41: 0.0633 | BQ41: 0.0633
A42: Caldwell Co (North) | B42: 0.04125 | C42: 0.052 | D42: 0 | F42: 240 | G42: 0.0083 | H42: 0.001 | I42: 0.0276 | J42: 0.001 | K42: 0 | L42: 0.00335 | M42: 34.58333333 | N42: 240 | O42: 240 | P42: 240 | Q42: 240 | R42: 240 | S42: Caldwell | T42: 0.0082 | U42: 0.0082 | V42: 0.0082 | W42: 0.0082 | X42: 0.0082 | Y42: 0.001 | Z42: 0.001 | AA42: 0.001 | AB42: 0.001 | AC42: 0.001 | AD42: 0.0276 | AE42: 0.0276 | AF42: 0.0276 | AG42: 0.0276 | AH42: 0.0276 | AI42: 0.001 | AJ42: 0.001 | AK42: 0.001 | AL42: 0.001 | AM42: 0.001 | AN42: 0 | AO42: 0 | AP42: 0 | AQ42: 0 | AR42: 0 | AS42: 0.0035 | AT42: 0.0035 | AU42: 0.0035 | AV42: 0.0035 | AW42: 0.0035 | AX42: 0 | AY42: 0 | AZ42: 0 | BA42: 0 | BB42: 0 | BC42: 0 | BD42: 0 | BE42: 0 | BF42: 0 | BG42: 0 | BH42: 0.052 | BI42: 0.052 | BJ42: 0.052 | BK42: 0.052 | BL42: 0.052 | BM42: 0 | BN42: 0 | BO42: 0 | BP42: 0 | BQ42: 0
A43: Hickory | B43: 12.65865 | C43: 32 | D43: 5.1614 | F43: 57866 | G43: 3.148 | H43: 3.914 | I43: 0 | J43: 0 | K43: 0.5 | L43: -0.06475 | M43: 54.4015484 | N43: 61160 | O43: 64218 | P43: 67429 | Q43: 70800 | R43: 74340 | S43: Catawba | T43: 3.1803 | U43: 3.3393 | V43: 3.5063 | W43: 3.6816 | X43: 3.8657 | Y43: 2.979 | Z43: 3.128 | AA43: 3.2843 | AB43: 3.4486 | AC43: 3.621 | AD43: 0 | AE43: 0 | AF43: 0 | AG43: 0 | AH43: 0 | AI43: 0 | AJ43: 0 | AK43: 0 | AL43: 0 | AM43: 0 | AN43: 0.5976 | AO43: 0.6155 | AP43: 0.634 | AQ43: 0.653 | AR43: 0.6726 | AS43: 1.16 | AT43: 1.1948 | AU43: 1.2306 | AV43: 1.2676 | AW43: 1.3056 | AX43: 0 | AY43: 0 | AZ43: 0 | BA43: 0 | BB43: 0 | BC43: 0 | BD43: 0 | BE43: 0 | BF43: 0 | BG43: 0 | BH43: 0.066 | BI43: 0.066 | BJ43: 0.066 | BK43: 0.066 | BL43: 0.066 | BM43: 12.225 | BN43: 12.225 | BO43: 12.225 | BP43: 12.225 | BQ43: 12.225
A44: Newton | B44: 4.047416667 | C44: 8 | D44: 1.968 | F44: 13129 | G44: 0.671 | H44: 0.922 | I44: 0.085 | J44: 0.019 | K44: 0.15 | L44: 0.2324166667 | M44: 51.10823368 | N44: 13139 | O44: 13796 | P44: 14486 | Q44: 15210 | R44: 15971 | S44: Catawba | T44: 0.7883 | U44: 0.8278 | V44: 0.8692 | W44: 0.9126 | X44: 0.9582 | Y44: 0.9266 | Z44: 0.9729 | AA44: 1.0216 | AB44: 1.0727 | AC44: 1.1263 | AD44: 0.125 | AE44: 0.1275 | AF44: 0.13 | AG44: 0.1325 | AH44: 0.135 | AI44: 0.019 | AJ44: 0.02 | AK44: 0.021 | AL44: 0.022 | AM44: 0.023 | AN44: 0.2 | AO44: 0.204 | AP44: 0.208 | AQ44: 0.212 | AR44: 0.2165 | AS44: 0.38 | AT44: 0.39 | AU44: 0.4 | AV44: 0.41 | AW44: 0.42 | AX44: 0 | AY44: 0 | AZ44: 0 | BA44: 0 | BB44: 0 | BC44: 0 | BD44: 0 | BE44: 0 | BF44: 0 | BG44: 0 | BH44: 0 | BI44: 0 | BJ44: 0 | BK44: 0 | BL44: 0 | BM44: 2.75 | BN44: 2.75 | BO44: 2.75 | BP44: 2.75 | BQ44: 2.75
A45: Conover | B45: 1.61245 | C45: 3 | D45: 0.301 | F45: 15230 | G45: 0.702 | H45: 0.204 | I45: 0.18 | J45: 0.098 | K45: 0.035 | L45: 0.09245 | M45: 46.09323703 | N45: 15680 | O45: 16464 | P45: 17123 | Q45: 17808 | R45: 18698 | S45: Catawba | T45: 0.7188 | U45: 0.748 | V45: 0.778 | W45: 0.8091 | X45: 0.8415 | Y45: 0.18 | Z45: 0.1914 | AA45: 0.1991 | AB45: 0.2071 | AC45: 0.2154 | AD45: 0.16 | AE45: 0.167 | AF45: 0.1737 | AG45: 0.1806 | AH45: 0.1878 | AI45: 0.088 | AJ45: 0.091 | AK45: 0.0946 | AL45: 0.0984 | AM45: 0.1023 | AN45: 0.037 | AO45: 0.038 | AP45: 0.0395 | AQ45: 0.041 | AR45: 0.0427 | AS45: 0.1991 | AT45: 0.2077 | AU45: 0.2161 | AV45: 0.2247 | AW45: 0.2337 | AX45: 0 | AY45: 0 | AZ45: 0 | BA45: 0 | BB45: 0 | BC45: 0 | BD45: 0 | BE45: 0 | BF45: 0 | BG45: 0 | BH45: 3 | BI45: 3 | BJ45: 3 | BK45: 3 | BL45: 3 | BM45: 0.58 | BN45: 0.58 | BO45: 0.58 | BP45: 0.58 | BQ45: 0.58
A46: Longview | B46: 0.72825 | C46: 5 | D46: 0.03 | F46: 4915 | G46: 0.392 | H46: 0.178 | I46: 0 | J46: 0 | K46: 0.1 | L46: 0.02825 | M46: 79.75584944 | N46: 4929 | O46: 5077 | P46: 5230 | Q46: 5386 | R46: 5548 | S46: Catawba | T46: 0.3943 | U46: 0.4062 | V46: 0.4184 | W46: 0.4309 | X46: 0.4438 | Y46: 0.2 | Z46: 0.206 | AA46: 0.2122 | AB46: 0.2185 | AC46: 0.2257 | AD46: 0 | AE46: 0 | AF46: 0 | AG46: 0 | AH46: 0 | AI46: 0 | AJ46: 0 | AK46: 0 | AL46: 0 | AM46: 0 | AN46: 0.1 | AO46: 0.1 | AP46: 0.1 | AQ46: 0.1 | AR46: 0.1 | AS46: 0.095 | AT46: 0.097 | AU46: 0.099 | AV46: 0.101 | AW46: 0.101 | AX46: 0 | AY46: 0 | AZ46: 0 | BA46: 0 | BB46: 0 | BC46: 0 | BD46: 0 | BE46: 0 | BF46: 0 | BG46: 0 | BH46: 2.5 | BI46: 2.5 | BJ46: 2.5 | BK46: 2.5 | BL46: 2.5 | BM46: 0.03 | BN46: 0.03 | BO46: 0.03 | BP46: 0.03 | BQ46: 0.03
A47: Maiden | B47: 1.171416667 | C47: 3 | D47: 0 | F47: 5189 | G47: 0.2216 | H47: 0.0396 | I47: 0.7011 | J47: 0.0545 | K47: 0.01 | L47: 0.1446166667 | M47: 42.70572365 | N47: 5267 | O47: 6057 | P47: 6966 | Q47: 8010 | R47: 9212 | S47: Catawba | T47: 0.2317 | U47: 0.2665 | V47: 0.3064 | W47: 0.3524 | X47: 0.4052 | Y47: 0.0418 | Z47: 0.046 | AA47: 0.0506 | AB47: 0.0557 | AC47: 0.0612 | AD47: 0.7221 | AE47: 0.7438 | AF47: 0.7661 | AG47: 0.7891 | AH47: 0.8128 | AI47: 0.055 | AJ47: 0.0605 | AK47: 0.0666 | AL47: 0.0733 | AM47: 0.0806 | AN47: 0.0101 | AO47: 0.0111 | AP47: 0.0122 | AQ47: 0.0134 | AR47: 0.0148 | AS47: 0.19 | AT47: 0.201 | AU47: 0.2135 | AV47: 0.2267 | AW47: 0.2408 | AX47: 0 | AY47: 0 | AZ47: 0 | BA47: 0 | BB47: 0 | BC47: 0 | BD47: 0 | BE47: 0 | BF47: 0 | BG47: 0 | BH47: 3 | BI47: 3 | BJ47: 3 | BK47: 3 | BL47: 3 | BM47: 0 | BN47: 0 | BO47: 0 | BP47: 0 | BQ47: 0
A48: Claremont | B48: 0.3115 | C48: 0.58 | D48: 0 | F48: 1923 | G48: 0.1 | H48: 0 | I48: 0.21 | J48: 0 | K48: 0.001 | L48: 0.0005 | M48: 52.00208008 | N48: 1927 | O48: 1965 | P48: 2005 | Q48: 2045 | R48: 2086 | S48: Catawba | T48: 0.0964 | U48: 0.0983 | V48: 0.1003 | W48: 0.1023 | X48: 0.1043 | Y48: 0 | Z48: 0 | AA48: 0 | AB48: 0 | AC48: 0 | AD48: 0.2106 | AE48: 0.2169 | AF48: 0.2234 | AG48: 0.2301 | AH48: 0.237 | AI48: 0 | AJ48: 0 | AK48: 0 | AL48: 0 | AM48: 0 | AN48: 0.001 | AO48: 0.001 | AP48: 0.001 | AQ48: 0.001 | AR48: 0.001 | AS48: 0.017 | AT48: 0.0175 | AU48: 0.02 | AV48: 0.0205 | AW48: 0.021 | AX48: 0 | AY48: 0 | AZ48: 0 | BA48: 0 | BB48: 0 | BC48: 0 | BD48: 0 | BE48: 0 | BF48: 0 | BG48: 0 | BH48: 0.58 | BI48: 0.58 | BJ48: 0.58 | BK48: 0.58 | BL48: 0.58 | BM48: 0 | BN48: 0 | BO48: 0 | BP48: 0 | BQ48: 0
A49: Hickory Catawba System | B49: 0.05241666667 | C49: 0.225 | D49: 0 | F49: 1193 | G49: 0.042 | H49: 0.01 | I49: 0 | J49: 0 | K49: 0.001 | L49: -0.0005833333333 | M49: 35.20536463 | N49: 1199 | O49: 1210 | P49: 1250 | Q49: 1300 | R49: 1350 | S49: Catawba | T49: 0.048 | U49: 0.049 | V49: 0.0505 | W49: 0.052 | X49: 0.0535 | Y49: 0.01 | Z49: 0.011 | AA49: 0.012 | AB49: 0.014 | AC49: 0.016 | AD49: 0 | AE49: 0 | AF49: 0 | AG49: 0 | AH49: 0 | AI49: 0 | AJ49: 0 | AK49: 0 | AL49: 0 | AM49: 0 | AN49: 0.0012 | AO49: 0.0014 | AP49: 0.0016 | AQ49: 0.0018 | AR49: 0.002 | AS49: 0.005 | AT49: 0.005 | AU49: 0.005 | AV49: 0.005 | AW49: 0.005 | AX49: 0 | AY49: 0 | AZ49: 0 | BA49: 0 | BB49: 0 | BC49: 0 | BD49: 0 | BE49: 0 | BF49: 0 | BG49: 0 | BH49: 0.225 | BI49: 0.225 | BJ49: 0.225 | BK49: 0.225 | BL49: 0.225 | BM49: 0 | BN49: 0 | BO49: 0 | BP49: 0 | BQ49: 0
A50: Shamrock Park Subdivision - City of Claremont | B50: 0.008975 | C50: 0.032 | D50: 0 | F50: 182 | G50: 0.008 | H50: 0 | I50: 0 | J50: 0 | K50: 0.0004 | L50: 0.000575 | M50: 43.95604396 | N50: 186 | O50: 191 | P50: 196 | Q50: 201 | R50: 204 | S50: Catawba | T50: 0.008 | U50: 0.008 | V50: 0.0081 | W50: 0.0082 | X50: 0.0083 | Y50: 0 | Z50: 0 | AA50: 0 | AB50: 0 | AC50: 0 | AD50: 0 | AE50: 0 | AF50: 0 | AG50: 0 | AH50: 0 | AI50: 0 | AJ50: 0 | AK50: 0 | AL50: 0 | AM50: 0 | AN50: 0.0004 | AO50: 0.0004 | AP50: 0.0004 | AQ50: 0.0004 | AR50: 0.0004 | AS50: 0.0007 | AT50: 0.0007 | AU50: 0.0007 | AV50: 0.0007 | AW50: 0.0007 | AX50: 0 | AY50: 0 | AZ50: 0 | BA50: 0 | BB50: 0 | BC50: 0 | BD50: 0 | BE50: 0 | BF50: 0 | BG50: 0 | BH50: 0.032 | BI50: 0.032 | BJ50: 0.032 | BK50: 0.032 | BL50: 0.032 | BM50: 0 | BN50: 0 | BO50: 0 | BP50: 0 | BQ50: 0
A51: Murphy | B51: 0.8731666667 | C51: 13 | D51: 0 | F51: 4265 | G51: 0.173 | H51: 0.19 | I51: 0.031 | J51: 0.039 | K51: 0.15 | L51: 0.2901666667 | M51: 40.56271981 | N51: 4335 | O51: 4768 | P51: 5245 | Q51: 5770 | R51: 6347 | S51: Cherokee | T51: 0.1517 | U51: 0.1669 | V51: 0.1836 | W51: 0.2019 | X51: 0.2221 | Y51: 0.27 | Z51: 0.275 | AA51: 0.281 | AB51: 0.287 | AC51: 0.293 | AD51: 0.0412 | AE51: 0.042 | AF51: 0.0428 | AG51: 0.0437 | AH51: 0.0446 | AI51: 0.0612 | AJ51: 0.0625 | AK51: 0.0637 | AL51: 0.065 | AM51: 0.0663 | AN51: 0.153 | AO51: 0.1683 | AP51: 0.1851 | AQ51: 0.2036 | AR51: 0.224 | AS51: 0.124 | AT51: 0.13 | AU51: 0.136 | AV51: 0.146 | AW51: 0.154 | AX51: 0 | AY51: 0 | AZ51: 0 | BA51: 0 | BB51: 0 | BC51: 0 | BD51: 0 | BE51: 0 | BF51: 0 | BG51: 0 | BH51: 0 | BI51: 0 | BJ51: 0 | BK51: 0 | BL51: 0 | BM51: 0 | BN51: 0 | BO51: 0 | BP51: 0 | BQ51: 0
A52: Andrews | B52: 0.6248333333 | C52: 1.6 | D52: 0 | F52: 3362 | G52: 0.1739 | H52: 0.1667 | I52: 0.0435 | J52: 0.0192 | K52: 0.06 | L52: 0.1615333333 | M52: 51.72516359 | N52: 3386 | O52: 3623 | P52: 3876 | Q52: 4147 | R52: 4438 | S52: Cherokee | T52: 0.254 | U52: 0.2717 | V52: 0.2907 | W52: 0.3111 | X52: 0.3329 | Y52: 0.17 | Z52: 0.187 | AA52: 0.2057 | AB52: 0.2263 | AC52: 0.2489 | AD52: 0.0653 | AE52: 0.0718 | AF52: 0.079 | AG52: 0.0869 | AH52: 0.0956 | AI52: 0.0195 | AJ52: 0.0215 | AK52: 0.0236 | AL52: 0.026 | AM52: 0.0285 | AN52: 0.075 | AO52: 0.0768 | AP52: 0.0783 | AQ52: 0.08 | AR52: 0.088 | AS52: 0.0873 | AT52: 0.094 | AU52: 0.1005 | AV52: 0.1073 | AW52: 0.1144 | AX52: 0 | AY52: 0 | AZ52: 0 | BA52: 0 | BB52: 0 | BC52: 0 | BD52: 0 | BE52: 0 | BF52: 0 | BG52: 0 | BH52: 0 | BI52: 0 | BJ52: 0 | BK52: 0 | BL52: 0 | BM52: 0 | BN52: 0 | BO52: 0 | BP52: 0 | BQ52: 0
A53: Clay Co WSD | B53: 0.18955 | C53: 0.569 | D53: 0 | F53: 1384 | G53: 0.0983 | H53: 0.0557 | I53: 0.002 | J53: 0.01 | K53: 0.008 | L53: 0.01555 | M53: 71.02601156 | N53: 1385 | O53: 1454 | P53: 1526 | Q53: 1602 | R53: 1682 | S53: Clay | T53: 0.0983 | U53: 0.1031 | V53: 0.1082 | W53: 0.1135 | X53: 0.1191 | Y53: 0.0557 | Z53: 0.06 | AA53: 0.065 | AB53: 0.007 | AC53: 0.075 | AD53: 0.002 | AE53: 0.002 | AF53: 0.002 | AG53: 0.002 | AH53: 0.002 | AI53: 0.01 | AJ53: 0.01 | AK53: 0.01 | AL53: 0.01 | AM53: 0.01 | AN53: 0.008 | AO53: 0.01 | AP53: 0.012 | AQ53: 0.014 | AR53: 0.016 | AS53: 0.0159 | AT53: 0.0169 | AU53: 0.018 | AV53: 0.0134 | AW53: 0.0203 | AX53: 0 | AY53: 0 | AZ53: 0 | BA53: 0 | BB53: 0 | BC53: 0 | BD53: 0 | BE53: 0 | BF53: 0 | BG53: 0 | BH53: 0 | BI53: 0 | BJ53: 0 | BK53: 0 | BL53: 0 | BM53: 0 | BN53: 0 | BO53: 0 | BP53: 0 | BQ53: 0
A54: Shelby | B54: 6.172666667 | C54: 18 | D54: 0.378 | F54: 20020 | G54: 1.269 | H54: 0.426 | I54: 2.129 | J54: 0.364 | K54: 0.65 | L54: 0.9566666667 | M54: 63.38661339 | N54: 20562 | O54: 20651 | P54: 20740 | Q54: 20828 | R54: 20920 | S54: Cleveland | T54: 1.275 | U54: 1.28 | V54: 1.2859 | W54: 1.2913 | X54: 1.297 | Y54: 0.43 | Z54: 0.475 | AA54: 0.525 | AB54: 0.58 | AC54: 0.641 | AD54: 2.14 | AE54: 2.649 | AF54: 2.764 | AG54: 2.885 | AH54: 3.012 | AI54: 0.366 | AJ54: 0.385 | AK54: 0.404 | AL54: 0.425 | AM54: 0.447 | AN54: 0.65 | AO54: 0.65 | AP54: 0.65 | AQ54: 0.65 | AR54: 0.65 | AS54: 0.9525 | AT54: 1.0789 | AU54: 1.1134 | AV54: 1.1535 | AW54: 1.1962 | AX54: 0 | AY54: 0 | AZ54: 0 | BA54: 0 | BB54: 0 | BC54: 0 | BD54: 0 | BE54: 0 | BF54: 0 | BG54: 0 | BH54: 0 | BI54: 0 | BJ54: 0 | BK54: 0 | BL54: 0 | BM54: 1 | BN54: 1 | BO54: 1 | BP54: 1 | BQ54: 1
A55: Kings Mountain | B55: 3.491333333 | C55: 23 | D55: 0.075 | F55: 11000 | G55: 0.85 | H55: 0.365 | I55: 1.812 | J55: 0.0231 | K55: 0.145 | L55: 0.2212333333 | M55: 77.27272727 | N55: 11110 | O55: 11665 | P55: 12250 | Q55: 12860 | R55: 13500 | S55: Cleveland | T55: 0.9435 | U55: 0.9907 | V55: 1.0402 | W55: 1.0922 | X55: 1.1468 | Y55: 0.367 | Z55: 0.3852 | AA55: 0.4044 | AB55: 0.4246 | AC55: 0.4459 | AD55: 1.8156 | AE55: 1.8519 | AF55: 1.889 | AG55: 1.9268 | AH55: 1.9653 | AI55: 0.0231 | AJ55: 0.0236 | AK55: 0.024 | AL55: 0.0245 | AM55: 0.025 | AN55: 0.145 | AO55: 0.1455 | AP55: 0.146 | AQ55: 0.1465 | AR55: 0.147 | AS55: 0.621 | AT55: 0.602 | AU55: 0.596 | AV55: 0.608 | AW55: 0.617 | AX55: 0 | AY55: 0 | AZ55: 0 | BA55: 0 | BB55: 0 | BC55: 0 | BD55: 0 | BE55: 0 | BF55: 0 | BG55: 0 | BH55: 0 | BI55: 0 | BJ55: 0 | BK55: 0 | BL55: 0 | BM55: 3.75 | BN55: 3.75 | BO55: 3.75 | BP55: 3.75 | BQ55: 3.75
A56: Boiling Springs | B56: 0.3674416667 | C56: 1 | D56: 0 | F56: 4673 | G56: 0.161 | H56: 0.072 | I56: 0.002 | J56: 0.102 | K56: 0.0024 | L56: 0.02804166667 | M56: 34.45324203 | N56: 4696 | O56: 4931 | P56: 5178 | Q56: 5437 | R56: 5708 | S56: Cleveland | T56: 0.1691 | U56: 0.1775 | V56: 0.1864 | W56: 0.1957 | X56: 0.2055 | Y56: 0.073 | Z56: 0.0767 | AA56: 0.0805 | AB56: 0.0845 | AC56: 0.0887 | AD56: 0.008 | AE56: 0.0086 | AF56: 0.0092 | AG56: 0.0098 | AH56: 0.0105 | AI56: 0.116 | AJ56: 0.118 | AK56: 0.123 | AL56: 0.128 | AM56: 0.132 | AN56: 0.0025 | AO56: 0.0026 | AP56: 0.0028 | AQ56: 0.0029 | AR56: 0.003 | AS56: 0.0342 | AT56: 0.0355 | AU56: 0.038 | AV56: 0.04 | AW56: 0.0419 | AX56: 0 | AY56: 0 | AZ56: 0 | BA56: 0 | BB56: 0 | BC56: 0 | BD56: 0 | BE56: 0 | BF56: 0 | BG56: 0 | BH56: 1 | BI56: 1 | BJ56: 1 | BK56: 1 | BL56: 1 | BM56: 0 | BN56: 0 | BO56: 0 | BP56: 0 | BQ56: 0
A57: Grover | B57: 0.0755 | C57: 0.25 | D57: 0 | F57: 685 | G57: 0.035 | H57: 0.0172 | I57: 0.001 | J57: 0.001 | K57: 0.007 | L57: 0.0143 | M57: 51.09489051 | N57: 688 | O57: 703 | P57: 717 | Q57: 732 | R57: 746 | S57: Cleveland | T57: 0.0351 | U57: 0.0358 | V57: 0.0365 | W57: 0.0378 | X57: 0.0379 | Y57: 0.0175 | Z57: 0.0175 | AA57: 0.0179 | AB57: 0.0182 | AC57: 0.0186 | AD57: 0.001 | AE57: 0.001 | AF57: 0.001 | AG57: 0.001 | AH57: 0.001 | AI57: 0.001 | AJ57: 0.001 | AK57: 0.001 | AL57: 0.0011 | AM57: 0.0011 | AN57: 0.007 | AO57: 0.007 | AP57: 0.007 | AQ57: 0.007 | AR57: 0.007 | AS57: 0.011 | AT57: 0.0112 | AU57: 0.0114 | AV57: 0.0116 | AW57: 0.0118 | AX57: 0 | AY57: 0 | AZ57: 0 | BA57: 0 | BB57: 0 | BC57: 0 | BD57: 0 | BE57: 0 | BF57: 0 | BG57: 0 | BH57: 0.25 | BI57: 0.25 | BJ57: 0.25 | BK57: 0.25 | BL57: 0.25 | BM57: 0 | BN57: 0 | BO57: 0 | BP57: 0 | BQ57: 0
A58: Fallston Water System | B58: 0.0425 | C58: 1 | D58: 0 | F58: 600 | G58: 0.023 | H58: 0.006 | I58: 0 | J58: 0.001 | K58: 0.009 | L58: 0.0035 | M58: 38.33333333 | N58: 610 | O58: 630 | P58: 640 | Q58: 650 | R58: 670 | S58: Cleveland | T58: 0.027 | U58: 0.0273 | V58: 0.0275 | W58: 0.0278 | X58: 0.0281 | Y58: 0.009 | Z58: 0.01 | AA58: 0.011 | AB58: 0.012 | AC58: 0.013 | AD58: 0 | AE58: 0 | AF58: 0 | AG58: 0 | AH58: 0 | AI58: 0.069 | AJ58: 0.072 | AK58: 0.078 | AL58: 0.081 | AM58: 0.088 | AN58: 0.009 | AO58: 0.01 | AP58: 0.011 | AQ58: 0.012 | AR58: 0.012 | AS58: 0.004 | AT58: 0.004 | AU58: 0.004 | AV58: 0.004 | AW58: 0.004 | AX58: 0 | AY58: 0 | AZ58: 0 | BA58: 0 | BB58: 0 | BC58: 0 | BD58: 0 | BE58: 0 | BF58: 0 | BG58: 0 | BH58: 1 | BI58: 1 | BJ58: 1 | BK58: 1 | BL58: 1 | BM58: 0 | BN58: 0 | BO58: 0 | BP58: 0 | BQ58: 0
A59: Lawndale | B59: 0.0485 | C59: 0.065 | D59: 0 | F59: 636 | G59: 0.0438 | H59: 0.0016 | I59: 0 | J59: 0 | K59: 0.0001 | L59: 0.003 | M59: 68.86792453 | N59: 639 | O59: 655 | P59: 669 | Q59: 683 | R59: 698 | S59: Cleveland | T59: 0.044 | U59: 0.0451 | V59: 0.046 | W59: 0.0469 | X59: 0.0479 | Y59: 0.002 | Z59: 0.002 | AA59: 0.002 | AB59: 0.002 | AC59: 0.002 | AD59: 0 | AE59: 0 | AF59: 0 | AG59: 0 | AH59: 0 | AI59: 0 | AJ59: 0 | AK59: 0 | AL59: 0 | AM59: 0 | AN59: 0.0001 | AO59: 0.0001 | AP59: 0.0001 | AQ59: 0.0001 | AR59: 0.0001 | AS59: 0.003 | AT59: 0.0031 | AU59: 0.0032 | AV59: 0.0032 | AW59: 0.0033 | AX59: 0 | AY59: 0 | AZ59: 0 | BA59: 0 | BB59: 0 | BC59: 0 | BD59: 0 | BE59: 0 | BF59: 0 | BG59: 0 | BH59: 0.065 | BI59: 0.065 | BJ59: 0.065 | BK59: 0.065 | BL59: 0.065 | BM59: 0 | BN59: 0 | BO59: 0 | BP59: 0 | BQ59: 0
A60: Cleveland County Water | B60: 4.3275 | C60: 10 | D60: 0.05600958904 | F60: 52674 | G60: 2.87 | H60: 0.395 | I60: 0.384 | J60: 0.063 | K60: 0.212 | L60: 0.347490411 | M60: 54.48608422 | N60: 53000 | O60: 56919 | P60: 62383 | Q60: 68371 | R60: 73236 | S60: Cleveland | T60: 2.9 | U60: 3.117 | V60: 3.265 | W60: 3.513 | X60: 3.8 | Y60: 0.395 | Z60: 0.4266 | AA60: 0.4607 | AB60: 0.4976 | AC60: 0.5374 | AD60: 0.39 | AE60: 0.4 | AF60: 0.48 | AG60: 0.52 | AH60: 0.58 | AI60: 0.077 | AJ60: 0.09 | AK60: 0.1 | AL60: 0.119 | AM60: 0.133 | AN60: 0.418 | AO60: 0.42 | AP60: 0.422 | AQ60: 0.425 | AR60: 0.428 | AS60: 0.306 | AT60: 0.323 | AU60: 0.342 | AV60: 0.361 | AW60: 0.381 | AX60: 0 | AY60: 6 | AZ60: 6 | BA60: 6 | BB60: 6 | BC60: 0 | BD60: 0 | BE60: 0 | BF60: 0 | BG60: 0 | BH60: 0.0003 | BI60: 0.0003 | BJ60: 0.0003 | BK60: 0.0003 | BL60: 0.0003 | BM60: 1.0487 | BN60: 1.0487 | BO60: 1.0487 | BP60: 1.0487 | BQ60: 1.0487
A61: Two Rivers Utilities/Gastonia | B61: 20.71 | C61: 75 | D61: 1.931 | F61: 85556 | G61: 4.186 | H61: 2.249 | I61: 0.759 | J61: 1.192 | K61: 5.985 | L61: 4.408 | M61: 48.92701856 | N61: 86513 | O61: 95763 | P61: 107931 | Q61: 122820 | R61: 141575 | S61: Gaston | T61: 4.1526 | U61: 4.5966 | V61: 5.1807 | W61: 5.8954 | X61: 6.7956 | Y61: 2.294 | Z61: 2.742 | AA61: 3.342 | AB61: 4.074 | AC61: 4.966 | AD61: 0.774 | AE61: 0.925 | AF61: 1.128 | AG61: 1.375 | AH61: 1.676 | AI61: 1.216 | AJ61: 1.453 | AK61: 1.771 | AL61: 2.159 | AM61: 2.632 | AN61: 4.71 | AO61: 3.337 | AP61: 3.271 | AQ61: 3.244 | AR61: 3.517 | AS61: 3.25 | AT61: 2.5 | AU61: 2.25 | AV61: 2 | AW61: 1.75 | AX61: 0 | AY61: 0 | AZ61: 0 | BA61: 0 | BB61: 0 | BC61: 1.7 | BD61: 0 | BE61: 0 | BF61: 0 | BG61: 0 | BH61: 0 | BI61: 0 | BJ61: 0 | BK61: 0 | BL61: 0 | BM61: 4.235 | BN61: 4.235 | BO61: 4.235 | BP61: 4.235 | BQ61: 4.235
A62: Belmont | B62: 2.096 | C62: 10 | D62: 0.043 | F62: 11613 | G62: 0.789 | H62: 0.319 | I62: 0.323 | J62: 0.115 | K62: 0.246 | L62: 0.261 | M62: 67.94110049 | N62: 11845 | O62: 14439 | P62: 17601 | Q62: 21456 | R62: 26155 | S62: Gaston | T62: 0.805 | U62: 0.981 | V62: 1.196 | W62: 1.458 | X62: 1.777 | Y62: 0.319 | Z62: 0.397 | AA62: 0.483 | AB62: 0.589 | AC62: 0.718 | AD62: 0.329 | AE62: 0.402 | AF62: 0.49 | AG62: 0.597 | AH62: 0.727 | AI62: 0.117 | AJ62: 0.143 | AK62: 0.174 | AL62: 0.212 | AM62: 0.259 | AN62: 0.251 | AO62: 0.306 | AP62: 0.373 | AQ62: 0.455 | AR62: 0.544 | AS62: 0.2673 | AT62: 0.3271 | AU62: 0.3986 | AV62: 0.4859 | AW62: 0.5907 | AX62: 0 | AY62: 0 | AZ62: 0 | BA62: 0 | BB62: 0 | BC62: 0 | BD62: 0 | BE62: 0 | BF62: 0 | BG62: 0 | BH62: 0 | BI62: 0 | BJ62: 0 | BK62: 0 | BL62: 0 | BM62: 0.043 | BN62: 0.043 | BO62: 0.043 | BP62: 0.043 | BQ62: 0.043
A63: Mount Holly | B63: 2.92525 | C63: 13.5 | D63: 0.748 | F63: 18465 | G63: 1.0743 | H63: 0.1827 | I63: 0.5498 | J63: 0.0383 | K63: 0.26 | L63: 0.07215 | M63: 58.18034119 | N63: 18309 | O63: 22520 | P63: 27699 | Q63: 34070 | R63: 41906 | S63: Gaston | T63: 1.065 | U63: 1.3062 | V63: 1.612 | W63: 1.982 | X63: 2.438 | Y63: 0.17 | Z63: 0.187 | AA63: 0.2057 | AB63: 0.2263 | AC63: 0.2489 | AD63: 0.56 | AE63: 0.616 | AF63: 0.6776 | AG63: 0.7454 | AH63: 0.8199 | AI63: 0.0375 | AJ63: 0.0413 | AK63: 0.0454 | AL63: 0.0499 | AM63: 0.0549 | AN63: 0.127 | AO63: 0.139 | AP63: 0.153 | AQ63: 0.168 | AR63: 0.185 | AS63: 0.35 | AT63: 0.35 | AU63: 0.35 | AV63: 0.35 | AW63: 0.35 | AX63: 0 | AY63: 0 | AZ63: 0 | BA63: 0 | BB63: 0 | BC63: 0 | BD63: 0 | BE63: 0 | BF63: 0 | BG63: 0 | BH63: 0 | BI63: 0 | BJ63: 0 | BK63: 0 | BL63: 0 | BM63: 1.5 | BN63: 1.5 | BO63: 0 | BP63: 0 | BQ63: 0
A64: Bessemer City | B64: 1.160316667 | C64: 4.031 | D64: 0 | F64: 5328 | G64: 0.271 | H64: 0.0429 | I64: 0.66 | J64: 0 | K64: 0.065 | L64: 0.1214166667 | M64: 50.86336336 | N64: 5340 | O64: 5445 | P64: 5555 | Q64: 5665 | R64: 5775 | S64: Gaston | T64: 0.267 | U64: 0.2723 | V64: 0.2778 | W64: 0.2833 | X64: 0.289 | Y64: 0.048 | Z64: 0.05 | AA64: 0.053 | AB64: 0.057 | AC64: 0.06 | AD64: 0.7 | AE64: 0.75 | AF64: 0.8 | AG64: 0.85 | AH64: 0.86 | AI64: 0 | AJ64: 0 | AK64: 0 | AL64: 0 | AM64: 0 | AN64: 0.072 | AO64: 0.075 | AP64: 0.078 | AQ64: 0.081 | AR64: 0.084 | AS64: 0.13 | AT64: 0.13 | AU64: 0.13 | AV64: 0.13 | AW64: 0.13 | AX64: 0 | AY64: 0 | AZ64: 0 | BA64: 0 | BB64: 0 | BC64: 0 | BD64: 0 | BE64: 0 | BF64: 0 | BG64: 0 | BH64: 3.5 | BI64: 3.5 | BJ64: 3.5 | BK64: 3.5 | BL64: 3.5 | BM64: 0 | BN64: 0 | BO64: 0 | BP64: 0 | BQ64: 0
A65: Cherryville | B65: 0.7495833333 | C65: 3.2 | D65: 0 | F65: 5800 | G65: 0.3 | H65: 0.07 | I65: 0.048 | J65: 0.014 | K65: 0.28 | L65: 0.03758333333 | M65: 51.72413793 | N65: 5916 | O65: 7099 | P65: 8519 | Q65: 10223 | R65: 12267 | S65: Gaston | T65: 0.3076 | U65: 0.3692 | V65: 0.443 | W65: 0.5316 | X65: 0.6379 | Y65: 0.074 | Z65: 0.089 | AA65: 0.11 | AB65: 0.13 | AC65: 0.158 | AD65: 0.055 | AE65: 0.06 | AF65: 0.065 | AG65: 0.07 | AH65: 0.075 | AI65: 0.01 | AJ65: 0.011 | AK65: 0.013 | AL65: 0.014 | AM65: 0.016 | AN65: 0.28 | AO65: 0.28 | AP65: 0.28 | AQ65: 0.28 | AR65: 0.28 | AS65: 0.0447 | AT65: 0.0528 | AU65: 0.063 | AV65: 0.0748 | AW65: 0.0892 | AX65: 0 | AY65: 0 | AZ65: 0 | BA65: 0 | BB65: 0 | BC65: 0 | BD65: 0 | BE65: 0 | BF65: 0 | BG65: 0 | BH65: 0 | BI65: 0 | BJ65: 0 | BK65: 0 | BL65: 0 | BM65: 0 | BN65: 0 | BO65: 0 | BP65: 0 | BQ65: 0
A66: Ranlo | B66: 0.37675 | C66: 0.6 | D66: 0 | F66: 3668 | G66: 0.192 | H66: 0.0839 | I66: 0.0407 | J66: 0 | K66: 0.0001 | L66: 0.06005 | M66: 52.34460196 | N66: 3704 | O66: 3741 | P66: 4115 | Q66: 4527 | R66: 4979 | S66: Gaston | T66: 0.1938 | U66: 0.1957 | V66: 0.2153 | W66: 0.2368 | X66: 0.2605 | Y66: 0.0852 | Z66: 0.0861 | AA66: 0.0947 | AB66: 0.1041 | AC66: 0.1145 | AD66: 0.0407 | AE66: 0.041 | AF66: 0.041 | AG66: 0.041 | AH66: 0.041 | AI66: 0 | AJ66: 0 | AK66: 0 | AL66: 0 | AM66: 0 | AN66: 0.0001 | AO66: 0.0001 | AP66: 0.0001 | AQ66: 0.0001 | AR66: 0.0001 | AS66: 0.0607 | AT66: 0.0793 | AU66: 0.0864 | AV66: 0.0943 | AW66: 0.1029 | AX66: 0 | AY66: 0 | AZ66: 0 | BA66: 0 | BB66: 0 | BC66: 0 | BD66: 0 | BE66: 0 | BF66: 0 | BG66: 0 | BH66: 0.6 | BI66: 0.6 | BJ66: 0.6 | BK66: 0.6 | BL66: 0.6 | BM66: 0 | BN66: 0 | BO66: 0 | BP66: 0 | BQ66: 0
A67: Stanley | B67: 0.8118666667 | C67: 1.5 | D67: 0 | F67: 5453 | G67: 0.1841 | H67: 0.032 | I67: 0.1909 | J67: 0.0274 | K67: 0.002 | L67: 0.3754666667 | M67: 33.76123235 | N67: 5589 | O67: 6442 | P67: 7320 | Q67: 8318 | R67: 9452 | S67: Gaston | T67: 0.1894 | U67: 0.2182 | V67: 0.2479 | W67: 0.2816 | X67: 0.3199 | Y67: 0.0329 | Z67: 0.0379 | AA67: 0.0431 | AB67: 0.049 | AC67: 0.0556 | AD67: 0.1909 | AE67: 0.1909 | AF67: 0.1909 | AG67: 0.1909 | AH67: 0.1909 | AI67: 0.0282 | AJ67: 0.0325 | AK67: 0.0369 | AL67: 0.0419 | AM67: 0.0476 | AN67: 0.002 | AO67: 0.002 | AP67: 0.002 | AQ67: 0.002 | AR67: 0.002 | AS67: 0.055 | AT67: 0.058 | AU67: 0.063 | AV67: 0.067 | AW67: 0.074 | AX67: 0 | AY67: 0 | AZ67: 0 | BA67: 0 | BB67: 0 | BC67: 0 | BD67: 0 | BE67: 0 | BF67: 0 | BG67: 0 | BH67: 1.5 | BI67: 1.5 | BJ67: 0 | BK67: 0 | BL67: 0 | BM67: 0 | BN67: 0 | BO67: 0 | BP67: 0 | BQ67: 0
A68: McAdenville | B68: 0.28825 | C68: 1 | D68: 0 | F68: 808 | G68: 0.047 | H68: 0.009 | I68: 0.208 | J68: 0.004 | K68: 0.007 | L68: 0.01325 | M68: 58.16831683 | N68: 824 | O68: 989 | P68: 1187 | Q68: 1424 | R68: 1709 | S68: Gaston | T68: 0.0511 | U68: 0.0613 | V68: 0.0736 | W68: 0.0883 | X68: 0.1059 | Y68: 0.009 | Z68: 0.0108 | AA68: 0.013 | AB68: 0.0156 | AC68: 0.0187 | AD68: 0.21 | AE68: 0.211 | AF68: 0.212 | AG68: 0.213 | AH68: 0.214 | AI68: 0.0048 | AJ68: 0.0058 | AK68: 0.0069 | AL68: 0.0083 | AM68: 0.01 | AN68: 0.009 | AO68: 0.009 | AP68: 0.009 | AQ68: 0.009 | AR68: 0.009 | AS68: 0.021 | AT68: 0.021 | AU68: 0.021 | AV68: 0.021 | AW68: 0.021 | AX68: 0 | AY68: 0 | AZ68: 0 | BA68: 0 | BB68: 0 | BC68: 0 | BD68: 0 | BE68: 0 | BF68: 0 | BG68: 0 | BH68: 1 | BI68: 1 | BJ68: 1 | BK68: 1 | BL68: 1 | BM68: 0 | BN68: 0 | BO68: 0 | BP68: 0 | BQ68: 0
A69: Lowell | B69: 0.3411666667 | C69: 0.618 | D69: 0.002328767123 | F69: 3799 | G69: 0.224 | H69: 0.038 | I69: 0 | J69: 0.022 | K69: 0.0006 | L69: 0.05423789954 | M69: 58.96288497 | N69: 3814 | O69: 3967 | P69: 4125 | Q69: 4290 | R69: 4462 | S69: Gaston | T69: 0.2098 | U69: 0.22 | V69: 0.2269 | W69: 0.236 | X69: 0.2454 | Y69: 0.04 | Z69: 0.0412 | AA69: 0.0424 | AB69: 0.0437 | AC69: 0.045 | AD69: 0 | AE69: 0 | AF69: 0 | AG69: 0 | AH69: 0 | AI69: 0.017 | AJ69: 0.0175 | AK69: 0.018 | AL69: 0.0186 | AM69: 0.0191 | AN69: 0.0251 | AO69: 0.0256 | AP69: 0.0261 | AQ69: 0.0266 | AR69: 0.0272 | AS69: 0.04 | AT69: 0.041 | AU69: 0.042 | AV69: 0.043 | AW69: 0.044 | AX69: 0 | AY69: 0 | AZ69: 0 | BA69: 0 | BB69: 0 | BC69: 0 | BD69: 0 | BE69: 0 | BF69: 0 | BG69: 0 | BH69: 0.618 | BI69: 0.618 | BJ69: 0.618 | BK69: 0.618 | BL69: 0.618 | BM69: 0 | BN69: 0 | BO69: 0 | BP69: 0 | BQ69: 0
A70: Dallas | B70: 0.6069166667 | C70: 1 | D70: 0 | F70: 6250 | G70: 0.265 | H70: 0.12 | I70: 0.007 | J70: 0.064 | K70: 0.066 | L70: 0.08491666667 | M70: 42.4 | N70: 6520 | O70: 6585 | P70: 6651 | Q70: 6718 | R70: 6785 | S70: Gaston | T70: 0.2804 | U70: 0.2832 | V70: 0.286 | W70: 0.2889 | X70: 0.2918 | Y70: 0.17 | Z70: 0.17 | AA70: 0.17 | AB70: 0.17 | AC70: 0.17 | AD70: 0.0051 | AE70: 0.0051 | AF70: 0.0051 | AG70: 0.0051 | AH70: 0.0051 | AI70: 0.0763 | AJ70: 0.0763 | AK70: 0.0763 | AL70: 0.0763 | AM70: 0.0763 | AN70: 0.039 | AO70: 0.039 | AP70: 0.039 | AQ70: 0.039 | AR70: 0.039 | AS70: 0.0527 | AT70: 0.0529 | AU70: 0.0532 | AV70: 0.0535 | AW70: 0.0538 | AX70: 0 | AY70: 0 | AZ70: 0 | BA70: 0 | BB70: 0 | BC70: 0 | BD70: 0 | BE70: 0 | BF70: 0 | BG70: 0 | BH70: 0 | BI70: 0 | BJ70: 0 | BK70: 0 | BL70: 0 | BM70: 0 | BN70: 0 | BO70: 0 | BP70: 0 | BQ70: 0
A71: High Shoals | B71: 0.04229166667 | C71: 0.1 | D71: 0 | F71: 700 | G71: 0.0197 | H71: 0.0034 | I71: 0 | J71: 0.0027 | K71: 0.0005 | L71: 0.01599166667 | M71: 28.14285714 | N71: 700 | O71: 710 | P71: 720 | Q71: 730 | R71: 750 | S71: Gaston | T71: 0.028 | U71: 0.0284 | V71: 0.0288 | W71: 0.0292 | X71: 0.03 | Y71: 0.006 | Z71: 0.006 | AA71: 0.006 | AB71: 0.006 | AC71: 0.006 | AD71: 0 | AE71: 0 | AF71: 0 | AG71: 0 | AH71: 0 | AI71: 0.003 | AJ71: 0.003 | AK71: 0.003 | AL71: 0.003 | AM71: 0.003 | AN71: 0.001 | AO71: 0.001 | AP71: 0.001 | AQ71: 0.001 | AR71: 0.001 | AS71: 0.005 | AT71: 0.005 | AU71: 0.005 | AV71: 0.005 | AW71: 0.005 | AX71: 0 | AY71: 0 | AZ71: 0 | BA71: 0 | BB71: 0 | BC71: 0 | BD71: 0 | BE71: 0 | BF71: 0 | BG71: 0 | BH71: 0.1 | BI71: 0.1 | BJ71: 0.1 | BK71: 0.1 | BL71: 0.1 | BM71: 0 | BN71: 0 | BO71: 0 | BP71: 0 | BQ71: 0
A72: Robbinsville | B72: 0.3061666667 | C72: 1.07 | D72: 0 | F72: 3207 | G72: 0.155 | H72: 0.052 | I72: 0 | J72: 0.027 | K72: 0.025 | L72: 0.04716666667 | M72: 48.33177424 | N72: 3213 | O72: 3278 | P72: 3343 | Q72: 3410 | R72: 3478 | S72: Graham | T72: 0.1574 | U72: 0.1606 | V72: 0.1638 | W72: 0.1671 | X72: 0.1704 | Y72: 0.0503 | Z72: 0.0504 | AA72: 0.0514 | AB72: 0.0525 | AC72: 0.0536 | AD72: 0 | AE72: 0 | AF72: 0 | AG72: 0 | AH72: 0 | AI72: 0.0271 | AJ72: 0.0276 | AK72: 0.0281 | AL72: 0.0287 | AM72: 0.0293 | AN72: 0.026 | AO72: 0.0265 | AP72: 0.027 | AQ72: 0.0275 | AR72: 0.028 | AS72: 0.0476 | AT72: 0.0485 | AU72: 0.0495 | AV72: 0.0505 | AW72: 0.0515 | AX72: 0 | AY72: 0 | AZ72: 0 | BA72: 0 | BB72: 0 | BC72: 0 | BD72: 0 | BE72: 0 | BF72: 0 | BG72: 0 | BH72: 0 | BI72: 0 | BJ72: 0 | BK72: 0 | BL72: 0 | BM72: 0 | BN72: 0 | BO72: 0 | BP72: 0 | BQ72: 0
A73: Fontana Dam | B73: 0.2245833333 | C73: 0.5 | D73: 0 | F73: 25 | G73: 0.002 | H73: 0.0378 | I73: 0 | J73: 0 | K73: 0.008 | L73: 0.1767833333 | M73: 80 | N73: 25 | O73: 25 | P73: 25 | Q73: 25 | R73: 25 | S73: Graham | T73: 0.002 | U73: 0.002 | V73: 0.002 | W73: 0.002 | X73: 0.002 | Y73: 0.038 | Z73: 0.038 | AA73: 0.038 | AB73: 0.038 | AC73: 0.038 | AD73: 0 | AE73: 0 | AF73: 0 | AG73: 0 | AH73: 0 | AI73: 0 | AJ73: 0 | AK73: 0 | AL73: 0 | AM73: 0 | AN73: 0.007 | AO73: 0.007 | AP73: 0.007 | AQ73: 0.007 | AR73: 0.007 | AS73: 0.01 | AT73: 0.01 | AU73: 0.01 | AV73: 0.01 | AW73: 0.01 | AX73: 0 | AY73: 0 | AZ73: 0 | BA73: 0 | BB73: 0 | BC73: 0 | BD73: 0 | BE73: 0 | BF73: 0 | BG73: 0 | BH73: 0 | BI73: 0 | BJ73: 0 | BK73: 0 | BL73: 0 | BM73: 0 | BN73: 0 | BO73: 0 | BP73: 0 | BQ73: 0
A74: Lake Santeetlah | B74: 0.012575 | C74: 0.099 | D74: 0 | F74: 50 | G74: 0.0094 | H74: 0 | I74: 0 | J74: 0 | K74: 0.001 | L74: 0.002175 | M74: 188 | N74: 50 | O74: 50 | P74: 50 | Q74: 50 | R74: 50 | S74: Graham | T74: 0.01 | U74: 0.01 | V74: 0.01 | W74: 0.01 | X74: 0.01 | Y74: 0 | Z74: 0 | AA74: 0 | AB74: 0 | AC74: 0 | AD74: 0 | AE74: 0 | AF74: 0 | AG74: 0 | AH74: 0 | AI74: 0 | AJ74: 0 | AK74: 0 | AL74: 0 | AM74: 0 | AN74: 0.0015 | AO74: 0.0015 | AP74: 0.0015 | AQ74: 0.0015 | AR74: 0.0015 | AS74: 0.002 | AT74: 0.002 | AU74: 0.002 | AV74: 0.002 | AW74: 0.002 | AX74: 0 | AY74: 0 | AZ74: 0 | BA74: 0 | BB74: 0 | BC74: 0 | BD74: 0 | BE74: 0 | BF74: 0 | BG74: 0 | BH74: 0 | BI74: 0 | BJ74: 0 | BK74: 0 | BL74: 0 | BM74: 0 | BN74: 0 | BO74: 0 | BP74: 0 | BQ74: 0
A75: Waynesville | B75: 3.655166667 | C75: 10.5 | D75: 0.5146 | F75: 17000 | G75: 0.678 | H75: 0.349 | I75: 0.869 | J75: 0 | K75: 0.065 | L75: 1.179566667 | M75: 39.88235294 | N75: 17350 | O75: 19000 | P75: 20800 | Q75: 22600 | R75: 24500 | S75: Haywood | T75: 0.75 | U75: 0.81 | V75: 0.9 | W75: 0.98 | X75: 1.05 | Y75: 0.35 | Z75: 0.39 | AA75: 0.42 | AB75: 0.44 | AC75: 0.46 | AD75: 0.25 | AE75: 0.265 | AF75: 0.28 | AG75: 0.3 | AH75: 0.32 | AI75: 0 | AJ75: 0 | AK75: 0 | AL75: 0 | AM75: 0 | AN75: 0.08 | AO75: 0.09 | AP75: 0.1 | AQ75: 0.105 | AR75: 0.11 | AS75: 1.4 | AT75: 1.3 | AU75: 1.2 | AV75: 1.1 | AW75: 1 | AX75: 0 | AY75: 0 | AZ75: 0 | BA75: 0 | BB75: 0 | BC75: 0 | BD75: 0 | BE75: 0 | BF75: 0 | BG75: 0 | BH75: 0 | BI75: 0 | BJ75: 0 | BK75: 0 | BL75: 0 | BM75: 1.55 | BN75: 1.55 | BO75: 1.55 | BP75: 1.55 | BQ75: 1.55
A76: Canton | B76: 1.399916667 | C76: 6.8 | D76: 0.23 | F76: 4400 | G76: 0.33 | H76: 0.014 | I76: 0.013 | J76: 0.013 | K76: 0.8 | L76: -8.333333333e-05 | M76: 75 | N76: 4814 | O76: 5189 | P76: 5594 | Q76: 6030 | R76: 6050 | S76: Haywood | T76: 0.385 | U76: 0.415 | V76: 0.447 | W76: 0.482 | X76: 0.5 | Y76: 0.176 | Z76: 0.199 | AA76: 0.204 | AB76: 0.22 | AC76: 0.225 | AD76: 0.154 | AE76: 0.166 | AF76: 0.179 | AG76: 0.193 | AH76: 0.2 | AI76: 0.012 | AJ76: 0.013 | AK76: 0.014 | AL76: 0.015 | AM76: 0.016 | AN76: 0.037 | AO76: 0.042 | AP76: 0.045 | AQ76: 0.046 | AR76: 0.047 | AS76: 0.1326 | AT76: 0.1379 | AU76: 0.1418 | AV76: 0.1467 | AW76: 0.149 | AX76: 0 | AY76: 0 | AZ76: 0 | BA76: 0 | BB76: 0 | BC76: 0 | BD76: 0 | BE76: 0 | BF76: 0 | BG76: 0 | BH76: 0 | BI76: 0 | BJ76: 0 | BK76: 0 | BL76: 0 | BM76: 1 | BN76: 1 | BO76: 1 | BP76: 1 | BQ76: 1
A77: Clyde | B77: 0.2300833333 | C77: 1 | D77: 0 | F77: 2978 | G77: 0.13 | H77: 0.008 | I77: 0 | J77: 0.0002 | K77: 0.023 | L77: 0.06888333333 | M77: 43.6534587 | N77: 3020 | O77: 3111 | P77: 3204 | Q77: 3300 | R77: 3399 | S77: Haywood | T77: 0.133 | U77: 0.137 | V77: 0.141 | W77: 0.145 | X77: 0.15 | Y77: 0.013 | Z77: 0.014 | AA77: 0.016 | AB77: 0.017 | AC77: 0.018 | AD77: 0 | AE77: 0 | AF77: 0 | AG77: 0 | AH77: 0 | AI77: 0.004 | AJ77: 0.004 | AK77: 0.004 | AL77: 0.005 | AM77: 0.005 | AN77: 0 | AO77: 0 | AP77: 0 | AQ77: 0 | AR77: 0 | AS77: 0.04 | AT77: 0.04 | AU77: 0.04 | AV77: 0.04 | AW77: 0.04 | AX77: 0 | AY77: 0 | AZ77: 0 | BA77: 0 | BB77: 0 | BC77: 0 | BD77: 0 | BE77: 0 | BF77: 0 | BG77: 0 | BH77: 1 | BI77: 1 | BJ77: 1 | BK77: 1 | BL77: 1 | BM77: 0 | BN77: 0 | BO77: 0 | BP77: 0 | BQ77: 0
A78: Junaluska SD | B78: 0.3543333333 | C78: 0.75 | D78: 0 | F78: 4800 | G78: 0.1804 | H78: 0.0436 | I78: 0 | J78: 0.0772 | K78: 0.001 | L78: 0.05213333333 | M78: 37.58333333 | N78: 4825 | O78: 5160 | P78: 5525 | Q78: 5880 | R78: 6250 | S78: Haywood | T78: 0.187 | U78: 0.2 | V78: 0.212 | W78: 0.226 | X78: 0.241 | Y78: 0.042 | Z78: 0.0425 | AA78: 0.0435 | AB78: 0.0455 | AC78: 0.0465 | AD78: 0 | AE78: 0 | AF78: 0 | AG78: 0 | AH78: 0 | AI78: 0.079 | AJ78: 0.081 | AK78: 0.083 | AL78: 0.085 | AM78: 0.087 | AN78: 0.001 | AO78: 0.001 | AP78: 0.001 | AQ78: 0.001 | AR78: 0.001 | AS78: 0.047 | AT78: 0.051 | AU78: 0.054 | AV78: 0.057 | AW78: 0.06 | AX78: 0 | AY78: 0 | AZ78: 0 | BA78: 0 | BB78: 0 | BC78: 0 | BD78: 0 | BE78: 0 | BF78: 0 | BG78: 0 | BH78: 0.75 | BI78: 0.75 | BJ78: 0.75 | BK78: 0.75 | BL78: 0.75 | BM78: 0 | BN78: 0 | BO78: 0 | BP78: 0 | BQ78: 0
A79: Maggie Valley SD | B79: 1.064166667 | C79: 2 | D79: 0 | F79: 9527 | G79: 0.4579 | H79: 0.2678 | I79: 0.029 | J79: 0.039 | K79: 0.088 | L79: 0.1824666667 | M79: 48.06339876 | N79: 9852 | O79: 12530 | P79: 14530 | Q79: 16600 | R79: 18800 | S79: Haywood | T79: 0.51 | U79: 0.62 | V79: 0.72 | W79: 0.82 | X79: 0.92 | Y79: 0.277 | Z79: 0.282 | AA79: 0.299 | AB79: 0.328 | AC79: 0.34 | AD79: 0.032 | AE79: 0.033 | AF79: 0.034 | AG79: 0.034 | AH79: 0.035 | AI79: 0.038 | AJ79: 0.038 | AK79: 0.041 | AL79: 0.045 | AM79: 0.046 | AN79: 0.105 | AO79: 0.125 | AP79: 0.145 | AQ79: 0.16 | AR79: 0.18 | AS79: 0.1873 | AT79: 0.2148 | AU79: 0.2428 | AV79: 0.272 | AW79: 0.2989 | AX79: 0 | AY79: 0 | AZ79: 0 | BA79: 0 | BB79: 0 | BC79: 0 | BD79: 0 | BE79: 0 | BF79: 0 | BG79: 0 | BH79: 0.5 | BI79: 0.5 | BJ79: 0.5 | BK79: 0.5 | BL79: 0.5 | BM79: 0 | BN79: 0 | BO79: 0 | BP79: 0 | BQ79: 0
A80: Hendersonville | B80: 7.0438 | C80: 16.5 | D80: 0.249 | F80: 65000 | G80: 2.841 | H80: 1.736 | I80: 0.053 | J80: 0 | K80: 0.1 | L80: 2.0648 | M80: 43.70769231 | N80: 66964 | O80: 77714 | P80: 90190 | Q80: 91659 | R80: 99464 | S80: Henderson | T80: 2.8104 | U80: 3.2616 | V80: 3.7852 | W80: 4.3929 | X80: 5.0981 | Y80: 1.777 | Z80: 2.166 | AA80: 2.64 | AB80: 3.218 | AC80: 3.923 | AD80: 0.744 | AE80: 0.907 | AF80: 1.106 | AG80: 1.348 | AH80: 1.643 | AI80: 0 | AJ80: 0 | AK80: 0 | AL80: 0 | AM80: 0 | AN80: 0.1545 | AO80: 0.1793 | AP80: 0.2081 | AQ80: 0.2415 | AR80: 0.2803 | AS80: 2.4263 | AT80: 2.881 | AU80: 3.423 | AV80: 4.0692 | AW80: 4.8405 | AX80: 0 | AY80: 3 | AZ80: 3 | BA80: 3 | BB80: 3 | BC80: 0 | BD80: 0 | BE80: 0 | BF80: 0 | BG80: 0 | BH80: 0 | BI80: 0 | BJ80: 0 | BK80: 0 | BL80: 0 | BM80: 0.434 | BN80: 0.434 | BO80: 0.434 | BP80: 0.434 | BQ80: 0.434
A81: Laurel Park | B81: 0.1316666667 | C81: 0.234 | D81: 0 | F81: 1680 | G81: 0.085 | H81: 0.015 | I81: 0 | J81: 0 | K81: 0.004 | L81: 0.02766666667 | M81: 50.5952381 | N81: 1704 | O81: 1730 | P81: 1756 | Q81: 1782 | R81: 1809 | S81: Henderson | T81: 0.086 | U81: 0.088 | V81: 0.089 | W81: 0.09 | X81: 0.092 | Y81: 0.011 | Z81: 0.011 | AA81: 0.012 | AB81: 0.012 | AC81: 0.012 | AD81: 0 | AE81: 0 | AF81: 0 | AG81: 0 | AH81: 0 | AI81: 0 | AJ81: 0 | AK81: 0 | AL81: 0 | AM81: 0 | AN81: 0.003 | AO81: 0.003 | AP81: 0.003 | AQ81: 0.003 | AR81: 0.003 | AS81: 0.0245 | AT81: 0.025 | AU81: 0.0255 | AV81: 0.0257 | AW81: 0.0262 | AX81: 0 | AY81: 0 | AZ81: 0 | BA81: 0 | BB81: 0 | BC81: 0 | BD81: 0 | BE81: 0 | BF81: 0 | BG81: 0 | BH81: 0.234 | BI81: 0.234 | BJ81: 0.234 | BK81: 0.234 | BL81: 0.234 | BM81: 0 | BN81: 0 | BO81: 0 | BP81: 0 | BQ81: 0
A82: Statesville | B82: 3.152833333 | C82: 15 | D82: 0.0796890411 | F82: 25000 | G82: 1.202 | H82: 1.148 | I82: 0.239 | J82: 0.08 | K82: 0.036 | L82: 0.3681442922 | M82: 48.08 | N82: 25000 | O82: 28030 | P82: 30830 | Q82: 33910 | R82: 37310 | S82: Iredell | T82: 1.175 | U82: 1.3174 | V82: 1.449 | W82: 1.5938 | X82: 1.7536 | Y82: 1.025 | Z82: 1.168 | AA82: 1.285 | AB82: 1.414 | AC82: 1.555 | AD82: 0.1734 | AE82: 0.1907 | AF82: 0.2098 | AG82: 0.2308 | AH82: 0.2539 | AI82: 0.2683 | AJ82: 0.2951 | AK82: 0.3246 | AL82: 0.3571 | AM82: 0.3928 | AN82: 0.25 | AO82: 0.25 | AP82: 0.25 | AQ82: 0.25 | AR82: 0.25 | AS82: 0.35 | AT82: 0.36 | AU82: 0.37 | AV82: 0.38 | AW82: 0.39 | AX82: 0 | AY82: 0 | AZ82: 0 | BA82: 0 | BB82: 0 | BC82: 0 | BD82: 0 | BE82: 0 | BF82: 0 | BG82: 0 | BH82: 0 | BI82: 0 | BJ82: 0 | BK82: 0 | BL82: 0 | BM82: 2 | BN82: 2 | BO82: 2 | BP82: 2 | BQ82: 2
A83: Mooresville | B83: 6.948833333 | C83: 18 | D83: 0.1748 | F83: 42000 | G83: 2.3 | H83: 1.2 | I83: 1.9 | J83: 0.28 | K83: 0.037 | L83: 1.057033333 | M83: 54.76190476 | N83: 42500 | O83: 51850 | P83: 62730 | Q83: 73600 | R83: 84470 | S83: Iredell | T83: 2.215 | U83: 2.593 | V83: 3.1365 | W83: 3.68 | X83: 4.2235 | Y83: 1.3 | Z83: 1.9 | AA83: 2.75 | AB83: 3.55 | AC83: 4.75 | AD83: 2.2 | AE83: 3 | AF83: 3 | AG83: 3.5 | AH83: 3.5 | AI83: 0.24 | AJ83: 0.29 | AK83: 0.35 | AL83: 0.42 | AM83: 0.5 | AN83: 0.035 | AO83: 0.035 | AP83: 0.035 | AQ83: 0.035 | AR83: 0.035 | AS83: 0.938 | AT83: 1.176 | AU83: 1.384 | AV83: 1.669 | AW83: 1.939 | AX83: 0 | AY83: 0 | AZ83: 0 | BA83: 0 | BB83: 0 | BC83: 0 | BD83: 0 | BE83: 0 | BF83: 0 | BG83: 0 | BH83: 0 | BI83: 0 | BJ83: 0 | BK83: 0 | BL83: 0 | BM83: 0.756 | BN83: 0.756 | BO83: 0.756 | BP83: 0.756 | BQ83: 0.756
A84: Iredell Water Corporation | B84: 2.08225 | C84: 4.145 | D84: 0.0029 | F84: 24011 | G84: 1.173 | H84: 0.244 | I84: 0.077 | J84: 0.095 | K84: 0.044 | L84: 0.44635 | M84: 48.85260922 | N84: 23678 | O84: 28678 | P84: 35338 | Q84: 44218 | R84: 56058 | S84: Iredell | T84: 1.24 | U84: 1.491 | V84: 1.838 | W84: 2.299 | X84: 2.915 | Y84: 0.233 | Z84: 0.245 | AA84: 0.258 | AB84: 0.28 | AC84: 0.28 | AD84: 0.097 | AE84: 0.102 | AF84: 0.108 | AG84: 0.114 | AH84: 0.114 | AI84: 0.044 | AJ84: 0.046 | AK84: 0.049 | AL84: 0.052 | AM84: 0.052 | AN84: 0.04 | AO84: 0.041 | AP84: 0.0419 | AQ84: 0.0429 | AR84: 0.0438 | AS84: 0.4957 | AT84: 0.5769 | AU84: 0.6877 | AV84: 0.8355 | AW84: 1.0204 | AX84: 0.144 | AY84: 0.324 | AZ84: 0.324 | BA84: 0.324 | BB84: 0.324 | BC84: 0 | BD84: 0 | BE84: 0 | BF84: 0 | BG84: 0 | BH84: 0.0959 | BI84: 0.0959 | BJ84: 0.0785 | BK84: 0.0785 | BL84: 0.0785 | BM84: 0.0029 | BN84: 0.0029 | BO84: 0.0029 | BP84: 0.0029 | BQ84: 0.0029
A85: Troutman | B85: 0.3894083333 | C85: 0.5 | D85: 0 | F85: 4511 | G85: 0.2458 | H85: 0.0648 | I85: 0.0082 | J85: 0.0003 | K85: 0.0112 | L85: 0.05910833333 | M85: 54.48902682 | N85: 4679 | O85: 5614 | P85: 6615 | Q85: 7795 | R85: 9185 | S85: Iredell | T85: 0.2549 | U85: 0.3058 | V85: 0.3603 | W85: 0.4245 | X85: 0.5001 | Y85: 0.0649 | Z85: 0.0778 | AA85: 0.0917 | AB85: 0.1081 | AC85: 0.1274 | AD85: 0.0082 | AE85: 0.0082 | AF85: 0.0082 | AG85: 0.0082 | AH85: 0.0082 | AI85: 0.0003 | AJ85: 0.0003 | AK85: 0.0003 | AL85: 0.0003 | AM85: 0.0003 | AN85: 0.0112 | AO85: 0.012 | AP85: 0.012 | AQ85: 0.012 | AR85: 0.012 | AS85: 0.0605 | AT85: 0.0721 | AU85: 0.0843 | AV85: 0.0986 | AW85: 0.1156 | AX85: 0 | AY85: 0 | AZ85: 0 | BA85: 0 | BB85: 0 | BC85: 0 | BD85: 0 | BE85: 0 | BF85: 0 | BG85: 0 | BH85: 0.5 | BI85: 0 | BJ85: 0 | BK85: 0 | BL85: 0 | BM85: 0 | BN85: 0 | BO85: 0 | BP85: 0 | BQ85: 0
A86: West Iredell Water Company | B86: 0.3630833333 | C86: 1.2 | D86: 0 | F86: 5763 | G86: 0.266 | H86: 0.012 | I86: 0.02 | J86: 0.016 | K86: 0.011 | L86: 0.03808333333 | M86: 46.1565157 | N86: 6426 | O86: 7711 | P86: 9253 | Q86: 11104 | R86: 13325 | S86: Iredell | T86: 0.312 | U86: 0.368 | V86: 0.434 | W86: 0.512 | X86: 0.604 | Y86: 0.007 | Z86: 0.008 | AA86: 0.009 | AB86: 0.011 | AC86: 0.013 | AD86: 0.007 | AE86: 0.008 | AF86: 0.009 | AG86: 0.011 | AH86: 0.013 | AI86: 0.018 | AJ86: 0.021 | AK86: 0.025 | AL86: 0.03 | AM86: 0.035 | AN86: 0.003 | AO86: 0.003 | AP86: 0.004 | AQ86: 0.004 | AR86: 0.004 | AS86: 0.055 | AT86: 0.065 | AU86: 0.077 | AV86: 0.091 | AW86: 0.107 | AX86: 0 | AY86: 0 | AZ86: 0 | BA86: 0 | BB86: 0 | BC86: 0 | BD86: 0 | BE86: 0 | BF86: 0 | BG86: 0 | BH86: 1.311 | BI86: 1 | BJ86: 1 | BK86: 1 | BL86: 1 | BM86: 0 | BN86: 0 | BO86: 0 | BP86: 0 | BQ86: 0
A87: The Harbour / The Point | B87: 0.7136666667 | C87: 1.772 | D87: 0 | F87: 4045 | G87: 0.6153 | H87: 0.0215 | I87: 0 | J87: 0 | K87: 0.005 | L87: 0.07186666667 | M87: 152.1137206 | N87: 4082 | O87: 4449 | P87: 4816 | Q87: 5182 | R87: 5549 | S87: Iredell | T87: 0.62 | U87: 0.638 | V87: 0.676 | W87: 0.712 | X87: 0.739 | Y87: 0.0225 | Z87: 0.0231 | AA87: 0.0245 | AB87: 0.0258 | AC87: 0.0268 | AD87: 0 | AE87: 0 | AF87: 0 | AG87: 0 | AH87: 0 | AI87: 0 | AJ87: 0 | AK87: 0 | AL87: 0 | AM87: 0 | AN87: 0.005 | AO87: 0.006 | AP87: 0.007 | AQ87: 0.007 | AR87: 0.007 | AS87: 0.0752 | AT87: 0.0774 | AU87: 0.0821 | AV87: 0.0865 | AW87: 0.0897 | AX87: 0 | AY87: 0 | AZ87: 0 | BA87: 0 | BB87: 0 | BC87: 0 | BD87: 0 | BE87: 0 | BF87: 0 | BG87: 0 | BH87: 0.656 | BI87: 0.656 | BJ87: 0.656 | BK87: 0.656 | BL87: 0.656 | BM87: 0 | BN87: 0 | BO87: 0 | BP87: 0 | BQ87: 0
A88: Tuckaseigee WS Authority | B88: 0.95815 | C88: 11.2 | D88: 0.0114 | F88: 6858 | G88: 0.3837 | H88: 0.2556 | I88: 0.0888 | J88: 0.0165 | K88: 0.131 | L88: 0.07115 | M88: 55.94925634 | N88: 6858 | O88: 10039 | P88: 11043 | Q88: 12147 | R88: 13362 | S88: Jackson | T88: 0.3837 | U88: 0.5622 | V88: 0.6184 | W88: 0.6802 | X88: 0.7483 | Y88: 0.2556 | Z88: 0.363 | AA88: 0.4 | AB88: 0.44 | AC88: 0.5 | AD88: 0.0888 | AE88: 0.0977 | AF88: 0.1074 | AG88: 0.1182 | AH88: 0.13 | AI88: 0.0165 | AJ88: 0.0168 | AK88: 0.0185 | AL88: 0.0204 | AM88: 0.0224 | AN88: 0.1885 | AO88: 0.1885 | AP88: 0.1885 | AQ88: 0.1885 | AR88: 0.1885 | AS88: 0.08 | AT88: 0.088 | AU88: 0.0968 | AV88: 0.1065 | AW88: 0.1171 | AX88: 0 | AY88: 0 | AZ88: 0 | BA88: 0 | BB88: 0 | BC88: 0 | BD88: 0 | BE88: 0 | BF88: 0 | BG88: 0 | BH88: 0 | BI88: 0 | BJ88: 0 | BK88: 0 | BL88: 0 | BM88: 0.0114 | BN88: 0.0114 | BO88: 0.0114 | BP88: 0.0114 | BQ88: 0.0114
A89: Fairfield Sapphire | B89: 0.4415 | C89: 0.644 | D89: 0 | F89: 3912 | G89: 0.1267 | H89: 0.021 | I89: 0 | J89: 0 | K89: 0.021 | L89: 0.2728 | M89: 32.38752556 | N89: 3949 | O89: 4320 | P89: 4691 | Q89: 4788 | R89: 4788 | S89: Jackson | T89: 0.1279 | U89: 0.1341 | V89: 0.1474 | W89: 0.1508 | X89: 0.1508 | Y89: 0.0211 | Z89: 0.022 | AA89: 0.022 | AB89: 0.022 | AC89: 0.022 | AD89: 0 | AE89: 0 | AF89: 0 | AG89: 0 | AH89: 0 | AI89: 0 | AJ89: 0 | AK89: 0 | AL89: 0 | AM89: 0 | AN89: 0.021 | AO89: 0.023 | AP89: 0.023 | AQ89: 0.023 | AR89: 0.023 | AS89: 0.2745 | AT89: 0.2892 | AU89: 0.3107 | AV89: 0.3162 | AW89: 0.3162 | AX89: 0 | AY89: 0 | AZ89: 0 | BA89: 0 | BB89: 0 | BC89: 0 | BD89: 0 | BE89: 0 | BF89: 0 | BG89: 0 | BH89: 0 | BI89: 0 | BJ89: 0 | BK89: 0 | BL89: 0 | BM89: 0 | BN89: 0 | BO89: 0 | BP89: 0 | BQ89: 0
A90: Western Carolina University | B90: 0.2790833333 | C90: 12 | D90: 0 | F90: 7700 | G90: 0 | H90: 0 | I90: 0 | J90: 0.2378 | K90: 0.004 | L90: 0.03728333333 | M90: 0 | N90: 8200 | O90: 10144 | P90: 12500 | Q90: 14400 | R90: 16641 | S90: Jackson | T90: 0 | U90: 0 | V90: 0 | W90: 0 | X90: 0 | Y90: 0 | Z90: 0 | AA90: 0 | AB90: 0 | AC90: 0 | AD90: 0 | AE90: 0 | AF90: 0 | AG90: 0 | AH90: 0 | AI90: 0.253 | AJ90: 0.3036 | AK90: 0.3625 | AL90: 0.385 | AM90: 0.416 | AN90: 0.004 | AO90: 0.005 | AP90: 0.005 | AQ90: 0.005 | AR90: 0.005 | AS90: 0.0395 | AT90: 0.0475 | AU90: 0.0565 | AV90: 0.06 | AW90: 0.0648 | AX90: 0 | AY90: 0 | AZ90: 0 | BA90: 0 | BB90: 0 | BC90: 0 | BD90: 0 | BE90: 0 | BF90: 0 | BG90: 0 | BH90: 0 | BI90: 0 | BJ90: 0 | BK90: 0 | BL90: 0 | BM90: 0 | BN90: 0 | BO90: 0 | BP90: 0 | BQ90: 0
A91: Lincolnton | B91: 2.821583333 | C91: 12 | D91: 0.6406443836 | F91: 12320 | G91: 0.676 | H91: 0.327 | I91: 0.221 | J91: 0.179 | K91: 0.3482 | L91: 0.4297389498 | M91: 54.87012987 | N91: 12823 | O91: 14875 | P91: 17255 | Q91: 20015 | R91: 23217 | S91: Lincoln | T91: 0.6412 | U91: 0.7438 | V91: 0.8628 | W91: 1.001 | X91: 1.1609 | Y91: 0.3274 | Z91: 0.3929 | AA91: 0.4714 | AB91: 0.5657 | AC91: 0.6789 | AD91: 0.4 | AE91: 0.48 | AF91: 0.576 | AG91: 0.6912 | AH91: 0.8294 | AI91: 0.171 | AJ91: 0.205 | AK91: 0.245 | AL91: 0.294 | AM91: 0.3525 | AN91: 0.275 | AO91: 0.277 | AP91: 0.279 | AQ91: 0.281 | AR91: 0.283 | AS91: 0.7286 | AT91: 0.7742 | AU91: 0.8294 | AV91: 0.8953 | AW91: 1.0125 | AX91: 0 | AY91: 0 | AZ91: 0 | BA91: 0 | BB91: 0 | BC91: 0 | BD91: 0 | BE91: 0 | BF91: 0 | BG91: 0 | BH91: 0 | BI91: 0 | BJ91: 0 | BK91: 0 | BL91: 0 | BM91: 2.25 | BN91: 2.25 | BO91: 2.25 | BP91: 2.25 | BQ91: 2.25
A92: Lincoln County | B92: 4.9159 | C92: 9.35 | D92: 0.042 | F92: 34229 | G92: 2.003 | H92: 0.3422 | I92: 0.3488 | J92: 0.152 | K92: 0.5551 | L92: 1.4728 | M92: 58.51763125 | N92: 36438 | O92: 49344 | P92: 64146 | Q92: 86726 | R92: 112744 | S92: Lincoln | T92: 2.42 | U92: 3.147 | V92: 4.091 | W92: 5.318 | X92: 6.914 | Y92: 0.366 | Z92: 0.392 | AA92: 0.51 | AB92: 0.663 | AC92: 0.862 | AD92: 0.366 | AE92: 0.418 | AF92: 0.543 | AG92: 0.706 | AH92: 0.918 | AI92: 0.221 | AJ92: 0.288 | AK92: 0.308 | AL92: 0.4 | AM92: 0.52 | AN92: 0.5572 | AO92: 0.5572 | AP92: 0.5572 | AQ92: 0.5572 | AR92: 0.5572 | AS92: 1 | AT92: 1 | AU92: 1 | AV92: 1 | AW92: 1 | AX92: 3.11 | AY92: 3.61 | AZ92: 3.61 | BA92: 3.61 | BB92: 3.61 | BC92: 0 | BD92: 0 | BE92: 0 | BF92: 0 | BG92: 0 | BH92: 2.25 | BI92: 2.25 | BJ92: 2.25 | BK92: 2.25 | BL92: 2.25 | BM92: 0.1 | BN92: 0.1 | BO92: 0.1 | BP92: 0.1 | BQ92: 0.1
A93: Marion | B93: 1.6646 | C93: 4.1 | D93: 0.0681 | F93: 8668 | G93: 0.482 | H93: 0.301 | I93: 0.178 | J93: 0.11 | K93: 0.375 | L93: 0.1505 | M93: 55.60682972 | N93: 8685 | O93: 8772 | P93: 8860 | Q93: 8948 | R93: 9038 | S93: McDowell | T93: 0.478 | U93: 0.4825 | V93: 0.4873 | W93: 0.4921 | X93: 0.4971 | Y93: 0.3013 | Z93: 0.3043 | AA93: 0.3074 | AB93: 0.3104 | AC93: 0.3135 | AD93: 0.17 | AE93: 0.1717 | AF93: 0.1734 | AG93: 0.1752 | AH93: 0.1769 | AI93: 0.117 | AJ93: 0.1182 | AK93: 0.1194 | AL93: 0.1205 | AM93: 0.1218 | AN93: 0.36 | AO93: 0.3636 | AP93: 0.3672 | AQ93: 0.3709 | AR93: 0.3746 | AS93: 0.1273 | AT93: 0.1288 | AU93: 0.1303 | AV93: 0.1317 | AW93: 0.1332 | AX93: 0 | AY93: 0 | AZ93: 0 | BA93: 0 | BB93: 0 | BC93: 0 | BD93: 0 | BE93: 0 | BF93: 0 | BG93: 0 | BH93: 0 | BI93: 0 | BJ93: 0 | BK93: 0 | BL93: 0 | BM93: 0.2 | BN93: 0.2 | BO93: 0.2 | BP93: 0.2 | BQ93: 0.2
A94: Old Fort | B94: 0.2678333333 | C94: 0.645 | D94: 0 | F94: 1740 | G94: 0.058 | H94: 0.062 | I94: 0.059 | J94: 0.005 | K94: 0.039 | L94: 0.04483333333 | M94: 33.33333333 | N94: 1750 | O94: 1785 | P94: 1821 | Q94: 1857 | R94: 1894 | S94: McDowell | T94: 0.063 | U94: 0.0643 | V94: 0.0656 | W94: 0.0669 | X94: 0.0682 | Y94: 0.0622 | Z94: 0.0624 | AA94: 0.0626 | AB94: 0.0628 | AC94: 0.063 | AD94: 0.061 | AE94: 0.062 | AF94: 0.063 | AG94: 0.064 | AH94: 0.065 | AI94: 0.0052 | AJ94: 0.0054 | AK94: 0.0056 | AL94: 0.0058 | AM94: 0.006 | AN94: 0.04 | AO94: 0.041 | AP94: 0.042 | AQ94: 0.043 | AR94: 0.044 | AS94: 0.0461 | AT94: 0.0471 | AU94: 0.0481 | AV94: 0.0492 | AW94: 0.0502 | AX94: 0 | AY94: 0 | AZ94: 0 | BA94: 0 | BB94: 0 | BC94: 0 | BD94: 0 | BE94: 0 | BF94: 0 | BG94: 0 | BH94: 0 | BI94: 0 | BJ94: 0 | BK94: 0 | BL94: 0 | BM94: 0 | BN94: 0 | BO94: 0 | BP94: 0 | BQ94: 0
A95: Franklin | B95: 1.085833333 | C95: 3.1 | D95: 0 | F95: 6712 | G95: 0.302 | H95: 0.529 | I95: 0 | J95: 0 | K95: 0.1053 | L95: 0.1495333333 | M95: 44.99404052 | N95: 6800 | O95: 7900 | P95: 9200 | Q95: 10600 | R95: 12300 | S95: Macon | T95: 0.342 | U95: 0.38 | V95: 0.421 | W95: 0.467 | X95: 0.519 | Y95: 0.55 | Z95: 0.61 | AA95: 0.67 | AB95: 0.74 | AC95: 0.81 | AD95: 0 | AE95: 0 | AF95: 0 | AG95: 0 | AH95: 0 | AI95: 0 | AJ95: 0 | AK95: 0 | AL95: 0 | AM95: 0 | AN95: 0.06 | AO95: 0.06 | AP95: 0.06 | AQ95: 0.06 | AR95: 0.06 | AS95: 0.1711 | AT95: 0.1887 | AU95: 0.2068 | AV95: 0.2277 | AW95: 0.2496 | AX95: 0 | AY95: 0 | AZ95: 0 | BA95: 0 | BB95: 0 | BC95: 0 | BD95: 0 | BE95: 0 | BF95: 0 | BG95: 0 | BH95: 0 | BI95: 0 | BJ95: 0 | BK95: 0 | BL95: 0 | BM95: 0 | BN95: 0 | BO95: 0 | BP95: 0 | BQ95: 0
A96: Highlands | B96: 0.76825 | C96: 4.6 | D96: 0 | F96: 941 | G96: 0.186 | H96: 0.083 | I96: 0 | J96: 0 | K96: 0.034 | L96: 0.46525 | M96: 197.6620616 | N96: 960 | O96: 1152 | P96: 1382 | Q96: 1659 | R96: 1990 | S96: Macon | T96: 0.2064 | U96: 0.2477 | V96: 0.2972 | W96: 0.3567 | X96: 0.428 | Y96: 0.1 | Z96: 0.12 | AA96: 0.144 | AB96: 0.1728 | AC96: 0.2074 | AD96: 0 | AE96: 0 | AF96: 0 | AG96: 0 | AH96: 0 | AI96: 0 | AJ96: 0 | AK96: 0 | AL96: 0 | AM96: 0 | AN96: 0.04 | AO96: 0.04 | AP96: 0.04 | AQ96: 0.04 | AR96: 0.04 | AS96: 0.24 | AT96: 0.24 | AU96: 0.24 | AV96: 0.24 | AW96: 0.24 | AX96: 0 | AY96: 0 | AZ96: 0 | BA96: 0 | BB96: 0 | BC96: 0 | BD96: 0 | BE96: 0 | BF96: 0 | BG96: 0 | BH96: 0 | BI96: 0 | BJ96: 0 | BK96: 0 | BL96: 0 | BM96: 0 | BN96: 0 | BO96: 0 | BP96: 0 | BQ96: 0
A97: Mars Hill | B97: 0.3011666667 | C97: 0.6 | D97: 0 | F97: 3150 | G97: 0.105 | H97: 0.107 | I97: 0.003 | J97: 0.0456 | K97: 0.006 | L97: 0.03456666667 | M97: 33.33333333 | N97: 3502 | O97: 3902 | P97: 4302 | Q97: 4702 | R97: 5102 | S97: Madison | T97: 0.125 | U97: 0.128 | V97: 0.131 | W97: 0.134 | X97: 0.137 | Y97: 0.045 | Z97: 0.045 | AA97: 0.046 | AB97: 0.046 | AC97: 0.047 | AD97: 0.002 | AE97: 0.002 | AF97: 0.003 | AG97: 0.003 | AH97: 0.004 | AI97: 0.085 | AJ97: 0.085 | AK97: 0.087 | AL97: 0.087 | AM97: 0.09 | AN97: 0.02 | AO97: 0.02 | AP97: 0.02 | AQ97: 0.02 | AR97: 0.02 | AS97: 0.017 | AT97: 0.017 | AU97: 0.018 | AV97: 0.018 | AW97: 0.019 | AX97: 0 | AY97: 0 | AZ97: 0 | BA97: 0 | BB97: 0 | BC97: 0 | BD97: 0 | BE97: 0 | BF97: 0 | BG97: 0 | BH97: 0 | BI97: 0 | BJ97: 0 | BK97: 0 | BL97: 0 | BM97: 0 | BN97: 0 | BO97: 0 | BP97: 0 | BQ97: 0
A98: Marshall | B98: 0.1342583333 | C98: 0.2506 | D98: 0 | F98: 947 | G98: 0.044 | H98: 0.011 | I98: 0.003 | J98: 0.029 | K98: 0 | L98: 0.04725833333 | M98: 46.4625132 | N98: 948 | O98: 976 | P98: 1020 | Q98: 1050 | R98: 1081 | S98: Madison | T98: 0.046 | U98: 0.0474 | V98: 0.0494 | W98: 0.0505 | X98: 0.0525 | Y98: 0.0113 | Z98: 0.0113 | AA98: 0.0113 | AB98: 0.0113 | AC98: 0.0113 | AD98: 0.0031 | AE98: 0.0032 | AF98: 0.0033 | AG98: 0.0033 | AH98: 0.0033 | AI98: 0.0309 | AJ98: 0.0309 | AK98: 0.0309 | AL98: 0.0309 | AM98: 0.0309 | AN98: 0 | AO98: 0 | AP98: 0 | AQ98: 0 | AR98: 0 | AS98: 0.0377 | AT98: 0.0383 | AU98: 0.0392 | AV98: 0.0396 | AW98: 0.0404 | AX98: 0 | AY98: 0 | AZ98: 0 | BA98: 0 | BB98: 0 | BC98: 0 | BD98: 0 | BE98: 0 | BF98: 0 | BG98: 0 | BH98: 0 | BI98: 0 | BJ98: 0 | BK98: 0 | BL98: 0 | BM98: 0 | BN98: 0 | BO98: 0 | BP98: 0 | BQ98: 0
A99: Hot Springs | B99: 0.1605 | C99: 0.23 | D99: 0 | F99: 643 | G99: 0.095 | H99: 0.035 | I99: 0.005 | J99: 0.003 | K99: 0 | L99: 0.0225 | M99: 147.7449456 | N99: 650 | O99: 675 | P99: 675 | Q99: 700 | R99: 700 | S99: Madison | T99: 0.08 | U99: 0.083 | V99: 0.083 | W99: 0.086 | X99: 0.086 | Y99: 0.03 | Z99: 0.03 | AA99: 0.03 | AB99: 0.03 | AC99: 0.03 | AD99: 0.005 | AE99: 0.007 | AF99: 0.007 | AG99: 0.007 | AH99: 0.007 | AI99: 0.008 | AJ99: 0.01 | AK99: 0.01 | AL99: 0.01 | AM99: 0.01 | AN99: 0.001 | AO99: 0.001 | AP99: 0.001 | AQ99: 0.001 | AR99: 0.001 | AS99: 0.02 | AT99: 0.02 | AU99: 0.02 | AV99: 0.02 | AW99: 0.02 | AX99: 0 | AY99: 0.1 | AZ99: 0.1 | BA99: 0.1 | BB99: 0.1 | BC99: 0 | BD99: 0 | BE99: 0 | BF99: 0 | BG99: 0 | BH99: 0 | BI99: 0 | BJ99: 0 | BK99: 0 | BL99: 0 | BM99: 0 | BN99: 0 | BO99: 0 | BP99: 0 | BQ99: 0
A100: Charlotte Water | B100: 113.2445 | C100: 276 | D100: 0.2684180822 | F100: 1093091 | G100: 61.4651 | H100: 22.7306 | I100: 2.6619 | J100: 4.6965 | K100: 11.2746 | L100: 10.14738192 | M100: 56.23054256 | N100: 1110908 | O100: 1332088 | P100: 1503926 | Q100: 1714476 | R100: 1954502 | S100: Mecklenburg | T100: 62.47 | U100: 70.6 | V100: 79.7 | W100: 90.9 | X100: 103.6 | Y100: 23.1 | Z100: 28.1 | AA100: 32 | AB100: 36.8 | AC100: 42.2 | AD100: 2.71 | AE100: 3.29 | AF100: 3.75 | AG100: 4.3 | AH100: 4.85 | AI100: 4.77 | AJ100: 5.81 | AK100: 6.61 | AL100: 7.59 | AM100: 8.56 | AN100: 5.73 | AO100: 6.98 | AP100: 7.93 | AQ100: 9.11 | AR100: 10.27 | AS100: 15.5059 | AT100: 16.7608 | AU100: 19.5464 | AV100: 22.3336 | AW100: 25.1207 | AX100: 0 | AY100: 0 | AZ100: 0 | BA100: 0 | BB100: 0 | BC100: 0.5 | BD100: 0.5 | BE100: 0.5 | BF100: 0.5 | BG100: 0.5 | BH100: 5 | BI100: 5 | BJ100: 5 | BK100: 5 | BL100: 5 | BM100: 5.4068 | BN100: 5.4068 | BO100: 5.4068 | BP100: 5.4068 | BQ100: 5.4068
A101: Lamplighter South/Danby | B101: 0.207 | C101: 0.563 | D101: 0 | F101: 3341 | G101: 0.1822 | H101: 0.0013 | I101: 0 | J101: 0 | K101: 0.0112 | L101: 0.0123 | M101: 54.53457049 | N101: 3341 | O101: 3344 | P101: 3354 | Q101: 3354 | R101: 3354 | S101: Mecklenburg | T101: 0.1836 | U101: 0.1837 | V101: 0.1843 | W101: 0.1843 | X101: 0.1843 | Y101: 0.0013 | Z101: 0.0013 | AA101: 0.0013 | AB101: 0.0013 | AC101: 0.0013 | AD101: 0 | AE101: 0 | AF101: 0 | AG101: 0 | AH101: 0 | AI101: 0 | AJ101: 0 | AK101: 0 | AL101: 0 | AM101: 0 | AN101: 0.0115 | AO101: 0.0122 | AP101: 0.0126 | AQ101: 0.0126 | AR101: 0.0126 | AS101: 0.0123 | AT101: 0.0124 | AU101: 0.0125 | AV101: 0.0124 | AW101: 0.0124 | AX101: 0.063 | AY101: 0.063 | AZ101: 0.063 | BA101: 0.063 | BB101: 0.063 | BC101: 0 | BD101: 0 | BE101: 0 | BF101: 0 | BG101: 0 | BH101: 0.11 | BI101: 0.11 | BJ101: 0.11 | BK101: 0.11 | BL101: 0.11 | BM101: 0 | BN101: 0 | BO101: 0 | BP101: 0 | BQ101: 0
A102: Bradfield Farms S/D | B102: 0.1958083333 | C102: 0.433 | D102: 0 | F102: 2878 | G102: 0.1828 | H102: 0.0007 | I102: 0 | J102: 0 | K102: 0.0013 | L102: 0.01100833333 | M102: 63.51633079 | N102: 2910 | O102: 2922 | P102: 2922 | Q102: 2922 | R102: 2922 | S102: Mecklenburg | T102: 0.1843 | U102: 0.1851 | V102: 0.1851 | W102: 0.1851 | X102: 0.1851 | Y102: 0.0011 | Z102: 0.0011 | AA102: 0.0011 | AB102: 0.0011 | AC102: 0.0011 | AD102: 0 | AE102: 0 | AF102: 0 | AG102: 0 | AH102: 0 | AI102: 0 | AJ102: 0 | AK102: 0 | AL102: 0 | AM102: 0 | AN102: 0.0013 | AO102: 0.0014 | AP102: 0.0014 | AQ102: 0.0015 | AR102: 0.0015 | AS102: 0.0112 | AT102: 0.0113 | AU102: 0.0113 | AV102: 0.0113 | AW102: 0.0113 | AX102: 0 | AY102: 0 | AZ102: 0 | BA102: 0 | BB102: 0 | BC102: 0 | BD102: 0 | BE102: 0 | BF102: 0 | BG102: 0 | BH102: 0 | BI102: 0 | BJ102: 0 | BK102: 0 | BL102: 0 | BM102: 0 | BN102: 0 | BO102: 0 | BP102: 0 | BQ102: 0
A103: Spruce Pine | B103: 1.392525 | C103: 2.927 | D103: 0.0068 | F103: 2800 | G103: 0.422 | H103: 0.5 | I103: 0 | J103: 0 | K103: 0.02 | L103: 0.443725 | M103: 150.7142857 | N103: 4500 | O103: 4500 | P103: 4500 | Q103: 4750 | R103: 5000 | S103: Mitchell | T103: 0.31 | U103: 0.31 | V103: 0.31 | W103: 0.31 | X103: 0.31 | Y103: 0.42 | Z103: 0.42 | AA103: 0.42 | AB103: 0.42 | AC103: 0.42 | AD103: 0 | AE103: 0 | AF103: 0 | AG103: 0 | AH103: 0 | AI103: 0 | AJ103: 0 | AK103: 0 | AL103: 0 | AM103: 0 | AN103: 0.02 | AO103: 0.02 | AP103: 0.02 | AQ103: 0.02 | AR103: 0.02 | AS103: 0.2655 | AT103: 0.2655 | AU103: 0.2655 | AV103: 0.2655 | AW103: 0.2655 | AX103: 0 | AY103: 0 | AZ103: 0 | BA103: 0 | BB103: 0 | BC103: 0 | BD103: 0 | BE103: 0 | BF103: 0 | BG103: 0 | BH103: 0 | BI103: 0 | BJ103: 0 | BK103: 0 | BL103: 0 | BM103: 0.0068 | BN103: 0.0068 | BO103: 0.0068 | BP103: 0.0068 | BQ103: 0.0068
A104: Bakersville | B104: 0.0515 | C104: 0.066 | D104: 0 | F104: 464 | G104: 0.025 | H104: 0.015 | I104: 0 | J104: 0.005 | K104: 0.001 | L104: 0.0055 | M104: 53.87931034 | N104: 484 | O104: 504 | P104: 524 | Q104: 544 | R104: 564 | S104: Mitchell | T104: 0.027 | U104: 0.029 | V104: 0.031 | W104: 0.033 | X104: 0.035 | Y104: 0.011 | Z104: 0.012 | AA104: 0.013 | AB104: 0.014 | AC104: 0.015 | AD104: 0 | AE104: 0 | AF104: 0 | AG104: 0 | AH104: 0 | AI104: 0.005 | AJ104: 0.006 | AK104: 0.007 | AL104: 0.008 | AM104: 0.009 | AN104: 0.001 | AO104: 0.001 | AP104: 0.001 | AQ104: 0.001 | AR104: 0.001 | AS104: 0.016 | AT104: 0.017 | AU104: 0.019 | AV104: 0.02 | AW104: 0.022 | AX104: 0.029 | AY104: 0.029 | AZ104: 0.029 | BA104: 0.029 | BB104: 0.029 | BC104: 0 | BD104: 0 | BE104: 0 | BF104: 0 | BG104: 0 | BH104: 0 | BI104: 0 | BJ104: 0 | BK104: 0 | BL104: 0 | BM104: 0 | BN104: 0 | BO104: 0 | BP104: 0 | BQ104: 0
A105: Tryon | B105: 0.5148083333 | C105: 2.498 | D105: 0 | F105: 5334 | G105: 0.2926 | H105: 0.1237 | I105: 0.0016 | J105: 0.0029 | K105: 0.0254 | L105: 0.06860833333 | M105: 54.85564304 | N105: 5402 | O105: 5758 | P105: 6099 | Q105: 6459 | R105: 6841 | S105: Polk | T105: 0.2963 | U105: 0.3158 | V105: 0.3344 | W105: 0.3541 | X105: 0.375 | Y105: 0.1252 | Z105: 0.1335 | AA105: 0.1413 | AB105: 0.1497 | AC105: 0.1585 | AD105: 0.0029 | AE105: 0.0031 | AF105: 0.0033 | AG105: 0.0035 | AH105: 0.0037 | AI105: 0.0016 | AJ105: 0.0016 | AK105: 0.0016 | AL105: 0.0016 | AM105: 0.0016 | AN105: 0.0254 | AO105: 0.031 | AP105: 0.032 | AQ105: 0.032 | AR105: 0.032 | AS105: 0.0406 | AT105: 0.0424 | AU105: 0.0443 | AV105: 0.0461 | AW105: 0.0479 | AX105: 0 | AY105: 0 | AZ105: 0 | BA105: 0 | BB105: 0 | BC105: 0 | BD105: 0 | BE105: 0 | BF105: 0 | BG105: 0 | BH105: 0 | BI105: 0 | BJ105: 0 | BK105: 0 | BL105: 0 | BM105: 0 | BN105: 0 | BO105: 0 | BP105: 0 | BQ105: 0
A106: Columbus | B106: ERROR | C106: 0 | D106: 0 | G106: 0 | H106: 0 | I106: 0 | J106: 0 | K106: 0 | M106: ERROR | N106: 0 | O106: 0 | P106: 0 | Q106: 0 | R106: 0 | S106: Polk | T106: 0 | U106: 0 | V106: 0 | W106: 0 | X106: 0 | Y106: 0 | Z106: 0 | AA106: 0 | AB106: 0 | AC106: 0 | AD106: 0 | AE106: 0 | AF106: 0 | AG106: 0 | AH106: 0 | AI106: 0 | AJ106: 0 | AK106: 0 | AL106: 0 | AM106: 0 | AN106: 0 | AO106: 0 | AP106: 0 | AQ106: 0 | AR106: 0 | AS106: 0 | AT106: 0 | AU106: 0 | AV106: 0 | AW106: 0 | AX106: 0 | AY106: 0 | AZ106: 0 | BA106: 0 | BB106: 0 | BC106: 0 | BD106: 0 | BE106: 0 | BF106: 0 | BG106: 0 | BH106: 0 | BI106: 0 | BJ106: 0 | BK106: 0 | BL106: 0 | BM106: 0 | BN106: 0 | BO106: 0 | BP106: 0 | BQ106: 0
A107: Saluda | B107: 0.1215 | C107: 0.2 | D107: 0 | F107: 1400 | G107: 0.048 | H107: 0.018 | I107: 0 | J107: 0 | K107: 0.001 | L107: 0.0545 | M107: 34.28571429 | N107: 1400 | O107: 1400 | P107: 1400 | Q107: 1400 | R107: 1400 | S107: Polk | T107: 0.053 | U107: 0.053 | V107: 0.053 | W107: 0.053 | X107: 0.053 | Y107: 0.019 | Z107: 0.019 | AA107: 0.02 | AB107: 0.02 | AC107: 0.02 | AD107: 0 | AE107: 0 | AF107: 0 | AG107: 0 | AH107: 0 | AI107: 0 | AJ107: 0 | AK107: 0 | AL107: 0 | AM107: 0 | AN107: 0.001 | AO107: 0.001 | AP107: 0.001 | AQ107: 0.001 | AR107: 0.001 | AS107: 0.0599 | AT107: 0.0599 | AU107: 0.0607 | AV107: 0.0607 | AW107: 0.0607 | AX107: 0 | AY107: 0 | AZ107: 0 | BA107: 0 | BB107: 0 | BC107: 0 | BD107: 0 | BE107: 0 | BF107: 0 | BG107: 0 | BH107: 0.2 | BI107: 0.2 | BJ107: 0.2 | BK107: 0.2 | BL107: 0.2 | BM107: 0 | BN107: 0 | BO107: 0 | BP107: 0 | BQ107: 0
A108: Salisbury | B108: 10.11 | C108: 108 | D108: 0.7396 | F108: 43206 | G108: 2.2186 | H108: 1.804 | I108: 2.9049 | J108: 0.7714 | K108: 1 | L108: 0.6715 | M108: 51.34934963 | N108: 50664 | O108: 61686 | P108: 72200 | Q108: 75117 | R108: 86836 | S108: Rowan | T108: 2.431 | U108: 2.961 | V108: 3.47 | W108: 3.61 | X108: 4.17 | Y108: 1.824 | Z108: 2.221 | AA108: 2.599 | AB108: 2.704 | AC108: 3.126 | AD108: 2.963 | AE108: 3.259 | AF108: 3.585 | AG108: 3.944 | AH108: 4.338 | AI108: 0.787 | AJ108: 0.866 | AK108: 0.952 | AL108: 1.047 | AM108: 1.152 | AN108: 1 | AO108: 1.12 | AP108: 1.27 | AQ108: 1.36 | AR108: 1.53 | AS108: 0.6995 | AT108: 0.8086 | AU108: 0.922 | AV108: 0.982 | AW108: 1.1119 | AX108: 0 | AY108: 0 | AZ108: 0 | BA108: 0 | BB108: 0 | BC108: 0 | BD108: 0 | BE108: 0 | BF108: 0 | BG108: 0 | BH108: 0 | BI108: 0 | BJ108: 0 | BK108: 0 | BL108: 0 | BM108: 2.527 | BN108: 2.527 | BO108: 2.527 | BP108: 2.527 | BQ108: 2.527
A109: Landis | B109: 0.3049166667 | C109: 1 | D109: 0 | F109: 3500 | G109: 0.1585 | H109: 0.0645 | I109: 0.0376 | J109: 0 | K109: 0.0265 | L109: 0.01781666667 | M109: 45.28571429 | N109: 3550 | O109: 4500 | P109: 5500 | Q109: 5600 | R109: 5700 | S109: Rowan | T109: 0.18 | U109: 0.1885 | V109: 0.22 | W109: 0.235 | X109: 0.24 | Y109: 0.075 | Z109: 0.078 | AA109: 0.079 | AB109: 0.08 | AC109: 0.085 | AD109: 0.052 | AE109: 0.056 | AF109: 0.061 | AG109: 0.066 | AH109: 0.071 | AI109: 0 | AJ109: 0 | AK109: 0 | AL109: 0 | AM109: 0 | AN109: 0.082 | AO109: 0.083 | AP109: 0.085 | AQ109: 0.087 | AR109: 0.089 | AS109: 0.0215 | AT109: 0.0225 | AU109: 0.0246 | AV109: 0.0259 | AW109: 0.0269 | AX109: 0 | AY109: 0 | AZ109: 0 | BA109: 0 | BB109: 0 | BC109: 0 | BD109: 0 | BE109: 0 | BF109: 0 | BG109: 0 | BH109: 1 | BI109: 1 | BJ109: 1 | BK109: 1 | BL109: 1 | BM109: 0 | BN109: 0 | BO109: 0 | BP109: 0 | BQ109: 0
A110: China Grove | B110: 0.5141666667 | C110: 2 | D110: 0 | F110: 4413 | G110: 0.186 | H110: 0.0475 | I110: 0.0699 | J110: 0.0192 | K110: 0.12 | L110: 0.07156666667 | M110: 42.1481985 | N110: 4459 | O110: 4640 | P110: 4827 | Q110: 5022 | R110: 5225 | S110: Rowan | T110: 0.223 | U110: 0.232 | V110: 0.241 | W110: 0.251 | X110: 0.261 | Y110: 0.048 | Z110: 0.05 | AA110: 0.053 | AB110: 0.056 | AC110: 0.058 | AD110: 0.07 | AE110: 0.072 | AF110: 0.073 | AG110: 0.074 | AH110: 0.076 | AI110: 0.019 | AJ110: 0.02 | AK110: 0.02 | AL110: 0.02 | AM110: 0.021 | AN110: 0.101 | AO110: 0.106 | AP110: 0.111 | AQ110: 0.117 | AR110: 0.123 | AS110: 0.037 | AT110: 0.039 | AU110: 0.041 | AV110: 0.043 | AW110: 0.045 | AX110: 0 | AY110: 0 | AZ110: 0 | BA110: 0 | BB110: 0 | BC110: 0 | BD110: 0 | BE110: 0 | BF110: 0 | BG110: 0 | BH110: 2 | BI110: 2 | BJ110: 2 | BK110: 2 | BL110: 2 | BM110: 0 | BN110: 0 | BO110: 0 | BP110: 0 | BQ110: 0
A111: Cleveland | B111: 0.07241666667 | C111: 0.206 | D111: 0 | F111: 887 | G111: 0.0425 | H111: 0.006 | I111: 0.0139 | J111: 0.004 | K111: 0.001 | L111: 0.005016666667 | M111: 47.91431793 | N111: 887 | O111: 895 | P111: 900 | Q111: 905 | R111: 910 | S111: Rowan | T111: 0.0425 | U111: 0.048 | V111: 0.048 | W111: 0.048 | X111: 0.048 | Y111: 0.006 | Z111: 0.008 | AA111: 0.008 | AB111: 0.008 | AC111: 0.008 | AD111: 0.0139 | AE111: 0.01 | AF111: 0.01 | AG111: 0.01 | AH111: 0.01 | AI111: 0.0035 | AJ111: 0.006 | AK111: 0.006 | AL111: 0.006 | AM111: 0.006 | AN111: 0.001 | AO111: 0.002 | AP111: 0.002 | AQ111: 0.002 | AR111: 0.002 | AS111: 0.012 | AT111: 0.012 | AU111: 0.013 | AV111: 0.013 | AW111: 0.013 | AX111: 0 | AY111: 0 | AZ111: 0 | BA111: 0 | BB111: 0 | BC111: 0 | BD111: 0 | BE111: 0 | BF111: 0 | BG111: 0 | BH111: 0 | BI111: 0 | BJ111: 0 | BK111: 0 | BL111: 0 | BM111: 0 | BN111: 0 | BO111: 0 | BP111: 0 | BQ111: 0
A112: Faith | B112: 0.08875 | C112: 0.209 | D112: 0 | F112: 1000 | G112: 0.0608 | H112: 0.0032 | I112: 0.0002 | J112: 0.0043 | K112: 0.0002 | L112: 0.02005 | M112: 60.8 | N112: 1010 | O112: 1030 | P112: 1050 | Q112: 1070 | R112: 1090 | S112: Rowan | T112: 0.0625 | U112: 0.065 | V112: 0.0675 | W112: 0.07 | X112: 0.0725 | Y112: 0.0032 | Z112: 0.0032 | AA112: 0.0033 | AB112: 0.0033 | AC112: 0.0033 | AD112: 0.0002 | AE112: 0.0002 | AF112: 0.0002 | AG112: 0.0002 | AH112: 0.0002 | AI112: 0.0043 | AJ112: 0.0043 | AK112: 0.0043 | AL112: 0.0043 | AM112: 0.0044 | AN112: 0.0001 | AO112: 0.0001 | AP112: 0.0001 | AQ112: 0.0001 | AR112: 0.0001 | AS112: 0.009 | AT112: 0.01 | AU112: 0.011 | AV112: 0.011 | AW112: 0.011 | AX112: 0 | AY112: 0 | AZ112: 0 | BA112: 0 | BB112: 0 | BC112: 0 | BD112: 0 | BE112: 0 | BF112: 0 | BG112: 0 | BH112: 0 | BI112: 0 | BJ112: 0 | BK112: 0 | BL112: 0 | BM112: 0 | BN112: 0 | BO112: 0 | BP112: 0 | BQ112: 0
A113: East Spencer | B113: 0.1983333333 | C113: 0.5 | D113: 0 | F113: 1512 | G113: 0.0623 | H113: 0.0024 | I113: 0.0255 | J113: 0.0199 | K113: 0.001 | L113: 0.08723333333 | M113: 41.2037037 | N113: 1520 | O113: 1550 | P113: 1581 | Q113: 1613 | R113: 1645 | S113: Rowan | T113: 0.073 | U113: 0.074 | V113: 0.076 | W113: 0.077 | X113: 0.079 | Y113: 0.0024 | Z113: 0.0025 | AA113: 0.0027 | AB113: 0.0028 | AC113: 0.0029 | AD113: 0.0256 | AE113: 0.0258 | AF113: 0.0261 | AG113: 0.0263 | AH113: 0.0266 | AI113: 0.0199 | AJ113: 0.0201 | AK113: 0.0203 | AL113: 0.0205 | AM113: 0.0207 | AN113: 0.001 | AO113: 0.001 | AP113: 0.002 | AQ113: 0.002 | AR113: 0.002 | AS113: 0.015 | AT113: 0.016 | AU113: 0.016 | AV113: 0.016 | AW113: 0.016 | AX113: 0 | AY113: 0 | AZ113: 0 | BA113: 0 | BB113: 0 | BC113: 0 | BD113: 0 | BE113: 0 | BF113: 0 | BG113: 0 | BH113: 0.5 | BI113: 0.5 | BJ113: 0.5 | BK113: 0.5 | BL113: 0.5 | BM113: 0 | BN113: 0 | BO113: 0 | BP113: 0 | BQ113: 0
A114: Kannapolis | B114: 5.288666667 | C114: 17.1 | D114: 0.472 | F114: 52012 | G114: 2.835 | H114: 0.614 | I114: 0 | J114: 0 | K114: 0.26 | L114: 1.107666667 | M114: 54.50665231 | N114: 53204 | O114: 61034 | P114: 68864 | Q114: 76694 | R114: 85424 | S114: Rowan | T114: 2.916 | U114: 3.367 | V114: 3.889 | W114: 4.492 | X114: 5.188 | Y114: 0.571 | Z114: 0.657 | AA114: 0.761 | AB114: 0.879 | AC114: 1.011 | AD114: 0 | AE114: 0 | AF114: 0 | AG114: 0 | AH114: 0 | AI114: 0 | AJ114: 0 | AK114: 0 | AL114: 0 | AM114: 0 | AN114: 0.497 | AO114: 0.574 | AP114: 0.663 | AQ114: 0.763 | AR114: 0.881 | AS114: 1.473 | AT114: 1.7 | AU114: 1.964 | AV114: 2.268 | AW114: 2.618 | AX114: 0 | AY114: 0 | AZ114: 0 | BA114: 0 | BB114: 0 | BC114: 0 | BD114: 0 | BE114: 0 | BF114: 0 | BG114: 0 | BH114: 2 | BI114: 2 | BJ114: 2 | BK114: 2 | BL114: 2 | BM114: 2.5 | BN114: 2.5 | BO114: 2.5 | BP114: 2.5 | BQ114: 2.5
A115: Forest City | B115: 2.454333333 | C115: 12 | D115: 0.3286 | F115: 16558 | G115: 0.74 | H115: 0.527 | I115: 0.213 | J115: 0.08 | K115: 0.2994 | L115: 0.2663333333 | M115: 44.69138785 | N115: 16724 | O115: 18396 | P115: 20236 | Q115: 22259 | R115: 24485 | S115: Rutherford | T115: 0.7359 | U115: 0.8094 | V115: 0.8904 | W115: 0.9794 | X115: 1.0774 | Y115: 0.46 | Z115: 0.523 | AA115: 0.594 | AB115: 0.676 | AC115: 0.768 | AD115: 0.2 | AE115: 0.22 | AF115: 0.242 | AG115: 0.266 | AH115: 0.293 | AI115: 0.11 | AJ115: 0.1222 | AK115: 0.1344 | AL115: 0.1479 | AM115: 0.1627 | AN115: 0.23 | AO115: 0.2438 | AP115: 0.2584 | AQ115: 0.2739 | AR115: 0.2904 | AS115: 0.224 | AT115: 0.242 | AU115: 0.268 | AV115: 0.297 | AW115: 0.329 | AX115: 0 | AY115: 0 | AZ115: 0 | BA115: 0 | BB115: 0 | BC115: 0 | BD115: 0 | BE115: 0 | BF115: 0 | BG115: 0 | BH115: 0 | BI115: 0 | BJ115: 0 | BK115: 0 | BL115: 0 | BM115: 0.99 | BN115: 0.99 | BO115: 0.99 | BP115: 0.99 | BQ115: 0.99
A116: Lake Lure | B116: 0.07703333333 | C116: 0.263 | D116: 0.013 | F116: 1235 | G116: 0.0322 | H116: 0.0051 | I116: 0 | J116: 0 | K116: 0.016 | L116: 0.01073333333 | M116: 26.07287449 | N116: 1250 | O116: 1300 | P116: 1400 | Q116: 1500 | R116: 1600 | S116: Rutherford | T116: 0.0425 | U116: 0.0442 | V116: 0.0476 | W116: 0.051 | X116: 0.0544 | Y116: 0.0051 | Z116: 0.0055 | AA116: 0.0059 | AB116: 0.0063 | AC116: 0.0067 | AD116: 0 | AE116: 0 | AF116: 0 | AG116: 0 | AH116: 0 | AI116: 0 | AJ116: 0 | AK116: 0 | AL116: 0 | AM116: 0 | AN116: 0.005 | AO116: 0.005 | AP116: 0.005 | AQ116: 0.005 | AR116: 0.005 | AS116: 0.007 | AT116: 0.0075 | AU116: 0.008 | AV116: 0.0085 | AW116: 0.009 | AX116: 0 | AY116: 0 | AZ116: 0 | BA116: 0 | BB116: 0 | BC116: 0 | BD116: 0 | BE116: 0 | BF116: 0 | BG116: 0 | BH116: 0.013 | BI116: 0.013 | BJ116: 0.013 | BK116: 0.013 | BL116: 0.013 | BM116: 0 | BN116: 0 | BO116: 0 | BP116: 0 | BQ116: 0
A117: Broad River Water Authority | B117: 6.08275 | C117: 13 | D117: 4.372668493 | F117: 16850 | G117: 0.715 | H117: 0.177 | I117: 0.195 | J117: 0.113 | K117: 0.2 | L117: 0.3100815068 | M117: 42.43323442 | N117: 16930 | O117: 17950 | P117: 18980 | Q117: 20000 | R117: 21030 | S117: Rutherford | T117: 0.718 | U117: 0.753 | V117: 0.788 | W117: 0.824 | X117: 0.861 | Y117: 0.176 | Z117: 0.172 | AA117: 0.167 | AB117: 0.167 | AC117: 0.167 | AD117: 0.199 | AE117: 0.209 | AF117: 0.219 | AG117: 0.214 | AH117: 0.208 | AI117: 0.113 | AJ117: 0.102 | AK117: 0.093 | AL117: 0.09 | AM117: 0.087 | AN117: 0.303 | AO117: 0.314 | AP117: 0.322 | AQ117: 0.329 | AR117: 0.336 | AS117: 0.4 | AT117: 0.405 | AU117: 0.41 | AV117: 0.415 | AW117: 0.42 | AX117: 0 | AY117: 0 | AZ117: 0 | BA117: 0 | BB117: 0 | BC117: 0 | BD117: 0 | BE117: 0 | BF117: 0 | BG117: 0 | BH117: 0 | BI117: 0 | BJ117: 0 | BK117: 0 | BL117: 0 | BM117: 6.26 | BN117: 6.26 | BO117: 6.26 | BP117: 6.26 | BQ117: 6.26
A118: Ellenboro | B118: 0.1426333333 | C118: 0.333 | D118: 0 | F118: 2068 | G118: 0.0945 | H118: 0.0079 | I118: 0.0005 | J118: 0.0112 | K118: 0.003 | L118: 0.02553333333 | M118: 45.69632495 | N118: 2073 | O118: 2080 | P118: 2085 | Q118: 2099 | R118: 2120 | S118: Rutherford | T118: 0.11 | U118: 0.11 | V118: 0.11 | W118: 0.111 | X118: 0.112 | Y118: 0.01 | Z118: 0.01 | AA118: 0.01 | AB118: 0.01 | AC118: 0.011 | AD118: 0.001 | AE118: 0.001 | AF118: 0.001 | AG118: 0.001 | AH118: 0.001 | AI118: 0.01 | AJ118: 0.01 | AK118: 0.01 | AL118: 0.01 | AM118: 0.011 | AN118: 0.003 | AO118: 0.003 | AP118: 0.003 | AQ118: 0.003 | AR118: 0.003 | AS118: 0.0142 | AT118: 0.0142 | AU118: 0.0142 | AV118: 0.0143 | AW118: 0.0146 | AX118: 0 | AY118: 0 | AZ118: 0 | BA118: 0 | BB118: 0 | BC118: 0 | BD118: 0 | BE118: 0 | BF118: 0 | BG118: 0 | BH118: 0.333 | BI118: 0.333 | BJ118: 0.333 | BK118: 0.333 | BL118: 0.333 | BM118: 0 | BN118: 0 | BO118: 0 | BP118: 0 | BQ118: 0
A119: Bostic | B119: 0.1115833333 | C119: 0.33 | D119: 0.0043 | F119: 850 | G119: 0.037 | H119: 0.001 | I119: 0 | J119: 0.0039 | K119: 0.0015 | L119: 0.06388333333 | M119: 43.52941176 | N119: 916 | O119: 1064 | P119: 1230 | Q119: 1430 | R119: 1660 | S119: Rutherford | T119: 0.05 | U119: 0.055 | V119: 0.063 | W119: 0.074 | X119: 0.085 | Y119: 0.001 | Z119: 0.001 | AA119: 0.001 | AB119: 0.001 | AC119: 0.001 | AD119: 0 | AE119: 0 | AF119: 0 | AG119: 0 | AH119: 0 | AI119: 0.004 | AJ119: 0.004 | AK119: 0.004 | AL119: 0.004 | AM119: 0.004 | AN119: 0.002 | AO119: 0.002 | AP119: 0.002 | AQ119: 0.003 | AR119: 0.003 | AS119: 0.01 | AT119: 0.012 | AU119: 0.014 | AV119: 0.016 | AW119: 0.018 | AX119: 0 | AY119: 0 | AZ119: 0 | BA119: 0 | BB119: 0 | BC119: 0 | BD119: 0 | BE119: 0 | BF119: 0 | BG119: 0 | BH119: 0.33 | BI119: 0.33 | BJ119: 0.33 | BK119: 0.33 | BL119: 0.33 | BM119: 0.067 | BN119: 0.067 | BO119: 0.067 | BP119: 0.067 | BQ119: 0.067
A120: Concord Community WS | B120: 0.08541666667 | C120: 0.397 | D120: 0 | F120: 945 | G120: 0.08 | H120: 0 | I120: 0 | J120: 0 | K120: 0.003 | L120: 0.002416666667 | M120: 84.65608466 | N120: 954 | O120: 1000 | P120: 1050 | Q120: 1100 | R120: 1160 | S120: Rutherford | T120: 0.0811 | U120: 0.0851 | V120: 0.0894 | W120: 0.0939 | X120: 0.0986 | Y120: 0 | Z120: 0 | AA120: 0 | AB120: 0 | AC120: 0 | AD120: 0 | AE120: 0 | AF120: 0 | AG120: 0 | AH120: 0 | AI120: 0 | AJ120: 0 | AK120: 0 | AL120: 0 | AM120: 0 | AN120: 0.003 | AO120: 0.003 | AP120: 0.003 | AQ120: 0.003 | AR120: 0.003 | AS120: 0.007 | AT120: 0.0072 | AU120: 0.0074 | AV120: 0.0076 | AW120: 0.0078 | AX120: 0 | AY120: 0 | AZ120: 0 | BA120: 0 | BB120: 0 | BC120: 0 | BD120: 0 | BE120: 0 | BF120: 0 | BG120: 0 | BH120: 0.397 | BI120: 0.397 | BJ120: 0.397 | BK120: 0.397 | BL120: 0.397 | BM120: 0 | BN120: 0 | BO120: 0 | BP120: 0 | BQ120: 0
A121: Chimney Rock Water Works | B121: 0.03065833333 | C121: 0.21 | D121: 0 | F121: 270 | G121: 0.0166 | H121: 0 | I121: 0 | J121: 0 | K121: 0.022 | L121: -0.007941666667 | M121: 61.48148148 | N121: 280 | O121: 292 | P121: 321 | Q121: 353 | R121: 388 | S121: Rutherford | T121: 0.0171 | U121: 0.0178 | V121: 0.0196 | W121: 0.0215 | X121: 0.0237 | Y121: 0 | Z121: 0 | AA121: 0 | AB121: 0 | AC121: 0 | AD121: 0 | AE121: 0 | AF121: 0 | AG121: 0 | AH121: 0 | AI121: 0 | AJ121: 0 | AK121: 0 | AL121: 0 | AM121: 0 | AN121: 0.018 | AO121: 0.018 | AP121: 0.018 | AQ121: 0.018 | AR121: 0.018 | AS121: 0.0055 | AT121: 0.0055 | AU121: 0.0055 | AV121: 0.0055 | AW121: 0.0055 | AX121: 0 | AY121: 0 | AZ121: 0 | BA121: 0 | BB121: 0 | BC121: 0 | BD121: 0 | BE121: 0 | BF121: 0 | BG121: 0 | BH121: 0 | BI121: 0 | BJ121: 0 | BK121: 0 | BL121: 0 | BM121: 0.013 | BN121: 0.013 | BO121: 0.013 | BP121: 0.013 | BQ121: 0.013
A122: Albemarle | B122: 8.060833333 | C122: 18 | D122: 4.711 | F122: 17000 | G122: 0.72 | H122: 2.1 | I122: 0.23 | J122: 0 | K122: 0.24 | L122: 0.05983333333 | M122: 42.35294118 | N122: 16100 | O122: 16600 | P122: 17100 | Q122: 17700 | R122: 18300 | S122: Stanly | T122: 0.675 | U122: 0.7 | V122: 0.72 | W122: 0.745 | X122: 0.77 | Y122: 0.25 | Z122: 0.3 | AA122: 0.35 | AB122: 0.4 | AC122: 0.45 | AD122: 1.36 | AE122: 1.5 | AF122: 1.6 | AG122: 1.7 | AH122: 1.8 | AI122: 0 | AJ122: 0 | AK122: 0 | AL122: 0 | AM122: 0 | AN122: 0.44 | AO122: 0.5 | AP122: 0.5 | AQ122: 0.55 | AR122: 0.55 | AS122: 1.143 | AT122: 1.275 | AU122: 1.417 | AV122: 1.559 | AW122: 1.7 | AX122: 0 | AY122: 0 | AZ122: 0 | BA122: 0 | BB122: 0 | BC122: 2 | BD122: 2 | BE122: 2 | BF122: 2 | BG122: 2 | BH122: 0 | BI122: 0 | BJ122: 0 | BK122: 0 | BL122: 0 | BM122: 8.75 | BN122: 8.75 | BO122: 8.75 | BP122: 8.75 | BQ122: 8.75
A123: Norwood | B123: 0.5927166667 | C123: 2 | D123: 0.0431 | F123: 2405 | G123: 0.1926 | H123: 0.0539 | I123: 0.0634 | J123: 0.0118 | K123: 0.0084 | L123: 0.2195166667 | M123: 80.08316008 | N123: 4175 | O123: 4521 | P123: 4857 | Q123: 5219 | R123: 5607 | S123: Stanly | T123: 0.147 | U123: 0.1591 | V123: 0.1709 | W123: 0.1836 | X123: 0.1972 | Y123: 0.0203 | Z123: 0.0219 | AA123: 0.0236 | AB123: 0.0253 | AC123: 0.0272 | AD123: 0.0637 | AE123: 0.0637 | AF123: 0.0637 | AG123: 0.0637 | AH123: 0.0637 | AI123: 0.0103 | AJ123: 0.0112 | AK123: 0.012 | AL123: 0.0129 | AM123: 0.0139 | AN123: 0.01 | AO123: 0.01 | AP123: 0.012 | AQ123: 0.012 | AR123: 0.012 | AS123: 0.2655 | AT123: 0.2809 | AU123: 0.2981 | AV123: 0.3143 | AW123: 0.3317 | AX123: 0 | AY123: 0 | AZ123: 0 | BA123: 0 | BB123: 0 | BC123: 0 | BD123: 0 | BE123: 0 | BF123: 0 | BG123: 0 | BH123: 0 | BI123: 0 | BJ123: 0 | BK123: 0 | BL123: 0 | BM123: 0.073 | BN123: 0.073 | BO123: 0.073 | BP123: 0.073 | BQ123: 0.073
A124: Oakboro | B124: 0.195 | C124: 1.1 | D124: 0 | F124: 3100 | G124: 0.126 | H124: 0.013 | I124: 0.002 | J124: 0.001 | K124: 3.956 | L124: -3.903 | M124: 40.64516129 | N124: 2896 | O124: 3272 | P124: 3698 | Q124: 4173 | R124: 4721 | S124: Stanly | T124: 0.1361 | U124: 0.1538 | V124: 0.1745 | W124: 0.1961 | X124: 0.2219 | Y124: 0.029 | Z124: 0.034 | AA124: 0.038 | AB124: 0.04 | AC124: 0.045 | AD124: 0.029 | AE124: 0.029 | AF124: 0.029 | AG124: 0.029 | AH124: 0.029 | AI124: 0.002 | AJ124: 0.002 | AK124: 0.002 | AL124: 0.002 | AM124: 0.002 | AN124: 0.012 | AO124: 0.012 | AP124: 0.012 | AQ124: 0.012 | AR124: 0.012 | AS124: -0.198 | AT124: -0.2196 | AU124: -0.2431 | AV124: -0.2655 | AW124: -0.2948 | AX124: 0 | AY124: 0 | AZ124: 0 | BA124: 0 | BB124: 0 | BC124: 0 | BD124: 0 | BE124: 0 | BF124: 0 | BG124: 0 | BH124: 1 | BI124: 1 | BJ124: 1 | BK124: 1 | BL124: 1 | BM124: 0 | BN124: 0 | BO124: 0 | BP124: 0 | BQ124: 0
A125: Pfeiffer-North Stanly WA | B125: 0.5203333333 | C125: 0.75 | D125: 0 | F125: 3937 | G125: 0.255 | H125: 0.017 | I125: 0.212 | J125: 0.048 | K125: 0.002 | L125: -0.01366666667 | M125: 64.77012954 | N125: 4063 | O125: 4263 | P125: 4473 | Q125: 4693 | R125: 4923 | S125: Stanly | T125: 0.263 | U125: 0.276 | V125: 0.29 | W125: 0.304 | X125: 0.319 | Y125: 0.018 | Z125: 0.019 | AA125: 0.02 | AB125: 0.021 | AC125: 0.022 | AD125: 0.05 | AE125: 0.052 | AF125: 0.055 | AG125: 0.058 | AH125: 0.061 | AI125: 0.003 | AJ125: 0.003 | AK125: 0.003 | AL125: 0.003 | AM125: 0.003 | AN125: 0.08 | AO125: 0.08 | AP125: 0.08 | AQ125: 0.08 | AR125: 0.08 | AS125: 0.038 | AT125: 0.0395 | AU125: 0.0411 | AV125: 0.0428 | AW125: 0.0445 | AX125: 0 | AY125: 0 | AZ125: 0 | BA125: 0 | BB125: 0 | BC125: 0 | BD125: 0 | BE125: 0 | BF125: 0 | BG125: 0 | BH125: 0.75 | BI125: 0.75 | BJ125: 0.75 | BK125: 0.75 | BL125: 0.75 | BM125: 0 | BN125: 0 | BO125: 0 | BP125: 0 | BQ125: 0
A126: Stanly Co | B126: 1.503116667 | C126: 3.073 | D126: 0.1544 | F126: 15800 | G126: 1.1985 | H126: 0.2662 | I126: 0.015 | J126: 0.0234 | K126: 0.006 | L126: -0.1603833333 | M126: 75.85443038 | N126: 16274 | O126: 20000 | P126: 24000 | Q126: 30000 | R126: 32000 | S126: Stanly | T126: 1.25 | U126: 1.5 | V126: 2 | W126: 2.5 | X126: 3 | Y126: 0.27 | Z126: 0.3 | AA126: 0.35 | AB126: 0.4 | AC126: 0.45 | AD126: 0.017 | AE126: 0.01 | AF126: 0.01 | AG126: 0.01 | AH126: 0.01 | AI126: 0.0235 | AJ126: 0.024 | AK126: 0.026 | AL126: 0.028 | AM126: 0.03 | AN126: 0.007 | AO126: 0.008 | AP126: 0.01 | AQ126: 0.012 | AR126: 0.014 | AS126: 0.1923 | AT126: 0.2259 | AU126: 0.2939 | AV126: 0.3618 | AW126: 0.4298 | AX126: 2 | AY126: 2 | AZ126: 2 | BA126: 2 | BB126: 2 | BC126: 0 | BD126: 0 | BE126: 0 | BF126: 0 | BG126: 0 | BH126: 3.073 | BI126: 3.073 | BJ126: 3.073 | BK126: 3.073 | BL126: 3.073 | BM126: 1.15 | BN126: 1.15 | BO126: 1.15 | BP126: 1.15 | BQ126: 1.15
A127: Bryson City | B127: 0.5211583333 | C127: 2 | D127: 0 | F127: 4395 | G127: 0.1342 | H127: 0.1516 | I127: 0.0162 | J127: 0 | K127: 0.0221 | L127: 0.1970583333 | M127: 30.53469852 | N127: 4417 | O127: 4638 | P127: 4870 | Q127: 5113 | R127: 5369 | S127: Swain | T127: 0.1325 | U127: 0.1391 | V127: 0.1461 | W127: 0.1534 | X127: 0.1611 | Y127: 0.152 | Z127: 0.153 | AA127: 0.154 | AB127: 0.155 | AC127: 0.156 | AD127: 0.0162 | AE127: 0.0163 | AF127: 0.0164 | AG127: 0.0165 | AH127: 0.0166 | AI127: 0 | AJ127: 0 | AK127: 0 | AL127: 0 | AM127: 0 | AN127: 0.0226 | AO127: 0.0237 | AP127: 0.0248 | AQ127: 0.026 | AR127: 0.0273 | AS127: 0.1922 | AT127: 0.1932 | AU127: 0.1942 | AV127: 0.1952 | AW127: 0.1962 | AX127: 0 | AY127: 0 | AZ127: 0 | BA127: 0 | BB127: 0 | BC127: 0 | BD127: 0 | BE127: 0 | BF127: 0 | BG127: 0 | BH127: 0 | BI127: 0 | BJ127: 0 | BK127: 0 | BL127: 0 | BM127: 0 | BN127: 0 | BO127: 0 | BP127: 0 | BQ127: 0
A128: Whittier SD | B128: ERROR | C128: 0 | D128: 0 | G128: 0 | H128: 0 | I128: 0 | J128: 0 | K128: 0 | M128: ERROR | N128: 0 | O128: 0 | P128: 0 | Q128: 0 | R128: 0 | S128: Swain | T128: 0 | U128: 0 | V128: 0 | W128: 0 | X128: 0 | Y128: 0 | Z128: 0 | AA128: 0 | AB128: 0 | AC128: 0 | AD128: 0 | AE128: 0 | AF128: 0 | AG128: 0 | AH128: 0 | AI128: 0 | AJ128: 0 | AK128: 0 | AL128: 0 | AM128: 0 | AN128: 0 | AO128: 0 | AP128: 0 | AQ128: 0 | AR128: 0 | AS128: 0 | AT128: 0 | AU128: 0 | AV128: 0 | AW128: 0 | AX128: 0 | AY128: 0 | AZ128: 0 | BA128: 0 | BB128: 0 | BC128: 0 | BD128: 0 | BE128: 0 | BF128: 0 | BG128: 0 | BH128: 0 | BI128: 0 | BJ128: 0 | BK128: 0 | BL128: 0 | BM128: 0 | BN128: 0 | BO128: 0 | BP128: 0 | BQ128: 0
A129: Brevard | B129: 1.390666667 | C129: 2.6 | D129: 0 | F129: 10686 | G129: 0.344 | H129: 0.186 | I129: 0.0563 | J129: 0.119 | K129: 0.05 | L129: 0.6353666667 | M129: 32.19165263 | N129: 11000 | O129: 12500 | P129: 14000 | Q129: 15750 | R129: 17500 | S129: Transylvania | T129: 0.348 | U129: 0.41 | V129: 0.461 | W129: 0.523 | X129: 0.594 | Y129: 0.19 | Z129: 0.237 | AA129: 0.266 | AB129: 0.302 | AC129: 0.343 | AD129: 0.06 | AE129: 0.08 | AF129: 0.1 | AG129: 0.125 | AH129: 0.1575 | AI129: 0.121 | AJ129: 0.144 | AK129: 0.162 | AL129: 0.183 | AM129: 0.208 | AN129: 0.051 | AO129: 0.055 | AP129: 0.06 | AQ129: 0.065 | AR129: 0.07 | AS129: 0.6481 | AT129: 0.7794 | AU129: 0.8829 | AV129: 1.0083 | AW129: 1.1552 | AX129: 0 | AY129: 0 | AZ129: 0 | BA129: 0 | BB129: 0 | BC129: 0 | BD129: 0 | BE129: 0 | BF129: 0 | BG129: 0 | BH129: 0 | BI129: 0 | BJ129: 0 | BK129: 0 | BL129: 0 | BM129: 0 | BN129: 0 | BO129: 0 | BP129: 0 | BQ129: 0
A130: Connestee Falls | B130: 0.2395 | C130: 0.53 | D130: 0 | F130: 3231 | G130: 0.1023 | H130: 0.0047 | I130: 0 | J130: 0 | K130: 0.0202 | L130: 0.1123 | M130: 31.66202414 | N130: 3249 | O130: 3411 | P130: 3573 | Q130: 3735 | R130: 3897 | S130: Transylvania | T130: 0.1028 | U130: 0.1079 | V130: 0.1132 | W130: 0.1186 | X130: 0.1229 | Y130: 0.0047 | Z130: 0.005 | AA130: 0.005 | AB130: 0.005 | AC130: 0.006 | AD130: 0 | AE130: 0 | AF130: 0 | AG130: 0 | AH130: 0 | AI130: 0 | AJ130: 0 | AK130: 0 | AL130: 0 | AM130: 0 | AN130: 0.022 | AO130: 0.04 | AP130: 0.04 | AQ130: 0.04 | AR130: 0.04 | AS130: 0.1141 | AT130: 0.1347 | AU130: 0.1394 | AV130: 0.1442 | AW130: 0.1488 | AX130: 0 | AY130: 0 | AZ130: 0 | BA130: 0 | BB130: 0 | BC130: 0 | BD130: 0 | BE130: 0 | BF130: 0 | BG130: 0 | BH130: 0 | BI130: 0 | BJ130: 0 | BK130: 0 | BL130: 0 | BM130: 0 | BN130: 0 | BO130: 0 | BP130: 0 | BQ130: 0
A131: Rosman | B131: 0.09516666667 | C131: 0.151 | D131: 0 | F131: 650 | G131: 0.0384 | H131: 0.003 | I131: 0.001 | J131: 0.0014 | K131: 0.001 | L131: 0.05036666667 | M131: 59.07692308 | N131: 656 | O131: 684 | P131: 711 | Q131: 739 | R131: 768 | S131: Transylvania | T131: 0.0387 | U131: 0.04 | V131: 0.041 | W131: 0.043 | X131: 0.045 | Y131: 0.003 | Z131: 0.003 | AA131: 0.003 | AB131: 0.003 | AC131: 0.004 | AD131: 0.0011 | AE131: 0.0011 | AF131: 0.0011 | AG131: 0.0011 | AH131: 0.0011 | AI131: 0.0014 | AJ131: 0.0015 | AK131: 0.0015 | AL131: 0.0016 | AM131: 0.0016 | AN131: 0.001 | AO131: 0.001 | AP131: 0.001 | AQ131: 0.001 | AR131: 0.001 | AS131: 0.0506 | AT131: 0.0522 | AU131: 0.0533 | AV131: 0.0557 | AW131: 0.0591 | AX131: 0 | AY131: 0 | AZ131: 0 | BA131: 0 | BB131: 0 | BC131: 0 | BD131: 0 | BE131: 0 | BF131: 0 | BG131: 0 | BH131: 0 | BI131: 0 | BJ131: 0 | BK131: 0 | BL131: 0 | BM131: 0 | BN131: 0 | BO131: 0 | BP131: 0 | BQ131: 0
A132: Monroe | B132: 6.768333333 | C132: 11.39 | D132: 0 | F132: 31994 | G132: 1.69 | H132: 0.896 | I132: 2.39 | J132: 0.251 | K132: 0.689 | L132: 0.8523333333 | M132: 52.8224042 | N132: 32474 | O132: 37687 | P132: 43738 | Q132: 50759 | R132: 58908 | S132: Union | T132: 1.72 | U132: 1.99 | V132: 2.3 | W132: 2.68 | X132: 3.11 | Y132: 0.91 | Z132: 1.06 | AA132: 1.22 | AB132: 1.42 | AC132: 1.65 | AD132: 2.4 | AE132: 2.53 | AF132: 2.65 | AG132: 2.79 | AH132: 2.93 | AI132: 0.254 | AJ132: 0.29 | AK132: 0.34 | AL132: 0.4 | AM132: 0.46 | AN132: 0.7 | AO132: 0.73 | AP132: 0.85 | AQ132: 0.98 | AR132: 1.14 | AS132: 1.41 | AT132: 1.088 | AU132: 1.136 | AV132: 1.187 | AW132: 1.239 | AX132: 0 | AY132: 1 | AZ132: 1 | BA132: 2 | BB132: 2 | BC132: 0 | BD132: 0 | BE132: 0 | BF132: 0 | BG132: 0 | BH132: 1.99 | BI132: 1.99 | BJ132: 1.99 | BK132: 1.99 | BL132: 1.99 | BM132: 0 | BN132: 0 | BO132: 0 | BP132: 0 | BQ132: 0
A133: Marshville | B133: 0.2501583333 | C133: 0.7 | D133: 0 | F133: 2475 | G133: 0.24 | H133: 0.0025 | I133: 0.0044 | J133: 0.0006 | K133: 0.001 | L133: 0.001658333333 | M133: 96.96969697 | N133: 2624 | O133: 3149 | P133: 3779 | Q133: 4535 | R133: 5442 | S133: Union | T133: 0.141 | U133: 0.169 | V133: 0.202 | W133: 0.242 | X133: 0.29 | Y133: 0.013 | Z133: 0.015 | AA133: 0.018 | AB133: 0.022 | AC133: 0.026 | AD133: 0.058 | AE133: 0.069 | AF133: 0.083 | AG133: 0.099 | AH133: 0.119 | AI133: 0.001 | AJ133: 0.001 | AK133: 0.001 | AL133: 0.001 | AM133: 0.001 | AN133: 0.001 | AO133: 0.001 | AP133: 0.001 | AQ133: 0.001 | AR133: 0.001 | AS133: 0.118 | AT133: 0.14 | AU133: 0.168 | AV133: 0.201 | AW133: 0.24 | AX133: 0 | AY133: 0 | AZ133: 0 | BA133: 0 | BB133: 0 | BC133: 0 | BD133: 0 | BE133: 0 | BF133: 0 | BG133: 0 | BH133: 0.7 | BI133: 0.7 | BJ133: 0.7 | BK133: 0.7 | BL133: 0.7 | BM133: 0 | BN133: 0 | BO133: 0 | BP133: 0 | BQ133: 0
A134: Wingate | B134: 0.40375 | C134: 0.7 | D134: 0.001454794521 | F134: 3950 | G134: 0.1484 | H134: 0.0245 | I134: 0.0156 | J134: 0.1283 | K134: 0.001 | L134: 0.08449520548 | M134: 37.56962025 | N134: 4029 | O134: 4834 | P134: 5801 | Q134: 6962 | R134: 8354 | S134: Union | T134: 0.1513 | U134: 0.1815 | V134: 0.2178 | W134: 0.2613 | X134: 0.3135 | Y134: 0.0249 | Z134: 0.0299 | AA134: 0.0359 | AB134: 0.0431 | AC134: 0.0518 | AD134: 0.0156 | AE134: 0.0156 | AF134: 0.0156 | AG134: 0.0156 | AH134: 0.0156 | AI134: 0.1283 | AJ134: 0.13 | AK134: 0.14 | AL134: 0.15 | AM134: 0.16 | AN134: 0.001 | AO134: 0.001 | AP134: 0.001 | AQ134: 0.001 | AR134: 0.001 | AS134: 0.0872 | AT134: 0.0972 | AU134: 0.1114 | AV134: 0.1279 | AW134: 0.1472 | AX134: 0 | AY134: 0 | AZ134: 0 | BA134: 0 | BB134: 0 | BC134: 0 | BD134: 0 | BE134: 0 | BF134: 0 | BG134: 0 | BH134: 0.7 | BI134: 0.7 | BJ134: 0.7 | BK134: 0.7 | BL134: 0.7 | BM134: 0 | BN134: 0 | BO134: 0 | BP134: 0 | BQ134: 0
A135: Union County | B135: 14.57633333 | C135: 25 | D135: 0.5792739726 | F135: 141138 | G135: 9.332 | H135: 1.439 | I135: 0.925 | J135: 0.293 | K135: 0.0405 | L135: 1.967559361 | M135: 66.11968428 | N135: 145228 | O135: 191880 | P135: 251251 | Q135: 319760 | R135: 406930 | S135: Union | T135: 10.163 | U135: 13.438 | V135: 17.586 | W135: 22.396 | X135: 28.492 | Y135: 1.371 | Z135: 1.875 | AA135: 2.796 | AB135: 3.98 | AC135: 5.633 | AD135: 0.914 | AE135: 1.354 | AF135: 2.125 | AG135: 2.931 | AH135: 4.037 | AI135: 0.305 | AJ135: 0.417 | AK135: 0.559 | AL135: 0.724 | AM135: 1.033 | AN135: 0.503 | AO135: 1.146 | AP135: 1.538 | AQ135: 1.99 | AR135: 2.582 | AS135: 1.981 | AT135: 2.604 | AU135: 3.355 | AV135: 4.161 | AW135: 5.163 | AX135: 2 | AY135: 22 | AZ135: 42 | BA135: 46 | BB135: 46 | BC135: 0.04 | BD135: 0.135 | BE135: 0.255 | BF135: 0.408 | BG135: 0.601 | BH135: 25 | BI135: 22 | BJ135: 22 | BK135: 22 | BL135: 22 | BM135: 2.397 | BN135: 2.397 | BO135: 2.397 | BP135: 2.397 | BQ135: 2.397
A136: Boone | B136: 1.473916667 | C136: 7 | D136: 0 | F136: 19458 | G136: 0.431 | H136: 0.655 | I136: 0.006 | J136: 0.078 | K136: 0.08 | L136: 0.2239166667 | M136: 22.15027238 | N136: 20967 | O136: 26906 | P136: 32287 | Q136: 38744 | R136: 42618 | S136: Watauga | T136: 0.451 | U136: 0.578 | V136: 0.694 | W136: 0.833 | X136: 0.916 | Y136: 0.784 | Z136: 1 | AA136: 1.08 | AB136: 1.14 | AC136: 1.23 | AD136: 0.004 | AE136: 0.006 | AF136: 0.008 | AG136: 0.01 | AH136: 0.014 | AI136: 0.08 | AJ136: 0.088 | AK136: 0.097 | AL136: 0.107 | AM136: 0.118 | AN136: 0.165 | AO136: 0.17 | AP136: 0.175 | AQ136: 0.18 | AR136: 0.185 | AS136: 0.175 | AT136: 0.25 | AU136: 0.285 | AV136: 0.295 | AW136: 0.325 | AX136: 0 | AY136: 0 | AZ136: 0 | BA136: 0 | BB136: 0 | BC136: 0 | BD136: 0 | BE136: 0 | BF136: 0 | BG136: 0 | BH136: 0 | BI136: 0 | BJ136: 0 | BK136: 0 | BL136: 0 | BM136: 0 | BN136: 0 | BO136: 0 | BP136: 0 | BQ136: 0
A137: Blowing Rock | B137: 0.3702333333 | C137: 0.4 | D137: 0 | F137: 1637 | G137: 0.1282 | H137: 0.0948 | I137: 0 | J137: 0 | K137: 0.005 | L137: 0.1422333333 | M137: 78.313989 | N137: 1653 | O137: 1816 | P137: 1997 | Q137: 2196 | R137: 2217 | S137: Watauga | T137: 0.1294 | U137: 0.1421 | V137: 0.1562 | W137: 0.1717 | X137: 0.1733 | Y137: 0.095 | Z137: 0.1045 | AA137: 0.115 | AB137: 0.1265 | AC137: 0.1391 | AD137: 0 | AE137: 0 | AF137: 0 | AG137: 0 | AH137: 0 | AI137: 0 | AJ137: 0 | AK137: 0 | AL137: 0 | AM137: 0 | AN137: 0.005 | AO137: 0.005 | AP137: 0.005 | AQ137: 0.005 | AR137: 0.005 | AS137: 0.1438 | AT137: 0.1577 | AU137: 0.1731 | AV137: 0.19 | AW137: 0.1989 | AX137: 0.23 | AY137: 0.23 | AZ137: 0.23 | BA137: 0.23 | BB137: 0.23 | BC137: 0 | BD137: 0 | BE137: 0 | BF137: 0 | BG137: 0 | BH137: 0 | BI137: 0 | BJ137: 0 | BK137: 0 | BL137: 0 | BM137: 0 | BN137: 0 | BO137: 0 | BP137: 0 | BQ137: 0
A138: Appalachian State University | B138: 0.2646666667 | C138: 2 | D138: 0 | F138: 11500 | G138: 0 | H138: 0 | I138: 0 | J138: 0.2211 | K138: 0.025 | L138: 0.01856666667 | M138: 0 | N138: 11150 | O138: 12000 | P138: 15000 | Q138: 17000 | R138: 20000 | S138: Watauga | T138: 0 | U138: 0 | V138: 0 | W138: 0 | X138: 0 | Y138: 0 | Z138: 0 | AA138: 0 | AB138: 0 | AC138: 0 | AD138: 0 | AE138: 0 | AF138: 0 | AG138: 0 | AH138: 0 | AI138: 0.29 | AJ138: 0.32 | AK138: 0.35 | AL138: 0.37 | AM138: 0.4 | AN138: 0.013 | AO138: 0.014 | AP138: 0.018 | AQ138: 0.02 | AR138: 0.02 | AS138: 0.025 | AT138: 0.027 | AU138: 0.03 | AV138: 0.031 | AW138: 0.031 | AX138: 0 | AY138: 0 | AZ138: 0 | BA138: 0 | BB138: 0 | BC138: 0 | BD138: 0 | BE138: 0 | BF138: 0 | BG138: 0 | BH138: 0 | BI138: 0 | BJ138: 0 | BK138: 0 | BL138: 0 | BM138: 0 | BN138: 0 | BO138: 0 | BP138: 0 | BQ138: 0
A139: Beech Mountain | B139: 0.4131666667 | C139: 0.24 | D139: 0 | F139: 338 | G139: 0.114 | H139: 0.027 | I139: 0 | J139: 0 | K139: 0.035 | L139: 0.2371666667 | M139: 337.2781065 | N139: 346 | O139: 441 | P139: 562 | Q139: 716 | R139: 912 | S139: Watauga | T139: 0.1168 | U139: 0.1488 | V139: 0.1895 | W139: 0.2414 | X139: 0.2751 | Y139: 0.0277 | Z139: 0.0352 | AA139: 0.0449 | AB139: 0.0572 | AC139: 0.0652 | AD139: 0 | AE139: 0 | AF139: 0 | AG139: 0 | AH139: 0 | AI139: 0 | AJ139: 0 | AK139: 0 | AL139: 0 | AM139: 0 | AN139: 0.0357 | AO139: 0.0442 | AP139: 0.052 | AQ139: 0.052 | AR139: 0.052 | AS139: 0.237 | AT139: 0.217 | AU139: 0.197 | AV139: 0.177 | AW139: 0.157 | AX139: 0 | AY139: 1.162 | AZ139: 1.162 | BA139: 1.162 | BB139: 1.162 | BC139: 0 | BD139: 0 | BE139: 0 | BF139: 0 | BG139: 0 | BH139: 0 | BI139: 0 | BJ139: 0 | BK139: 0 | BL139: 0 | BM139: 0 | BN139: 0 | BO139: 0 | BP139: 0 | BQ139: 0
A140: Seven Devils | B140: 0.0243 | C140: 0.195 | D140: 0 | F140: 400 | G140: 0.024 | H140: 0.001 | I140: 0 | J140: 0.0001 | K140: 0.0001 | L140: -0.0009 | M140: 60 | N140: 408 | O140: 451 | P140: 493 | Q140: 539 | R140: 590 | S140: Watauga | T140: 0.0244 | U140: 0.0269 | V140: 0.0294 | W140: 0.0321 | X140: 0.0351 | Y140: 0.001 | Z140: 0.0011 | AA140: 0.0012 | AB140: 0.0013 | AC140: 0.0014 | AD140: 0 | AE140: 0 | AF140: 0 | AG140: 0 | AH140: 0 | AI140: 0.0001 | AJ140: 0.0001 | AK140: 0.0001 | AL140: 0.0001 | AM140: 0.0001 | AN140: 0.0001 | AO140: 0.0001 | AP140: 0.0001 | AQ140: 0.0001 | AR140: 0.0001 | AS140: 0.0004 | AT140: 0.0004 | AU140: 0.0005 | AV140: 0.0005 | AW140: 0.0006 | AX140: 0 | AY140: 0 | AZ140: 0 | BA140: 0 | BB140: 0 | BC140: 0 | BD140: 0 | BE140: 0 | BF140: 0 | BG140: 0 | BH140: 0 | BI140: 0 | BJ140: 0 | BK140: 0 | BL140: 0 | BM140: 0 | BN140: 0 | BO140: 0 | BP140: 0 | BQ140: 0
A141: North Wilkesboro | B141: 2.658 | C141: 15 | D141: 1.442 | F141: 4245 | G141: 0.14 | H141: 0.45 | I141: 0.048 | J141: 0.151 | K141: 0.2 | L141: 0.227 | M141: 32.97997644 | N141: 4450 | O141: 4762 | P141: 5095 | Q141: 5451 | R141: 5832 | S141: Wilkes | T141: 0.223 | U141: 0.238 | V141: 0.255 | W141: 0.273 | X141: 0.292 | Y141: 0.09 | Z141: 0.095 | AA141: 0.1 | AB141: 0.105 | AC141: 0.111 | AD141: 0.05 | AE141: 0.05 | AF141: 0.05 | AG141: 0.05 | AH141: 0.05 | AI141: 0.25 | AJ141: 0.25 | AK141: 0.25 | AL141: 0.25 | AM141: 0.25 | AN141: 0.02 | AO141: 0.02 | AP141: 0.03 | AQ141: 0.03 | AR141: 0.03 | AS141: 0.2556 | AT141: 0.2637 | AU141: 0.2766 | AV141: 0.2859 | AW141: 0.296 | AX141: 0 | AY141: 0 | AZ141: 0 | BA141: 0 | BB141: 0 | BC141: 0 | BD141: 0 | BE141: 0 | BF141: 0 | BG141: 0 | BH141: 0 | BI141: 0 | BJ141: 0 | BK141: 0 | BL141: 0 | BM141: 4.219 | BN141: 4.219 | BO141: 4.219 | BP141: 4.219 | BQ141: 4.219
A142: Mulberry Fairplains WA | B142: 906766.1667 | C142: 2 | D142: 0.537 | F142: 8150 | G142: 0.3059 | H142: 0.002 | I142: 0.001 | J142: 0.001 | K142: 0.001 | L142: 906765.3187 | M142: 37.53374233 | N142: 8166 | O142: 8248 | P142: 8323 | Q142: 8398 | R142: 8474 | S142: Wilkes | T142: 0.3062 | U142: 0.3074 | V142: 0.3085 | W142: 0.31 | X142: 0.3185 | Y142: 0.002 | Z142: 0.002 | AA142: 0.002 | AB142: 0.002 | AC142: 0.0021 | AD142: 0.001 | AE142: 0.001 | AF142: 0.001 | AG142: 0.001 | AH142: 0.001 | AI142: 0.001 | AJ142: 0.001 | AK142: 0.001 | AL142: 0.001 | AM142: 0.001 | AN142: 0.001 | AO142: 0.001 | AP142: 0.001 | AQ142: 0.001 | AR142: 0.001 | AS142: 0.104 | AT142: 0.105 | AU142: 0.1059 | AV142: 0.1069 | AW142: 0.1078 | AX142: 0 | AY142: 0 | AZ142: 0 | BA142: 0 | BB142: 0 | BC142: 0 | BD142: 0 | BE142: 0 | BF142: 0 | BG142: 0 | BH142: 2 | BI142: 2 | BJ142: 2 | BK142: 2 | BL142: 2 | BM142: 1 | BN142: 1 | BO142: 1 | BP142: 1 | BQ142: 1
A143: West Wilkes Water Association | B143: 0.9375833333 | C143: 2.17 | D143: 0.023 | F143: 12202 | G143: 0.5971 | H143: 0.096 | I143: 0 | J143: 0.016 | K143: 0.04 | L143: 0.1654833333 | M143: 48.93460089 | N143: 12498 | O143: 12623 | P143: 12749 | Q143: 12877 | R143: 13005 | S143: Wilkes | T143: 0.46 | U143: 0.475 | V143: 0.5 | W143: 0.52 | X143: 0.555 | Y143: 0.141 | Z143: 0.143 | AA143: 0.146 | AB143: 0.15 | AC143: 0.152 | AD143: 0 | AE143: 0 | AF143: 0 | AG143: 0 | AH143: 0 | AI143: 0.088 | AJ143: 0.089 | AK143: 0.09 | AL143: 0.09 | AM143: 0.09 | AN143: 0.041 | AO143: 0.041 | AP143: 0.042 | AQ143: 0.042 | AR143: 0.042 | AS143: 0.1714 | AT143: 0.1756 | AU143: 0.1827 | AV143: 0.1883 | AW143: 0.197 | AX143: 0 | AY143: 0 | AZ143: 0 | BA143: 0 | BB143: 0 | BC143: 0 | BD143: 0 | BE143: 0 | BF143: 0 | BG143: 0 | BH143: 2.17 | BI143: 2.17 | BJ143: 2.17 | BK143: 2.17 | BL143: 2.17 | BM143: 0.023 | BN143: 0.023 | BO143: 0.023 | BP143: 0.023 | BQ143: 0.023
A144: Wilkesboro | B144: 4.793658333 | C144: 16 | D144: 0.827 | F144: 3698 | G144: 0.162 | H144: 0.183 | I144: 2.892 | J144: 0.3872 | K144: 0.114 | L144: 0.2284583333 | M144: 43.80746349 | N144: 3828 | O144: 4211 | P144: 4632 | Q144: 5095 | R144: 5605 | S144: Wilkes | T144: 0.214 | U144: 0.236 | V144: 0.259 | W144: 0.285 | X144: 0.314 | Y144: 0.263 | Z144: 0.289 | AA144: 0.318 | AB144: 0.35 | AC144: 0.385 | AD144: 2.73 | AE144: 2.867 | AF144: 3.01 | AG144: 3.161 | AH144: 3.319 | AI144: 0.297 | AJ144: 0.312 | AK144: 0.327 | AL144: 0.343 | AM144: 0.36 | AN144: 0.11 | AO144: 0.115 | AP144: 0.12 | AQ144: 0.125 | AR144: 0.13 | AS144: 0.446 | AT144: 0.473 | AU144: 0.501 | AV144: 0.532 | AW144: 0.564 | AX144: 0 | AY144: 0 | AZ144: 0 | BA144: 0 | BB144: 0 | BC144: 0 | BD144: 0 | BE144: 0 | BF144: 0 | BG144: 0 | BH144: 0.0219 | BI144: 0.0219 | BJ144: 0.0219 | BK144: 0.0219 | BL144: 0.0219 | BM144: 1.17 | BN144: 1.17 | BO144: 1.17 | BP144: 1.17 | BQ144: 1.17
A145: Blue Ridge WA | B145: 0.6924083333 | C145: 1 | D145: 0.001 | F145: 8075 | G145: 0.3899 | H145: 0.1571 | I145: 0.0471 | J145: 0.01 | K145: 0.002 | L145: 0.08530833333 | M145: 48.28482972 | N145: 8077 | O145: 8087 | P145: 8097 | Q145: 8107 | R145: 8117 | S145: Wilkes | T145: 0.3899 | U145: 0.3903 | V145: 0.3907 | W145: 0.3911 | X145: 0.3915 | Y145: 0.1571 | Z145: 0.1571 | AA145: 0.1575 | AB145: 0.158 | AC145: 0.1585 | AD145: 0.0475 | AE145: 0.0475 | AF145: 0.0475 | AG145: 0.0475 | AH145: 0.0475 | AI145: 0.01 | AJ145: 0.01 | AK145: 0.01 | AL145: 0.01 | AM145: 0.01 | AN145: 0.002 | AO145: 0.002 | AP145: 0.002 | AQ145: 0.002 | AR145: 0.002 | AS145: 0.0856 | AT145: 0.0856 | AU145: 0.0857 | AV145: 0.0859 | AW145: 0.086 | AX145: 0 | AY145: 0 | AZ145: 0 | BA145: 0 | BB145: 0 | BC145: 0 | BD145: 0 | BE145: 0 | BF145: 0 | BG145: 0 | BH145: 1.2022 | BI145: 1.2022 | BJ145: 1.2022 | BK145: 1.2022 | BL145: 1.2022 | BM145: 0.001 | BN145: 0.001 | BO145: 0.001 | BP145: 0.001 | BQ145: 0.001
A146: Broadway Water Association. Inc. | B146: 0.1979166667 | C146: 0.5 | D146: 0 | F146: 3600 | G146: 0.164 | H146: 0.002 | I146: 0 | J146: 0.004 | K146: 0.004 | L146: 0.02391666667 | M146: 45.55555556 | N146: 3600 | O146: 3700 | P146: 3800 | Q146: 3900 | R146: 4000 | S146: Wilkes | T146: 0.175 | U146: 0.179 | V146: 0.183 | W146: 0.187 | X146: 0.192 | Y146: 0.01 | Z146: 0.01 | AA146: 0.01 | AB146: 0.01 | AC146: 0.01 | AD146: 0 | AE146: 0 | AF146: 0 | AG146: 0 | AH146: 0 | AI146: 0.002 | AJ146: 0.002 | AK146: 0.002 | AL146: 0.002 | AM146: 0.002 | AN146: 0.001 | AO146: 0.001 | AP146: 0.001 | AQ146: 0.001 | AR146: 0.001 | AS146: 0.0251 | AT146: 0.0257 | AU146: 0.0262 | AV146: 0.0267 | AW146: 0.0274 | AX146: 0 | AY146: 0 | AZ146: 0 | BA146: 0 | BB146: 0 | BC146: 0 | BD146: 0 | BE146: 0 | BF146: 0 | BG146: 0 | BH146: 0.5 | BI146: 0.5 | BJ146: 0.5 | BK146: 0.5 | BL146: 0.5 | BM146: 0 | BN146: 0 | BO146: 0 | BP146: 0 | BQ146: 0
A147: Moravian Falls Water Works | B147: 0.3301583333 | C147: 0.5 | D147: 0 | F147: 3302 | G147: 0.2193 | H147: 0.002 | I147: 0.001 | J147: 0.002 | K147: 0.001 | L147: 0.1048583333 | M147: 66.41429437 | N147: 3309 | O147: 3342 | P147: 3372 | Q147: 3403 | R147: 3433 | S147: Wilkes | T147: 0.2197 | U147: 0.2219 | V147: 0.2239 | W147: 0.2259 | X147: 0.2279 | Y147: 0.002 | Z147: 0.002 | AA147: 0.002 | AB147: 0.002 | AC147: 0.002 | AD147: 0.001 | AE147: 0.001 | AF147: 0.001 | AG147: 0.001 | AH147: 0.001 | AI147: 0.002 | AJ147: 0.002 | AK147: 0.002 | AL147: 0.002 | AM147: 0.002 | AN147: 0.001 | AO147: 0.001 | AP147: 0.001 | AQ147: 0.001 | AR147: 0.001 | AS147: 0.1049 | AT147: 0.1059 | AU147: 0.1068 | AV147: 0.1078 | AW147: 0.1087 | AX147: 0 | AY147: 0 | AZ147: 0 | BA147: 0 | BB147: 0 | BC147: 0 | BD147: 0 | BE147: 0 | BF147: 0 | BG147: 0 | BH147: 0.5 | BI147: 0.5 | BJ147: 0.5 | BK147: 0.5 | BL147: 0.5 | BM147: 0 | BN147: 0 | BO147: 0 | BP147: 0 | BQ147: 0
A148: Ronda | B148: 0.06360833333 | C148: 0.186 | D148: 0 | F148: 907 | G148: 0.0213 | H148: 0.001 | I148: 0.016 | J148: 0.004 | K148: 0.001 | L148: 0.02030833333 | M148: 23.48401323 | N148: 909 | O148: 918 | P148: 926 | Q148: 935 | R148: 943 | S148: Wilkes | T148: 0.0213 | U148: 0.0215 | V148: 0.0216 | W148: 0.0218 | X148: 0.0219 | Y148: 0.001 | Z148: 0.001 | AA148: 0.001 | AB148: 0.001 | AC148: 0.001 | AD148: 0.016 | AE148: 0.017 | AF148: 0.018 | AG148: 0.019 | AH148: 0.02 | AI148: 0.004 | AJ148: 0.0042 | AK148: 0.0044 | AL148: 0.0046 | AM148: 0.0048 | AN148: 0.001 | AO148: 0.001 | AP148: 0.001 | AQ148: 0.001 | AR148: 0.001 | AS148: 0.0202 | AT148: 0.0209 | AU148: 0.0215 | AV148: 0.0221 | AW148: 0.0227 | AX148: 0 | AY148: 0 | AZ148: 0 | BA148: 0 | BB148: 0 | BC148: 0 | BD148: 0 | BE148: 0 | BF148: 0 | BG148: 0 | BH148: 0.05 | BI148: 0.05 | BJ148: 0.05 | BK148: 0.05 | BL148: 0.05 | BM148: 0 | BN148: 0 | BO148: 0 | BP148: 0 | BQ148: 0
A149: Burlington | B149: 12.969 | C149: 50.2 | D149: 3.7983 | F149: 53623 | G149: 2.7564 | H149: 3.1939 | I149: 0 | J149: 0 | K149: 1.3161 | L149: 1.9043 | M149: 51.40331574 | N149: 56100 | O149: 62896 | P149: 70500 | Q149: 79000 | R149: 88600 | S149: Alamance | T149: 3.534 | U149: 3.962 | V149: 4.442 | W149: 4.977 | X149: 5.582 | Y149: 4.768 | Z149: 5.346 | AA149: 5.992 | AB149: 6.725 | AC149: 7.531 | AD149: 0 | AE149: 0 | AF149: 0 | AG149: 0 | AH149: 0 | AI149: 0 | AJ149: 0 | AK149: 0 | AL149: 0 | AM149: 0 | AN149: 0.489 | AO149: 0.503 | AP149: 0.564 | AQ149: 0.632 | AR149: 0.709 | AS149: 3.4485 | AT149: 3.8486 | AU149: 4.3142 | AV149: 4.8383 | AW149: 5.422 | AX149: 0 | AY149: 0 | AZ149: 0 | BA149: 0 | BB149: 0 | BC149: 0 | BD149: 0 | BE149: 0 | BF149: 0 | BG149: 0 | BH149: 0.0608 | BI149: 0.0608 | BJ149: 0.0608 | BK149: 0.0608 | BL149: 0.0608 | BM149: 11.7 | BN149: 11.7 | BO149: 11.7 | BP149: 11.7 | BQ149: 11.7
A150: Graham | B150: 4.36075 | C150: 12.5 | D150: 2.0016 | F150: 15136 | G150: 0.64 | H150: 0.39 | I150: 0.27 | J150: 0.096 | K150: 0.491 | L150: 0.47215 | M150: 42.2832981 | N150: 15106 | O150: 15965 | P150: 17463 | Q150: 18511 | R150: 19622 | S150: Alamance | T150: 0.648 | U150: 0.686 | V150: 0.725 | W150: 0.771 | X150: 0.817 | Y150: 0.338 | Z150: 0.358 | AA150: 0.379 | AB150: 0.402 | AC150: 0.426 | AD150: 0.233 | AE150: 0.247 | AF150: 0.262 | AG150: 0.278 | AH150: 0.294 | AI150: 0.116 | AJ150: 0.123 | AK150: 0.13 | AL150: 0.138 | AM150: 0.146 | AN150: 0.193 | AO150: 0.204 | AP150: 0.217 | AQ150: 0.23 | AR150: 0.243 | AS150: 0.766 | AT150: 0.882 | AU150: 1.005 | AV150: 1.128 | AW150: 1.24 | AX150: 0 | AY150: 0 | AZ150: 0 | BA150: 0 | BB150: 0 | BC150: 0 | BD150: 0 | BE150: 0 | BF150: 0 | BG150: 0 | BH150: 0 | BI150: 0 | BJ150: 0 | BK150: 0 | BL150: 0 | BM150: 6.4826 | BN150: 6.4826 | BO150: 6.4826 | BP150: 6.4826 | BQ150: 6.4826
A151: Mebane | B151: 1.707416667 | C151: 6 | D151: 0 | F151: 17032 | G151: 0.7904 | H151: 0.1852 | I151: 0.2057 | J151: 0.1016 | K151: 0.0352 | L151: 0.3893166667 | M151: 46.40676374 | N151: 17953 | O151: 33484 | P151: 39121 | Q151: 41170 | R151: 50880 | S151: Alamance | T151: 0.862 | U151: 1.585 | V151: 1.824 | W151: 1.891 | X151: 2.303 | Y151: 0.232 | Z151: 0.347 | AA151: 0.521 | AB151: 0.781 | AC151: 1.172 | AD151: 0.231 | AE151: 0.289 | AF151: 0.362 | AG151: 0.452 | AH151: 0.565 | AI151: 0.112 | AJ151: 0.134 | AK151: 0.161 | AL151: 0.193 | AM151: 0.232 | AN151: 0.0396 | AO151: 0.0495 | AP151: 0.0619 | AQ151: 0.0773 | AR151: 0.0967 | AS151: 0.431 | AT151: 0.42 | AU151: 0.41 | AV151: 0.399 | AW151: 0.389 | AX151: 0 | AY151: 0 | AZ151: 0 | BA151: 0 | BB151: 0 | BC151: 0 | BD151: 0 | BE151: 0 | BF151: 0 | BG151: 0 | BH151: 6 | BI151: 6 | BJ151: 6 | BK151: 6 | BL151: 6 | BM151: 0 | BN151: 0 | BO151: 0 | BP151: 0 | BQ151: 0
A152: Haw River | B152: 0.5573333333 | C152: 1.5 | D152: 0.398 | F152: 2488 | G152: 0.0929 | H152: 0.0171 | I152: 0.0171 | J152: 0.0017 | K152: 0.001 | L152: 0.02953333333 | M152: 37.3392283 | N152: 2519 | O152: 2852 | P152: 3229 | Q152: 3656 | R152: 4140 | S152: Alamance | T152: 0.094 | U152: 0.1065 | V152: 0.1205 | W152: 0.1365 | X152: 0.1545 | Y152: 0.0348 | Z152: 0.0394 | AA152: 0.0446 | AB152: 0.0504 | AC152: 0.0571 | AD152: 0.0348 | AE152: 0.0394 | AF152: 0.0446 | AG152: 0.0504 | AH152: 0.0571 | AI152: 0.0017 | AJ152: 0.0019 | AK152: 0.0022 | AL152: 0.0025 | AM152: 0.0028 | AN152: 0.001 | AO152: 0.0011 | AP152: 0.0013 | AQ152: 0.0015 | AR152: 0.0017 | AS152: 0.0303 | AT152: 0.0343 | AU152: 0.0388 | AV152: 0.0439 | AW152: 0.0497 | AX152: 0 | AY152: 0 | AZ152: 0 | BA152: 0 | BB152: 0 | BC152: 0 | BD152: 0 | BE152: 0 | BF152: 0 | BG152: 0 | BH152: 1.5 | BI152: 1.5 | BJ152: 1.5 | BK152: 1.5 | BL152: 1.5 | BM152: 0.8 | BN152: 0.8 | BO152: 0.8 | BP152: 0.8 | BQ152: 0.8
A153: Elon | B153: 0.6356166667 | C153: 1.6 | D153: 0 | F153: 12200 | G153: 0.289 | H153: 0.0153 | I153: 0.0044 | J153: 0.2341 | K153: 0.001 | L153: 0.09181666667 | M153: 23.68852459 | N153: 12300 | O153: 15597 | P153: 20077 | Q153: 26502 | R153: 34982 | S153: Alamance | T153: 0.286 | U153: 0.355 | V153: 0.448 | W153: 0.58 | X153: 0.751 | Y153: 0.017 | Z153: 0.022 | AA153: 0.028 | AB153: 0.037 | AC153: 0.048 | AD153: 0.004 | AE153: 0.004 | AF153: 0.005 | AG153: 0.005 | AH153: 0.005 | AI153: 0.264 | AJ153: 0.363 | AK153: 0.528 | AL153: 0.726 | AM153: 1.056 | AN153: 0.001 | AO153: 0.002 | AP153: 0.004 | AQ153: 0.008 | AR153: 0.016 | AS153: 0.0889 | AT153: 0.1159 | AU153: 0.1574 | AV153: 0.2107 | AW153: 0.2915 | AX153: 0 | AY153: 0 | AZ153: 0 | BA153: 0 | BB153: 0 | BC153: 0 | BD153: 0 | BE153: 0 | BF153: 0 | BG153: 0 | BH153: 1.6 | BI153: 1.6 | BJ153: 1.6 | BK153: 1.6 | BL153: 1.6 | BM153: 0 | BN153: 0 | BO153: 0 | BP153: 0 | BQ153: 0
A154: Green Level | B154: 0.11545 | C154: 0.181 | D154: 0 | F154: 2403 | G154: 0.1012 | H154: 0 | I154: 0 | J154: 0 | K154: 0.001 | L154: 0.01325 | M154: 42.11402414 | N154: 2643 | O154: 2907 | P154: 3197 | Q154: 3516 | R154: 3867 | S154: Alamance | T154: 0.1022 | U154: 0.1124 | V154: 0.1236 | W154: 0.1359 | X154: 0.1495 | Y154: 0 | Z154: 0 | AA154: 0 | AB154: 0 | AC154: 0 | AD154: 0 | AE154: 0 | AF154: 0 | AG154: 0 | AH154: 0 | AI154: 0 | AJ154: 0 | AK154: 0 | AL154: 0 | AM154: 0 | AN154: 0.001 | AO154: 0.001 | AP154: 0.001 | AQ154: 0.001 | AR154: 0.001 | AS154: 0.0132 | AT154: 0.0145 | AU154: 0.016 | AV154: 0.0175 | AW154: 0.0193 | AX154: 0 | AY154: 0 | AZ154: 0 | BA154: 0 | BB154: 0 | BC154: 0 | BD154: 0 | BE154: 0 | BF154: 0 | BG154: 0 | BH154: 0.181 | BI154: 0.181 | BJ154: 0.181 | BK154: 0.181 | BL154: 0.181 | BM154: 0 | BN154: 0 | BO154: 0 | BP154: 0 | BQ154: 0
A155: Alamance | B155: 0.06255 | C155: 0.5 | D155: 0 | F155: 1100 | G155: 0.0512 | H155: 0.0021 | I155: 0.0013 | J155: 0.003 | K155: 0.002 | L155: 0.00295 | M155: 46.54545455 | N155: 1100 | O155: 1200 | P155: 1320 | Q155: 1450 | R155: 1600 | S155: Alamance | T155: 0.063 | U155: 0.068 | V155: 0.075 | W155: 0.083 | X155: 0.091 | Y155: 0.003 | Z155: 0.004 | AA155: 0.004 | AB155: 0.005 | AC155: 0.005 | AD155: 0.003 | AE155: 0.003 | AF155: 0.003 | AG155: 0.004 | AH155: 0.004 | AI155: 0.005 | AJ155: 0.005 | AK155: 0.006 | AL155: 0.006 | AM155: 0.006 | AN155: 0.002 | AO155: 0.002 | AP155: 0.002 | AQ155: 0.002 | AR155: 0.002 | AS155: 0.0105 | AT155: 0.0113 | AU155: 0.0124 | AV155: 0.0138 | AW155: 0.0149 | AX155: 0 | AY155: 0 | AZ155: 0 | BA155: 0 | BB155: 0 | BC155: 0 | BD155: 0 | BE155: 0 | BF155: 0 | BG155: 0 | BH155: 0.5 | BI155: 0.5 | BJ155: 0.5 | BK155: 0.5 | BL155: 0.5 | BM155: 0 | BN155: 0 | BO155: 0 | BP155: 0 | BQ155: 0
A156: Ossipee SD | B156: 0.02301666667 | C156: 0.1 | D156: 0 | F156: 600 | G156: 0.0169 | H156: 0.0003 | I156: 0.0001 | J156: 0.0058 | K156: 0.001 | L156: -0.001083333333 | M156: 28.16666667 | N156: 605 | O156: 610 | P156: 615 | Q156: 620 | R156: 630 | S156: Alamance | T156: 0.0262 | U156: 0.0265 | V156: 0.0267 | W156: 0.027 | X156: 0.0273 | Y156: 0.001 | Z156: 0.0012 | AA156: 0.001 | AB156: 0.001 | AC156: 0.0011 | AD156: 0 | AE156: 0 | AF156: 0 | AG156: 0 | AH156: 0 | AI156: 0 | AJ156: 0 | AK156: 0 | AL156: 0 | AM156: 0 | AN156: 0 | AO156: 0 | AP156: 0 | AQ156: 0 | AR156: 0 | AS156: 0.0011 | AT156: 0.0011 | AU156: 0.0011 | AV156: 0.0011 | AW156: 0.0011 | AX156: 0 | AY156: 0 | AZ156: 0 | BA156: 0 | BB156: 0 | BC156: 0 | BD156: 0 | BE156: 0 | BF156: 0 | BG156: 0 | BH156: 0.1 | BI156: 0.1 | BJ156: 0.1 | BK156: 0.1 | BL156: 0.1 | BM156: 0 | BN156: 0 | BO156: 0 | BP156: 0 | BQ156: 0
A157: Yanceyville | B157: 0.6566666667 | C157: 6.3 | D157: 0 | F157: 2400 | G157: 0.1718 | H157: 0.204 | I157: 0 | J157: 0.065 | K157: 0.082 | L157: 0.1338666667 | M157: 71.58333333 | N157: 2326 | O157: 2400 | P157: 2400 | Q157: 2450 | R157: 2450 | S157: Caswell | T157: 0.044 | U157: 0.045 | V157: 0.045 | W157: 0.046 | X157: 0.046 | Y157: 0.2 | Z157: 0.2 | AA157: 0.2 | AB157: 0.2 | AC157: 0.2 | AD157: 0.005 | AE157: 0.005 | AF157: 0.006 | AG157: 0.006 | AH157: 0.007 | AI157: 0.005 | AJ157: 0.005 | AK157: 0.006 | AL157: 0.006 | AM157: 0.007 | AN157: 0.15 | AO157: 0.15 | AP157: 0.15 | AQ157: 0.15 | AR157: 0.15 | AS157: 0.0635 | AT157: 0.0637 | AU157: 0.064 | AV157: 0.0641 | AW157: 0.0645 | AX157: 0 | AY157: 0 | AZ157: 0 | BA157: 0 | BB157: 0 | BC157: 0 | BD157: 0 | BE157: 0 | BF157: 0 | BG157: 0 | BH157: 0 | BI157: 0 | BJ157: 0 | BK157: 0 | BL157: 0 | BM157: 0 | BN157: 0 | BO157: 0 | BP157: 0 | BQ157: 0
A158: Milton | B158: 0.01356666667 | C158: 0.108 | D158: 0 | F158: 212 | G158: 0.0092 | H158: 0.0006 | I158: 0 | J158: 0 | K158: 0 | L158: 0.003766666667 | M158: 43.39622642 | N158: 212 | O158: 212 | P158: 212 | Q158: 212 | R158: 212 | S158: Caswell | T158: 0.009 | U158: 0.009 | V158: 0.009 | W158: 0.009 | X158: 0.009 | Y158: 0.0005 | Z158: 0.0005 | AA158: 0.0005 | AB158: 0.0005 | AC158: 0.0005 | AD158: 0 | AE158: 0 | AF158: 0 | AG158: 0 | AH158: 0 | AI158: 0 | AJ158: 0 | AK158: 0 | AL158: 0 | AM158: 0 | AN158: 0 | AO158: 0 | AP158: 0 | AQ158: 0 | AR158: 0 | AS158: 0.0023 | AT158: 0.0023 | AU158: 0.0023 | AV158: 0.0023 | AW158: 0.0023 | AX158: 0 | AY158: 0 | AZ158: 0 | BA158: 0 | BB158: 0 | BC158: 0 | BD158: 0 | BE158: 0 | BF158: 0 | BG158: 0 | BH158: 0 | BI158: 0 | BJ158: 0 | BK158: 0 | BL158: 0 | BM158: 0 | BN158: 0 | BO158: 0 | BP158: 0 | BQ158: 0
A159: Lexington | B159: 3.002333333 | C159: 6.95 | D159: 0 | F159: 19105 | G159: 0.879 | H159: 0.63 | I159: 0.881 | J159: 0.0312 | K159: 0.203 | L159: 0.3781333333 | M159: 46.00889819 | N159: 21000 | O159: 22000 | P159: 23250 | Q159: 24400 | R159: 25400 | S159: Davidson | T159: 0.97 | U159: 1.01 | V159: 1.07 | W159: 1.12 | X159: 1.17 | Y159: 0.61 | Z159: 0.64 | AA159: 0.67 | AB159: 0.7 | AC159: 0.74 | AD159: 0.88 | AE159: 0.92 | AF159: 0.96 | AG159: 1.01 | AH159: 1.06 | AI159: 0.02 | AJ159: 0.02 | AK159: 0.02 | AL159: 0.02 | AM159: 0.02 | AN159: 0.2 | AO159: 0.2 | AP159: 0.2 | AQ159: 0.2 | AR159: 0.2 | AS159: 0.4337 | AT159: 0.4515 | AU159: 0.4726 | AV159: 0.4936 | AW159: 0.5163 | AX159: 0 | AY159: 0 | AZ159: 0 | BA159: 0 | BB159: 0 | BC159: 0 | BD159: 0 | BE159: 0 | BF159: 0 | BG159: 0 | BH159: 0 | BI159: 0 | BJ159: 0 | BK159: 0 | BL159: 0 | BM159: 0 | BN159: 0 | BO159: 0 | BP159: 0 | BQ159: 0
A160: Thomasville | B160: 2.62475 | C160: 6.95 | D160: 0 | F160: 25872 | G160: 1.07 | H160: 0.309 | I160: 0.039 | J160: 0.126 | K160: 0.75 | L160: 0.33075 | M160: 41.35745207 | N160: 28500 | O160: 30000 | P160: 31500 | Q160: 33000 | R160: 34500 | S160: Davidson | T160: 1.18 | U160: 1.24 | V160: 1.31 | W160: 1.37 | X160: 1.43 | Y160: 0.2 | Z160: 0.21 | AA160: 0.22 | AB160: 0.23 | AC160: 0.24 | AD160: 0.2 | AE160: 0.21 | AF160: 0.22 | AG160: 0.23 | AH160: 0.24 | AI160: 0.05 | AJ160: 0.05 | AK160: 0.055 | AL160: 0.055 | AM160: 0.06 | AN160: 0.65 | AO160: 0.7 | AP160: 0.7 | AQ160: 0.7 | AR160: 0.7 | AS160: 0.296 | AT160: 0.307 | AU160: 0.322 | AV160: 0.334 | AW160: 0.346 | AX160: 0 | AY160: 0 | AZ160: 0 | BA160: 0 | BB160: 0 | BC160: 0 | BD160: 0 | BE160: 0 | BF160: 0 | BG160: 0 | BH160: 0 | BI160: 0 | BJ160: 0 | BK160: 0 | BL160: 0 | BM160: 0 | BN160: 0 | BO160: 0 | BP160: 0 | BQ160: 0
A161: Davidson Water | B161: 10.704 | C161: 70.19 | D161: 0.0458 | F161: 157243 | G161: 8.078 | H161: 0.129 | I161: 0.023 | J161: 0.047 | K161: 0.354 | L161: 2.0272 | M161: 51.37271611 | N161: 163205 | O161: 180705 | P161: 198205 | Q161: 215705 | R161: 233205 | S161: Davidson | T161: 8.181 | U161: 9.204 | V161: 10.354 | W161: 11.649 | X161: 13.105 | Y161: 0.271 | Z161: 0.297 | AA161: 0.323 | AB161: 0.349 | AC161: 0.379 | AD161: 0.241 | AE161: 0.265 | AF161: 0.291 | AG161: 0.321 | AH161: 0.353 | AI161: 0.329 | AJ161: 0.362 | AK161: 0.398 | AL161: 0.438 | AM161: 0.482 | AN161: 0.385 | AO161: 0.432 | AP161: 0.485 | AQ161: 0.545 | AR161: 0.611 | AS161: 1.482 | AT161: 1.664 | AU161: 1.867 | AV161: 2.096 | AW161: 2.352 | AX161: 0 | AY161: 0 | AZ161: 0 | BA161: 0 | BB161: 0 | BC161: 0 | BD161: 0 | BE161: 0 | BF161: 0 | BG161: 0 | BH161: 0.005 | BI161: 0.005 | BJ161: 0.005 | BK161: 0.005 | BL161: 0.005 | BM161: 0.043 | BN161: 0.043 | BO161: 0.043 | BP161: 0.043 | BQ161: 0.043
A162: Denton | B162: 1.248166667 | C162: 2.3 | D162: 0.697 | F162: 1687 | G162: 0.078 | H162: 0.0528 | I162: 0.031 | J162: 0.0085 | K162: 0.427 | L162: -0.04613333333 | M162: 46.23592175 | N162: 1690 | O162: 1700 | P162: 1710 | Q162: 1725 | R162: 1750 | S162: Davidson | T162: 0.082 | U162: 0.083 | V162: 0.086 | W162: 0.086 | X162: 0.088 | Y162: 0.025 | Z162: 0.025 | AA162: 0.027 | AB162: 0.028 | AC162: 0.03 | AD162: 0.048 | AE162: 0.05 | AF162: 0.052 | AG162: 0.054 | AH162: 0.056 | AI162: 0.01 | AJ162: 0.012 | AK162: 0.017 | AL162: 0.018 | AM162: 0.02 | AN162: 0.34 | AO162: 0.345 | AP162: 0.349 | AQ162: 0.349 | AR162: 0.349 | AS162: 0.0981 | AT162: 0.102 | AU162: 0.1032 | AV162: 0.1039 | AW162: 0.1055 | AX162: 0 | AY162: 0 | AZ162: 0 | BA162: 0 | BB162: 0 | BC162: 0 | BD162: 0 | BE162: 0 | BF162: 0 | BG162: 0 | BH162: 0 | BI162: 0 | BJ162: 0 | BK162: 0 | BL162: 0 | BM162: 1.125 | BN162: 1.125 | BO162: 1.125 | BP162: 1.125 | BQ162: 1.125
A163: Handy Sanitary District | B163: 0.695775 | C163: 1.125 | D163: 0.0963 | F163: 3157 | G163: 0.2762 | H163: 0.0235 | I163: 0.0019 | J163: 0.0155 | K163: 0.0185 | L163: 0.263875 | M163: 87.48812163 | N163: 3241 | O163: 3338 | P163: 3472 | Q163: 3600 | R163: 3700 | S163: Davidson | T163: 0.3 | U163: 0.309 | V163: 0.3229 | W163: 0.3348 | X163: 0.3441 | Y163: 0.027 | Z163: 0.028 | AA163: 0.029 | AB163: 0.03 | AC163: 0.032 | AD163: 0.002 | AE163: 0.002 | AF163: 0.002 | AG163: 0.002 | AH163: 0.002 | AI163: 0.03 | AJ163: 0.031 | AK163: 0.032 | AL163: 0.033 | AM163: 0.034 | AN163: 0.001 | AO163: 0.002 | AP163: 0.002 | AQ163: 0.002 | AR163: 0.002 | AS163: 0.2285 | AT163: 0.2361 | AU163: 0.2444 | AV163: 0.2514 | AW163: 0.254 | AX163: 0 | AY163: 0 | AZ163: 0 | BA163: 0 | BB163: 0 | BC163: 0 | BD163: 0 | BE163: 0 | BF163: 0 | BG163: 0 | BH163: 1.125 | BI163: 1.125 | BJ163: 1.125 | BK163: 1.125 | BL163: 1.125 | BM163: 0.0963 | BN163: 0.0963 | BO163: 0.0963 | BP163: 0.0963 | BQ163: 0.0963
A164: Mocksville | B164: 0.885 | C164: 3.6 | D164: 0 | F164: 5291 | G164: 0.381 | H164: 0.089 | I164: 0.071 | J164: 0.054 | K164: 0.157 | L164: 0.133 | M164: 72.00907201 | N164: 5500 | O164: 6000 | P164: 6500 | Q164: 7100 | R164: 7700 | S164: Davie | T164: 0.43 | U164: 0.44 | V164: 0.475 | W164: 0.513 | X164: 0.554 | Y164: 0.1 | Z164: 0.102 | AA164: 0.107 | AB164: 0.112 | AC164: 0.118 | AD164: 0.1 | AE164: 0.088 | AF164: 0.097 | AG164: 0.106 | AH164: 0.117 | AI164: 0.06 | AJ164: 0.063 | AK164: 0.066 | AL164: 0.069 | AM164: 0.073 | AN164: 0.1 | AO164: 0.079 | AP164: 0.083 | AQ164: 0.087 | AR164: 0.091 | AS164: 0.2363 | AT164: 0.2309 | AU164: 0.2476 | AV164: 0.2653 | AW164: 0.285 | AX164: 0 | AY164: 0 | AZ164: 0 | BA164: 0 | BB164: 0 | BC164: 0 | BD164: 0 | BE164: 0 | BF164: 0 | BG164: 0 | BH164: 0 | BI164: 0 | BJ164: 0 | BK164: 0 | BL164: 0 | BM164: 0 | BN164: 0 | BO164: 0 | BP164: 0 | BQ164: 0
A165: Davie Co | B165: 3.198166667 | C165: 73.5 | D165: 0.01532054795 | F165: 27000 | G165: 1.85 | H165: 0.17 | I165: 0.048 | J165: 0.075 | K165: 0.56 | L165: 0.4798461187 | M165: 68.51851852 | N165: 31418 | O165: 37736 | P165: 44796 | Q165: 52952 | R165: 62361 | S165: Davie | T165: 1.944 | U165: 2.235 | V165: 2.57 | W165: 2.956 | X165: 3.399 | Y165: 0.205 | Z165: 0.235 | AA165: 0.271 | AB165: 0.311 | AC165: 0.358 | AD165: 0.178 | AE165: 0.205 | AF165: 0.236 | AG165: 0.271 | AH165: 0.312 | AI165: 0.071 | AJ165: 0.082 | AK165: 0.094 | AL165: 0.108 | AM165: 0.125 | AN165: 0.56 | AO165: 0.59 | AP165: 0.62 | AQ165: 0.65 | AR165: 0.68 | AS165: 0.337 | AT165: 0.387 | AU165: 0.445 | AV165: 0.512 | AW165: 0.589 | AX165: 0 | AY165: 0 | AZ165: 0 | BA165: 0 | BB165: 0 | BC165: 0 | BD165: 0 | BE165: 0 | BF165: 0 | BG165: 0 | BH165: 0 | BI165: 0 | BJ165: 0 | BK165: 0 | BL165: 0 | BM165: 0 | BN165: 0 | BO165: 0 | BP165: 0 | BQ165: 0
A166: City of Winston-Salem | B166: 38.43333333 | C166: 133 | D166: 0.5061882192 | F166: 374403 | G166: 15 | H166: 10.49 | I166: 5.52 | J166: 0.98 | K166: 0.86 | L166: 5.077145114 | M166: 40.06378154 | N166: 360000 | O166: 401000 | P166: 453000 | Q166: 505000 | R166: 557000 | S166: Forsyth | T166: 17.797 | U166: 19.317 | V166: 20.838 | W166: 22.725 | X166: 25.065 | Y166: 10.08 | Z166: 11.23 | AA166: 12.68 | AB166: 14.14 | AC166: 15.6 | AD166: 7.2 | AE166: 8.02 | AF166: 9.06 | AG166: 10.1 | AH166: 11.14 | AI166: 1.372 | AJ166: 1.489 | AK166: 1.606 | AL166: 1.751 | AM166: 1.931 | AN166: 2 | AO166: 2.2 | AP166: 2.4 | AQ166: 2.6 | AR166: 2.8 | AS166: 4.1597 | AT166: 4.5716 | AU166: 5.0399 | AV166: 5.5518 | AW166: 6.1166 | AX166: 0 | AY166: 0 | AZ166: 0 | BA166: 0 | BB166: 0 | BC166: 0 | BD166: 0 | BE166: 0 | BF166: 0 | BG166: 0 | BH166: 0 | BI166: 0 | BJ166: 0 | BK166: 0 | BL166: 0 | BM166: 5.5 | BN166: 5.5 | BO166: 5.5 | BP166: 5.5 | BQ166: 5.5
A167: Louisburg | B167: 0.6534166667 | C167: 3 | D167: 0.162 | F167: 3042 | G167: 0.124 | H167: 0.227 | I167: 0 | J167: 0.0542 | K167: 0.057 | L167: 0.02921666667 | M167: 40.76265615 | N167: 3340 | O167: 4500 | P167: 4680 | Q167: 4870 | R167: 5500 | S167: Franklin | T167: 0.138 | U167: 0.158 | V167: 0.164 | W167: 0.171 | X167: 0.193 | Y167: 0.203 | Z167: 0.215 | AA167: 0.23 | AB167: 0.242 | AC167: 0.268 | AD167: 0.04 | AE167: 0.044 | AF167: 0.05 | AG167: 0.054 | AH167: 0.06 | AI167: 0.1 | AJ167: 0.11 | AK167: 0.12 | AL167: 0.135 | AM167: 0.17 | AN167: 0.068 | AO167: 0.078 | AP167: 0.086 | AQ167: 0.094 | AR167: 0.11 | AS167: 0.0342 | AT167: 0.0377 | AU167: 0.0405 | AV167: 0.0434 | AW167: 0.0499 | AX167: 0 | AY167: 0 | AZ167: 0 | BA167: 0 | BB167: 0 | BC167: 0 | BD167: 0 | BE167: 0 | BF167: 0 | BG167: 0 | BH167: 0 | BI167: 0 | BJ167: 0 | BK167: 0 | BL167: 0 | BM167: 0.5 | BN167: 0.5 | BO167: 0.5 | BP167: 0.5 | BQ167: 0.5
A168: Bunn | B168: 0.1269166667 | C168: 0.5 | D168: 0 | F168: 915 | G168: 0.023 | H168: 0.011 | I168: 0.001 | J168: 0.075 | K168: 0.001 | L168: 0.01591666667 | M168: 25.13661202 | N168: 925 | O168: 1100 | P168: 1650 | Q168: 2500 | R168: 3250 | S168: Franklin | T168: 0.025 | U168: 0.029 | V168: 0.043 | W168: 0.065 | X168: 0.085 | Y168: 0.015 | Z168: 0.025 | AA168: 0.035 | AB168: 0.045 | AC168: 0.055 | AD168: 0.001 | AE168: 0.002 | AF168: 0.003 | AG168: 0.004 | AH168: 0.005 | AI168: 0.08 | AJ168: 0.09 | AK168: 0.1 | AL168: 0.11 | AM168: 0.12 | AN168: 0.001 | AO168: 0.002 | AP168: 0.003 | AQ168: 0.004 | AR168: 0.005 | AS168: 0.0176 | AT168: 0.0213 | AU168: 0.0265 | AV168: 0.0329 | AW168: 0.0389 | AX168: 0 | AY168: 0 | AZ168: 0 | BA168: 0 | BB168: 0 | BC168: 0 | BD168: 0 | BE168: 0 | BF168: 0 | BG168: 0 | BH168: 0.5 | BI168: 0.5 | BJ168: 0.5 | BK168: 0.5 | BL168: 0.5 | BM168: 0 | BN168: 0 | BO168: 0 | BP168: 0 | BQ168: 0
A169: Franklin County Public Utilities | B169: 2.55 | C169: 4.667 | D169: 0.3034 | F169: 18600 | G169: 0.329 | H169: 0.076 | I169: 1.205 | J169: 0.532 | K169: 0.025 | L169: 0.0796 | M169: 17.68817204 | N169: 19195 | O169: 26302 | P169: 36040 | Q169: 49348 | R169: 67668 | S169: Franklin | T169: 0.3395 | U169: 0.4652 | V169: 0.6374 | W169: 0.8735 | X169: 1.1969 | Y169: 0.0784 | Z169: 0.1074 | AA169: 0.1472 | AB169: 0.2017 | AC169: 0.2764 | AD169: 1.5532 | AE169: 1.5532 | AF169: 2.1282 | AG169: 2.1282 | AH169: 2.1282 | AI169: 0.549 | AJ169: 0.7522 | AK169: 1.0308 | AL169: 1.4124 | AM169: 1.9354 | AN169: 0.0258 | AO169: 0.0353 | AP169: 0.0484 | AQ169: 0.0663 | AR169: 0.1 | AS169: 0.1716 | AT169: 0.2077 | AU169: 0.2366 | AV169: 0.2727 | AW169: 0.3017 | AX169: 0 | AY169: 0 | AZ169: 0 | BA169: 0 | BB169: 0 | BC169: 0 | BD169: 0 | BE169: 0 | BF169: 0 | BG169: 0 | BH169: 4.667 | BI169: 4.667 | BJ169: 4.667 | BK169: 4.667 | BL169: 4.667 | BM169: 0.425 | BN169: 0.425 | BO169: 0.425 | BP169: 0.425 | BQ169: 0.425
A170: Lake Royale | B170: 0.182525 | C170: 0.3 | D170: 0 | F170: 4796 | G170: 0.1311 | H170: 0.0011 | I170: 0 | J170: 0 | K170: 0.0263 | L170: 0.024025 | M170: 27.3352794 | N170: 5000 | O170: 5500 | P170: 6000 | Q170: 6500 | R170: 7000 | S170: Franklin | T170: 0.1585 | U170: 0.1785 | V170: 0.1985 | W170: 0.2185 | X170: 0.2385 | Y170: 0.0005 | Z170: 0.0005 | AA170: 0.0005 | AB170: 0.0005 | AC170: 0.0005 | AD170: 0 | AE170: 0 | AF170: 0 | AG170: 0 | AH170: 0 | AI170: 0 | AJ170: 0 | AK170: 0 | AL170: 0 | AM170: 0 | AN170: 0.015 | AO170: 0.015 | AP170: 0.015 | AQ170: 0.015 | AR170: 0.015 | AS170: 0.0269 | AT170: 0.03 | AU170: 0.0331 | AV170: 0.0362 | AW170: 0.0393 | AX170: 0 | AY170: 0 | AZ170: 0 | BA170: 0 | BB170: 0 | BC170: 0 | BD170: 0 | BE170: 0 | BF170: 0 | BG170: 0 | BH170: 0.3 | BI170: 0.3 | BJ170: 0.3 | BK170: 0.3 | BL170: 0.3 | BM170: 0 | BN170: 0 | BO170: 0 | BP170: 0 | BQ170: 0
A171: Oxford | B171: 1.177 | C171: 2 | D171: 0.0355 | F171: 8975 | G171: 0.372 | H171: 0.2205 | I171: 0.313 | J171: 0.075 | K171: 0.0643 | L171: 0.0967 | M171: 41.44846797 | N171: 9000 | O171: 9225 | P171: 9501 | Q171: 9786 | R171: 10080 | S171: Granville | T171: 0.41 | U171: 0.42 | V171: 0.43 | W171: 0.44 | X171: 0.45 | Y171: 0.221 | Z171: 0.225 | AA171: 0.23 | AB171: 0.235 | AC171: 0.24 | AD171: 0.32 | AE171: 0.33 | AF171: 0.34 | AG171: 0.35 | AH171: 0.36 | AI171: 0.084 | AJ171: 0.085 | AK171: 0.086 | AL171: 0.087 | AM171: 0.088 | AN171: 0.023 | AO171: 0.024 | AP171: 0.035 | AQ171: 0.036 | AR171: 0.03 | AS171: 0.1313 | AT171: 0.1346 | AU171: 0.1392 | AV171: 0.1425 | AW171: 0.145 | AX171: 2 | AY171: 2 | AZ171: 2 | BA171: 2 | BB171: 2 | BC171: 0 | BD171: 0 | BE171: 0 | BF171: 0 | BG171: 0 | BH171: 2 | BI171: 2 | BJ171: 0 | BK171: 0 | BL171: 0 | BM171: 0.075 | BN171: 0.075 | BO171: 0.075 | BP171: 0.075 | BQ171: 0.075
A172: Stovall | B172: 0.03483333333 | C172: 0.075 | D172: 0 | F172: 483 | G172: 0.017 | H172: 0.007 | I172: 0 | J172: 0.004 | K172: 0.004 | L172: 0.002833333333 | M172: 35.19668737 | N172: 490 | O172: 500 | P172: 500 | Q172: 500 | R172: 500 | S172: Granville | T172: 0.018 | U172: 0.019 | V172: 0.019 | W172: 0.019 | X172: 0.019 | Y172: 0.001 | Z172: 0.001 | AA172: 0.001 | AB172: 0.001 | AC172: 0.001 | AD172: 0 | AE172: 0 | AF172: 0 | AG172: 0 | AH172: 0 | AI172: 0.005 | AJ172: 0.005 | AK172: 0.005 | AL172: 0.005 | AM172: 0.005 | AN172: 0.007 | AO172: 0.007 | AP172: 0.007 | AQ172: 0.007 | AR172: 0.007 | AS172: 0.0019 | AT172: 0.002 | AU172: 0.002 | AV172: 0.002 | AW172: 0.002 | AX172: 0 | AY172: 0 | AZ172: 0 | BA172: 0 | BB172: 0 | BC172: 0 | BD172: 0 | BE172: 0 | BF172: 0 | BG172: 0 | BH172: 0.075 | BI172: 0.075 | BJ172: 0.075 | BK172: 0.075 | BL172: 0.075 | BM172: 0 | BN172: 0 | BO172: 0 | BP172: 0 | BQ172: 0
A173: South Granville Water and Sewer Authority | B173: 2.757 | C173: 11 | D173: 0 | F173: 19216 | G173: 0.5741 | H173: 0.12 | I173: 0.0612 | J173: 0.961 | K173: 0.715 | L173: 0.3257 | M173: 29.87614488 | N173: 19408 | O173: 21349 | P173: 23484 | Q173: 25832 | R173: 28416 | S173: Granville | T173: 0.58 | U173: 0.638 | V173: 0.701 | W173: 0.772 | X173: 0.849 | Y173: 0.122 | Z173: 0.135 | AA173: 0.148 | AB173: 0.163 | AC173: 0.179 | AD173: 0.062 | AE173: 0.068 | AF173: 0.075 | AG173: 0.082 | AH173: 0.09 | AI173: 0.971 | AJ173: 1.068 | AK173: 1.174 | AL173: 1.292 | AM173: 1.421 | AN173: 0.722 | AO173: 0.794 | AP173: 0.874 | AQ173: 0.961 | AR173: 1.057 | AS173: 0.329 | AT173: 0.362 | AU173: 0.398 | AV173: 0.438 | AW173: 0.482 | AX173: 0 | AY173: 0 | AZ173: 0 | BA173: 0 | BB173: 0 | BC173: 0 | BD173: 0 | BE173: 0 | BF173: 0 | BG173: 0 | BH173: 0 | BI173: 0 | BJ173: 0 | BK173: 0 | BL173: 0 | BM173: 0 | BN173: 0 | BO173: 0 | BP173: 0 | BQ173: 0
A174: Greensboro | B174: 33.06130833 | C174: 52.93 | D174: 0.1523347945 | F174: 315328 | G174: 16.42 | H174: 9.73 | I174: 1.74 | J174: 0.96 | K174: 3.42 | L174: 0.6389735388 | M174: 52.07276233 | N174: 318608 | O174: 337712 | P174: 370213 | Q174: 405843 | R174: 444901 | S174: Guilford | T174: 18.683 | U174: 21.165 | V174: 24.409 | W174: 28.15 | X174: 32.464 | Y174: 10.671 | Z174: 12.089 | AA174: 13.942 | AB174: 16.078 | AC174: 18.542 | AD174: 2.205 | AE174: 2.498 | AF174: 2.881 | AG174: 3.322 | AH174: 3.831 | AI174: 0.875 | AJ174: 0.992 | AK174: 1.144 | AL174: 1.319 | AM174: 1.521 | AN174: 3.173 | AO174: 3.173 | AP174: 3.173 | AQ174: 3.173 | AR174: 3.173 | AS174: 3.125 | AT174: 3.521 | AU174: 4.04 | AV174: 4.638 | AW174: 5.328 | AX174: 0 | AY174: 4.9 | AZ174: 15.2 | BA174: 20.1 | BB174: 20.1 | BC174: 0 | BD174: 0 | BE174: 0 | BF174: 0 | BG174: 0 | BH174: 16.93 | BI174: 16.93 | BJ174: 16.93 | BK174: 16.93 | BL174: 16.93 | BM174: 0.1531 | BN174: 0.1531 | BO174: 0.1531 | BP174: 0.1531 | BQ174: 0.1531
A175: High Point | B175: 13.099525 | C175: 37.02 | D175: 0.3751 | F175: 114183 | G175: 5.489 | H175: 3.175 | I175: 0.9762 | J175: 0 | K175: 2 | L175: 1.084225 | M175: 48.07195467 | N175: 114821 | O175: 119413 | P175: 124189 | Q175: 129156 | R175: 134322 | S175: Guilford | T175: 5.595 | U175: 5.819 | V175: 6.052 | W175: 6.294 | X175: 6.546 | Y175: 3.04 | Z175: 3.161 | AA175: 3.255 | AB175: 3.353 | AC175: 3.453 | AD175: 0.816 | AE175: 0.849 | AF175: 0.883 | AG175: 0.918 | AH175: 0.955 | AI175: 0 | AJ175: 0 | AK175: 0 | AL175: 0 | AM175: 0 | AN175: 2 | AO175: 2.1 | AP175: 2.205 | AQ175: 2.271 | AR175: 2.34 | AS175: 0.385 | AT175: 0.401 | AU175: 0.4167 | AV175: 0.4315 | AW175: 0.4469 | AX175: 0 | AY175: 0 | AZ175: 0 | BA175: 0 | BB175: 0 | BC175: 0 | BD175: 0 | BE175: 0 | BF175: 0 | BG175: 0 | BH175: 2.826 | BI175: 2.826 | BJ175: 2.826 | BK175: 2.826 | BL175: 2.826 | BM175: 2 | BN175: 2 | BO175: 2 | BP175: 2 | BQ175: 2
A176: Gibsonville | B176: 0.53325 | C176: 2.5 | D176: 0 | F176: 7300 | G176: 0.442 | H176: 0.0526 | I176: 0.0083 | J176: 0.0013 | K176: 0.001 | L176: 0.02805 | M176: 60.54794521 | N176: 7664 | O176: 9580 | P176: 11974 | Q176: 14968 | R176: 18710 | S176: Guilford | T176: 0.4807 | U176: 0.4949 | V176: 0.7277 | W176: 1.0702 | X176: 1.5738 | Y176: 0.0567 | Z176: 0.0681 | AA176: 0.0817 | AB176: 0.098 | AC176: 0.1176 | AD176: 0.0088 | AE176: 0.0106 | AF176: 0.0123 | AG176: 0.0141 | AH176: 0.0158 | AI176: 0.0014 | AJ176: 0.0017 | AK176: 0.002 | AL176: 0.0024 | AM176: 0.0029 | AN176: 0.0005 | AO176: 0.0006 | AP176: 0.0008 | AQ176: 0.0009 | AR176: 0.0011 | AS176: 0.0548 | AT176: 0.0576 | AU176: 0.0824 | AV176: 0.1186 | AW176: 0.1711 | AX176: 0 | AY176: 0 | AZ176: 0 | BA176: 0 | BB176: 0 | BC176: 0 | BD176: 0 | BE176: 0 | BF176: 0 | BG176: 0 | BH176: 2.5 | BI176: 2.5 | BJ176: 2.5 | BK176: 2.5 | BL176: 2.5 | BM176: 0 | BN176: 0 | BO176: 0 | BP176: 0 | BQ176: 0
A177: Jamestown | B177: 0.4691666667 | C177: 2.275 | D177: 0 | F177: 6388 | G177: 0.218 | H177: 0.1274 | I177: 0.0761 | J177: 0.0408 | K177: 0.02 | L177: -0.01313333333 | M177: 34.12648716 | N177: 6500 | O177: 9000 | P177: 9500 | Q177: 10000 | R177: 10500 | S177: Guilford | T177: 0.25 | U177: 0.368 | V177: 0.402 | W177: 0.417 | X177: 0.431 | Y177: 0.14 | Z177: 0.18 | AA177: 0.19 | AB177: 0.2 | AC177: 0.2 | AD177: 0.08 | AE177: 0.08 | AF177: 0.08 | AG177: 0.08 | AH177: 0.08 | AI177: 0.045 | AJ177: 0.06 | AK177: 0.075 | AL177: 0.08 | AM177: 0.085 | AN177: 0.002 | AO177: 0.002 | AP177: 0.003 | AQ177: 0.003 | AR177: 0.003 | AS177: 0.04 | AT177: 0.045 | AU177: 0.05 | AV177: 0.055 | AW177: 0.06 | AX177: 0 | AY177: 0 | AZ177: 0 | BA177: 0 | BB177: 0 | BC177: 0 | BD177: 0 | BE177: 0 | BF177: 0 | BG177: 0 | BH177: 2.3681 | BI177: 2.3681 | BJ177: 2.3681 | BK177: 2.3681 | BL177: 2.3681 | BM177: 0 | BN177: 0 | BO177: 0 | BP177: 0 | BQ177: 0
A178: Stokesdale | B178: 0.1078083333 | C178: 0.3 | D178: 0 | F178: 559 | G178: 0.0594 | H178: 0.0081 | I178: 0.0104 | J178: 0.0154 | K178: 0 | L178: 0.01450833333 | M178: 106.2611807 | N178: 1275 | O178: 1466 | P178: 1686 | Q178: 1940 | R178: 2230 | S178: Guilford | T178: 0.055 | U178: 0.063 | V178: 0.072 | W178: 0.083 | X178: 0.096 | Y178: 0.008 | Z178: 0.01 | AA178: 0.013 | AB178: 0.016 | AC178: 0.021 | AD178: 0.01 | AE178: 0.011 | AF178: 0.012 | AG178: 0.013 | AH178: 0.013 | AI178: 0.016 | AJ178: 0.018 | AK178: 0.021 | AL178: 0.024 | AM178: 0.027 | AN178: 0.005 | AO178: 0.006 | AP178: 0.008 | AQ178: 0.009 | AR178: 0.011 | AS178: 0.011 | AT178: 0.013 | AU178: 0.014 | AV178: 0.017 | AW178: 0.019 | AX178: 0 | AY178: 0 | AZ178: 0 | BA178: 0 | BB178: 0 | BC178: 0 | BD178: 0 | BE178: 0 | BF178: 0 | BG178: 0 | BH178: 0.3 | BI178: 0.3 | BJ178: 0.3 | BK178: 0.3 | BL178: 0.3 | BM178: 0 | BN178: 0 | BO178: 0 | BP178: 0 | BQ178: 0
A179: Roxboro | B179: 2.580666667 | C179: 11 | D179: 0 | F179: 12423 | G179: 0.4819 | H179: 0.3264 | I179: 0.6366 | J179: 0.0916 | K179: 0.5 | L179: 0.5441666667 | M179: 38.79095227 | N179: 12247 | O179: 12285 | P179: 12317 | Q179: 12431 | R179: 12576 | S179: Person | T179: 0.505 | U179: 0.51 | V179: 0.515 | W179: 0.52 | X179: 0.525 | Y179: 0.267 | Z179: 0.267 | AA179: 0.269 | AB179: 0.274 | AC179: 0.281 | AD179: 0.984 | AE179: 0.988 | AF179: 0.992 | AG179: 1.004 | AH179: 1.264 | AI179: 0.045 | AJ179: 0.045 | AK179: 0.046 | AL179: 0.047 | AM179: 0.049 | AN179: 0.401 | AO179: 0.403 | AP179: 0.407 | AQ179: 0.411 | AR179: 0.423 | AS179: 0.7568 | AT179: 0.7606 | AU179: 0.7661 | AV179: 0.7754 | AW179: 0.8737 | AX179: 0 | AY179: 0 | AZ179: 10 | BA179: 10 | BB179: 10 | BC179: 0 | BD179: 0 | BE179: 0 | BF179: 0 | BG179: 0 | BH179: 0 | BI179: 0 | BJ179: 0 | BK179: 0 | BL179: 0 | BM179: 0 | BN179: 0 | BO179: 0 | BP179: 0 | BQ179: 0
A180: Asheboro | B180: 4.733583333 | C180: 25.5 | D180: 0.328 | F180: 25850 | G180: 1.671 | H180: 0 | I180: 1.892 | J180: 0 | K180: 0.39 | L180: 0.4525833333 | M180: 64.64216634 | N180: 26000 | O180: 27000 | P180: 30000 | Q180: 32800 | R180: 35000 | S180: Randolph | T180: 1.471 | U180: 1.581 | V180: 1.7 | W180: 1.87 | X180: 2.243 | Y180: 0.563 | Z180: 0.605 | AA180: 0.65 | AB180: 0.715 | AC180: 0.859 | AD180: 1.127 | AE180: 1.211 | AF180: 1.302 | AG180: 1.432 | AH180: 1.719 | AI180: 0.188 | AJ180: 0.202 | AK180: 0.217 | AL180: 0.239 | AM180: 0.287 | AN180: 0.18 | AO180: 0.19 | AP180: 0.2 | AQ180: 0.21 | AR180: 0.22 | AS180: 0.406 | AT180: 0.465 | AU180: 0.533 | AV180: 0.609 | AW180: 0.667 | AX180: 0 | AY180: 0 | AZ180: 0 | BA180: 0 | BB180: 0 | BC180: 0 | BD180: 0 | BE180: 0 | BF180: 0 | BG180: 0 | BH180: 0 | BI180: 0 | BJ180: 0 | BK180: 0 | BL180: 0 | BM180: 0.666 | BN180: 0.666 | BO180: 0.666 | BP180: 0.666 | BQ180: 0.666
A181: City of Randleman | B181: 0.9061666667 | C181: 1.125 | D181: 0 | F181: 4119 | G181: 0.216 | H181: 0.0789 | I181: 0.399 | J181: 0.016 | K181: 0.0067 | L181: 0.1895666667 | M181: 52.4399126 | N181: 4700 | O181: 5100 | P181: 5500 | Q181: 5900 | R181: 6300 | S181: Randolph | T181: 0.244 | U181: 0.265 | V181: 0.286 | W181: 0.307 | X181: 0.328 | Y181: 0.098 | Z181: 0.107 | AA181: 0.115 | AB181: 0.124 | AC181: 0.132 | AD181: 0.456 | AE181: 0.495 | AF181: 0.533 | AG181: 0.572 | AH181: 0.611 | AI181: 0.048 | AJ181: 0.056 | AK181: 0.064 | AL181: 0.072 | AM181: 0.08 | AN181: 0.004 | AO181: 0.004 | AP181: 0.005 | AQ181: 0.005 | AR181: 0.005 | AS181: 0.0956 | AT181: 0.1043 | AU181: 0.1128 | AV181: 0.1215 | AW181: 0.13 | AX181: 0.5 | AY181: 0.5 | AZ181: 0.5 | BA181: 0.5 | BB181: 0.5 | BC181: 0.041 | BD181: 0.041 | BE181: 0.041 | BF181: 0.041 | BG181: 0.041 | BH181: 1.166 | BI181: 1.166 | BJ181: 1.166 | BK181: 1.166 | BL181: 1.166 | BM181: 0 | BN181: 0 | BO181: 0 | BP181: 0 | BQ181: 0
A182: Ramseur | B182: 0.5945166667 | C182: 6.6 | D182: 0.12 | F182: 2893 | G182: 0.1042 | H182: 0.1097 | I182: 0.09 | J182: 0.0019 | K182: 0.0984 | L182: 0.07031666667 | M182: 36.01797442 | N182: 2893 | O182: 2893 | P182: 2893 | Q182: 2893 | R182: 2893 | S182: Randolph | T182: 0.1042 | U182: 0.1042 | V182: 0.1042 | W182: 0.1042 | X182: 0.1042 | Y182: 0.1097 | Z182: 0.1097 | AA182: 0.1097 | AB182: 0.1097 | AC182: 0.1097 | AD182: 0.09 | AE182: 0.09 | AF182: 0.09 | AG182: 0.09 | AH182: 0.09 | AI182: 0.0019 | AJ182: 0.0019 | AK182: 0.0019 | AL182: 0.0019 | AM182: 0.0019 | AN182: 0.0984 | AO182: 0.0984 | AP182: 0.0984 | AQ182: 0.0984 | AR182: 0.0984 | AS182: 0.1148 | AT182: 0.1148 | AU182: 0.1148 | AV182: 0.1148 | AW182: 0.1148 | AX182: 0 | AY182: 0 | AZ182: 0 | BA182: 0 | BB182: 0 | BC182: 0 | BD182: 0 | BE182: 0 | BF182: 0 | BG182: 0 | BH182: 0 | BI182: 0 | BJ182: 0 | BK182: 0 | BL182: 0 | BM182: 0.25 | BN182: 0.25 | BO182: 0.25 | BP182: 0.25 | BQ182: 0.25
A183: Liberty | B183: 0.2217166667 | C183: 0.559 | D183: 0 | F183: 3558 | G183: 0.1284 | H183: 0.0273 | I183: 0.0155 | J183: 0 | K183: 0.01 | L183: 0.04051666667 | M183: 36.08768971 | N183: 3561 | O183: 3575 | P183: 3588 | Q183: 3601 | R183: 3614 | S183: Randolph | T183: 0.1285 | U183: 0.129 | V183: 0.1294 | W183: 0.1298 | X183: 0.1302 | Y183: 0.0273 | Z183: 0.0274 | AA183: 0.0275 | AB183: 0.0276 | AC183: 0.0277 | AD183: 0.0155 | AE183: 0.0155 | AF183: 0.0155 | AG183: 0.0155 | AH183: 0.0155 | AI183: 0 | AJ183: 0 | AK183: 0 | AL183: 0 | AM183: 0 | AN183: 0.007 | AO183: 0.007 | AP183: 0.007 | AQ183: 0.007 | AR183: 0.007 | AS183: 0.1894 | AT183: 0.19 | AU183: 0.1906 | AV183: 0.1911 | AW183: 0.1916 | AX183: 0 | AY183: 0 | AZ183: 0 | BA183: 0 | BB183: 0 | BC183: 0 | BD183: 0 | BE183: 0 | BF183: 0 | BG183: 0 | BH183: 0 | BI183: 0 | BJ183: 0 | BK183: 0 | BL183: 0 | BM183: 0 | BN183: 0 | BO183: 0 | BP183: 0 | BQ183: 0
A184: Archdale | B184: 0.87775 | C184: 2.059 | D184: 0.004701369863 | F184: 12000 | G184: 0.467 | H184: 0.161 | I184: 0.149 | J184: 0.018 | K184: 0.001 | L184: 0.07704863014 | M184: 38.91666667 | N184: 13000 | O184: 14000 | P184: 15000 | Q184: 16000 | R184: 17000 | S184: Randolph | T184: 0.69 | U184: 0.7 | V184: 0.705 | W184: 0.715 | X184: 0.72 | Y184: 0.155 | Z184: 0.16 | AA184: 0.165 | AB184: 0.17 | AC184: 0.175 | AD184: 0.035 | AE184: 0.035 | AF184: 0.035 | AG184: 0.035 | AH184: 0.035 | AI184: 0.04 | AJ184: 0.042 | AK184: 0.044 | AL184: 0.045 | AM184: 0.045 | AN184: 0.007 | AO184: 0.007 | AP184: 0.007 | AQ184: 0.007 | AR184: 0.007 | AS184: 0.18 | AT184: 0.184 | AU184: 0.19 | AV184: 0.195 | AW184: 0.2 | AX184: 0 | AY184: 0 | AZ184: 0 | BA184: 0 | BB184: 0 | BC184: 0 | BD184: 0 | BE184: 0 | BF184: 0 | BG184: 0 | BH184: 2.059 | BI184: 2.059 | BJ184: 2.059 | BK184: 2.059 | BL184: 2.059 | BM184: 0.036 | BN184: 0.036 | BO184: 0.036 | BP184: 0.036 | BQ184: 0.036
A185: Franklinville | B185: 0.1293333333 | C185: 0.25 | D185: 0 | F185: 1196 | G185: 0.073 | H185: 0.014 | I185: 0 | J185: 0 | K185: 0.029 | L185: 0.01333333333 | M185: 61.0367893 | N185: 1250 | O185: 1300 | P185: 1400 | Q185: 1500 | R185: 1600 | S185: Randolph | T185: 0.072 | U185: 0.075 | V185: 0.078 | W185: 0.081 | X185: 0.085 | Y185: 0.013 | Z185: 0.014 | AA185: 0.015 | AB185: 0.016 | AC185: 0.018 | AD185: 0.005 | AE185: 0.005 | AF185: 0.005 | AG185: 0.005 | AH185: 0.005 | AI185: 0 | AJ185: 0 | AK185: 0 | AL185: 0 | AM185: 0 | AN185: 0.022 | AO185: 0.023 | AP185: 0.024 | AQ185: 0.025 | AR185: 0.026 | AS185: 0.007 | AT185: 0.008 | AU185: 0.008 | AV185: 0.008 | AW185: 0.009 | AX185: 0 | AY185: 0 | AZ185: 0 | BA185: 0 | BB185: 0 | BC185: 0 | BD185: 0 | BE185: 0 | BF185: 0 | BG185: 0 | BH185: 0.25 | BI185: 0.25 | BJ185: 0.25 | BK185: 0.25 | BL185: 0.25 | BM185: 0 | BN185: 0 | BO185: 0 | BP185: 0 | BQ185: 0
A186: Seagrove-Ulah Metro Water District | B186: 0.165825 | C186: 0.5 | D186: 0 | F186: 2250 | G186: 0.093 | H186: 0.023 | I186: 0.015 | J186: 0.012 | K186: 0.0068 | L186: 0.016025 | M186: 41.33333333 | N186: 2350 | O186: 2400 | P186: 2450 | Q186: 2500 | R186: 2550 | S186: Randolph | T186: 0.1 | U186: 0.102 | V186: 0.104 | W186: 0.106 | X186: 0.108 | Y186: 0.022 | Z186: 0.022 | AA186: 0.023 | AB186: 0.023 | AC186: 0.024 | AD186: 0.012 | AE186: 0.012 | AF186: 0.012 | AG186: 0.013 | AH186: 0.013 | AI186: 0.01 | AJ186: 0.01 | AK186: 0.01 | AL186: 0.011 | AM186: 0.011 | AN186: 0.006 | AO186: 0.006 | AP186: 0.007 | AQ186: 0.007 | AR186: 0.007 | AS186: 0.015 | AT186: 0.015 | AU186: 0.016 | AV186: 0.016 | AW186: 0.016 | AX186: 0 | AY186: 0 | AZ186: 0 | BA186: 0 | BB186: 0 | BC186: 0 | BD186: 0 | BE186: 0 | BF186: 0 | BG186: 0 | BH186: 0.5 | BI186: 0.5 | BJ186: 0.5 | BK186: 0.5 | BL186: 0.5 | BM186: 0 | BN186: 0 | BO186: 0 | BP186: 0 | BQ186: 0
A187: Eden | B187: 4.017416667 | C187: 24.17 | D187: 0.9446 | F187: 15023 | G187: 0.78 | H187: 0.226 | I187: 0.129 | J187: 0.599 | K187: 0.87 | L187: 0.4688166667 | M187: 51.92038874 | N187: 15019 | O187: 15000 | P187: 14880 | Q187: 14850 | R187: 14800 | S187: Rockingham | T187: 0.757 | U187: 0.734 | V187: 0.7123 | W187: 0.69 | X187: 0.67 | Y187: 0.22 | Z187: 0.21 | AA187: 0.2 | AB187: 0.19 | AC187: 0.18 | AD187: 0.13 | AE187: 0.14 | AF187: 0.15 | AG187: 0.16 | AH187: 0.17 | AI187: 0.138 | AJ187: 0.137 | AK187: 0.136 | AL187: 0.135 | AM187: 0.134 | AN187: 0.76 | AO187: 0.75 | AP187: 0.74 | AQ187: 0.73 | AR187: 0.72 | AS187: 0.363 | AT187: 0.3568 | AU187: 0.3509 | AV187: 0.3449 | AW187: 0.3392 | AX187: 0 | AY187: 0 | AZ187: 0 | BA187: 0 | BB187: 0 | BC187: 0 | BD187: 0 | BE187: 0 | BF187: 0 | BG187: 0 | BH187: 0 | BI187: 0 | BJ187: 0 | BK187: 0 | BL187: 0 | BM187: 1.667 | BN187: 1.667 | BO187: 1.667 | BP187: 1.667 | BQ187: 1.667
A188: Reidsville | B188: 4.5045 | C188: 19 | D188: 0.9855 | F188: 16000 | G188: 0.6912 | H188: 0.7513 | I188: 1.0627 | J188: 0.0569 | K188: 0.745 | L188: 0.2119 | M188: 43.2 | N188: 14171 | O188: 14313 | P188: 14456 | Q188: 14600 | R188: 14746 | S188: Rockingham | T188: 0.6974 | U188: 0.7044 | V188: 0.7114 | W188: 0.7186 | X188: 0.7257 | Y188: 0.7581 | Z188: 0.7656 | AA188: 0.7733 | AB188: 0.781 | AC188: 0.7888 | AD188: 1.0758 | AE188: 1.083 | AF188: 1.0938 | AG188: 1.1048 | AH188: 1.1158 | AI188: 0.0574 | AJ188: 0.058 | AK188: 0.0586 | AL188: 0.0591 | AM188: 0.0597 | AN188: 0.7517 | AO188: 0.7592 | AP188: 0.7668 | AQ188: 0.7745 | AR188: 0.7822 | AS188: 0.2115 | AT188: 0.2134 | AU188: 0.2155 | AV188: 0.2177 | AW188: 0.2199 | AX188: 0 | AY188: 0 | AZ188: 0 | BA188: 0 | BB188: 0 | BC188: 0 | BD188: 0 | BE188: 0 | BF188: 0 | BG188: 0 | BH188: 0 | BI188: 0 | BJ188: 0 | BK188: 0 | BL188: 0 | BM188: 1.55 | BN188: 1.55 | BO188: 1.55 | BP188: 1.55 | BQ188: 1.55
A189: Mayodan | B189: 0.7190833333 | C189: 10 | D189: 0.1332 | F189: 2409 | G189: 0.1038 | H189: 0.0485 | I189: 0.2005 | J189: 0.0172 | K189: 0.11 | L189: 0.1058833333 | M189: 43.08841843 | N189: 2955 | O189: 3250 | P189: 3575 | Q189: 3932 | R189: 4000 | S189: Rockingham | T189: 0.136 | U189: 0.149 | V189: 0.164 | W189: 0.18 | X189: 0.183 | Y189: 0.044 | Z189: 0.044 | AA189: 0.045 | AB189: 0.045 | AC189: 0.045 | AD189: 0.133 | AE189: 0.134 | AF189: 0.135 | AG189: 0.136 | AH189: 0.136 | AI189: 0.022 | AJ189: 0.022 | AK189: 0.022 | AL189: 0.023 | AM189: 0.023 | AN189: 0.118 | AO189: 0.119 | AP189: 0.12 | AQ189: 0.121 | AR189: 0.121 | AS189: 0.0998 | AT189: 0.1032 | AU189: 0.1071 | AV189: 0.1113 | AW189: 0.112 | AX189: 0 | AY189: 0 | AZ189: 0 | BA189: 0 | BB189: 0 | BC189: 0 | BD189: 0 | BE189: 0 | BF189: 0 | BG189: 0 | BH189: 0 | BI189: 0 | BJ189: 0 | BK189: 0 | BL189: 0 | BM189: 0.3 | BN189: 0.3 | BO189: 0.3 | BP189: 0.3 | BQ189: 0.3
A190: Madison | B190: 0.4695833333 | C190: 16.1 | D190: 0.039 | F190: 2787 | G190: 0.088 | H190: 0.047 | I190: 0.192 | J190: 0 | K190: 0.07 | L190: 0.03358333333 | M190: 31.57517043 | N190: 2907 | O190: 3027 | P190: 3147 | Q190: 3267 | R190: 3387 | S190: Rockingham | T190: 0.1 | U190: 0.104 | V190: 0.108 | W190: 0.112 | X190: 0.116 | Y190: 0.04 | Z190: 0.041 | AA190: 0.042 | AB190: 0.043 | AC190: 0.044 | AD190: 0.334 | AE190: 0.35 | AF190: 0.368 | AG190: 0.386 | AH190: 0.404 | AI190: 0 | AJ190: 0 | AK190: 0 | AL190: 0 | AM190: 0 | AN190: 0.07 | AO190: 0.072 | AP190: 0.074 | AQ190: 0.076 | AR190: 0.078 | AS190: 0.0529 | AT190: 0.0552 | AU190: 0.0576 | AV190: 0.06 | AW190: 0.0625 | AX190: 0 | AY190: 0 | AZ190: 0 | BA190: 0 | BB190: 0 | BC190: 0 | BD190: 0 | BE190: 0 | BF190: 0 | BG190: 0 | BH190: 0 | BI190: 0 | BJ190: 0 | BK190: 0 | BL190: 0 | BM190: 0.2 | BN190: 0.2 | BO190: 0.2 | BP190: 0.2 | BQ190: 0.2
A191: Stoneville | B191: 0.1331416667 | C191: 0.3 | D191: 0 | F191: 1225 | G191: 0.0657 | H191: 0.0077 | I191: 0.0045 | J191: 0.0031 | K191: 0.035 | L191: 0.01714166667 | M191: 53.63265306 | N191: 1250 | O191: 1260 | P191: 1275 | Q191: 1290 | R191: 1300 | S191: Rockingham | T191: 0.07 | U191: 0.101 | V191: 0.102 | W191: 0.103 | X191: 0.104 | Y191: 0.013 | Z191: 0.013 | AA191: 0.014 | AB191: 0.014 | AC191: 0.014 | AD191: 0.005 | AE191: 0.009 | AF191: 0.01 | AG191: 0.01 | AH191: 0.01 | AI191: 0.005 | AJ191: 0.005 | AK191: 0.006 | AL191: 0.006 | AM191: 0.006 | AN191: 0.02 | AO191: 0.02 | AP191: 0.02 | AQ191: 0.02 | AR191: 0.02 | AS191: 0.0188 | AT191: 0.0189 | AU191: 0.0195 | AV191: 0.0196 | AW191: 0.0198 | AX191: 0 | AY191: 0 | AZ191: 0 | BA191: 0 | BB191: 0 | BC191: 0 | BD191: 0 | BE191: 0 | BF191: 0 | BG191: 0 | BH191: 0.3 | BI191: 0.3 | BJ191: 0.3 | BK191: 0.3 | BL191: 0.3 | BM191: 0 | BN191: 0 | BO191: 0 | BP191: 0 | BQ191: 0
A192: Dan River Water Inc. | B192: 0.9438333333 | C192: 1.667 | D192: 0 | F192: 11900 | G192: 0.8 | H192: 0.015 | I192: 0.05 | J192: 0.015 | K192: 0.0078 | L192: 0.05603333333 | M192: 67.22689076 | N192: 12747 | O192: 13499 | P192: 14295 | Q192: 15138 | R192: 15300 | S192: Rockingham | T192: 0.801 | U192: 0.849 | V192: 0.899 | W192: 0.952 | X192: 0.99 | Y192: 0.019 | Z192: 0.021 | AA192: 0.022 | AB192: 0.023 | AC192: 0.025 | AD192: 0.05 | AE192: 0.05 | AF192: 0.05 | AG192: 0.05 | AH192: 0.05 | AI192: 0.016 | AJ192: 0.017 | AK192: 0.018 | AL192: 0.019 | AM192: 0.021 | AN192: 0.006 | AO192: 0.006 | AP192: 0.007 | AQ192: 0.007 | AR192: 0.008 | AS192: 0.1247 | AT192: 0.1319 | AU192: 0.1393 | AV192: 0.147 | AW192: 0.153 | AX192: 0 | AY192: 0 | AZ192: 0 | BA192: 0 | BB192: 0 | BC192: 0 | BD192: 0 | BE192: 0 | BF192: 0 | BG192: 0 | BH192: 1.667 | BI192: 1.667 | BJ192: 1.667 | BK192: 1.667 | BL192: 1.667 | BM192: 0 | BN192: 0 | BO192: 0 | BP192: 0 | BQ192: 0
A193: Rockingham Co | B193: 0.10425 | C193: 0.75 | D193: 0 | F193: 1158 | G193: 0.084 | H193: 0.0115 | I193: 0.0003 | J193: 0.008 | K193: 0.0022 | L193: -0.00175 | M193: 72.5388601 | N193: 1300 | O193: 1500 | P193: 1700 | Q193: 1900 | R193: 2100 | S193: Rockingham | T193: 0.065 | U193: 0.068 | V193: 0.071 | W193: 0.075 | X193: 0.078 | Y193: 0.015 | Z193: 0.017 | AA193: 0.019 | AB193: 0.021 | AC193: 0.023 | AD193: 0.009 | AE193: 0.011 | AF193: 0.013 | AG193: 0.015 | AH193: 0.017 | AI193: 0.013 | AJ193: 0.015 | AK193: 0.017 | AL193: 0.019 | AM193: 0.021 | AN193: 0.02 | AO193: 0.02 | AP193: 0.02 | AQ193: 0.02 | AR193: 0.02 | AS193: 0.014 | AT193: 0.015 | AU193: 0.016 | AV193: 0.017 | AW193: 0.018 | AX193: 0 | AY193: 0 | AZ193: 0 | BA193: 0 | BB193: 0 | BC193: 0 | BD193: 0 | BE193: 0 | BF193: 0 | BG193: 0 | BH193: 0.75 | BI193: 0.75 | BJ193: 0.75 | BK193: 0.75 | BL193: 0.75 | BM193: 0 | BN193: 0 | BO193: 0 | BP193: 0 | BQ193: 0
A194: King | B194: 1.502333333 | C194: 50 | D194: 0 | F194: 20490 | G194: 1.1857 | H194: 0.2063 | I194: 0.0215 | J194: 0.0255 | K194: 0.0239 | L194: 0.03943333333 | M194: 57.86725232 | N194: 21000 | O194: 23100 | P194: 25410 | Q194: 27950 | R194: 30750 | S194: Stokes | T194: 1.1976 | U194: 1.377 | V194: 1.584 | W194: 1.837 | X194: 2.131 | Y194: 0.2084 | Z194: 0.2396 | AA194: 0.2756 | AB194: 0.3196 | AC194: 0.3708 | AD194: 0.0217 | AE194: 0.005 | AF194: 0.0287 | AG194: 0.0333 | AH194: 0.0386 | AI194: 0.0258 | AJ194: 0.0296 | AK194: 0.0341 | AL194: 0.0395 | AM194: 0.0458 | AN194: 0.0241 | AO194: 0.0278 | AP194: 0.0319 | AQ194: 0.037 | AR194: 0.043 | AS194: 0.0375 | AT194: 0.0426 | AU194: 0.0496 | AV194: 0.0575 | AW194: 0.0667 | AX194: 0 | AY194: 0 | AZ194: 0 | BA194: 0 | BB194: 0 | BC194: 0 | BD194: 0 | BE194: 0 | BF194: 0 | BG194: 0 | BH194: 0 | BI194: 0 | BJ194: 0 | BK194: 0 | BL194: 0 | BM194: 0 | BN194: 0 | BO194: 0 | BP194: 0 | BQ194: 0
A195: Walnut Cove | B195: 0.24935 | C195: 0.41 | D195: 0 | F195: 1820 | G195: 0.0654 | H195: 0.0465 | I195: 0.136 | J195: 0.0013 | K195: 0.001 | L195: -0.00085 | M195: 35.93406593 | N195: 1824 | O195: 1842 | P195: 1859 | Q195: 1875 | R195: 1892 | S195: Stokes | T195: 0.0654 | U195: 0.0658 | V195: 0.0663 | W195: 0.0668 | X195: 0.0674 | Y195: 0.0465 | Z195: 0.0443 | AA195: 0.0447 | AB195: 0.045 | AC195: 0.0454 | AD195: 0.1362 | AE195: 0.0642 | AF195: 0.0642 | AG195: 0.0642 | AH195: 0.0642 | AI195: 0.0013 | AJ195: 0.0012 | AK195: 0.0012 | AL195: 0.0012 | AM195: 0.0012 | AN195: 0.001 | AO195: 0.001 | AP195: 0.001 | AQ195: 0.001 | AR195: 0.001 | AS195: 0.0699 | AT195: 0.0703 | AU195: 0.0707 | AV195: 0.071 | AW195: 0.0714 | AX195: 0 | AY195: 0 | AZ195: 0 | BA195: 0 | BB195: 0 | BC195: 0 | BD195: 0 | BE195: 0 | BF195: 0 | BG195: 0 | BH195: 0.0397 | BI195: 0.0397 | BJ195: 0.0397 | BK195: 0.0397 | BL195: 0.0397 | BM195: 0 | BN195: 0 | BO195: 0 | BP195: 0 | BQ195: 0
A196: Danbury | B196: 0.0385 | C196: 0.056 | D196: 0 | F196: 108 | G196: 0.0036 | H196: 0.0011 | I196: 0 | J196: 0.0188 | K196: 0.0026 | L196: 0.0124 | M196: 33.33333333 | N196: 135 | O196: 140 | P196: 145 | Q196: 155 | R196: 165 | S196: Stokes | T196: 0.005 | U196: 0.005 | V196: 0.005 | W196: 0.005 | X196: 0.006 | Y196: 0.001 | Z196: 0.001 | AA196: 0.001 | AB196: 0.002 | AC196: 0.002 | AD196: 0 | AE196: 0 | AF196: 0 | AG196: 0 | AH196: 0 | AI196: 0.023 | AJ196: 0.023 | AK196: 0.024 | AL196: 0.024 | AM196: 0.025 | AN196: 0.003 | AO196: 0.003 | AP196: 0.003 | AQ196: 0.003 | AR196: 0.003 | AS196: 0.005 | AT196: 0.005 | AU196: 0.006 | AV196: 0.006 | AW196: 0.007 | AX196: 0 | AY196: 0 | AZ196: 0 | BA196: 0 | BB196: 0 | BC196: 0 | BD196: 0 | BE196: 0 | BF196: 0 | BG196: 0 | BH196: 0 | BI196: 0 | BJ196: 0 | BK196: 0 | BL196: 0 | BM196: 0 | BN196: 0 | BO196: 0 | BP196: 0 | BQ196: 0
A197: Stokes County WASA | B197: 0.051275 | C197: 0.2 | D197: 0.0396 | F197: 368 | G197: 0.0095 | H197: 0.0008 | I197: 0 | J197: 0 | K197: 0 | L197: 0.001375 | M197: 25.81521739 | N197: 400 | O197: 420 | P197: 440 | Q197: 460 | R197: 460 | S197: Stokes | T197: 0.013 | U197: 0.013 | V197: 0.014 | W197: 0.014 | X197: 0.014 | Y197: 0.002 | Z197: 0.002 | AA197: 0.002 | AB197: 0.003 | AC197: 0.003 | AD197: 0 | AE197: 0 | AF197: 0 | AG197: 0 | AH197: 0 | AI197: 0 | AJ197: 0 | AK197: 0 | AL197: 0 | AM197: 0 | AN197: 0.001 | AO197: 0.001 | AP197: 0.001 | AQ197: 0.001 | AR197: 0.001 | AS197: 0.002 | AT197: 0.002 | AU197: 0.002 | AV197: 0.003 | AW197: 0.003 | AX197: 0 | AY197: 0 | AZ197: 0 | BA197: 0 | BB197: 0 | BC197: 0.25 | BD197: 0.25 | BE197: 0 | BF197: 0 | BG197: 0 | BH197: 0.2 | BI197: 0.2 | BJ197: 0.2 | BK197: 0.2 | BL197: 0.2 | BM197: 0.05 | BN197: 0.05 | BO197: 0 | BP197: 0 | BQ197: 0
A198: Mount Airy | B198: 2.217583333 | C198: 15.3 | D198: 0.2233 | F198: 10417 | G198: 0.492 | H198: 0.546 | I198: 0.186 | J198: 0.093 | K198: 0.44 | L198: 0.2372833333 | M198: 47.23048862 | N198: 10800 | O198: 12500 | P198: 14400 | Q198: 16600 | R198: 19100 | S198: Surry | T198: 0.54 | U198: 0.625 | V198: 0.72 | W198: 0.83 | X198: 0.955 | Y198: 0.54 | Z198: 0.625 | AA198: 0.72 | AB198: 0.83 | AC198: 0.955 | AD198: 0.325 | AE198: 0.375 | AF198: 0.43 | AG198: 0.5 | AH198: 0.57 | AI198: 0.2 | AJ198: 0.25 | AK198: 0.3 | AL198: 0.35 | AM198: 0.4 | AN198: 0.325 | AO198: 0.375 | AP198: 0.43 | AQ198: 0.49 | AR198: 0.56 | AS198: 0.385 | AT198: 0.44 | AU198: 0.5 | AV198: 0.57 | AW198: 0.65 | AX198: 0 | AY198: 0 | AZ198: 0 | BA198: 0 | BB198: 0 | BC198: 0 | BD198: 0 | BE198: 0 | BF198: 0 | BG198: 0 | BH198: 0 | BI198: 0 | BJ198: 0 | BK198: 0 | BL198: 0 | BM198: 0.2285 | BN198: 0.2285 | BO198: 0.2285 | BP198: 0.2285 | BQ198: 0.2285
A199: Elkin | B199: 0.9154166667 | C199: 5.8 | D199: 0.1206 | F199: 4024 | G199: 0.145 | H199: 0.166 | I199: 0.182 | J199: 0.065 | K199: 0.085 | L199: 0.1518166667 | M199: 36.03379722 | N199: 4100 | O199: 4150 | P199: 4480 | Q199: 4600 | R199: 4840 | S199: Surry | T199: 0.17 | U199: 0.175 | V199: 0.18 | W199: 0.185 | X199: 0.19 | Y199: 0.18 | Z199: 0.182 | AA199: 0.185 | AB199: 0.187 | AC199: 0.189 | AD199: 0.095 | AE199: 0.096 | AF199: 0.097 | AG199: 0.098 | AH199: 0.1 | AI199: 0.09 | AJ199: 0.092 | AK199: 0.095 | AL199: 0.098 | AM199: 0.1 | AN199: 0.055 | AO199: 0.055 | AP199: 0.055 | AQ199: 0.055 | AR199: 0.055 | AS199: 0.091 | AT199: 0.094 | AU199: 0.099 | AV199: 0.101 | AW199: 0.104 | AX199: 0 | AY199: 0 | AZ199: 0 | BA199: 0 | BB199: 0 | BC199: 0 | BD199: 0 | BE199: 0 | BF199: 0 | BG199: 0 | BH199: 0 | BI199: 0 | BJ199: 0 | BK199: 0 | BL199: 0 | BM199: 0.6 | BN199: 0.6 | BO199: 0.6 | BP199: 0.6 | BQ199: 0.6
A200: Pilot Mountain | B200: 0.2138916667 | C200: 2.25 | D200: 0 | F200: 1947 | G200: 0.0895 | H200: 0.0248 | I200: 0.001 | J200: 0.0546 | K200: 0.001 | L200: 0.04299166667 | M200: 45.96815614 | N200: 1956 | O200: 2004 | P200: 2048 | Q200: 2092 | R200: 2138 | S200: Surry | T200: 0.0899 | U200: 0.0921 | V200: 0.0941 | W200: 0.0961 | X200: 0.0982 | Y200: 0.025 | Z200: 0.03 | AA200: 0.035 | AB200: 0.04 | AC200: 0.045 | AD200: 0.001 | AE200: 0.001 | AF200: 0.001 | AG200: 0.001 | AH200: 0.001 | AI200: 0.055 | AJ200: 0.061 | AK200: 0.062 | AL200: 0.063 | AM200: 0.064 | AN200: 0.001 | AO200: 0.001 | AP200: 0.001 | AQ200: 0.001 | AR200: 0.001 | AS200: 0.0432 | AT200: 0.0465 | AU200: 0.0485 | AV200: 0.0505 | AW200: 0.0525 | AX200: 0 | AY200: 0 | AZ200: 0 | BA200: 0 | BB200: 0 | BC200: 0 | BD200: 0 | BE200: 0 | BF200: 0 | BG200: 0 | BH200: 0 | BI200: 0 | BJ200: 0 | BK200: 0 | BL200: 0 | BM200: 0 | BN200: 0 | BO200: 0 | BP200: 0 | BQ200: 0
... 353 more rows

Sheet Data Links (hidden)
A1: Link to BLS Data
A2: LWSP Data Pull Link (2022)

Sheet Master Data Set 2020 (hidden)
A1: Projection Period Begin Yr (e.g. 2020, 2030, etc) = | B1: 2030 | C1: Historical End Year (i.e. reporting year) = | D1: 2020 | E1: Historical Begin Year = | F1: =D1-5 -> 2015 | L1: flag neg. in red
A2: Name | B2: Water Withdrawn/Purchased | C2: Available Supply | D2: Water Sold | E2: Pop - Begin Year | F2: Pop - End Year | G2: Demand-Res | H2: Demand-Comm | I2: Demand-Ind | J2: Demand-Inst | K2: Demand-Sys Proc | L2: Demand-UAFW | M2: GPCD-Res | N2: Population2030 | O2: Population2040 | P2: Population2050 | Q2: Population2060 | R2: Population2070 | S2: County | T2: Residential2030 | U2: Residential2040 | V2: Residential2050 | W2: Residential2060 | X2: Residential2070 | Y2: Commercial2030 | Z2: Commercial2040 | AA2: Commercial2050 | AB2: Commercial2060 | AC2: Commercial2070 | AD2: Industrial2030 | AE2: Industrial2040 | AF2: Industrial2050 | AG2: Industrial2060 | AH2: Industrial2070 | AI2: Institutional2030 | AJ2: Institutional2040 | AK2: Institutional2050 | AL2: Institutional2060 | AM2: Institutional2070 | AN2: System Process2030 | AO2: System Process2040 | AP2: System Process2050 | AQ2: System Process2060 | AR2: System Process2070 | AS2: UAFW2030 | AT2: UAFW2040 | AU2: UAFW2050 | AV2: UAFW2060 | AW2: UAFW2070 | AX2: 2030Future Supplies | AY2: 2040Future Supplies | AZ2: 2050Future Supplies | BA2: 2060Future Supplies | BB2: 2070Future Supplies | BC2: 2030Projected Sales | BD2: 2040Projected Sales | BE2: 2050Projected Sales | BF2: 2060Projected Sales | BG2: 2070Projected Sales | BH2: 2030Contract Purchase | BI2: 2040Contract Purchase | BJ2: 2050Contract Purchase | BK2: 2060Contract Purchase | BL2: 2070Contract Purchase | BM2: 2030Contract Sales | BN2: 2040Contract Sales | BO2: 2050Contract Sales | BP2: 2060Contract Sales | BQ2: 2070Contract Sales
A3: Aberdeen | B3: 1.285591667 | C3: 2.0126 | D3: 0.3563808219 | F3: 7988 | G3: 0.5034 | H3: 0.1788 | I3: 0.0498 | J3: 0.0566 | K3: 0.01 | L3: 0.1306108447 | M3: 63.01952929 | N3: 9455 | O3: 11191 | P3: 13024 | Q3: 15158 | R3: 17641 | S3: Moore | T3: 0.5958 | U3: 0.7051 | V3: 0.8206 | W3: 0.955 | X3: 1.1114 | Y3: 0.2116 | Z3: 0.2504 | AA3: 0.2915 | AB3: 0.3392 | AC3: 0.3948 | AD3: 0.0498 | AE3: 0.0498 | AF3: 0.0498 | AG3: 0.0498 | AH3: 0.0498 | AI3: 0.056 | AJ3: 0.0663 | AK3: 0.0771 | AL3: 0.0897 | AM3: 0.104 | AN3: 0.011 | AO3: 0.012 | AP3: 0.013 | AQ3: 0.014 | AR3: 0.015 | AS3: 0.155 | AT3: 0.1798 | AU3: 0.2086 | AV3: 0.2419 | AW3: 0.2806 | AX3: 0.05 | AY3: 0.05 | AZ3: 0.05 | BA3: 0.05 | BB3: 0.05 | BC3: 0 | BD3: 0 | BE3: 0 | BF3: 0 | BG3: 0 | BH3: 0 | BI3: 0 | BJ3: 0 | BK3: 0 | BL3: 0 | BM3: 0.3785 | BN3: 0.3785 | BO3: 0.3785 | BP3: 0.3785 | BQ3: 0.3785
A4: Ahoskie | B4: 0.694225 | C4: 3.658 | D4: 0 | F4: 5479 | G4: 0.2797 | H4: 0.2208 | I4: 0.0457 | J4: 0.042 | K4: 0.018 | L4: 0.088025 | M4: 51.04946158 | N4: 5700 | O4: 5830 | P4: 5900 | Q4: 5998 | R4: 6100 | S4: Hertford | T4: 0.245 | U4: 0.248 | V4: 0.255 | W4: 0.261 | X4: 0.266 | Y4: 0.293 | Z4: 0.297 | AA4: 0.305 | AB4: 0.308 | AC4: 0.314 | AD4: 0.023 | AE4: 0.03 | AF4: 0.04 | AG4: 0.05 | AH4: 0.06 | AI4: 0.041 | AJ4: 0.042 | AK4: 0.043 | AL4: 0.047 | AM4: 0.048 | AN4: 0.03 | AO4: 0.03 | AP4: 0.03 | AQ4: 0.03 | AR4: 0.03 | AS4: 0.1121 | AT4: 0.1147 | AU4: 0.1193 | AV4: 0.1234 | AW4: 0.127 | AX4: 0 | AY4: 0 | AZ4: 0 | BA4: 0 | BB4: 0 | BC4: 0 | BD4: 0 | BE4: 0 | BF4: 0 | BG4: 0 | BH4: 0 | BI4: 0 | BJ4: 0 | BK4: 0 | BL4: 0 | BM4: 0 | BN4: 0 | BO4: 0 | BP4: 0 | BQ4: 0
A5: Alamance | B5: 0.059775 | C5: 0.5 | D5: 0 | F5: 1100 | G5: 0.0502 | H5: 0.0011 | I5: 0.0013 | J5: 0.0023 | K5: 0.002 | L5: 0.002875 | M5: 45.63636364 | N5: 1200 | O5: 1320 | P5: 1450 | Q5: 1600 | R5: 1750 | S5: Alamance | T5: 0.068 | U5: 0.075 | V5: 0.083 | W5: 0.091 | X5: 0.099 | Y5: 0.004 | Z5: 0.004 | AA5: 0.004 | AB5: 0.005 | AC5: 0.005 | AD5: 0.003 | AE5: 0.003 | AF5: 0.004 | AG5: 0.004 | AH5: 0.005 | AI5: 0.005 | AJ5: 0.006 | AK5: 0.006 | AL5: 0.006 | AM5: 0.007 | AN5: 0.002 | AO5: 0.002 | AP5: 0.002 | AQ5: 0.002 | AR5: 0.002 | AS5: 0.0113 | AT5: 0.0124 | AU5: 0.0138 | AV5: 0.0149 | AW5: 0.016 | AX5: 0 | AY5: 0 | AZ5: 0 | BA5: 0 | BB5: 0 | BC5: 0 | BD5: 0 | BE5: 0 | BF5: 0 | BG5: 0 | BH5: 0.5 | BI5: 0.5 | BJ5: 0.5 | BK5: 0.5 | BL5: 0.5 | BM5: 0 | BN5: 0 | BO5: 0 | BP5: 0 | BQ5: 0
A6: Albemarle | B6: 8.58 | C6: 18 | D6: 4.478 | F6: 16538 | G6: 0.84 | H6: 2.24 | I6: 0.27 | J6: 0 | K6: 0.041 | L6: 0.711 | M6: 50.79211513 | N6: 16600 | O6: 17100 | P6: 17700 | Q6: 18300 | R6: 18900 | S6: Stanly | T6: 0.67 | U6: 0.72 | V6: 0.74 | W6: 0.77 | X6: 0.8 | Y6: 0.25 | Z6: 0.3 | AA6: 0.35 | AB6: 0.45 | AC6: 0.5 | AD6: 1.5 | AE6: 1.6 | AF6: 1.7 | AG6: 1.8 | AH6: 1.9 | AI6: 0 | AJ6: 0 | AK6: 0 | AL6: 0 | AM6: 0 | AN6: 1.2 | AO6: 1.4 | AP6: 1.5 | AQ6: 1.7 | AR6: 1.9 | AS6: 0.18 | AT6: 0.19 | AU6: 0.2 | AV6: 0.22 | AW6: 0.24 | AX6: 0 | AY6: 0 | AZ6: 0 | BA6: 0 | BB6: 0 | BC6: 0 | BD6: 4.2 | BE6: 4.2 | BF6: 4.2 | BG6: 4.2 | BH6: 0 | BI6: 0 | BJ6: 0 | BK6: 0 | BL6: 0 | BM6: 8.75 | BN6: 8.75 | BO6: 8.75 | BP6: 8.75 | BQ6: 8.75
A7: Alexander County WD | B7: 0.8505916667 | C7: 2 | D7: 0.0012 | F7: 12960 | G7: 0.6383 | H7: 0.2122 | I7: 0 | J7: 0 | K7: 0.0128 | L7: -0.01390833333 | M7: 49.25154321 | N7: 13349 | O7: 13749 | P7: 14162 | Q7: 14587 | R7: 15024 | S7: Alexander | T7: 0.6574 | U7: 0.6771 | V7: 0.6975 | W7: 0.7184 | X7: 0.7399 | Y7: 0.2185 | Z7: 0.2251 | AA7: 0.2318 | AB7: 0.2388 | AC7: 0.246 | AD7: 0 | AE7: 0 | AF7: 0 | AG7: 0 | AH7: 0 | AI7: 0 | AJ7: 0 | AK7: 0 | AL7: 0 | AM7: 0 | AN7: 0.0131 | AO7: 0.0135 | AP7: 0.0139 | AQ7: 0.0144 | AR7: 0.0148 | AS7: 0.0585 | AT7: 0.0602 | AU7: 0.0621 | AV7: 0.0639 | AW7: 0.0658 | AX7: 0 | AY7: 0 | AZ7: 0 | BA7: 0 | BB7: 0 | BC7: 0 | BD7: 0 | BE7: 0 | BF7: 0 | BG7: 0 | BH7: 2 | BI7: 2 | BJ7: 2 | BK7: 2 | BL7: 2 | BM7: 0.0012 | BN7: 0.0012 | BO7: 0.0012 | BP7: 0.0012 | BQ7: 0.0012
A8: Andrews | B8: 0.66745 | C8: 1.6 | D8: 0 | F8: 3362 | G8: 0.1785 | H8: 0.1636 | I8: 0.0389 | J8: 0.0159 | K8: 0.06 | L8: 0.21055 | M8: 53.09339679 | N8: 3386 | O8: 3876 | P8: 4147 | Q8: 4438 | R8: 4780 | S8: Cherokee | T8: 0.185 | U8: 0.1951 | V8: 0.2015 | W8: 0.204 | X8: 0.215 | Y8: 0.1675 | Z8: 0.173 | AA8: 0.179 | AB8: 0.1902 | AC8: 0.251 | AD8: 0.0405 | AE8: 0.042 | AF8: 0.0441 | AG8: 0.055 | AH8: 0.06 | AI8: 0.018 | AJ8: 0.021 | AK8: 0.025 | AL8: 0.028 | AM8: 0.031 | AN8: 0.065 | AO8: 0.0675 | AP8: 0.07 | AQ8: 0.075 | AR8: 0.08 | AS8: 0.08 | AT8: 0.085 | AU8: 0.09 | AV8: 0.095 | AW8: 0.1 | AX8: 0 | AY8: 0 | AZ8: 0 | BA8: 0 | BB8: 0 | BC8: 0 | BD8: 0 | BE8: 0 | BF8: 0 | BG8: 0 | BH8: 0 | BI8: 0 | BJ8: 0 | BK8: 0 | BL8: 0 | BM8: 0 | BN8: 0 | BO8: 0 | BP8: 0 | BQ8: 0
A9: Angier | B9: 0.48925 | C9: 2.02 | D9: 0 | F9: 6603 | G9: 0.325 | H9: 0.048 | I9: 0.006 | J9: 0.016 | K9: 0.016 | L9: 0.07825 | M9: 49.22005149 | N9: 10000 | O9: 14000 | P9: 18000 | Q9: 22000 | R9: 26000 | S9: Harnett | T9: 0.487 | U9: 0.731 | V9: 0.974 | W9: 1.2 | X9: 1.34 | Y9: 0.085 | Z9: 0.1 | AA9: 0.125 | AB9: 0.15 | AC9: 0.175 | AD9: 0.01 | AE9: 0.013 | AF9: 0.016 | AG9: 0.019 | AH9: 0.022 | AI9: 0.017 | AJ9: 0.021 | AK9: 0.024 | AL9: 0.028 | AM9: 0.032 | AN9: 0.02 | AO9: 0.025 | AP9: 0.03 | AQ9: 0.035 | AR9: 0.04 | AS9: 0.114 | AT9: 0.1639 | AU9: 0.2153 | AV9: 0.2638 | AW9: 0.2964 | AX9: 0 | AY9: 0 | AZ9: 0 | BA9: 0 | BB9: 0 | BC9: 0 | BD9: 0 | BE9: 0 | BF9: 0 | BG9: 0 | BH9: 2.02 | BI9: 2.02 | BJ9: 2.02 | BK9: 2.02 | BL9: 2.02 | BM9: 0 | BN9: 0 | BO9: 0 | BP9: 0 | BQ9: 0
A10: Anson Co | B10: ERROR | C10: 16 | D10: 0 | F10: 0 | G10: 0 | H10: 0 | I10: 0 | J10: 0 | K10: 0 | M10: ERROR | N10: 0 | O10: 0 | P10: 0 | Q10: 0 | R10: 0 | S10: Anson | T10: 0 | U10: 0 | V10: 0 | W10: 0 | X10: 0 | Y10: 0 | Z10: 0 | AA10: 0 | AB10: 0 | AC10: 0 | AD10: 0 | AE10: 0 | AF10: 0 | AG10: 0 | AH10: 0 | AI10: 0 | AJ10: 0 | AK10: 0 | AL10: 0 | AM10: 0 | AN10: 0 | AO10: 0 | AP10: 0 | AQ10: 0 | AR10: 0 | AS10: 0 | AT10: 0 | AU10: 0 | AV10: 0 | AW10: 0 | AX10: 0 | AY10: 0 | AZ10: 0 | BA10: 0 | BB10: 0 | BC10: 0 | BD10: 0 | BE10: 0 | BF10: 0 | BG10: 0 | BH10: 0 | BI10: 0 | BJ10: 0 | BK10: 0 | BL10: 0 | BM10: 8.86 | BN10: 8.86 | BO10: 8.86 | BP10: 8.86 | BQ10: 8.86
A11: Ansonville | B11: 0.1715 | C11: 0.3 | D11: 0 | F11: 1200 | G11: 0.096 | H11: 0.029 | I11: 0 | J11: 0 | K11: 0.01 | L11: 0.0365 | M11: 80 | N11: 1162 | O11: 1202 | P11: 1242 | Q11: 1282 | R11: 1322 | S11: Anson | T11: 0.075 | U11: 0.077 | V11: 0.079 | W11: 0.081 | X11: 0.083 | Y11: 0.036 | Z11: 0.038 | AA11: 0.04 | AB11: 0.042 | AC11: 0.044 | AD11: 0 | AE11: 0 | AF11: 0 | AG11: 0 | AH11: 0 | AI11: 0 | AJ11: 0 | AK11: 0 | AL11: 0 | AM11: 0 | AN11: 0.009 | AO11: 0.009 | AP11: 0.009 | AQ11: 0.009 | AR11: 0.009 | AS11: 0.035 | AT11: 0.037 | AU11: 0.038 | AV11: 0.039 | AW11: 0.04 | AX11: 0 | AY11: 0 | AZ11: 0 | BA11: 0 | BB11: 0 | BC11: 0 | BD11: 0 | BE11: 0 | BF11: 0 | BG11: 0 | BH11: 0.3 | BI11: 0.3 | BJ11: 0.3 | BK11: 0.3 | BL11: 0.3 | BM11: 0 | BN11: 0 | BO11: 0 | BP11: 0 | BQ11: 0
A12: Apex | B12: 4.81175 | C12: 10.6 | D12: 0.009024657534 | F12: 68529 | G12: 2.986 | H12: 0.742 | I12: 0.041 | J12: 0.148 | K12: 0.76 | L12: 0.1257253425 | M12: 43.572794 | N12: 107278 | O12: 152182 | P12: 172644 | Q12: 177284 | R12: 182000 | S12: Wake | T12: 5.023 | U12: 7.125 | V12: 8.084 | W12: 8.301 | X12: 8.522 | Y12: 1.471 | Z12: 2.086 | AA12: 2.367 | AB12: 2.43 | AC12: 2.495 | AD12: 0.109 | AE12: 0.154 | AF12: 0.175 | AG12: 0.179 | AH12: 0.184 | AI12: 0.314 | AJ12: 0.445 | AK12: 0.505 | AL12: 0.518 | AM12: 0.532 | AN12: 1.14 | AO12: 1.618 | AP12: 1.835 | AQ12: 1.885 | AR12: 1.935 | AS12: 0.2136 | AT12: 0.303 | AU12: 0.3438 | AV12: 0.353 | AW12: 0.3624 | AX12: 1 | AY12: 6 | AZ12: 6 | BA12: 6 | BB12: 6 | BC12: 0 | BD12: 0 | BE12: 0 | BF12: 0 | BG12: 0 | BH12: 0 | BI12: 0 | BJ12: 0 | BK12: 0 | BL12: 0 | BM12: 0.014 | BN12: 0.014 | BO12: 0.014 | BP12: 0.014 | BQ12: 0.014
A13: Appalachian State University | B13: 0.33685 | C13: 2 | D13: 0 | F13: 11500 | G13: 0 | H13: 0 | I13: 0 | J13: 0.193 | K13: 0.0115 | L13: 0.13235 | M13: 0 | N13: 12000 | O13: 15000 | P13: 17000 | Q13: 20000 | R13: 20000 | S13: Watauga | T13: 0 | U13: 0 | V13: 0 | W13: 0 | X13: 0 | Y13: 0 | Z13: 0 | AA13: 0 | AB13: 0 | AC13: 0 | AD13: 0 | AE13: 0 | AF13: 0 | AG13: 0 | AH13: 0 | AI13: 0.2211 | AJ13: 0.32 | AK13: 0.35 | AL13: 0.37 | AM13: 0.37 | AN13: 0.025 | AO13: 0.025 | AP13: 0.025 | AQ13: 0.025 | AR13: 0.025 | AS13: 0.025 | AT13: 0.025 | AU13: 0.027 | AV13: 0.03 | AW13: 0.03 | AX13: 0 | AY13: 0 | AZ13: 0 | BA13: 0 | BB13: 0 | BC13: 0 | BD13: 0 | BE13: 0 | BF13: 0 | BG13: 0 | BH13: 0 | BI13: 0 | BJ13: 0 | BK13: 0 | BL13: 0 | BM13: 0 | BN13: 0 | BO13: 0 | BP13: 0 | BQ13: 0
A14: Archdale | B14: 0.8254166667 | C14: 2.059 | D14: 0.00504739726 | F14: 12000 | G14: 0.4937 | H14: 0.1216 | I14: 0.0355 | J14: 0.0451 | K14: 0.0022 | L14: 0.1222692694 | M14: 41.14166667 | N14: 14000 | O14: 15000 | P14: 16000 | Q14: 17000 | R14: 18000 | S14: Randolph | T14: 0.55 | U14: 0.6 | V14: 0.65 | W14: 0.7 | X14: 0.71 | Y14: 0.13 | Z14: 0.135 | AA14: 0.14 | AB14: 0.145 | AC14: 0.15 | AD14: 0.0355 | AE14: 0.0355 | AF14: 0.036 | AG14: 0.036 | AH14: 0.0365 | AI14: 0.046 | AJ14: 0.047 | AK14: 0.048 | AL14: 0.049 | AM14: 0.05 | AN14: 0.0022 | AO14: 0.0025 | AP14: 0.0028 | AQ14: 0.003 | AR14: 0.0035 | AS14: 0.1618 | AT14: 0.1737 | AU14: 0.1857 | AV14: 0.1976 | AW14: 0.2011 | AX14: 0 | AY14: 0 | AZ14: 0 | BA14: 0 | BB14: 0 | BC14: 0 | BD14: 0 | BE14: 0 | BF14: 0 | BG14: 0 | BH14: 2.059 | BI14: 2.059 | BJ14: 2.059 | BK14: 2.059 | BL14: 2.059 | BM14: 0.0338 | BN14: 0.0338 | BO14: 0.0338 | BP14: 0.0338 | BQ14: 0.0338
A15: Asheboro | B15: 4.8675 | C15: 26 | D15: 0.1203287671 | F15: 26073 | G15: 1.35 | H15: 2.01 | I15: 0 | J15: 0.065 | K15: 0.56 | L15: 0.7621712329 | M15: 51.77770107 | N15: 26200 | O15: 27000 | P15: 30000 | Q15: 32000 | R15: 35000 | S15: Randolph | T15: 1.5 | U15: 1.75 | V15: 2 | W15: 2.2 | X15: 2.4 | Y15: 2.2 | Z15: 2.5 | AA15: 2.7 | AB15: 3 | AC15: 3.2 | AD15: 0 | AE15: 0 | AF15: 0 | AG15: 0 | AH15: 0 | AI15: 0.08 | AJ15: 0.08 | AK15: 0.09 | AL15: 0.09 | AM15: 0.1 | AN15: 0.1 | AO15: 0.1 | AP15: 0.1 | AQ15: 0.1 | AR15: 0.1 | AS15: 0.496 | AT15: 0.562 | AU15: 0.613 | AV15: 0.668 | AW15: 0.713 | AX15: 0 | AY15: 0 | AZ15: 0 | BA15: 0 | BB15: 0 | BC15: 0 | BD15: 0 | BE15: 0 | BF15: 0 | BG15: 0 | BH15: 0 | BI15: 0 | BJ15: 0 | BK15: 0 | BL15: 0 | BM15: 0.625 | BN15: 0.625 | BO15: 0.625 | BP15: 0.625 | BQ15: 0.625
A16: Asheville | B16: 21.10333333 | C16: 41.2 | D16: 0.5713 | F16: 125000 | G16: 8.6112 | H16: 3.5624 | I16: 0.6597 | J16: 1.4019 | K16: 0.314 | L16: 5.982833333 | M16: 68.8896 | N16: 135357 | O16: 149518 | P16: 165161 | Q16: 182441 | R16: 201528 | S16: Buncombe | T16: 9.053 | U16: 10 | V16: 11.046 | W16: 12.202 | X16: 13.478 | Y16: 4.373 | Z16: 4.831 | AA16: 5.336 | AB16: 5.895 | AC16: 6.511 | AD16: 0.743 | AE16: 0.782 | AF16: 0.821 | AG16: 0.863 | AH16: 0.908 | AI16: 1.786 | AJ16: 1.973 | AK16: 2.18 | AL16: 2.408 | AM16: 2.66 | AN16: 0.3 | AO16: 0.331 | AP16: 0.366 | AQ16: 0.404 | AR16: 0.446 | AS16: 6.303 | AT16: 6.9475 | AU16: 7.6579 | AV16: 8.4423 | AW16: 9.3074 | AX16: 0 | AY16: 0 | AZ16: 0 | BA16: 0 | BB16: 0 | BC16: 0 | BD16: 0 | BE16: 0 | BF16: 0 | BG16: 0 | BH16: 0 | BI16: 0 | BJ16: 0 | BK16: 0 | BL16: 0 | BM16: 2.9 | BN16: 2.9 | BO16: 2.9 | BP16: 2.9 | BQ16: 2.9
A17: Atlantic Beach | B17: 0.7179 | C17: 2.5 | D17: 0 | F17: 6380 | G17: 0.467 | H17: 0.049 | I17: 0 | J17: 0.015 | K17: 0.204 | L17: -0.0171 | M17: 73.19749216 | N17: 7565 | O17: 9187 | P17: 11024 | Q17: 13228 | R17: 15873 | S17: Carteret | T17: 0.5604 | U17: 0.6725 | V17: 0.807 | W17: 0.9684 | X17: 1.162 | Y17: 0.0499 | Z17: 0.0508 | AA17: 0.0518 | AB17: 0.0528 | AC17: 0.0538 | AD17: 0 | AE17: 0 | AF17: 0 | AG17: 0 | AH17: 0 | AI17: 0.0153 | AJ17: 0.0156 | AK17: 0.0159 | AL17: 0.0162 | AM17: 0.0165 | AN17: 0.065 | AO17: 0.07 | AP17: 0.075 | AQ17: 0.08 | AR17: 0.085 | AS17: 0.0695 | AT17: 0.0493 | AU17: 0.0579 | AV17: 0.0681 | AW17: 0.0803 | AX17: 0 | AY17: 0 | AZ17: 0 | BA17: 0 | BB17: 0 | BC17: 0 | BD17: 0 | BE17: 0 | BF17: 0 | BG17: 0 | BH17: 0 | BI17: 0 | BJ17: 0 | BK17: 0 | BL17: 0 | BM17: 0 | BN17: 0 | BO17: 0 | BP17: 0 | BQ17: 0
A18: Aulander | B18: 0.06591666667 | C18: 0.504 | D18: 0 | F18: 765 | G18: 0.044 | H18: 0.0038 | I18: 0 | J18: 0.0028 | K18: 0.005 | L18: 0.01031666667 | M18: 57.51633987 | N18: 740 | O18: 670 | P18: 650 | Q18: 620 | R18: 600 | S18: Bertie | T18: 0.0435 | U18: 0.041 | V18: 0.04 | W18: 0.038 | X18: 0.0375 | Y18: 0.0036 | Z18: 0.0034 | AA18: 0.0032 | AB18: 0.003 | AC18: 0.0028 | AD18: 0.0001 | AE18: 0.0001 | AF18: 0.0001 | AG18: 0.0001 | AH18: 0.0001 | AI18: 0.002 | AJ18: 0.002 | AK18: 0.002 | AL18: 0.002 | AM18: 0.002 | AN18: 0.005 | AO18: 0.005 | AP18: 0.005 | AQ18: 0.005 | AR18: 0.005 | AS18: 0.0112 | AT18: 0.0107 | AU18: 0.0104 | AV18: 0.0099 | AW18: 0.0098 | AX18: 0 | AY18: 0 | AZ18: 0 | BA18: 0 | BB18: 0 | BC18: 0 | BD18: 0 | BE18: 0 | BF18: 0 | BG18: 0 | BH18: 0 | BI18: 0 | BJ18: 0 | BK18: 0 | BL18: 0 | BM18: 0 | BN18: 0 | BO18: 0 | BP18: 0 | BQ18: 0
A19: Aurora | B19: 0.06049166667 | C19: 0.25 | D19: 0 | F19: 502 | G19: 0.0245 | H19: 0.0065 | I19: 0 | J19: 0 | K19: 0.015 | L19: 0.01449166667 | M19: 48.80478088 | N19: 504 | O19: 513 | P19: 521 | Q19: 530 | R19: 538 | S19: Beaufort | T19: 0.0253 | U19: 0.0257 | V19: 0.0261 | W19: 0.0265 | X19: 0.0269 | Y19: 0.0066 | Z19: 0.0067 | AA19: 0.0068 | AB19: 0.0069 | AC19: 0.007 | AD19: 0 | AE19: 0 | AF19: 0 | AG19: 0 | AH19: 0 | AI19: 0 | AJ19: 0 | AK19: 0 | AL19: 0 | AM19: 0 | AN19: 0.011 | AO19: 0.011 | AP19: 0.011 | AQ19: 0.011 | AR19: 0.011 | AS19: 0.006 | AT19: 0.006 | AU19: 0.0061 | AV19: 0.0062 | AW19: 0.0062 | AX19: 0 | AY19: 0 | AZ19: 0 | BA19: 0 | BB19: 0 | BC19: 0 | BD19: 0 | BE19: 0 | BF19: 0 | BG19: 0 | BH19: 0 | BI19: 0 | BJ19: 0 | BK19: 0 | BL19: 0 | BM19: 0 | BN19: 0 | BO19: 0 | BP19: 0 | BQ19: 0
A20: Autryville | B20: 0.03466666667 | C20: 0.065 | D20: 0.003 | F20: 211 | G20: 0.01 | H20: 0.01 | I20: 0 | J20: 0 | K20: 0.001 | L20: 0.01066666667 | M20: 47.39336493 | N20: 211 | O20: 220 | P20: 220 | Q20: 225 | R20: 225 | S20: Sampson | T20: 0.01 | U20: 0.01 | V20: 0.02 | W20: 0.02 | X20: 0.02 | Y20: 0.01 | Z20: 0.01 | AA20: 0.01 | AB20: 0.01 | AC20: 0.01 | AD20: 0 | AE20: 0 | AF20: 0 | AG20: 0 | AH20: 0 | AI20: 0 | AJ20: 0 | AK20: 0 | AL20: 0 | AM20: 0 | AN20: 0.001 | AO20: 0.001 | AP20: 0.001 | AQ20: 0.001 | AR20: 0.001 | AS20: 0.0109 | AT20: 0.0109 | AU20: 0.0161 | AV20: 0.0161 | AW20: 0.0161 | AX20: 0 | AY20: 0 | AZ20: 0 | BA20: 0 | BB20: 0 | BC20: 0 | BD20: 0 | BE20: 0 | BF20: 0 | BG20: 0 | BH20: 0.065 | BI20: 0.065 | BJ20: 0.065 | BK20: 0.065 | BL20: 0.065 | BM20: 0.003 | BN20: 0.003 | BO20: 0.003 | BP20: 0.003 | BQ20: 0.003
A21: Ayden | B21: 0.4245 | C21: 0.5282 | D21: 0 | F21: 6035 | G21: 0.2325 | H21: 0.096 | I21: 0 | J21: 0 | K21: 0.011 | L21: 0.085 | M21: 38.52526926 | N21: 6393 | O21: 6528 | P21: 6653 | Q21: 6780 | R21: 6909 | S21: Pitt | T21: 0.2383 | U21: 0.2428 | V21: 0.2474 | W21: 0.2521 | X21: 0.2569 | Y21: 0.0984 | Z21: 0.1003 | AA21: 0.1022 | AB21: 0.1041 | AC21: 0.1061 | AD21: 0 | AE21: 0 | AF21: 0 | AG21: 0 | AH21: 0 | AI21: 0 | AJ21: 0 | AK21: 0 | AL21: 0 | AM21: 0 | AN21: 0.011 | AO21: 0.011 | AP21: 0.011 | AQ21: 0.011 | AR21: 0.011 | AS21: 0.0547 | AT21: 0.0557 | AU21: 0.0567 | AV21: 0.0578 | AW21: 0.0588 | AX21: 0.05 | AY21: 0.05 | AZ21: 0.05 | BA21: 0.05 | BB21: 0.05 | BC21: 0 | BD21: 0 | BE21: 0 | BF21: 0 | BG21: 0 | BH21: 0.398 | BI21: 0.398 | BJ21: 0.398 | BK21: 0.398 | BL21: 0.398 | BM21: 0 | BN21: 0 | BO21: 0 | BP21: 0 | BQ21: 0
A22: Badin Shores Resort | B22: 0.1065 | C22: 1 | D22: 0 | F22: 400 | G22: 0 | H22: 0 | I22: 0 | J22: 0 | K22: 0 | L22: 0.1065 | M22: 0 | N22: 425 | O22: 450 | P22: 475 | Q22: 500 | R22: 525 | S22: Montgomery | T22: 0 | U22: 0 | V22: 0 | W22: 0 | X22: 0 | Y22: 0 | Z22: 0 | AA22: 0 | AB22: 0 | AC22: 0 | AD22: 0 | AE22: 0 | AF22: 0 | AG22: 0 | AH22: 0 | AI22: 0 | AJ22: 0 | AK22: 0 | AL22: 0 | AM22: 0 | AN22: 0 | AO22: 0 | AP22: 0 | AQ22: 0 | AR22: 0 | AS22: 0 | AT22: 0 | AU22: 0 | AV22: 0 | AW22: 0 | AX22: 0 | AY22: 0 | AZ22: 0 | BA22: 0 | BB22: 0 | BC22: 0 | BD22: 0 | BE22: 0 | BF22: 0 | BG22: 0 | BH22: 1 | BI22: 1 | BJ22: 1 | BK22: 1 | BL22: 1 | BM22: 0 | BN22: 0 | BO22: 0 | BP22: 0 | BQ22: 0
A23: Bailey | B23: 0.06149166667 | C23: 0.295 | D23: 0.02366465753 | F23: 569 | G23: 0.0225 | H23: 0.0074 | I23: 0 | J23: 0.0002 | K23: 0.001 | L23: 0.006727009132 | M23: 39.543058 | N23: 580 | O23: 600 | P23: 600 | Q23: 610 | R23: 620 | S23: Nash | T23: 0.0261 | U23: 0.027 | V23: 0.027 | W23: 0.0275 | X23: 0.0279 | Y23: 0.0075 | Z23: 0.008 | AA23: 0.008 | AB23: 0.0085 | AC23: 0.009 | AD23: 0 | AE23: 0 | AF23: 0 | AG23: 0 | AH23: 0 | AI23: 0.0025 | AJ23: 0.003 | AK23: 0.003 | AL23: 0.003 | AM23: 0.003 | AN23: 0.005 | AO23: 0.005 | AP23: 0.005 | AQ23: 0.005 | AR23: 0.005 | AS23: 0.005 | AT23: 0.0055 | AU23: 0.0055 | AV23: 0.0058 | AW23: 0.006 | AX23: 0 | AY23: 0 | AZ23: 0 | BA23: 0 | BB23: 0 | BC23: 0 | BD23: 0 | BE23: 0 | BF23: 0 | BG23: 0 | BH23: 0 | BI23: 0 | BJ23: 0 | BK23: 0 | BL23: 0 | BM23: 0.039 | BN23: 0.039 | BO23: 0.039 | BP23: 0.039 | BQ23: 0.039
A24: Bakersville | B24: 0.04293333333 | C24: 0.366 | D24: 0 | F24: 464 | G24: 0.02 | H24: 0.0106 | I24: 0 | J24: 0.0017 | K24: 0 | L24: 0.01063333333 | M24: 43.10344828 | N24: 504 | O24: 524 | P24: 544 | Q24: 564 | R24: 584 | S24: Mitchell | T24: 0.029 | U24: 0.031 | V24: 0.033 | W24: 0.035 | X24: 0.037 | Y24: 0.011 | Z24: 0.012 | AA24: 0.013 | AB24: 0.014 | AC24: 0.015 | AD24: 0 | AE24: 0 | AF24: 0 | AG24: 0 | AH24: 0 | AI24: 0.005 | AJ24: 0.005 | AK24: 0.006 | AL24: 0.007 | AM24: 0.008 | AN24: 0.001 | AO24: 0.001 | AP24: 0.001 | AQ24: 0.001 | AR24: 0.001 | AS24: 0.0151 | AT24: 0.0161 | AU24: 0.0174 | AV24: 0.0187 | AW24: 0.02 | AX24: 0 | AY24: 0 | AZ24: 0 | BA24: 0 | BB24: 0 | BC24: 0 | BD24: 0 | BE24: 0 | BF24: 0 | BG24: 0 | BH24: 0 | BI24: 0 | BJ24: 0 | BK24: 0 | BL24: 0 | BM24: 0 | BN24: 0 | BO24: 0 | BP24: 0 | BQ24: 0
A25: Bald Head Island Utilities | B25: 0.3070833333 | C25: 0.95 | D25: 0 | F25: 300 | G25: 0.141 | H25: 0.072 | I25: 0 | J25: 0 | K25: 0.05 | L25: 0.04408333333 | M25: 470 | N25: 315 | O25: 330 | P25: 360 | Q25: 390 | R25: 420 | S25: Brunswick | T25: 0.1323 | U25: 0.139 | V25: 0.1459 | W25: 0.1531 | X25: 0.1608 | Y25: 0.0231 | Z25: 0.0247 | AA25: 0.0282 | AB25: 0.0296 | AC25: 0.0311 | AD25: 0 | AE25: 0 | AF25: 0 | AG25: 0 | AH25: 0 | AI25: 0 | AJ25: 0 | AK25: 0 | AL25: 0 | AM25: 0 | AN25: 0.0525 | AO25: 0.0551 | AP25: 0.0578 | AQ25: 0.0606 | AR25: 0.0636 | AS25: 0.0357 | AT25: 0.0376 | AU25: 0.0399 | AV25: 0.0418 | AW25: 0.0439 | AX25: 0 | AY25: 0 | AZ25: 0 | BA25: 0 | BB25: 0 | BC25: 0 | BD25: 0 | BE25: 0 | BF25: 0 | BG25: 0 | BH25: 0.5 | BI25: 0.5 | BJ25: 0.5 | BK25: 0.5 | BL25: 0.5 | BM25: 0 | BN25: 0 | BO25: 0 | BP25: 0 | BQ25: 0
A26: Banner Elk | B26: 0.1931083333 | C26: 0.366 | D26: 0 | F26: 1164 | G26: 0.0442 | H26: 0.0291 | I26: 0 | J26: 0.0334 | K26: 0.001 | L26: 0.08540833333 | M26: 37.97250859 | N26: 1174 | O26: 1184 | P26: 1194 | Q26: 1204 | R26: 1214 | S26: Avery | T26: 0.046 | U26: 0.047 | V26: 0.048 | W26: 0.049 | X26: 0.05 | Y26: 0.03 | Z26: 0.032 | AA26: 0.034 | AB26: 0.036 | AC26: 0.038 | AD26: 0 | AE26: 0 | AF26: 0 | AG26: 0 | AH26: 0 | AI26: 0.035 | AJ26: 0.0355 | AK26: 0.036 | AL26: 0.0365 | AM26: 0.037 | AN26: 0.0001 | AO26: 0.0001 | AP26: 0.0001 | AQ26: 0.0001 | AR26: 0.0001 | AS26: 0.0882 | AT26: 0.091 | AU26: 0.0938 | AV26: 0.0966 | AW26: 0.0993 | AX26: 0 | AY26: 0 | AZ26: 0 | BA26: 0 | BB26: 0 | BC26: 0 | BD26: 0 | BE26: 0 | BF26: 0 | BG26: 0 | BH26: 0 | BI26: 0 | BJ26: 0 | BK26: 0 | BL26: 0 | BM26: 0 | BN26: 0 | BO26: 0 | BP26: 0 | BQ26: 0
A27: Bath | B27: 0.019625 | C27: 0.166 | D27: 0 | F27: 290 | G27: 0.0135 | H27: 0.0011 | I27: 0 | J27: 0.0035 | K27: 0.0001 | L27: 0.001425 | M27: 46.55172414 | N27: 288 | O27: 276 | P27: 265 | Q27: 256 | R27: 246 | S27: Beaufort | T27: 0.0133 | U27: 0.0127 | V27: 0.0122 | W27: 0.0117 | X27: 0.0112 | Y27: 0.0011 | Z27: 0.001 | AA27: 0.001 | AB27: 0.001 | AC27: 0.0009 | AD27: 0 | AE27: 0 | AF27: 0 | AG27: 0 | AH27: 0 | AI27: 0.0175 | AJ27: 0.0168 | AK27: 0.0161 | AL27: 0.0154 | AM27: 0.0148 | AN27: 0.001 | AO27: 0.0009 | AP27: 0.0009 | AQ27: 0.0009 | AR27: 0.0008 | AS27: 0.0025 | AT27: 0.0024 | AU27: 0.0023 | AV27: 0.0022 | AW27: 0.0021 | AX27: 0 | AY27: 0 | AZ27: 0 | BA27: 0 | BB27: 0 | BC27: 0 | BD27: 0 | BE27: 0 | BF27: 0 | BG27: 0 | BH27: 0.0196 | BI27: 0.0196 | BJ27: 0.0196 | BK27: 0.0196 | BL27: 0.0196 | BM27: 0 | BN27: 0 | BO27: 0 | BP27: 0 | BQ27: 0
A28: Baton Water Corporation | B28: 0.554325 | C28: 0.75 | D28: 0.01945315068 | F28: 8191 | G28: 0.3629 | H28: 0.0192 | I28: 0.002 | J28: 0.0137 | K28: 0.0035 | L28: 0.1335718493 | M28: 44.3047247 | N28: 8266 | O28: 8342 | P28: 8412 | Q28: 8492 | R28: 8567 | S28: Caldwell | T28: 0.336 | U28: 0.3396 | V28: 0.3432 | W28: 0.3468 | X28: 0.3504 | Y28: 0.0192 | Z28: 0.02 | AA28: 0.0208 | AB28: 0.0216 | AC28: 0.0224 | AD28: 0.0018 | AE28: 0.0018 | AF28: 0.0018 | AG28: 0.0018 | AH28: 0.0018 | AI28: 0.016 | AJ28: 0.017 | AK28: 0.018 | AL28: 0.019 | AM28: 0.02 | AN28: 0.002 | AO28: 0.002 | AP28: 0.002 | AQ28: 0.002 | AR28: 0.002 | AS28: 0.07 | AT28: 0.07 | AU28: 0.07 | AV28: 0.07 | AW28: 0.07 | AX28: 0 | AY28: 0 | AZ28: 0 | BA28: 0 | BB28: 0 | BC28: 0 | BD28: 0 | BE28: 0 | BF28: 0 | BG28: 0 | BH28: 0.75 | BI28: 0.75 | BJ28: 0.75 | BK28: 0.75 | BL28: 0.75 | BM28: 0.025 | BN28: 0.025 | BO28: 0.025 | BP28: 0.025 | BQ28: 0.025
A29: Bayleaf Master | B29: 1.591066667 | C29: 4.431 | D29: 0 | F29: 15397 | G29: 1.287 | H29: 0.04 | I29: 0 | J29: 0 | K29: 0.001 | L29: 0.2630666667 | M29: 83.58771189 | N29: 15858 | O29: 16175 | P29: 16498 | Q29: 16828 | R29: 16930 | S29: Wake | T29: 1.5065 | U29: 1.5366 | V29: 1.5674 | W29: 1.5987 | X29: 1.6 | Y29: 0.058 | Z29: 0.06 | AA29: 0.065 | AB29: 0.07 | AC29: 0.075 | AD29: 0 | AE29: 0 | AF29: 0 | AG29: 0 | AH29: 0 | AI29: 0 | AJ29: 0 | AK29: 0 | AL29: 0 | AM29: 0 | AN29: 0 | AO29: 0 | AP29: 0 | AQ29: 0 | AR29: 0 | AS29: 0.1722 | AT29: 0.1758 | AU29: 0.1797 | AV29: 0.1837 | AW29: 0.1844 | AX29: 0 | AY29: 0 | AZ29: 0 | BA29: 0 | BB29: 0 | BC29: 0 | BD29: 0 | BE29: 0 | BF29: 0 | BG29: 0 | BH29: 0 | BI29: 0 | BJ29: 0 | BK29: 0 | BL29: 0 | BM29: 0 | BN29: 0 | BO29: 0 | BP29: 0 | BQ29: 0
A30: Beaufort | B30: 0.4990833333 | C30: 1.872 | D30: 1.917808219e-05 | F30: 4343 | G30: 0.2665 | H30: 0.0728 | I30: 0.0114 | J30: 0.0853 | K30: 0.0082 | L30: 0.05486415525 | M30: 61.36311306 | N30: 4815 | O30: 5152 | P30: 5515 | Q30: 5900 | R30: 6123 | S30: Carteret | T30: 0.31 | U30: 0.33 | V30: 0.354 | W30: 0.38 | X30: 0.39 | Y30: 0.11 | Z30: 0.12 | AA30: 0.13 | AB30: 0.14 | AC30: 0.15 | AD30: 0.0085 | AE30: 0.009 | AF30: 0.0095 | AG30: 0.01 | AH30: 0.0105 | AI30: 0.023 | AJ30: 0.025 | AK30: 0.03 | AL30: 0.032 | AM30: 0.34 | AN30: 0.03 | AO30: 0.033 | AP30: 0.036 | AQ30: 0.04 | AR30: 0.042 | AS30: 0.041 | AT30: 0.054 | AU30: 0.067 | AV30: 0.08 | AW30: 0.08 | AX30: 0 | AY30: 0 | AZ30: 0 | BA30: 0 | BB30: 0 | BC30: 0 | BD30: 0 | BE30: 0 | BF30: 0 | BG30: 0 | BH30: 0.0125 | BI30: 0.0125 | BJ30: 0.0125 | BK30: 0.0125 | BL30: 0.0125 | BM30: 0 | BN30: 0 | BO30: 0 | BP30: 0 | BQ30: 0
A31: Beaufort Co (Northside) | B31: 1.420175 | C31: 2.608 | D31: 0.01965369863 | F31: 21451 | G31: 1.0246 | H31: 0.0444 | I31: 0 | J31: 0 | K31: 0.2284 | L31: 0.1031213014 | M31: 47.76467298 | N31: 22631 | O31: 23811 | P31: 24991 | Q31: 26171 | R31: 27351 | S31: Beaufort | T31: 1.0863 | U31: 1.1429 | V31: 1.1996 | W31: 1.2562 | X31: 1.3128 | Y31: 0.05 | Z31: 0.051 | AA31: 0.052 | AB31: 0.053 | AC31: 0.054 | AD31: 0 | AE31: 0 | AF31: 0 | AG31: 0 | AH31: 0 | AI31: 0 | AJ31: 0 | AK31: 0 | AL31: 0 | AM31: 0 | AN31: 0.23 | AO31: 0.235 | AP31: 0.24 | AQ31: 0.245 | AR31: 0.25 | AS31: 0.1093 | AT31: 0.1143 | AU31: 0.1193 | AV31: 0.1243 | AW31: 0.1294 | AX31: 0 | AY31: 0 | AZ31: 0 | BA31: 0 | BB31: 0 | BC31: 0 | BD31: 0 | BE31: 0 | BF31: 0 | BG31: 0 | BH31: 2.608 | BI31: 2.608 | BJ31: 2.608 | BK31: 2.608 | BL31: 2.608 | BM31: 0.0196 | BN31: 0.0196 | BO31: 0.0196 | BP31: 0.0196 | BQ31: 0.0196
A32: Beaufort Co (Southside) | B32: 0.8033166667 | C32: 3.24 | D32: 0.1984347945 | F32: 9106 | G32: 0.3973 | H32: 0.0089 | I32: 0.0274 | J32: 0 | K32: 0.1532 | L32: 0.01808187215 | M32: 43.63057325 | N32: 10100 | O32: 10200 | P32: 10300 | Q32: 10400 | R32: 10500 | S32: Beaufort | T32: 0.4444 | U32: 0.4488 | V32: 0.4532 | W32: 0.4576 | X32: 0.462 | Y32: 0.01 | Z32: 0.01 | AA32: 0.01 | AB32: 0.01 | AC32: 0.01 | AD32: 0.03 | AE32: 0.031 | AF32: 0.032 | AG32: 0.033 | AH32: 0.034 | AI32: 0 | AJ32: 0 | AK32: 0 | AL32: 0 | AM32: 0 | AN32: 0.17 | AO32: 0.1717 | AP32: 0.1734 | AQ32: 0.1751 | AR32: 0.1769 | AS32: 0.0211 | AT32: 0.0213 | AU32: 0.0215 | AV32: 0.0218 | AW32: 0.022 | AX32: 0.72 | AY32: 0.72 | AZ32: 0.72 | BA32: 0.72 | BB32: 0.72 | BC32: 0 | BD32: 0 | BE32: 0 | BF32: 0 | BG32: 0 | BH32: 0 | BI32: 0 | BJ32: 0 | BK32: 0 | BL32: 0 | BM32: 0.96 | BN32: 0.96 | BO32: 0.96 | BP32: 0.96 | BQ32: 0.96
A33: Beech Mountain | B33: 0.4725 | C33: 0.24 | D33: 0 | F33: 346 | G33: 0.13 | H33: 0.03 | I33: 0 | J33: 0 | K33: 0.0252 | L33: 0.2873 | M33: 375.7225434 | N33: 441 | O33: 562 | P33: 716 | Q33: 912 | R33: 1162 | S33: Watauga | T33: 0.1168 | U33: 0.1488 | V33: 0.1895 | W33: 0.2414 | X33: 0.2823 | Y33: 0.0277 | Z33: 0.0352 | AA33: 0.0449 | AB33: 0.0572 | AC33: 0.0669 | AD33: 0 | AE33: 0 | AF33: 0 | AG33: 0 | AH33: 0 | AI33: 0 | AJ33: 0 | AK33: 0 | AL33: 0 | AM33: 0 | AN33: 0.0306 | AO33: 0.0374 | AP33: 0.0461 | AQ33: 0.0518 | AR33: 0.0526 | AS33: 0.237 | AT33: 0.217 | AU33: 0.197 | AV33: 0.157 | AW33: 0.137 | AX33: 2.187 | AY33: 2.187 | AZ33: 2.187 | BA33: 2.187 | BB33: 2.187 | BC33: 0 | BD33: 0 | BE33: 0 | BF33: 0 | BG33: 0 | BH33: 0 | BI33: 0 | BJ33: 0 | BK33: 0 | BL33: 0 | BM33: 0 | BN33: 0 | BO33: 0 | BP33: 0 | BQ33: 0
A34: Belhaven | B34: 0.1600833333 | C34: 1.08 | D34: 0 | F34: 1960 | G34: 0.064 | H34: 0.018 | I34: 0 | J34: 0 | K34: 0.04 | L34: 0.03808333333 | M34: 32.65306122 | N34: 1916 | O34: 1883 | P34: 1851 | Q34: 1820 | R34: 1789 | S34: Beaufort | T34: 0.0624 | U34: 0.0613 | V34: 0.0602 | W34: 0.0591 | X34: 0.058 | Y34: 0.0176 | Z34: 0.0172 | AA34: 0.0169 | AB34: 0.0166 | AC34: 0.0163 | AD34: 0 | AE34: 0 | AF34: 0 | AG34: 0 | AH34: 0 | AI34: 0 | AJ34: 0 | AK34: 0 | AL34: 0 | AM34: 0 | AN34: 0.04 | AO34: 0.04 | AP34: 0.04 | AQ34: 0.04 | AR34: 0.04 | AS34: 0.0376 | AT34: 0.0371 | AU34: 0.0367 | AV34: 0.0362 | AW34: 0.0358 | AX34: 0 | AY34: 0 | AZ34: 0 | BA34: 0 | BB34: 0 | BC34: 0 | BD34: 0 | BE34: 0 | BF34: 0 | BG34: 0 | BH34: 0 | BI34: 0 | BJ34: 0 | BK34: 0 | BL34: 0 | BM34: 0 | BN34: 0 | BO34: 0 | BP34: 0 | BQ34: 0
A35: Bell Arthur WC | B35: 0.6035833333 | C35: 0.8944 | D35: 0 | F35: 11447 | G35: 0.5136 | H35: 0.0133 | I35: 0 | J35: 0 | K35: 0.0314 | L35: 0.04528333333 | M35: 44.86765091 | N35: 12372 | O35: 13115 | P35: 13903 | Q35: 14738 | R35: 15623 | S35: Pitt | T35: 0.5552 | U35: 0.5885 | V35: 0.6239 | W35: 0.6613 | X35: 0.7011 | Y35: 0.0143 | Z35: 0.0152 | AA35: 0.0161 | AB35: 0.0171 | AC35: 0.0181 | AD35: 0 | AE35: 0 | AF35: 0 | AG35: 0 | AH35: 0 | AI35: 0 | AJ35: 0 | AK35: 0 | AL35: 0 | AM35: 0 | AN35: 0.0124 | AO35: 0.0131 | AP35: 0.0139 | AQ35: 0.0147 | AR35: 0.0156 | AS35: 0.0649 | AT35: 0.0688 | AU35: 0.0729 | AV35: 0.0773 | AW35: 0.082 | AX35: 0 | AY35: 0 | AZ35: 0 | BA35: 0 | BB35: 0 | BC35: 0 | BD35: 0 | BE35: 0 | BF35: 0 | BG35: 0 | BH35: 0.542 | BI35: 0.542 | BJ35: 0.542 | BK35: 0.542 | BL35: 0.542 | BM35: 0 | BN35: 0 | BO35: 0 | BP35: 0 | BQ35: 0
A36: Belmont | B36: 2.0455 | C36: 10 | D36: 0.1223342466 | F36: 12495 | G36: 0.758 | H36: 0.218 | I36: 0.263 | J36: 0.059 | K36: 0.25 | L36: 0.3751657534 | M36: 60.66426571 | N36: 15231 | O36: 18567 | P36: 22633 | Q36: 27589 | R36: 33631 | S36: Gaston | T36: 0.924 | U36: 1.126 | V36: 1.373 | W36: 1.674 | X36: 2.04 | Y36: 0.266 | Z36: 0.324 | AA36: 0.395 | AB36: 0.481 | AC36: 0.587 | AD36: 0.321 | AE36: 0.391 | AF36: 0.476 | AG36: 0.581 | AH36: 0.708 | AI36: 0.072 | AJ36: 0.088 | AK36: 0.107 | AL36: 0.13 | AM36: 0.159 | AN36: 0.305 | AO36: 0.371 | AP36: 0.453 | AQ36: 0.552 | AR36: 0.673 | AS36: 0.3 | AT36: 0.366 | AU36: 0.4465 | AV36: 0.5448 | AW36: 0.6646 | AX36: 0 | AY36: 0 | AZ36: 0 | BA36: 0 | BB36: 0 | BC36: 0 | BD36: 0 | BE36: 0 | BF36: 0 | BG36: 0 | BH36: 0 | BI36: 0 | BJ36: 0 | BK36: 0 | BL36: 0 | BM36: 0.122 | BN36: 0.122 | BO36: 0.122 | BP36: 0.122 | BQ36: 0.122
A37: Belvedere | B37: 0.24825 | C37: 0.335 | D37: 0 | F37: 3483 | G37: 0.1889 | H37: 0.0018 | I37: 0 | J37: 0 | K37: 0.0041 | L37: 0.05345 | M37: 54.23485501 | N37: 3859 | O37: 4438 | P37: 5103 | Q37: 5869 | R37: 5950 | S37: Pender | T37: 0.241 | U37: 0.277 | V37: 0.319 | W37: 0.367 | X37: 0.415 | Y37: 0.002 | Z37: 0.002 | AA37: 0.002 | AB37: 0.002 | AC37: 0.002 | AD37: 0 | AE37: 0 | AF37: 0 | AG37: 0 | AH37: 0 | AI37: 0 | AJ37: 0 | AK37: 0 | AL37: 0 | AM37: 0 | AN37: 0.009 | AO37: 0.009 | AP37: 0.009 | AQ37: 0.009 | AR37: 0.009 | AS37: 0.0337 | AT37: 0.0385 | AU37: 0.0441 | AV37: 0.0505 | AW37: 0.0569 | AX37: 0.28 | AY37: 0.28 | AZ37: 0.28 | BA37: 0.28 | BB37: 0.28 | BC37: 0 | BD37: 0 | BE37: 0 | BF37: 0 | BG37: 0 | BH37: 0 | BI37: 0 | BJ37: 0 | BK37: 0 | BL37: 0 | BM37: 0 | BN37: 0 | BO37: 0 | BP37: 0 | BQ37: 0
A38: Benson | B38: 0.8710833333 | C38: 1.29 | D38: 0.002005479452 | F38: 4080 | G38: 0.195 | H38: 0.103 | I38: 0.426 | J38: 0.008 | K38: 0.0612 | L38: 0.07587785388 | M38: 47.79411765 | N38: 4130 | O38: 4180 | P38: 4230 | Q38: 4280 | R38: 5300 | S38: Johnston | T38: 0.204 | U38: 0.213 | V38: 0.222 | W38: 0.231 | X38: 0.24 | Y38: 0.105 | Z38: 0.107 | AA38: 0.109 | AB38: 0.111 | AC38: 0.113 | AD38: 0.52 | AE38: 0.53 | AF38: 0.53 | AG38: 0.53 | AH38: 0.53 | AI38: 0.0085 | AJ38: 0.0087 | AK38: 0.0089 | AL38: 0.0091 | AM38: 0.0093 | AN38: 0.06 | AO38: 0.06 | AP38: 0.06 | AQ38: 0.06 | AR38: 0.06 | AS38: 0.074 | AT38: 0.0745 | AU38: 0.0747 | AV38: 0.0749 | AW38: 0.0751 | AX38: 0 | AY38: 0 | AZ38: 0 | BA38: 0 | BB38: 0 | BC38: 0 | BD38: 0 | BE38: 0 | BF38: 0 | BG38: 0 | BH38: 1.293 | BI38: 1.293 | BJ38: 1.293 | BK38: 1.293 | BL38: 1.293 | BM38: 0.01 | BN38: 0.01 | BO38: 0.01 | BP38: 0.01 | BQ38: 0.01
A39: Bertie County RWS | B39: 1.040666667 | C39: 2.867 | D39: 0.005 | F39: 13550 | G39: 0.7 | H39: 0.02 | I39: 0.08 | J39: 0.13 | K39: 0.007 | L39: 0.09866666667 | M39: 51.66051661 | N39: 11500 | O39: 11400 | P39: 11300 | Q39: 11250 | R39: 11000 | S39: Bertie | T39: 0.7 | U39: 0.7 | V39: 0.69 | W39: 0.68 | X39: 0.67 | Y39: 0.025 | Z39: 0.024 | AA39: 0.023 | AB39: 0.022 | AC39: 0.021 | AD39: 0.1 | AE39: 0.11 | AF39: 0.13 | AG39: 0.15 | AH39: 0.17 | AI39: 0.14 | AJ39: 0.14 | AK39: 0.14 | AL39: 0.14 | AM39: 0.14 | AN39: 0.006 | AO39: 0.005 | AP39: 0.0045 | AQ39: 0.004 | AR39: 0.003 | AS39: 0.1 | AT39: 0.1 | AU39: 0.1005 | AV39: 0.1014 | AW39: 0.1022 | AX39: 0 | AY39: 0 | AZ39: 0 | BA39: 0 | BB39: 0 | BC39: 0 | BD39: 0 | BE39: 0 | BF39: 0 | BG39: 0 | BH39: 0 | BI39: 0 | BJ39: 0 | BK39: 0 | BL39: 0 | BM39: 0.005 | BN39: 0.005 | BO39: 0.005 | BP39: 0.005 | BQ39: 0.005
A40: Bessemer City | B40: 1.245325 | C40: 4.341 | D40: 0 | F40: 5685 | G40: 0.246 | H40: 0.211 | I40: 0.618 | J40: 0 | K40: 0.052 | L40: 0.118325 | M40: 43.27176781 | N40: 5697 | O40: 5802 | P40: 5912 | Q40: 6022 | R40: 6132 | S40: Gaston | T40: 0.2554 | U40: 0.2559 | V40: 0.2605 | W40: 0.266 | X40: 0.2705 | Y40: 0.0426 | Z40: 0.045 | AA40: 0.048 | AB40: 0.05 | AC40: 0.0555 | AD40: 1.55 | AE40: 1.65 | AF40: 1.7 | AG40: 1.75 | AH40: 1.8 | AI40: 0 | AJ40: 0 | AK40: 0 | AL40: 0 | AM40: 0 | AN40: 0.05 | AO40: 0.053 | AP40: 0.056 | AQ40: 0.059 | AR40: 0.061 | AS40: 0.1725 | AT40: 0.1821 | AU40: 0.1876 | AV40: 0.1931 | AW40: 0.1987 | AX40: 0 | AY40: 0 | AZ40: 0 | BA40: 0 | BB40: 0 | BC40: 0 | BD40: 0 | BE40: 0 | BF40: 0 | BG40: 0 | BH40: 3.5 | BI40: 3.5 | BJ40: 3.5 | BK40: 3.5 | BL40: 3.5 | BM40: 0 | BN40: 0 | BO40: 0 | BP40: 0 | BQ40: 0
A41: Beulaville | B41: 0.1317833333 | C41: 0.3851 | D41: 0 | F41: 1350 | G41: 0.056 | H41: 0.031 | I41: 0.008 | J41: 0.005 | K41: 0.015 | L41: 0.01678333333 | M41: 41.48148148 | N41: 1475 | O41: 1550 | P41: 1700 | Q41: 1800 | R41: 1900 | S41: Duplin | T41: 0.065 | U41: 0.07 | V41: 0.075 | W41: 0.075 | X41: 0.08 | Y41: 0.031 | Z41: 0.035 | AA41: 0.035 | AB41: 0.039 | AC41: 0.039 | AD41: 0.012 | AE41: 0.013 | AF41: 0.013 | AG41: 0.014 | AH41: 0.015 | AI41: 0.009 | AJ41: 0.011 | AK41: 0.013 | AL41: 0.015 | AM41: 0.017 | AN41: 0.01 | AO41: 0.01 | AP41: 0.015 | AQ41: 0.015 | AR41: 0.02 | AS41: 0.0186 | AT41: 0.0203 | AU41: 0.0221 | AV41: 0.0231 | AW41: 0.025 | AX41: 0 | AY41: 0 | AZ41: 0 | BA41: 0 | BB41: 0 | BC41: 0 | BD41: 0 | BE41: 0 | BF41: 0 | BG41: 0 | BH41: 0 | BI41: 0 | BJ41: 0 | BK41: 0 | BL41: 0 | BM41: 0 | BN41: 0 | BO41: 0 | BP41: 0 | BQ41: 0
A42: Big Lick Road | B42: 0.02101666667 | C42: 0.075 | D42: 0 | F42: 290 | G42: 0.0132 | H42: 0.0001 | I42: 0.005 | J42: 0 | K42: 0.0015 | L42: 0.001216666667 | M42: 45.51724138 | N42: 300 | O42: 410 | P42: 410 | Q42: 410 | R42: 410 | S42: Stanly | T42: 0.0142 | U42: 0.016 | V42: 0.016 | W42: 0.016 | X42: 0.016 | Y42: 0.0001 | Z42: 0.0001 | AA42: 0.0001 | AB42: 0.0001 | AC42: 0.0001 | AD42: 0.005 | AE42: 0.005 | AF42: 0.005 | AG42: 0.005 | AH42: 0.005 | AI42: 0 | AJ42: 0 | AK42: 0 | AL42: 0 | AM42: 0 | AN42: 0.002 | AO42: 0.002 | AP42: 0.002 | AQ42: 0.002 | AR42: 0.002 | AS42: 0.0007 | AT42: 0.0008 | AU42: 0.0008 | AV42: 0.0008 | AW42: 0.0008 | AX42: 0 | AY42: 0 | AZ42: 0 | BA42: 0 | BB42: 0 | BC42: 0 | BD42: 0 | BE42: 0 | BF42: 0 | BG42: 0 | BH42: 0.075 | BI42: 0.075 | BJ42: 0.075 | BK42: 0.075 | BL42: 0.075 | BM42: 0 | BN42: 0 | BO42: 0 | BP42: 0 | BQ42: 0
A43: Biltmore Forest | B43: ERROR | C43: 0 | D43: 0 | G43: 0 | H43: 0 | I43: 0 | J43: 0 | K43: 0 | M43: ERROR | N43: 0 | O43: 0 | P43: 0 | Q43: 0 | R43: 0 | S43: Buncombe | T43: 0 | U43: 0 | V43: 0 | W43: 0 | X43: 0 | Y43: 0 | Z43: 0 | AA43: 0 | AB43: 0 | AC43: 0 | AD43: 0 | AE43: 0 | AF43: 0 | AG43: 0 | AH43: 0 | AI43: 0 | AJ43: 0 | AK43: 0 | AL43: 0 | AM43: 0 | AN43: 0 | AO43: 0 | AP43: 0 | AQ43: 0 | AR43: 0 | AS43: 0 | AT43: 0 | AU43: 0 | AV43: 0 | AW43: 0 | AX43: 0 | AY43: 0 | AZ43: 0 | BA43: 0 | BB43: 0 | BC43: 0 | BD43: 0 | BE43: 0 | BF43: 0 | BG43: 0 | BH43: 0 | BI43: 0 | BJ43: 0 | BK43: 0 | BL43: 0 | BM43: 0 | BN43: 0 | BO43: 0 | BP43: 0 | BQ43: 0
A44: Biscoe | B44: 0.3515833333 | C44: 0.9 | D44: 0 | F44: 2319 | G44: 0.1228 | H44: 0.1358 | I44: 0.0528 | J44: 0.0225 | K44: 0.001 | L44: 0.01668333333 | M44: 52.95385942 | N44: 2319 | O44: 2319 | P44: 2319 | Q44: 2319 | R44: 2319 | S44: Montgomery | T44: 0.1228 | U44: 0.1228 | V44: 0.1228 | W44: 0.1228 | X44: 0.1228 | Y44: 0.1358 | Z44: 0.1358 | AA44: 0.1358 | AB44: 0.1358 | AC44: 0.1358 | AD44: 0.0528 | AE44: 0.0528 | AF44: 0.0528 | AG44: 0.0528 | AH44: 0.0528 | AI44: 0.0225 | AJ44: 0.0225 | AK44: 0.0225 | AL44: 0.0225 | AM44: 0.0225 | AN44: 0.01 | AO44: 0.01 | AP44: 0.01 | AQ44: 0.01 | AR44: 0.001 | AS44: 0.0163 | AT44: 0.0163 | AU44: 0.0163 | AV44: 0.0163 | AW44: 0.0159 | AX44: 0 | AY44: 0 | AZ44: 0 | BA44: 0 | BB44: 0 | BC44: 0 | BD44: 0 | BE44: 0 | BF44: 0 | BG44: 0 | BH44: 0.9 | BI44: 0.9 | BJ44: 0.9 | BK44: 0.9 | BL44: 0.9 | BM44: 0 | BN44: 0 | BO44: 0 | BP44: 0 | BQ44: 0
A45: Black Creek | B45: 0.5679583333 | C45: 1.4544 | D45: 0.4442136986 | F45: 1798 | G45: 0.111 | H45: 0 | I45: 0 | J45: 0 | K45: 0.006 | L45: 0.006744634703 | M45: 61.7352614 | N45: 1810 | O45: 1830 | P45: 1850 | Q45: 1860 | R45: 1860 | S45: Wilson | T45: 0.1122 | U45: 0.1135 | V45: 0.1147 | W45: 0.1153 | X45: 0.1153 | Y45: 0 | Z45: 0 | AA45: 0 | AB45: 0 | AC45: 0 | AD45: 0 | AE45: 0 | AF45: 0 | AG45: 0 | AH45: 0 | AI45: 0 | AJ45: 0 | AK45: 0 | AL45: 0 | AM45: 0 | AN45: 0.007 | AO45: 0.008 | AP45: 0.008 | AQ45: 0.009 | AR45: 0.009 | AS45: 0.015 | AT45: 0.015 | AU45: 0.015 | AV45: 0.015 | AW45: 0.015 | AX45: 0.288 | AY45: 0.288 | AZ45: 0.288 | BA45: 0.288 | BB45: 0.288 | BC45: 0 | BD45: 0 | BE45: 0 | BF45: 0 | BG45: 0 | BH45: 0 | BI45: 0 | BJ45: 0 | BK45: 0 | BL45: 0 | BM45: 0.55 | BN45: 0.55 | BO45: 0.55 | BP45: 0.55 | BQ45: 0.55
A46: Black Mountain | B46: 0.6898333333 | C46: 2.067 | D46: 0 | F46: 10125 | G46: 0.3418 | H46: 0.1086 | I46: 0 | J46: 0.0053 | K46: 0.0011 | L46: 0.2330333333 | M46: 33.75802469 | N46: 10950 | O46: 11995 | P46: 12900 | Q46: 13875 | R46: 14900 | S46: Buncombe | T46: 0.3285 | U46: 0.35 | V46: 0.378 | W46: 0.395 | X46: 0.416 | Y46: 0.1739 | Z46: 0.1878 | AA46: 0.2028 | AB46: 0.219 | AC46: 0.231 | AD46: 0 | AE46: 0 | AF46: 0 | AG46: 0 | AH46: 0 | AI46: 0.0092 | AJ46: 0.0096 | AK46: 0.01 | AL46: 0.0105 | AM46: 0.011 | AN46: 0.0014 | AO46: 0.0015 | AP46: 0.0016 | AQ46: 0.0018 | AR46: 0.002 | AS46: 0.2623 | AT46: 0.2807 | AU46: 0.3029 | AV46: 0.3203 | AW46: 0.3375 | AX46: 0 | AY46: 0 | AZ46: 0 | BA46: 0 | BB46: 0 | BC46: 0 | BD46: 0 | BE46: 0 | BF46: 0 | BG46: 0 | BH46: 1.55 | BI46: 1.55 | BJ46: 1.55 | BK46: 1.55 | BL46: 1.55 | BM46: 0 | BN46: 0 | BO46: 0 | BP46: 0 | BQ46: 0
A47: Bladen Bluffs - LCFWSA | B47: 1.832216667 | C47: 6 | D47: 1.766876712 | F47: 0 | G47: 0 | H47: 0 | I47: 0 | J47: 0 | K47: 0.056 | L47: 0.009339954338 | M47: ERROR | N47: 0 | O47: 0 | P47: 0 | Q47: 0 | R47: 0 | S47: Bladen | T47: 0 | U47: 0 | V47: 0 | W47: 0 | X47: 0 | Y47: 0 | Z47: 0 | AA47: 0 | AB47: 0 | AC47: 0 | AD47: 0 | AE47: 0 | AF47: 0 | AG47: 0 | AH47: 0 | AI47: 0 | AJ47: 0 | AK47: 0 | AL47: 0 | AM47: 0 | AN47: 0.056 | AO47: 0.056 | AP47: 0.056 | AQ47: 0.056 | AR47: 0.056 | AS47: 0.0133 | AT47: 0.0133 | AU47: 0.0133 | AV47: 0.0133 | AW47: 0.0133 | AX47: 0 | AY47: 0 | AZ47: 0 | BA47: 0 | BB47: 0 | BC47: 0 | BD47: 0 | BE47: 0 | BF47: 0 | BG47: 0 | BH47: 0 | BI47: 0 | BJ47: 0 | BK47: 0 | BL47: 0 | BM47: 4 | BN47: 4 | BO47: 4 | BP47: 4 | BQ47: 4
A48: Bladen Co WD (East Bladen) | B48: 0.2566666667 | C48: 0.607 | D48: 0 | F48: 1597 | G48: 0.2193 | H48: 0.013 | I48: 0 | J48: 0 | K48: 0.006 | L48: 0.01836666667 | M48: 137.319975 | N48: 1610 | O48: 1625 | P48: 1635 | Q48: 1645 | R48: 1655 | S48: Bladen | T48: 0.154 | U48: 0.159 | V48: 0.169 | W48: 0.172 | X48: 0.175 | Y48: 0.021 | Z48: 0.021 | AA48: 0.021 | AB48: 0.021 | AC48: 0.021 | AD48: 0 | AE48: 0 | AF48: 0 | AG48: 0 | AH48: 0 | AI48: 0 | AJ48: 0 | AK48: 0 | AL48: 0 | AM48: 0 | AN48: 0 | AO48: 0 | AP48: 0 | AQ48: 0 | AR48: 0 | AS48: 0.03 | AT48: 0.0309 | AU48: 0.0326 | AV48: 0.0331 | AW48: 0.0336 | AX48: 0 | AY48: 0 | AZ48: 0 | BA48: 0 | BB48: 0 | BC48: 0 | BD48: 0 | BE48: 0 | BF48: 0 | BG48: 0 | BH48: 0 | BI48: 0 | BJ48: 0 | BK48: 0 | BL48: 0 | BM48: 0 | BN48: 0 | BO48: 0 | BP48: 0 | BQ48: 0
A49: Bladen Co WD (West Bladen) | B49: 1.015833333 | C49: 1.637 | D49: 0 | F49: 4818 | G49: 0.64 | H49: 0.05 | I49: 0.03 | J49: 0 | K49: 0.1465 | L49: 0.1493333333 | M49: 132.8352013 | N49: 4828 | O49: 4835 | P49: 4845 | Q49: 4850 | R49: 4860 | S49: Bladen | T49: 0.55 | U49: 0.57 | V49: 0.59 | W49: 0.6 | X49: 0.62 | Y49: 0.07 | Z49: 0.059 | AA49: 0.063 | AB49: 0.071 | AC49: 0.071 | AD49: 0.04 | AE49: 0.031 | AF49: 0.031 | AG49: 0.031 | AH49: 0.031 | AI49: 0 | AJ49: 0 | AK49: 0 | AL49: 0 | AM49: 0 | AN49: 0.1 | AO49: 0.1 | AP49: 0.1 | AQ49: 0.1 | AR49: 0.2 | AS49: 0.094 | AT49: 0.094 | AU49: 0.0979 | AV49: 0.0999 | AW49: 0.1142 | AX49: 0.02 | AY49: 0.02 | AZ49: 0.02 | BA49: 0.02 | BB49: 0.02 | BC49: 0 | BD49: 0 | BE49: 0 | BF49: 0 | BG49: 0 | BH49: 0 | BI49: 0 | BJ49: 0 | BK49: 0 | BL49: 0 | BM49: 0 | BN49: 0 | BO49: 0 | BP49: 0 | BQ49: 0
